Workbook

Sheet Zmeny
B1: Změna
A2: Datum | B2: Rev | C2: Popis
A3: 2021-11-25 | B3: 00 | C3: Základní verze

Sheet Soutez
A1: No. | B1: Soutěž | C1: Stát | D1: Rok | E1: Místo | F1: Termín | G1: Poč. disc. | H1: Poč. pilotů | I1: Ki | J1: Kn1 | K1: Kn2 | L1: Kp | M1: Kinp | N1: dKinp | O1: Web | P1: Results | Q1: Poznámka
B2: Zařazené soutěže 2019:
B3: AZ Cup 2019 - Klub | C3: CZ | D3: 2019 | E3: Zbraslavice | F3: 1.5.-11.5.19 | G3: 6 | H3: 37 | I3: 0.9 | J3: 0.005 | L3: =VLOOKUP(G3,Kp!$A$4:$B$24,2,FALSE) -> 0.01 | M3: =IF(OR(G3=0,G3=1,G3=2),0,IF(H3<10,0,SUM(I3:L3))) -> 0.915 | N3: =M3-I3 -> 0.015 | P3: https://www.soaringspot.com/cs/az-cup-2019-zbraslavice-2019/results/klubova-trida
B4: AZ Cup 2019 - Kombi | C4: CZ | D4: 2019 | E4: Zbraslavice | F4: 1.5.-11.5.19 | G4: 6 | H4: 30 | I4: 0.9 | J4: 0.025 | L4: =VLOOKUP(G4,Kp!$A$4:$B$24,2,FALSE) -> 0.01 | M4: 0.935 | N4: 0.035 | P4: https://www.soaringspot.com/cs/az-cup-2019-zbraslavice-2019/results/kombinovana-trida
A5: 15. | B5: JPJ 2019 - Klub | C5: CZ | D5: 2019 | E5: Šumperk | F5: 1.5.-11.5.19 | G5: 4 | H5: 36 | I5: 0.9 | L5: =VLOOKUP(G5,Kp!$A$4:$B$24,2,FALSE) -> 0 | M5: 0.9 | N5: 0 | P5: https://www.soaringspot.com/cs/jpj2019/results/klubova-trida
A6: 15. | B6: JPJ 2019 - Kombi | C6: CZ | D6: 2019 | E6: Šumperk | F6: 1.5.-11.5.19 | G6: 5 | H6: 28 | I6: 0.9 | L6: =VLOOKUP(G6,Kp!$A$4:$B$24,2,FALSE) -> 0.005 | M6: 0.905 | N6: 0.005 | P6: https://www.soaringspot.com/cs/jpj2019/results/kombi-trida
B7: GGP MB 2019 - Klub GP | C7: CZ | D7: 2019 | E7: Mladá Boleslav | F7: 29.6.-6.7.19 | G7: 6 | H7: 9 | I7: 0.9 | L7: =VLOOKUP(G7,Kp!$A$4:$B$24,2,FALSE) -> 0.01 | M7: 0 | N7: -0.9 | P7: https://www.soaringspot.com/cs/gradient-club-grand-prix-2019-mlada-boleslav-2019/results/club-gp | Q7: Méně jak 10 soutěžících ve třídě
B8: GGP MB 2019 - Pohár MV - Kombi | C8: CZ | D8: 2019 | E8: Mladá Boleslav | F8: 29.6.-6.7.19 | G8: 6 | H8: 6 | I8: 0.75 | L8: =VLOOKUP(G8,Kp!$A$4:$B$24,2,FALSE) -> 0.01 | M8: 0 | N8: -0.75 | P8: https://www.soaringspot.com/cs/gradient-club-grand-prix-2019-mlada-boleslav-2019/results/pohar-metodeje-vlach | Q8: Méně jak 10 soutěžících ve třídě
B9: Adrenalin GP 2019 - Klub GP | C9: CZ | D9: 2019 | E9: Frýdlant n/Ostr. | F9: 28.6.-6.7.19 | G9: 7 | H9: 12 | I9: 0.9 | L9: =VLOOKUP(G9,Kp!$A$4:$B$24,2,FALSE) -> 0.015 | M9: 0.915 | N9: =M9-I9 -> 0.015 | P9: https://www.soaringspot.com/cs/fl-2019-adrenalin-grand-prix-frydlant-2019/results/unknown
B10: FL 2019 - Kombi | C10: CZ | D10: 2019 | E10: Frýdlant n/Ostr. | F10: 28.6.-6.7.19 | G10: 7 | H10: 14 | I10: 0.75 | L10: =VLOOKUP(G10,Kp!$A$4:$B$24,2,FALSE) -> 0.015 | M10: 0.765 | N10: 0.015 | P10: https://www.soaringspot.com/cs/fl-2019-adrenalin-grand-prix-frydlant-2019/results/fl
B11: PMČRj 2019 - Klub | C11: CZ | D11: 2019 | E11: Jaroměř | F11: 30.6.-12.7.19 | G11: 7 | H11: 31 | I11: 0.9 | J11: 0.01 | L11: =VLOOKUP(G11,Kp!$A$4:$B$24,2,FALSE) -> 0.015 | M11: 0.925 | N11: 0.025 | P11: https://www.soaringspot.com/cs/plachtarske-mistrovstvi-cr-junioru-a-akademiku-2019-jaromer-2019/results/club
B12: Safari 2019 - Duo Kombi | C12: CZ | D12: 2019 | E12: Dvůr Králové | F12: 29.6.-13.7.19 | G12: 7 | H12: 15 | I12: 0.75 | J12: 0.005 | L12: =VLOOKUP(G12,Kp!$A$4:$B$24,2,FALSE) -> 0.015 | M12: 0.77 | N12: 0.02 | P12: https://www.soaringspot.com/cs/safari-cup-2019-dvur-kralove-nad-labem-2019/results/double-seater
B13: Safari 2019 - Klub | C13: CZ | D13: 2019 | E13: Dvůr Králové | F13: 29.6.-13.7.19 | G13: 7 | H13: 28 | I13: 0.75 | L13: =VLOOKUP(G13,Kp!$A$4:$B$24,2,FALSE) -> 0.015 | M13: 0.765 | N13: 0.015 | P13: https://www.soaringspot.com/cs/safari-cup-2019-dvur-kralove-nad-labem-2019/results/klub
B14: Safari 2019 - Kombi | C14: CZ | D14: 2019 | E14: Dvůr Králové | F14: 29.6.-13.7.19 | G14: 7 | H14: 11 | I14: 0.75 | J14: 0.005 | L14: =VLOOKUP(G14,Kp!$A$4:$B$24,2,FALSE) -> 0.015 | M14: 0.77 | N14: 0.02 | P14: https://www.soaringspot.com/cs/safari-cup-2019-dvur-kralove-nad-labem-2019/results/volna
B15: PPV 2019 - Klub | C15: CZ | D15: 2019 | E15: Havlíčkův Brod | F15: 13.7.-20.7.19 | G15: 4 | H15: 47 | I15: 0.9 | L15: =VLOOKUP(G15,Kp!$A$4:$B$24,2,FALSE) -> 0 | M15: 0.9 | N15: 0 | P15: https://www.soaringspot.com/cs/plachtarsky-pohar-vysociny-2019-havlickuv-brod-2019/results/klubova-trida
B16: PPV 2019 - Kombi | C16: CZ | D16: 2019 | E16: Havlíčkův Brod | F16: 13.7.-20.7.19 | G16: 4 | H16: 19 | I16: 0.9 | J16: 0.005 | L16: =VLOOKUP(G16,Kp!$A$4:$B$24,2,FALSE) -> 0 | M16: 0.905 | N16: 0.005 | P16: https://www.soaringspot.com/cs/plachtarsky-pohar-vysociny-2019-havlickuv-brod-2019/results/kombinovana-trida
B17: Toužim Cup 2019 - Klub | C17: CZ | D17: 2019 | E17: Toužim | F17: 23.7.-21.7.19 | G17: 5 | H17: 31 | I17: 0.9 | J17: 0.005 | L17: =VLOOKUP(G17,Kp!$A$4:$B$24,2,FALSE) -> 0.005 | M17: 0.91 | N17: 0.01 | P17: https://www.soaringspot.com/cs/touzim-cup-2019-touzim1-2019/results/club
B18: Toužim Cup 2019 - Kombi | C18: CZ | D18: 2019 | E18: Toužim | F18: 23.7.-21.7.19 | G18: 5 | H18: 22 | I18: 0.9 | L18: =VLOOKUP(G18,Kp!$A$4:$B$24,2,FALSE) -> 0.005 | M18: 0.905 | N18: =M18-I18 -> 0.005 | P18: https://www.soaringspot.com/cs/touzim-cup-2019-touzim1-2019/results/kombi
B19: PMRg 2019 - Klub | C19: CZ | D19: 2019 | E19: Vysoké Mýto | F19: 21.7.-3.8.19 | G19: 8 | H19: 24 | I19: 0.9 | J19: 0.015 | L19: =VLOOKUP(G19,Kp!$A$4:$B$24,2,FALSE) -> 0.02 | M19: 0.935 | N19: 0.035 | P19: https://www.soaringspot.com/cs/plachtarske-mistrovstvi-regionu-2019-vysoke-myto-2019/results/klubova-trida
B20: PMRg 2019 - Kombi | C20: CZ | D20: 2019 | E20: Vysoké Mýto | F20: 21.7.-3.8.19 | G20: 8 | H20: 13 | I20: 0.9 | J20: 0.015 | L20: =VLOOKUP(G20,Kp!$A$4:$B$24,2,FALSE) -> 0.02 | M20: 0.935 | N20: 0.035 | P20: https://www.soaringspot.com/cs/plachtarske-mistrovstvi-regionu-2019-vysoke-myto-2019/results/kombinovana-trida
B21: Pohár Českého Ráje 2019 - Kombi | C21: CZ | D21: 2019 | E21: Jičín | F21: 27.7.-3.8.19 | G21: 3 | H21: 12 | I21: 0.75 | L21: =VLOOKUP(G21,Kp!$A$4:$B$24,2,FALSE) -> -0.02 | M21: 0.73 | N21: -0.02 | P21: https://www.soaringspot.com/cs/pohar-ceskeho-raje-2019-jicin-2019/results/unknown
B22: Ranský Pohár 2019 - Kombi | C22: CZ | D22: 2019 | E22: Raná | F22: 27.7.-4.8.19 | G22: 3 | H22: 16 | I22: 0.75 | L22: =VLOOKUP(G22,Kp!$A$4:$B$24,2,FALSE) -> -0.02 | M22: 0.73 | N22: -0.02 | P22: https://www.soaringspot.com/cs/ransky-pohar-2019-rana-loumy-2019/results/club
A23: 18. | B23: HOP 2019 - Klub | C23: CZ | D23: 2019 | E23: Hronov | F23: 10.8.-17.8.19 | G23: 2 | H23: 27 | I23: 0.75 | L23: =VLOOKUP(G23,Kp!$A$4:$B$24,2,FALSE) -> 0 | M23: 0 | N23: -0.75 | P23: https://www.soaringspot.com/cs/18-hop-2019-velke-porici-2019/results/klub-hop | Q23: Méně jak 3 platné disciplíny
A24: 18. | B24: HOP 2019 - Kombi | C24: CZ | D24: 2019 | E24: Hronov | F24: 10.8.-17.8.19 | G24: 5 | H24: 16 | I24: 0.75 | L24: =VLOOKUP(G24,Kp!$A$4:$B$24,2,FALSE) -> 0.005 | M24: 0.755 | N24: =M24-I24 -> 0.005 | P24: https://www.soaringspot.com/cs/18-hop-2019-velke-porici-2019/results/kombi-ppf
B25: PMČR 2019 - Klub | C25: CZ | D25: 2019 | E25: Moravská Třebová | F25: 12.8.-24.8.19 | G25: 7 | H25: 28 | I25: 1 | J25: 0.05 | L25: =VLOOKUP(G25,Kp!$A$4:$B$24,2,FALSE) -> 0.015 | M25: 1.065 | N25: 0.065 | P25: https://www.soaringspot.com/cs/plachtarske-mistrovstvi-cr-2019-moravska-trebova-2019/results/15-meter
B26: PMČR 2019 - Kombi 15m | C26: CZ | D26: 2019 | E26: Moravská Třebová | F26: 12.8.-24.8.19 | G26: 6 | H26: 13 | I26: 1 | J26: 0.04 | K26: 0.02 | L26: =VLOOKUP(G26,Kp!$A$4:$B$24,2,FALSE) -> 0.01 | M26: 1.07 | N26: =M26-I26 -> 0.07 | P26: https://www.soaringspot.com/cs/plachtarske-mistrovstvi-cr-2019-moravska-trebova-2019/results/kombi-15m
B27: PMČR 2019 - Kombi Open | C27: CZ | D27: 2019 | E27: Moravská Třebová | F27: 12.8.-24.8.19 | G27: 7 | H27: 13 | I27: 1 | J27: 0.015 | L27: =VLOOKUP(G27,Kp!$A$4:$B$24,2,FALSE) -> 0.015 | M27: 1.03 | N27: 0.03 | P27: https://www.soaringspot.com/cs/plachtarske-mistrovstvi-cr-2019-moravska-trebova-2019/results/kombi-open
B28: Zbraslavický bludišťák 2019 - Kombi | C28: CZ | D28: 2019 | E28: Zbraslavice | F28: 31.8.-15.9.19 | G28: 2 | H28: 19 | I28: 0.75 | L28: =VLOOKUP(G28,Kp!$A$4:$B$24,2,FALSE) -> 0 | M28: 0 | N28: -0.75 | P28: https://www.soaringspot.com/cs/zbraslavicky-bludistak-zbraslavice-2019/results/otevrena-trida | Q28: Méně jak 3 platné disciplíny
B29: Pribina Cup 2019 - Klub | C29: SK | D29: 2019 | E29: Nitra | F29: 19.4.-27.4.19 | G29: 4 | H29: 43 | I29: 0.9 | J29: 0.045 | L29: =VLOOKUP(G29,Kp!$A$4:$B$24,2,FALSE) -> 0 | M29: 0.945 | N29: 0.045 | P29: https://www.soaringspot.com/cs/pribina-cup-2019-nitra-2019/results/club
B30: Pribina Cup 2019 - Kombi 15m | C30: SK | D30: 2019 | E30: Nitra | F30: 19.4.-27.4.19 | G30: 5 | H30: 37 | I30: 0.9 | J30: 0.045 | L30: =VLOOKUP(G30,Kp!$A$4:$B$24,2,FALSE) -> 0.005 | M30: 0.95 | N30: 0.05 | P30: https://www.soaringspot.com/cs/pribina-cup-2019-nitra-2019/results/15m
B31: Pribina Cup 2019 - Kombi Open | C31: SK | D31: 2019 | E31: Nitra | F31: 19.4.-27.4.19 | G31: 4 | H31: 36 | I31: 0.9 | J31: 0.065 | L31: =VLOOKUP(G31,Kp!$A$4:$B$24,2,FALSE) -> 0 | M31: 0.965 | N31: 0.065 | P31: https://www.soaringspot.com/cs/pribina-cup-2019-nitra-2019/results/open
B32: Pribina Cup 2019 - Duo 20m | C32: SK | D32: 2019 | E32: Nitra | F32: 19.4.-27.4.19 | G32: 5 | H32: 13 | I32: 0.9 | J32: 0.015 | L32: =VLOOKUP(G32,Kp!$A$4:$B$24,2,FALSE) -> 0.005 | M32: 0.92 | N32: 0.02 | P32: https://www.soaringspot.com/cs/pribina-cup-2019-nitra-2019/results/20m-double-seater
B33: FCC 2019 - Klub | C33: SK | D33: 2019 | E33: Prievidza | F33: 28.4.-9.5.19 | G33: 4 | H33: 39 | I33: 0.9 | J33: 0.065 | L33: =VLOOKUP(G33,Kp!$A$4:$B$24,2,FALSE) -> 0 | M33: 0.965 | N33: 0.065 | P33: https://www.soaringspot.com/cs/fcc-gliding-2019-prievidza-2019/results/club
B34: FCC 2019 - Kombi 15m | C34: SK | D34: 2019 | E34: Prievidza | F34: 28.4.-9.5.19 | G34: 4 | H34: 38 | I34: 0.9 | J34: 0.08 | L34: =VLOOKUP(G34,Kp!$A$4:$B$24,2,FALSE) -> 0 | M34: 0.98 | N34: 0.08 | P34: https://www.soaringspot.com/cs/fcc-gliding-2019-prievidza-2019/results/15-m
B35: FCC 2019 - Kombi Open | C35: SK | D35: 2019 | E35: Prievidza | F35: 28.4.-9.5.19 | G35: 4 | H35: 27 | I35: 0.9 | J35: 0.035 | L35: =VLOOKUP(G35,Kp!$A$4:$B$24,2,FALSE) -> 0 | M35: 0.935 | N35: 0.035 | P35: https://www.soaringspot.com/cs/fcc-gliding-2019-prievidza-2019/results/combi
B36: Šariš Cup 2019 - Klub | C36: SK | D36: 2019 | E36: Ražňany | F36: 1.6.-9.6.19 | G36: 4 | H36: 14 | I36: 0.75 | L36: =VLOOKUP(G36,Kp!$A$4:$B$24,2,FALSE) -> 0 | M36: 0.75 | N36: 0 | P36: https://www.soaringspot.com/cs/sariscup2019/results/club
B37: Šariš Cup 2019 - Kombi | C37: SK | D37: 2019 | E37: Ražňany | F37: 1.6.-9.6.19 | G37: 5 | H37: 6 | I37: 0.75 | L37: =VLOOKUP(G37,Kp!$A$4:$B$24,2,FALSE) -> 0.005 | M37: 0 | N37: =M37-I37 -> -0.75 | P37: https://www.soaringspot.com/cs/sariscup2019/results/combi | Q37: Méně jak 10 soutěžících ve třídě
B38: PMSR 2019 - Klub | C38: SK | D38: 2019 | E38: Martin | F38: 16.6.-28.6.19 | G38: 7 | H38: 24 | I38: 0.9 | J38: 0.005 | L38: =VLOOKUP(G38,Kp!$A$4:$B$24,2,FALSE) -> 0.015 | M38: 0.92 | N38: 0.02 | P38: https://www.soaringspot.com/cs/62-majstrovstva-sr-vbezmotorovom-lietani-2019-martin-2019/results/klubova-trieda
B39: PMSR 2019 - Kombi 15m | C39: SK | D39: 2019 | E39: Martin | F39: 16.6.-28.6.19 | G39: 7 | H39: 10 | I39: 0.9 | J39: 0.015 | L39: =VLOOKUP(G39,Kp!$A$4:$B$24,2,FALSE) -> 0.015 | M39: 0.93 | N39: =M39-I39 -> 0.03 | P39: https://www.soaringspot.com/cs/62-majstrovstva-sr-vbezmotorovom-lietani-2019-martin-2019/results/15m-standard-trieda
B40: PMSR 2019 - Kombi Open | C40: SK | D40: 2019 | E40: Martin | F40: 16.6.-28.6.19 | G40: 7 | H40: 14 | I40: 0.9 | J40: 0.005 | L40: =VLOOKUP(G40,Kp!$A$4:$B$24,2,FALSE) -> 0.015 | M40: 0.92 | N40: =M40-I40 -> 0.02 | P40: https://www.soaringspot.com/cs/62-majstrovstva-sr-vbezmotorovom-lietani-2019-martin-2019/results/kombinovana-trieda
A41: 39. | B41: MAM 2019 - Klub | C41: SK | D41: 2019 | E41: Partizánske | F41: 30.6.-11.7.19 | G41: 9 | H41: 34 | I41: 0.75 | L41: =VLOOKUP(G41,Kp!$A$4:$B$24,2,FALSE) -> 0.025 | M41: 0.775 | N41: 0.025 | P41: https://www.soaringspot.com/cs/39-memorial-alexandra-makarenka-2019-male-bielice-2019/results/klubova-trieda
A42: 39. | B42: MAM 2019 - Kombi | C42: SK | D42: 2019 | E42: Partizánske | F42: 30.6.-11.7.19 | G42: 9 | H42: 10 | I42: 0.75 | L42: =VLOOKUP(G42,Kp!$A$4:$B$24,2,FALSE) -> 0.025 | M42: 0.775 | N42: =M42-I42 -> 0.025 | P42: https://www.soaringspot.com/cs/39-memorial-alexandra-makarenka-2019-male-bielice-2019/results/kombinovana-treida
A43: 20. | B43: EGC 2019 - Std | C43: SK | D43: 2019 | E43: Prievidza | F43: 7.7.-20.7.19 | G43: 12 | H43: 29 | I43: 1 | J43: 0.075 | L43: =VLOOKUP(G43,Kp!$A$4:$B$24,2,FALSE) -> 0.03 | M43: 1.105 | N43: 0.105 | P43: https://www.soaringspot.com/cs/20th-fai-european-gliding-championship-2019-prievidza-2019/results/standard
A44: 20. | B44: EGC 2019 - Klub | C44: SK | D44: 2019 | E44: Prievidza | F44: 7.7.-20.7.19 | G44: 12 | H44: 31 | I44: 1 | J44: 0.075 | L44: =VLOOKUP(G44,Kp!$A$4:$B$24,2,FALSE) -> 0.03 | M44: 1.105 | N44: =M44-I44 -> 0.105 | P44: https://www.soaringspot.com/cs/20th-fai-european-gliding-championship-2019-prievidza-2019/results/club
A45: 20. | B45: EGC 2019 - 15m | C45: SK | D45: 2019 | E45: Prievidza | F45: 7.7.-20.7.19 | G45: 12 | H45: 22 | I45: 1 | J45: 0.075 | L45: =VLOOKUP(G45,Kp!$A$4:$B$24,2,FALSE) -> 0.03 | M45: 1.105 | N45: =M45-I45 -> 0.105 | P45: https://www.soaringspot.com/cs/20th-fai-european-gliding-championship-2019-prievidza-2019/results/15m
B46: Top Gun 2019 - Kombi | C46: SK | D46: 2019 | E46: Prievidza | F46: 10.8.-17.8.19 | G46: 3 | H46: 10 | I46: 0.75 | L46: =VLOOKUP(G46,Kp!$A$4:$B$24,2,FALSE) -> -0.02 | M46: =IF(OR(G46=0,G46=1,G46=2),0,IF(H46<10,0,SUM(I46:L46))) -> 0.73 | N46: -0.02 | P46: https://www.soaringspot.com/cs/top-gun-prievidza-2019-prievidza-2019/results/top-gun
A47: 20. | B47: EGC 2019 - Open | C47: PL | D47: 2019 | E47: Stalowa Wola-Turbia | F47: 11.5.-25.5.19 | G47: 5 | H47: 17 | I47: 1 | J47: 0.055 | L47: =VLOOKUP(G47,Kp!$A$4:$B$24,2,FALSE) -> 0.005 | M47: 1.06 | N47: 0.06 | O47: https://egc2019.pl/ | P47: https://www.soaringspot.com/en_gb/egc019/results/open
A48: 20. | B48: EGC 2019 - 18m | C48: PL | D48: 2019 | E48: Stalowa Wola-Turbia | F48: 11.5.-25.5.19 | G48: 5 | H48: 28 | I48: 1 | J48: 0.085 | L48: =VLOOKUP(G48,Kp!$A$4:$B$24,2,FALSE) -> 0.005 | M48: 1.09 | N48: =M48-I48 -> 0.09 | O48: https://egc2019.pl/ | P48: https://www.soaringspot.com/en_gb/egc019/results/18m
A49: 20. | B49: EGC 2019 - Duo 20m | C49: PL | D49: 2019 | E49: Stalowa Wola-Turbia | F49: 11.5.-25.5.19 | G49: 5 | H49: 14 | I49: 1 | J49: 0.06 | L49: =VLOOKUP(G49,Kp!$A$4:$B$24,2,FALSE) -> 0.005 | M49: 1.065 | N49: =M49-I49 -> 0.065 | O49: https://egc2019.pl/ | P49: https://www.soaringspot.com/en_gb/egc019/results/20m-multi-seat
A50: 27. | B50: Alpe Adria Cup 2019 - Klub | C50: AT | D50: 2019 | E50: Feldkirchen | F50: 25.5.-1.6.19 | G50: 3 | H50: 20 | I50: 0.75 | L50: =VLOOKUP(G50,Kp!$A$4:$B$24,2,FALSE) -> -0.02 | M50: 0.73 | N50: -0.02 | P50: https://www.soaringspot.com/cs/aac2019/results/106er-klasse
A51: 27. | B51: Alpe Adria Cup 2019 - Kombi | C51: AT | D51: 2019 | E51: Feldkirchen | F51: 25.5.-1.6.19 | G51: 3 | H51: 23 | I51: 0.75 | L51: =VLOOKUP(G51,Kp!$A$4:$B$24,2,FALSE) -> -0.02 | M51: 0.73 | N51: =M51-I51 -> -0.02 | P51: https://www.soaringspot.com/cs/aac2019/results/offene-klasse
B52: OSS 2019 - Klub | C52: AT | D52: 2019 | E52: Dobersberg | F52: 3.8.-10.8.19 | G52: 4 | H52: 16 | I52: 0.9 | J52: 0.005 | L52: =VLOOKUP(G52,Kp!$A$4:$B$24,2,FALSE) -> 0 | M52: =IF(OR(G52=0,G52=1,G52=2),0,IF(H52<10,0,SUM(I52:L52))) -> 0.905 | N52: 0.005 | P52: https://www.soaringspot.com/cs/ssm2019/results/club
B53: OSS 2019 - 18m | C53: AT | D53: 2019 | E53: Dobersberg | F53: 3.8.-10.8.19 | G53: 4 | H53: 19 | I53: 0.9 | J53: 0.015 | L53: =VLOOKUP(G53,Kp!$A$4:$B$24,2,FALSE) -> 0 | M53: 0.915 | N53: =M53-I53 -> 0.015 | P53: https://www.soaringspot.com/cs/ssm2019/results/18-meter
B54: OSS 2019 - Open | C54: AT | D54: 2019 | E54: Dobersberg | F54: 3.8.-10.8.19 | G54: 4 | H54: 8 | I54: 0.9 | L54: =VLOOKUP(G54,Kp!$A$4:$B$24,2,FALSE) -> 0 | M54: 0 | N54: =M54-I54 -> -0.9 | P54: https://www.soaringspot.com/cs/ssm2019/results/open | Q54: Méně jak 10 soutěžících ve třídě
B55: OSS 2019 - Kombi | C55: AT | D55: 2019 | E55: Dobersberg | F55: 3.8.-10.8.19 | G55: 4 | H55: 11 | I55: 0.9 | L55: =VLOOKUP(G55,Kp!$A$4:$B$24,2,FALSE) -> 0 | M55: 0.9 | N55: 0 | P55: https://www.soaringspot.com/cs/ssm2019/results/mixed
A56: 11. | B56: WGC Juniors 2019 - Klub | C56: HU | D56: 2019 | E56: Szeged | F56: 28.7.-10.8.19 | G56: 11 | H56: 44 | I56: 1 | J56: 0.015 | L56: =VLOOKUP(G56,Kp!$A$4:$B$24,2,FALSE) -> 0.03 | M56: 1.045 | N56: 0.045 | P56: https://www.soaringspot.com/cs/11th-fai-junior-world-gliding-championships-szeged-2019/results/club
A57: 11. | B57: WGC Juniors 2019 - Std | C57: HU | D57: 2019 | E57: Szeged | F57: 28.7.-10.8.19 | G57: 10 | H57: 36 | I57: 1 | J57: 0.04 | L57: =VLOOKUP(G57,Kp!$A$4:$B$24,2,FALSE) -> 0.03 | M57: 1.07 | N57: 0.07 | P57: https://www.soaringspot.com/cs/11th-fai-junior-world-gliding-championships-szeged-2019/results/standard
B58: SGP 2019 BH - 18m GP | C58: BH | D58: 2019 | E58: Livno | F58: 27.7.-3.8.19 | G58: 6 | H58: 15 | I58: 0.9 | J58: 0.015 | L58: =VLOOKUP(G58,Kp!$A$4:$B$24,2,FALSE) -> 0.01 | M58: 0.925 | N58: =M58-I58 -> 0.025 | P58: http://www.sgp.aero/bosnia2018/results-sgp/results.aspx?contestID=32417
A59: 9. | B59: WSGP Final 2019 - 18m GP | C59: SP | D59: 2019 | E59: La Cerdanya | F59: 1.6.-8.6.19 | G59: 6 | H59: 19 | I59: 1 | J59: 0.07 | L59: =VLOOKUP(G59,Kp!$A$4:$B$24,2,FALSE) -> 0.01 | M59: =IF(OR(G59=0,G59=1,G59=2),0,IF(H59<10,0,SUM(I59:L59))) -> 1.08 | N59: 0.08 | P59: http://www.sgp.aero/finals2019/results-sgp/results.aspx
B60: Zařazené soutěže 2020:
B61: AZ Cup 2020 - Klub | C61: CZ | D61: 2020 | E61: Zbraslavice | F61: 3.5.-7.6.20 | G61: 3 | H61: 27 | I61: 0.9 | J61: 0.015 | K61: 0.01 | L61: =VLOOKUP(G61,Kp!$A$4:$B$24,2,FALSE) -> -0.02 | M61: =IF(OR(G61=0,G61=1,G61=2),0,IF(H61<10,0,SUM(I61:L61))) -> 0.905 | N61: =M61-I61 -> 0.005 | P61: https://www.soaringspot.com/cs/az-cup-2020-zbraslavice-2020/results/klubova-trida
B62: AZ Cup 2020 - Kombi A | C62: CZ | D62: 2020 | E62: Zbraslavice | F62: 3.5.-7.6.20 | G62: 3 | H62: 20 | I62: 0.9 | J62: 0.02 | L62: =VLOOKUP(G62,Kp!$A$4:$B$24,2,FALSE) -> -0.02 | M62: 0.9 | N62: =M62-I62 -> 0 | P62: https://www.soaringspot.com/cs/az-cup-2020-zbraslavice-2020/results/15m-trida
B63: AZ Cup 2020 - Kombi B | C63: CZ | D63: 2020 | E63: Zbraslavice | F63: 3.5.-7.6.20 | G63: 3 | H63: 21 | I63: 0.9 | J63: 0.04 | K63: 0.01 | L63: =VLOOKUP(G63,Kp!$A$4:$B$24,2,FALSE) -> -0.02 | M63: 0.93 | N63: =M63-I63 -> 0.03 | P63: https://www.soaringspot.com/cs/az-cup-2020-zbraslavice-2020/results/kombinovana-trida
B64: Závody Šohajů 2020 - Klub | C64: CZ | D64: 2020 | E64: Raná | F64: 20.6.-27.6.20 | G64: 2 | H64: 15 | I64: 0.75 | L64: =VLOOKUP(G64,Kp!$A$4:$B$24,2,FALSE) -> 0 | M64: 0 | N64: -0.75 | P64: https://www.soaringspot.com/cs/zavody-sohaju-a-historickych-kluzaku-2020-rana-loumy-2020/results/oldtimer | Q64: Méně jak 3 platné disciplíny
B65: Safari 2020 - Kombi | C65: CZ | D65: 2020 | E65: Dvůr Králové | F65: 28.6.-11.7.20 | G65: 5 | H65: 12 | I65: 0.75 | J65: 0.01 | L65: =VLOOKUP(G65,Kp!$A$4:$B$24,2,FALSE) -> 0.005 | M65: 0.765 | N65: 0.015 | P65: https://www.soaringspot.com/cs/safari-cup-2020-dvur-kralove-nad-labem-2020/results/volna
B66: Safari 2020 - Klub | C66: CZ | D66: 2020 | E66: Dvůr Králové | F66: 28.6.-11.7.20 | G66: 4 | H66: 26 | I66: 0.75 | L66: =VLOOKUP(G66,Kp!$A$4:$B$24,2,FALSE) -> 0 | M66: 0.75 | N66: =M66-I66 -> 0 | P66: https://www.soaringspot.com/cs/safari-cup-2020-dvur-kralove-nad-labem-2020/results/klub
B67: Safari 2020 - Duo Kombi | C67: CZ | D67: 2020 | E67: Dvůr Králové | F67: 28.6.-11.7.20 | G67: 1 | H67: 14 | I67: 0.75 | L67: =VLOOKUP(G67,Kp!$A$4:$B$24,2,FALSE) -> 0 | M67: 0 | N67: -0.75 | P67: https://www.soaringspot.com/cs/safari-cup-2020-dvur-kralove-nad-labem-2020/results/duo-blanik | Q67: Méně jak 3 platné disciplíny
B68: Toužim Cup 2020 - Klub | C68: CZ | D68: 2020 | E68: Toužim | F68: 11.7.-19.7.20 | G68: 5 | H68: 30 | I68: 0.9 | J68: 0.01 | L68: =VLOOKUP(G68,Kp!$A$4:$B$24,2,FALSE) -> 0.005 | M68: 0.915 | N68: 0.015 | P68: https://www.soaringspot.com/cs/tcup2020/results/klub
B69: Toužim Cup 2020 - Kombi | C69: CZ | D69: 2020 | E69: Toužim | F69: 11.7.-19.7.20 | G69: 5 | H69: 23 | I69: 0.9 | J69: 0.005 | L69: =VLOOKUP(G69,Kp!$A$4:$B$24,2,FALSE) -> 0.005 | M69: 0.91 | N69: 0.01 | P69: https://www.soaringspot.com/cs/tcup2020/results/kombi
B70: PMRg 2020 - Klub | C70: CZ | D70: 2020 | E70: Hosín | F70: 12.7.-25.7.20 | G70: 5 | H70: 24 | I70: 0.9 | J70: 0.01 | L70: =VLOOKUP(G70,Kp!$A$4:$B$24,2,FALSE) -> 0.005 | M70: 0.915 | N70: 0.015 | P70: https://www.soaringspot.com/cs/plachtarske-mistrovstvi-regionu-cr-hosin-2020/results/klubova-trida
B71: PMRg 2020 - Kombi | C71: CZ | D71: 2020 | E71: Hosín | F71: 12.7.-25.7.20 | G71: 5 | H71: 12 | I71: 0.9 | J71: 0.015 | L71: =VLOOKUP(G71,Kp!$A$4:$B$24,2,FALSE) -> 0.005 | M71: 0.92 | N71: 0.02 | P71: https://www.soaringspot.com/cs/plachtarske-mistrovstvi-regionu-cr-hosin-2020/results/kombinovana-trida
B72: Ranský Pohár 2020 - Kombi | C72: CZ | D72: 2020 | E72: Raná | F72: 18.7.-26.7.20 | G72: 6 | H72: 24 | I72: 0.75 | L72: =VLOOKUP(G72,Kp!$A$4:$B$24,2,FALSE) -> 0.01 | M72: 0.76 | N72: 0.01 | P72: https://www.soaringspot.com/cs/ransky-pohar-2020-rana-loumy-2020/results/combi
A73: 16. | B73: JPJ 2020 - Klub | C73: CZ | D73: 2020 | E73: Šumperk | F73: 25.7.-1.8.20 | G73: 6 | H73: 33 | I73: 0.9 | L73: =VLOOKUP(G73,Kp!$A$4:$B$24,2,FALSE) -> 0.01 | M73: 0.91 | N73: 0.01 | P73: https://www.soaringspot.com/cs/jpj2020/results/klubova-trida
A74: 16. | B74: JPJ 2020 - Kombi | C74: CZ | D74: 2020 | E74: Šumperk | F74: 25.7.-1.8.20 | G74: 6 | H74: 21 | I74: 0.9 | L74: =VLOOKUP(G74,Kp!$A$4:$B$24,2,FALSE) -> 0.01 | M74: 0.91 | N74: 0.01 | P74: https://www.soaringspot.com/cs/jpj2020/results/kombi-trida
B75: PMČR 2020 - Klub | C75: CZ | D75: 2020 | E75: Tábor | F75: 26.7.-8.8.20 | G75: 9 | H75: 25 | I75: 1 | J75: 0.04 | K75: 0.02 | L75: =VLOOKUP(G75,Kp!$A$4:$B$24,2,FALSE) -> 0.025 | M75: 1.085 | N75: =M75-I75 -> 0.085 | P75: https://www.soaringspot.com/cs/plachtarske-mistrovstvi-cr-2020-tabor-2020/results/club
B76: PMČR 2020 - Kombi 15m | C76: CZ | D76: 2020 | E76: Tábor | F76: 26.7.-8.8.20 | G76: 9 | H76: 22 | I76: 1 | J76: 0.045 | K76: 0.02 | L76: =VLOOKUP(G76,Kp!$A$4:$B$24,2,FALSE) -> 0.025 | M76: 1.09 | N76: =M76-I76 -> 0.09 | P76: https://www.soaringspot.com/cs/plachtarske-mistrovstvi-cr-2020-tabor-2020/results/15-mixed
B77: PMČR 2020 - Kombi Open | C77: CZ | D77: 2020 | E77: Tábor | F77: 26.7.-8.8.20 | G77: 9 | H77: 21 | I77: 1 | J77: 0.035 | K77: 0.01 | L77: =VLOOKUP(G77,Kp!$A$4:$B$24,2,FALSE) -> 0.025 | M77: 1.07 | N77: =M77-I77 -> 0.07 | P77: https://www.soaringspot.com/cs/plachtarske-mistrovstvi-cr-2020-tabor-2020/results/open-mixed
B78: Pohár Českého Ráje 2020 - Kombi | C78: CZ | D78: 2020 | E78: Jičín | F78: 1.8.-8.8.20 | G78: 4 | H78: 9 | I78: 0.75 | L78: =VLOOKUP(G78,Kp!$A$4:$B$24,2,FALSE) -> 0 | M78: 0 | N78: -0.75 | P78: https://www.soaringspot.com/cs/pohar-ceskeho-raje-2020-jicin-2020/results/club | Q78: Méně jak 10 soutěžících ve třídě
B79: PMČRj 2020 - Klub | C79: CZ | D79: 2020 | E79: Zbraslavice | F79: 8.8.-22.8.20 | G79: 8 | H79: 37 | I79: 0.9 | J79: 0.01 | L79: =VLOOKUP(G79,Kp!$A$4:$B$24,2,FALSE) -> 0.02 | M79: 0.93 | N79: =M79-I79 -> 0.03 | P79: https://www.soaringspot.com/cs/plachtarske-mcr-junioru-a-akademiku-2020-zbraslavice-2020/results/klubova-trida
A80: 19. | B80: HOP 2020 - Klub | C80: CZ | D80: 2020 | E80: Hronov | F80: 8.8.-15.8.20 | G80: 5 | H80: 26 | I80: 0.75 | L80: =VLOOKUP(G80,Kp!$A$4:$B$24,2,FALSE) -> 0.005 | M80: 0.755 | N80: 0.005 | P80: https://www.soaringspot.com/cs/19-hop-2020-velke-porici-2020/results/klub-hop
A81: 19. | B81: HOP 2020 - Kombi | C81: CZ | D81: 2020 | E81: Hronov | F81: 8.8.-15.8.20 | G81: 5 | H81: 19 | I81: 0.75 | J81: 0.005 | L81: =VLOOKUP(G81,Kp!$A$4:$B$24,2,FALSE) -> 0.005 | M81: 0.76 | N81: 0.01 | P81: https://www.soaringspot.com/cs/19-hop-2020-velke-porici-2020/results/kombi-ppf
B82: Adrenalin GP 2020 - Klub GP | C82: CZ | D82: 2020 | E82: Frýdlant n/Ostr. | F82: 15.8.-22.8.20 | G82: 3 | H82: 9 | I82: 0.9 | L82: =VLOOKUP(G82,Kp!$A$4:$B$24,2,FALSE) -> -0.02 | M82: 0 | N82: =M82-I82 -> -0.9 | P82: https://www.soaringspot.com/cs/fl-2020-adrenalin-grand-prix-frydlant-2020/results/agp | Q82: Méně jak 10 soutěžících ve třídě
B83: FL 2020 - Kombi | C83: CZ | D83: 2020 | E83: Frýdlant n/Ostr. | F83: 15.8.-22.8.20 | G83: 2 | H83: 11 | I83: 0.75 | L83: =VLOOKUP(G83,Kp!$A$4:$B$24,2,FALSE) -> 0 | M83: 0 | N83: -0.75 | P83: https://www.soaringspot.com/cs/fl-2020-adrenalin-grand-prix-frydlant-2020/results/fl | Q83: Méně jak 3 platné disciplíny
B84: Pozdní sběr 2020 - Kombi | C84: CZ | D84: 2020 | E84: Zbraslavice | F84: 12.9.-28.9.20 | G84: 2 | H84: 7 | I84: 0.75 | L84: =VLOOKUP(G84,Kp!$A$4:$B$24,2,FALSE) -> 0 | M84: 0 | N84: -0.75 | P84: https://www.soaringspot.com/cs/pozdni-sber-zbraslavice-2020/results/klub | Q84: Méně jak 10 soutěžících ve třídě, méně jak 3 platné disciplíny
B85: PMSR 2020 - Klub | C85: SK | D85: 2020 | E85: Partizánske | F85: 5.7.-18.7.20 | G85: 9 | H85: 25 | I85: 0.9 | J85: 0.01 | L85: =VLOOKUP(G85,Kp!$A$4:$B$24,2,FALSE) -> 0.025 | M85: 0.935 | N85: 0.035 | P85: https://www.soaringspot.com/cs/63-majstrovstva-slovenska-v-bezmotorovom-lietani-2020/results/klubova-tireda
B86: PMSR 2020 - Kombi 15m | C86: SK | D86: 2020 | E86: Partizánske | F86: 5.7.-18.7.20 | G86: 9 | H86: 11 | I86: 0.9 | J86: 0.01 | L86: =VLOOKUP(G86,Kp!$A$4:$B$24,2,FALSE) -> 0.025 | M86: 0.935 | N86: 0.035 | P86: https://www.soaringspot.com/cs/63-majstrovstva-slovenska-v-bezmotorovom-lietani-2020/results/15m-trieda
B87: PMSR 2020 - Kombi Open | C87: SK | D87: 2020 | E87: Partizánske | F87: 5.7.-18.7.20 | G87: 9 | H87: 20 | I87: 0.9 | J87: 0.01 | L87: =VLOOKUP(G87,Kp!$A$4:$B$24,2,FALSE) -> 0.025 | M87: 0.935 | N87: 0.035 | P87: https://www.soaringspot.com/cs/63-majstrovstva-slovenska-v-bezmotorovom-lietani-2020/results/kombinovana-treida
B88: Šariš Cup 2020 - Klub | C88: SK | D88: 2020 | E88: Ražňany | F88: 1.8.-9.8.20 | G88: 7 | H88: 11 | I88: 0.75 | L88: =VLOOKUP(G88,Kp!$A$4:$B$24,2,FALSE) -> 0.015 | M88: 0.765 | N88: 0.015 | P88: https://www.soaringspot.com/cs/sariscup2020/results/club
B89: FCC 2020 - Klub | C89: SK | D89: 2020 | E89: Prievidza | F89: 2.8.-13.8.20 | G89: 9 | H89: 11 | I89: 0.9 | L89: =VLOOKUP(G89,Kp!$A$4:$B$24,2,FALSE) -> 0.025 | M89: 0.925 | N89: 0.025 | P89: https://www.soaringspot.com/cs/fcc-gliding-2020-prievidza-2020/results/club
B90: FCC 2020 - Kombi | C90: SK | D90: 2020 | E90: Prievidza | F90: 2.8.-13.8.20 | G90: 10 | H90: 17 | I90: 0.9 | J90: 0.005 | K90: 0.01 | L90: =VLOOKUP(G90,Kp!$A$4:$B$24,2,FALSE) -> 0.03 | M90: 0.945 | N90: 0.045 | P90: https://www.soaringspot.com/cs/fcc-gliding-2020-prievidza-2020/results/combi
B91: Oldtimer Pribina Star 2020 - Klub | C91: SK | D91: 2020 | E91: Nitra | F91: 7.8.-15.8.20 | G91: 4 | H91: 16 | I91: 0.75 | L91: =VLOOKUP(G91,Kp!$A$4:$B$24,2,FALSE) -> 0 | M91: 0.75 | N91: 0 | P91: https://www.soaringspot.com/cs/oldtimer-pribina-star-2020-nitra-2020/results/klub
B92: Fatraglide 2020 - Klub | C92: SK | D92: 2020 | E92: Martin | F92: 15.8.-22.8.20 | G92: 3 | H92: 10 | I92: 0.75 | L92: =VLOOKUP(G92,Kp!$A$4:$B$24,2,FALSE) -> -0.02 | M92: 0.73 | N92: -0.02 | O92: http://www.fatraglide.sk/ | P92: https://www.soaringspot.com/cs/fatraglide-2020-martin-2020/results/klubova-trieda
B93: Fatraglide 2020 - Kombi | C93: SK | D93: 2020 | E93: Martin | F93: 15.8.-22.8.20 | G93: 5 | H93: 18 | I93: 0.75 | J93: 0.005 | L93: =VLOOKUP(G93,Kp!$A$4:$B$24,2,FALSE) -> 0.005 | M93: 0.76 | N93: =M93-I93 -> 0.01 | O93: http://www.fatraglide.sk/ | P93: https://www.soaringspot.com/cs/fatraglide-2020-martin-2020/results/kombinovana-trieda
B94: Septembrova cena 2020 - Kombi | C94: SK | D94: 2020 | E94: Trnava | F94: 29.8.-1.9.20 | G94: 1 | H94: 12 | I94: 0.75 | L94: =VLOOKUP(G94,Kp!$A$4:$B$24,2,FALSE) -> 0 | M94: 0 | N94: -0.75 | P94: https://www.soaringspot.com/cs/septembrova-cena-2020-trnava-2020/results/klub | Q94: Méně jak 3 platné disciplíny
A95: 28. | B95: Alpe Adria Cup 2020 - Kombi 106 | C95: AT | D95: 2020 | E95: Feldkirchen | F95: 4.7.-11.7.20 | G95: 7 | H95: 21 | I95: 0.75 | L95: =VLOOKUP(G95,Kp!$A$4:$B$24,2,FALSE) -> 0.015 | M95: 0.765 | N95: =M95-I95 -> 0.015 | P95: https://www.soaringspot.com/cs/aac2020/results/106er
A96: 28. | B96: Alpe Adria Cup 2020 - Kombi Open | C96: AT | D96: 2020 | E96: Feldkirchen | F96: 4.7.-11.7.20 | G96: 7 | H96: 24 | I96: 0.75 | K96: 0.01 | L96: =VLOOKUP(G96,Kp!$A$4:$B$24,2,FALSE) -> 0.015 | M96: 0.775 | N96: =M96-I96 -> 0.025 | P96: https://www.soaringspot.com/cs/aac2020/results/offene-klasse
B97: GGP MB 2020 - Gradient GP | C97: CZ | D97: 2020 | E97: Mladá Boleslav | F97: 22.8.-29.8.20 | G97: 4 | H97: 10 | I97: 0.9 | J97: 0 | K97: 0 | L97: =VLOOKUP(G97,Kp!$A$4:$B$24,2,FALSE) -> 0 | M97: =IF(OR(G97=0,G97=1,G97=2),0,IF(H97<10,0,SUM(I97:L97))) -> 0.9 | N97: =M97-I97 -> 0 | P97: https://www.soaringspot.com/cs/ggp2020/results/gradient-gp
B98: GGP MB 2020 - Klub GP | C98: CZ | D98: 2020 | E98: Mladá Boleslav | F98: 22.8.-29.8.20 | G98: 5 | H98: 13 | I98: 0.9 | J98: 0.005 | K98: 0.01 | L98: =VLOOKUP(G98,Kp!$A$4:$B$24,2,FALSE) -> 0.005 | M98: =IF(OR(G98=0,G98=1,G98=2),0,IF(H98<10,0,SUM(I98:L98))) -> 0.92 | N98: 0.02 | P98: https://www.soaringspot.com/cs/ggp2020/results/club-gp
B99: GGP MB 2020 - Pohár MV - Kombi | C99: CZ | D99: 2020 | E99: Mladá Boleslav | F99: 22.8.-29.8.20 | G99: 5 | H99: 19 | I99: 0.9 | J99: 0.025 | K99: 0 | L99: =VLOOKUP(G99,Kp!$A$4:$B$24,2,FALSE) -> 0.005 | M99: 0.93 | N99: =M99-I99 -> 0.03 | P99: https://www.soaringspot.com/cs/ggp2020/results/open
A100: 10. | B100: WGC Women 2020 - Klub | C100: AU | D100: 2020 | E100: Lake Keepit | F100: 3.1.-17.1.20 | G100: 9 | H100: 17 | I100: 1 | J100: 0.02 | K100: 0.01 | L100: =VLOOKUP(G100,Kp!$A$4:$B$24,2,FALSE) -> 0.025 | M100: =IF(OR(G100=0,G100=1,G100=2),0,IF(H100<10,0,SUM(I100:L100))) -> 1.055 | N100: =M100-I100 -> 0.055 | P100: https://www.soaringspot.com/cs/10th-fai-womens-world-gliding-championship-lake-keepit-2020/results/club
A101: 10. | B101: WGC Women 2020 - Std | C101: AU | D101: 2020 | E101: Lake Keepit | F101: 3.1.-17.1.20 | G101: 9 | H101: 16 | I101: 1 | J101: 0.005 | K101: 0.04 | L101: =VLOOKUP(G101,Kp!$A$4:$B$24,2,FALSE) -> 0.025 | M101: =IF(OR(G101=0,G101=1,G101=2),0,IF(H101<10,0,SUM(I101:L101))) -> 1.07 | N101: 0.07 | P101: https://www.soaringspot.com/cs/10th-fai-womens-world-gliding-championship-lake-keepit-2020/results/standard
A102: 10. | B102: WGC Women 2020 - 18m | C102: AU | D102: 2020 | E102: Lake Keepit | F102: 3.1.-17.1.20 | G102: 9 | H102: 14 | I102: 1 | J102: 0.005 | K102: 0.03 | L102: =VLOOKUP(G102,Kp!$A$4:$B$24,2,FALSE) -> 0.025 | M102: 1.06 | N102: 0.06 | P102: https://www.soaringspot.com/cs/10th-fai-womens-world-gliding-championship-lake-keepit-2020/results/18-meter
B103: Zařazené soutěže 2021:
A104: 17. | B104: JPJ 2021 - Klub | C104: CZ | D104: 2021 | E104: Šumperk | F104: 24.7.-31.7.21 | G104: 5 | H104: 38 | I104: 0.9 | J104: 0 | K104: 0 | L104: =VLOOKUP(G104,Kp!$A$4:$B$24,2,FALSE) -> 0.005 | M104: =IF(OR(G104=0,G104=1,G104=2),0,IF(H104<10,0,SUM(I104:L104))) -> 0.905 | N104: =M104-I104 -> 0.005 | P104: https://www.soaringspot.com/cs/jpj2021/results/klubova-trida
A105: 17. | B105: JPJ 2021 - Kombi | C105: CZ | D105: 2021 | E105: Šumperk | F105: 24.7.-31.7.21 | G105: 5 | H105: 25 | I105: 0.9 | J105: 0 | K105: 0 | L105: =VLOOKUP(G105,Kp!$A$4:$B$24,2,FALSE) -> 0.005 | M105: 0.905 | N105: 0.005 | P105: https://www.soaringspot.com/cs/jpj2021/results/kombi-trida
B106: PMČR 2021 - Klub | C106: CZ | D106: 2021 | E106: Tábor | F106: 22.5.-5.6.21 | G106: 8 | H106: 16 | I106: 1 | J106: 0.02 | K106: 0.01 | L106: =VLOOKUP(G106,Kp!$A$4:$B$24,2,FALSE) -> 0.02 | M106: 1.05 | N106: =M106-I106 -> 0.05 | P106: https://www.soaringspot.com/cs/pmcr-pre-jwgc2022-tabor-2021/results/club
B107: PMČR 2021 - Kombi 15m | C107: CZ | D107: 2021 | E107: Tábor | F107: 22.5.-5.6.21 | G107: 7 | H107: 16 | I107: 1 | J107: 0.025 | K107: 0.02 | L107: =VLOOKUP(G107,Kp!$A$4:$B$24,2,FALSE) -> 0.015 | M107: 1.06 | N107: =M107-I107 -> 0.06 | P107: https://www.soaringspot.com/cs/pmcr-pre-jwgc2022-tabor-2021/results/15m-mixed
B108: PMČR 2021 - Kombi Open | C108: CZ | D108: 2021 | E108: Tábor | F108: 22.5.-5.6.21 | G108: 7 | H108: 19 | I108: 1 | J108: 0.04 | K108: 0 | L108: =VLOOKUP(G108,Kp!$A$4:$B$24,2,FALSE) -> 0.015 | M108: 1.055 | N108: =M108-I108 -> 0.055 | P108: https://www.soaringspot.com/cs/pmcr-pre-jwgc2022-tabor-2021/results/open-mixed
B109: PMRg 2021 - Klub | C109: CZ | D109: 2021 | E109: Moravská Třebová | F109: 1.8.-15.8.21 | G109: 8 | H109: 26 | I109: 0.9 | J109: 0.02 | K109: 0 | L109: =VLOOKUP(G109,Kp!$A$4:$B$24,2,FALSE) -> 0.02 | M109: 0.94 | N109: =M109-I109 -> 0.04 | P109: https://www.soaringspot.com/cs/plachtarske-mistrovstvi-regionu-2021-moravska-trebova-2021/results/club
B110: PMRg 2021 - Kombi | C110: CZ | D110: 2021 | E110: Moravská Třebová | F110: 1.8.-15.8.21 | G110: 8 | H110: 13 | I110: 0.9 | J110: 0.01 | K110: 0 | L110: =VLOOKUP(G110,Kp!$A$4:$B$24,2,FALSE) -> 0.02 | M110: 0.93 | N110: 0.03 | P110: https://www.soaringspot.com/cs/plachtarske-mistrovstvi-regionu-2021-moravska-trebova-2021/results/kombi
B111: PMČRj 2021 - Klub | C111: CZ | D111: 2021 | E111: Moravská Třebová | F111: 1.8.-15.8.21 | G111: 7 | H111: 29 | I111: 0.9 | J111: 0 | K111: 0 | L111: =VLOOKUP(G111,Kp!$A$4:$B$24,2,FALSE) -> 0.015 | M111: 0.915 | N111: =M111-I111 -> 0.015 | P111: https://www.soaringspot.com/cs/plachtarske-mistrovstvi-cr-junioru-moravska-trebova-2021/results/club
B112: GGP MB 2021 - Gradient GP | C112: CZ | D112: 2021 | E112: Mladá Boleslav | F112: 21.8.-28.8.221 | G112: 3 | H112: 9 | I112: 0.9 | J112: 0 | K112: 0 | L112: =VLOOKUP(G112,Kp!$A$4:$B$24,2,FALSE) -> -0.02 | M112: =IF(OR(G112=0,G112=1,G112=2),0,IF(H112<10,0,SUM(I112:L112))) -> 0 | N112: =M112-I112 -> -0.9 | P112: https://www.soaringspot.com/cs/ggp2021/results/standard
B113: GGP MB 2021 - Klub GP | C113: CZ | D113: 2021 | E113: Mladá Boleslav | F113: 21.8.-28.8.221 | G113: 3 | H113: 17 | I113: 0.9 | J113: 0 | K113: 0 | L113: =VLOOKUP(G113,Kp!$A$4:$B$24,2,FALSE) -> -0.02 | M113: =IF(OR(G113=0,G113=1,G113=2),0,IF(H113<10,0,SUM(I113:L113))) -> 0.88 | N113: -0.02 | P113: https://www.soaringspot.com/cs/ggp2021/results/club-gp
B114: GGP MB 2021 - Pohár MV - Kombi | C114: CZ | D114: 2021 | E114: Mladá Boleslav | F114: 21.8.-28.8.221 | G114: 3 | H114: 11 | I114: 0.9 | J114: 0.01 | K114: 0 | L114: =VLOOKUP(G114,Kp!$A$4:$B$24,2,FALSE) -> -0.02 | M114: 0.89 | N114: =M114-I114 -> -0.01 | P114: https://www.soaringspot.com/cs/ggp2021/results/pohar-metodeje-vlach
B115: Rakovnická Dlaždice 2021 - Kombi | C115: CZ | D115: 2021 | E115: Rakovník | F115: 14.8.-22.8.21 | G115: 2 | H115: 12 | I115: 0.75 | J115: 0 | K115: 0 | L115: =VLOOKUP(G115,Kp!$A$4:$B$24,2,FALSE) -> 0 | M115: =IF(OR(G115=0,G115=1,G115=2),0,IF(H115<10,0,SUM(I115:L115))) -> 0 | N115: =M115-I115 -> -0.75 | P115: https://www.soaringspot.com/cs/rakovnicka-dlazdice-rd2021-rakovnik-2021/results/kombi
A116: 20. | B116: HOP 2021 - Klub | C116: CZ | D116: 2021 | E116: Hronov | F116: 7.8.-14.8.21 | G116: 6 | H116: 26 | I116: 0.75 | J116: 0.005 | K116: 0 | L116: =VLOOKUP(G116,Kp!$A$4:$B$24,2,FALSE) -> 0.01 | M116: 0.765 | N116: =M116-I116 -> 0.015 | P116: https://www.soaringspot.com/cs/20-hop-2021-velke-porici-2021/results/klub-hop
A117: 20. | B117: HOP 2021 - Kombi | C117: CZ | D117: 2021 | E117: Hronov | F117: 7.8.-14.8.21 | G117: 6 | H117: 17 | I117: 0.75 | J117: 0 | K117: 0 | L117: =VLOOKUP(G117,Kp!$A$4:$B$24,2,FALSE) -> 0.01 | M117: 0.76 | N117: 0.01 | P117: https://www.soaringspot.com/cs/20-hop-2021-velke-porici-2021/results/kombi-ppf
B118: Pohár Českého Ráje 2021 - Kombi | C118: CZ | D118: 2021 | E118: Jičín | F118: 31.7.-7.8.21 | G118: 3 | H118: 12 | I118: 0.75 | J118: 0 | K118: 0 | L118: =VLOOKUP(G118,Kp!$A$4:$B$24,2,FALSE) -> -0.02 | M118: =IF(OR(G118=0,G118=1,G118=2),0,IF(H118<10,0,SUM(I118:L118))) -> 0.73 | N118: =M118-I118 -> -0.02 | P118: https://www.soaringspot.com/cs/http-wwwletistejicininfo-news-pagephpid-315/results/kombi
B119: Ranský pohár 2021 - Kombi | C119: CZ | D119: 2021 | E119: Raná | F119: 24.7.-1.8.21 | G119: 4 | H119: 19 | I119: 0.75 | J119: 0 | K119: 0 | L119: =VLOOKUP(G119,Kp!$A$4:$B$24,2,FALSE) -> 0 | M119: 0.75 | N119: 0 | P119: https://www.soaringspot.com/cs/ransky-pohar-2021-rana-loumy-2021/results/combi
B120: Cirrus GP 2021 - Std. Cirrus | C120: CZ | D120: 2021 | E120: Křižanov | F120: 24.7.-30.7.21 | G120: 5 | H120: 14 | I120: 0.75 | J120: 0.005 | K120: 0 | L120: =VLOOKUP(G120,Kp!$A$4:$B$24,2,FALSE) -> 0.005 | M120: 0.76 | N120: 0.01 | P120: https://www.soaringspot.com/cs/cgp2021/results/club
A121: 36. | B121: WGC 2021 - Klub | C121: FR | D121: 2021 | E121: Montlucon | F121: 8.8.-20.8.21 | G121: 9 | H121: 36 | I121: 1 | J121: 0.05 | K121: 0.03 | L121: =VLOOKUP(G121,Kp!$A$4:$B$24,2,FALSE) -> 0.025 | M121: 1.105 | N121: 0.105 | P121: https://www.soaringspot.com/cs/wgc2021-club-std-15m-montlucon-gueret-2021/results/club
A122: 36. | B122: WGC 2021 - Std | C122: FR | D122: 2021 | E122: Montlucon | F122: 8.8.-20.8.21 | G122: 8 | H122: 30 | I122: 1 | J122: 0.035 | K122: 0.03 | L122: =VLOOKUP(G122,Kp!$A$4:$B$24,2,FALSE) -> 0.02 | M122: 1.085 | N122: 0.085 | P122: https://www.soaringspot.com/cs/wgc2021-club-std-15m-montlucon-gueret-2021/results/standard
A123: 36. | B123: WGC 2021 - 15m | C123: FR | D123: 2021 | E123: Montlucon | F123: 8.8.-20.8.21 | G123: 8 | H123: 29 | I123: 1 | J123: 0.035 | K123: 0.02 | L123: =VLOOKUP(G123,Kp!$A$4:$B$24,2,FALSE) -> 0.02 | M123: 1.075 | N123: 0.075 | P123: https://www.soaringspot.com/cs/wgc2021-club-std-15m-montlucon-gueret-2021/results/15-meter
B124: FCC Gliding 2021 - Klub | C124: SK | D124: 2021 | E124: Prievidza | F124: 1.8.-13.8.21 | G124: 10 | H124: 10 | I124: 0.9 | J124: 0.005 | K124: 0 | L124: =VLOOKUP(G124,Kp!$A$4:$B$24,2,FALSE) -> 0.03 | M124: 0.935 | N124: 0.035 | P124: https://www.soaringspot.com/cs/fcc-gliding-2021-prievidza-2021/results/club
B125: FCC Gliding 2021 - Kombi 15m | C125: SK | D125: 2021 | E125: Prievidza | F125: 1.8.-13.8.21 | G125: 10 | H125: 10 | I125: 0.9 | J125: 0.015 | K125: 0 | L125: =VLOOKUP(G125,Kp!$A$4:$B$24,2,FALSE) -> 0.03 | M125: 0.945 | N125: 0.045 | P125: https://www.soaringspot.com/cs/fcc-gliding-2021-prievidza-2021/results/15-m
B126: FCC Gliding 2021 - Kombi Open | C126: SK | D126: 2021 | E126: Prievidza | F126: 1.8.-13.8.21 | G126: 10 | H126: 18 | I126: 0.9 | J126: 0.015 | K126: 0 | L126: =VLOOKUP(G126,Kp!$A$4:$B$24,2,FALSE) -> 0.03 | M126: 0.945 | N126: 0.045 | P126: https://www.soaringspot.com/cs/fcc-gliding-2021-prievidza-2021/results/combi
B127: Oldtimer Pribina Star 2021 - Klub | C127: SK | D127: 2021 | E127: Nitra | F127: 7.8.-13.8.21 | G127: 4 | H127: 22 | I127: 0.75 | J127: 0 | K127: 0 | L127: =VLOOKUP(G127,Kp!$A$4:$B$24,2,FALSE) -> 0 | M127: 0.75 | N127: 0 | P127: https://www.soaringspot.com/cs/oldtimer-pribina-star-2021-nitra-2021/results/unknown
B128: PMSR 2021 - Klub | C128: SK | D128: 2021 | E128: Nitra | F128: 20.6.-2.7.21 | G128: 12 | H128: 22 | I128: 0.9 | J128: 0.015 | K128: 0 | L128: =VLOOKUP(G128,Kp!$A$4:$B$24,2,FALSE) -> 0.03 | M128: 0.945 | N128: 0.045 | P128: https://www.soaringspot.com/cs/slovak-gliding-championship-2021-nitra-2021/results/club
B129: PMSR 2021 - Kombi 15m | C129: SK | D129: 2021 | E129: Nitra | F129: 20.6.-2.7.21 | G129: 12 | H129: 22 | I129: 0.9 | J129: 0.015 | K129: 0.02 | L129: =VLOOKUP(G129,Kp!$A$4:$B$24,2,FALSE) -> 0.03 | M129: 0.965 | N129: 0.065 | P129: https://www.soaringspot.com/cs/slovak-gliding-championship-2021-nitra-2021/results/15-meter
B130: PMSR 2021 - Kombi Open | C130: SK | D130: 2021 | E130: Nitra | F130: 20.6.-2.7.21 | G130: 12 | H130: 22 | I130: 0.9 | J130: 0.02 | K130: 0 | L130: =VLOOKUP(G130,Kp!$A$4:$B$24,2,FALSE) -> 0.03 | M130: 0.95 | N130: 0.05 | P130: https://www.soaringspot.com/cs/slovak-gliding-championship-2021-nitra-2021/results/combi
B131: JWGC 2021 - Klub | C131: LT | D131: 2021 | E131: Pociunai | F131: 11.7.-23.7.21 | G131: 7 | H131: 27 | I131: 1 | J131: 0.015 | K131: 0.01 | L131: =VLOOKUP(G131,Kp!$A$4:$B$24,2,FALSE) -> 0.015 | M131: 1.04 | N131: 0.04 | P131: https://www.soaringspot.com/cs/jegc2021/results/club
B132: JWGC 2021 - Std | C132: LT | D132: 2021 | E132: Pociunai | F132: 11.7.-23.7.21 | G132: 6 | H132: 17 | I132: 1 | J132: 0.01 | K132: 0.01 | L132: =VLOOKUP(G132,Kp!$A$4:$B$24,2,FALSE) -> 0.01 | M132: 1.03 | N132: 0.03 | P132: https://www.soaringspot.com/cs/jegc2021/results/standard
B133: WSGP Final 2021 - 18m | C133: FR | D133: 2021 | E133: Saint Auban | F133: 5.9.-11.9.21 | G133: 6 | H133: 20 | I133: 1 | J133: 0.03 | K133: 0.03 | L133: =VLOOKUP(G133,Kp!$A$4:$B$24,2,FALSE) -> 0.01 | M133: 1.07 | N133: 0.07 | P133: https://www.soaringspot.com/cs/wsgp2021/results/grand-prix-world-fin
B134: Safari 2021 - Klub | C134: CZ | D134: 2021 | E134: Dvůr Králové | F134: 3.7.-17.7.21 | G134: 4 | H134: 33 | I134: 0.75 | J134: 0 | K134: 0 | L134: =VLOOKUP(G134,Kp!$A$4:$B$24,2,FALSE) -> 0 | M134: =IF(OR(G134=0,G134=1,G134=2),0,IF(H134<10,0,SUM(I134:L134))) -> 0.75 | N134: =M134-I134 -> 0 | P134: https://www.soaringspot.com/cs/safari-cup-2021-dvur-kralove-nad-labem-2021/results/klubova
B135: Safari 2021 - Kombi | C135: CZ | D135: 2021 | E135: Dvůr Králové | F135: 3.7.-17.7.21 | G135: 5 | H135: 13 | I135: 0.75 | J135: 0 | K135: 0 | L135: =VLOOKUP(G135,Kp!$A$4:$B$24,2,FALSE) -> 0.005 | M135: 0.755 | N135: 0.005 | P135: https://www.soaringspot.com/cs/safari-cup-2021-dvur-kralove-nad-labem-2021/results/volna
B136: Safari 2021 - Duo Kombi | C136: CZ | D136: 2021 | E136: Dvůr Králové | F136: 3.7.-17.7.21 | G136: 3 | H136: 11 | I136: 0.75 | J136: 0 | K136: 0 | L136: =VLOOKUP(G136,Kp!$A$4:$B$24,2,FALSE) -> -0.02 | M136: 0.73 | N136: -0.02 | P136: https://www.soaringspot.com/cs/safari-cup-2021-dvur-kralove-nad-labem-2021/results/dvousedadlovky
B139: Schváleno Plachtařskou komisí AeČR dne xx.yy.2021 v ZZZZ

Sheet Kp (hidden)
A1: Korekce na počet platných disciplín
A3: Počet platných disciplín | B3: Korekce Kp
A4: 0 | B4: 0
A5: 1 | B5: 0
A6: 2 | B6: 0
A7: 3 | B7: -0.02
A8: 4 | B8: 0
A9: 5 | B9: 0.005
A10: 6 | B10: 0.01
A11: 7 | B11: 0.015
A12: 8 | B12: 0.02
A13: 9 | B13: 0.025
A14: 10 | B14: 0.03
A15: 11 | B15: 0.03
A16: 12 | B16: 0.03
A17: 13 | B17: 0.03
A18: 14 | B18: 0.03
A19: 15 | B19: 0.03
A20: 16 | B20: 0.03
A21: 17 | B21: 0.03
A22: 18 | B22: 0.03
A23: 19 | B23: 0.03
A24: 20 | B24: 0.03

Sheet Pilot
A1: Jmeno | B1: Rok nar. | C1: Aeroklub | D1: Region | E1: M/F | F1: Junior v roce | G1: 2022 | H1: Hranice pro juniory: / Poznámka: | I1: =G1-25 -> 1997 | J1: Počet Jun: | K1: =COUNTIF(F2:F2150,"Junior v roce "&G1) -> 71 | L1: Počet F: | M1: =COUNTIF(E2:E2150,"F") -> 72 | N1: Počet M: | O1: =COUNTIF(E2:E2150,"M") -> 910 | P1: Počet celk: | Q1: =COUNTIF(A2:A2150,"<>") -> 983
A2: -
A3: Adam Hepal | B3: 2004 | C3: Kolín | D3: =VLOOKUP(C3,Region,2,0) -> CZ/C1 | E3: M | F3: =IF(A3="(prázdné)","",IF(($G$1-B3)>25,"","Junior v roce "&$G$1)) -> Junior v roce 2022
A4: Adam Jandora | B4: 1992 | C4: Medlánky | D4: =VLOOKUP(C4,Region,2,0) -> CZ/M | E4: M | F4: =IF(A4="(prázdné)","",IF(($G$1-B4)>25,"","Junior v roce "&$G$1)) -> 
A5: Adam Olejar | B5: 1991 | C5: Medlánky | D5: CZ/M | E5: M | F5: =IF(A5="(prázdné)","",IF(($G$1-B5)>25,"","Junior v roce "&$G$1)) -> 
A6: Adam Pergner | B6: 2002 | C6: Rakovník | D6: =VLOOKUP(C6,Region,2,0) -> CZ/C1 | E6: M | F6: =IF(A6="(prázdné)","",IF(($G$1-B6)>25,"","Junior v roce "&$G$1)) -> Junior v roce 2022
A7: Adam Sostaric | B7: 1991 | C7: Chrudim | D7: CZ/C2 | E7: M
A8: Adam Sugl | B8: 1987 | C8: Vyškov | D8: CZ/M | E8: M
A9: Albert Schneider | B9: 1967 | C9: Hranice | D9: =VLOOKUP(C9,Region,2,0) -> CZ/M | E9: M
A10: Albrecht Beat | B10: 1953 | C10: Šumperk | D10: CZ/M | E10: M
A11: Alena Netusilova | B11: 1970 | C11: Zbraslavice | D11: CZ/C1 | E11: F
A12: Ales Cervenka | B12: 1981 | C12: Soběslav | D12: CZ/C1 | E12: M
A13: Ales Hajek | B13: 1958 | C13: Mladá Boleslav | D13: CZ/C1 | E13: M
A14: Ales Hala | B14: 1994 | C14: Tábor | D14: CZ/C1 | E14: M
A15: Ales Holoubek | B15: 1966 | C15: Jičín | D15: CZ/C2 | E15: M
A16: Ales Tresl | B16: 1958 | C16: Raná | D16: CZ/C2 | E16: M
A17: Ales Vorac | B17: 1985 | C17: Křižanov | D17: CZ/M | E17: M
A18: Ales Vyhnal | B18: 1989 | C18: Kralupy | D18: CZ/C1 | E18: M
A19: Alexander Nerandzic | B19: 1966 | C19: Raná | D19: CZ/C2 | E19: M
A20: Alois Cmajdalka | B20: 1963 | C20: Kunovice | D20: CZ/M | E20: M
A21: Alois Sohr | B21: 1939 | C21: Hranice | D21: CZ/M | E21: M
A22: Andrea Bensova | B22: 1978 | C22: Zbraslavice | D22: CZ/C1 | E22: F
A23: Aneta Prachtova | B23: 1991 | C23: Kralupy | D23: CZ/C1 | E23: F
A24: Anna Bordovska | B24: 1989 | C24: Mladá Boleslav | D24: CZ/C1 | E24: F
A25: Antonin Bordovsky | B25: 1951 | C25: Krnov | D25: CZ/M | E25: M
A26: Antonin Bruna | B26: 1945 | C26: GAC Benešov | D26: CZ/C1 | E26: M
A27: Antonin Burger | B27: 1943 | C27: Panenský Týnec | D27: CZ/C1 | E27: M
A28: Antonin Konicek | B28: 1973 | C28: Kunovice | D28: CZ/M | E28: M
A29: Antonin Kutalek | B29: 1943 | C29: Zábřeh | D29: CZ/M | E29: M
A30: Antonin Novotny | B30: 1972 | C30: Luhačovice | D30: CZ/M | E30: M
A31: Antonin Otrusina | B31: 1948 | C31: Křižanov | D31: CZ/M | E31: M
A32: Antonin Pilat | B32: 1971 | C32: Vyškov | D32: CZ/M | E32: M
A33: Antonin Teichmann | B33: 1965 | C33: Hronov | D33: CZ/C2 | E33: M
A34: Barbora Kubickova | B34: 1993 | C34: Medlánky | D34: CZ/M | E34: F
A35: Barbora Moravcova | B35: 1994 | C35: Zbraslavice | D35: CZ/C1 | E35: F
A36: Barbora Nahodilova | B36: 1989 | C36: Hosín | D36: CZ/C1 | E36: F
A37: Bedrich Honzicek | B37: 1972 | C37: Letňany | D37: =VLOOKUP(C37,Region,2,0) -> CZ/C1 | E37: M
A38: Bedrich Prochazka | B38: 1957 | C38: Rakovník | D38: CZ/C1 | E38: M
A39: Bohdan Sebestik | B39: 1957 | C39: Kroměříž | D39: CZ/M | E39: M
A40: Bohumil Kunc | B40: 1983 | C40: Kunovice | D40: CZ/M | E40: M
A41: Bohumil Rikal | B41: 1946 | C41: Hronov | D41: CZ/C2 | E41: M
A42: Bohumil Svec | B42: 1985 | C42: Roudnice | D42: CZ/C2 | E42: M
A43: Bohumir Zajdl | B43: 1950 | C43: Dvůr Králové | D43: CZ/C2 | E43: M
A44: Bohus Marcinik | B44: 1947 | C44: Příbram | D44: CZ/C1 | E44: M
A45: Boris Bachraty | B45: 1974 | C45: Břeclav | D45: CZ/M | E45: M
A46: Bronislav Smatana | B46: 1970 | C46: Zbraslavice | D46: CZ/C1 | E46: M
A47: Carsten Tietz | B47: 1966 | C47: Hronov | D47: =VLOOKUP(C47,Region,2,0) -> CZ/C2 | E47: M
A48: Christof Madoery | B48: 1958 | C48: Šumperk | D48: =VLOOKUP(C48,Region,2,0) -> CZ/M | E48: M
A49: Dalibor Daricek | B49: 1993 | C49: Kunovice | D49: CZ/M | E49: M
A50: Dalibor Fencl | B50: 1966 | C50: Zbraslavice | D50: CZ/C1 | E50: M
A51: Dalibor Pek | B51: 1968 | C51: Raná | D51: CZ/C2 | E51: M
A52: Dana Novakova | B52: 1965 | C52: Mladá Boleslav | D52: CZ/C1 | E52: F
A53: Danes Grula | B53: 1961 | C53: Medlánky | D53: CZ/M | E53: M
A54: Daniel Adamec | B54: 1977 | C54: Hranice | D54: CZ/M | E54: M
A55: Daniel Brichta | B55: 1962 | C55: GAC Benešov | D55: =VLOOKUP(C55,Region,2,0) -> CZ/C1 | E55: M
A56: Daniel Devecka | B56: 1981 | C56: Vlašim | D56: =VLOOKUP(C56,Region,2,0) -> CZ/C1 | E56: M | F56: =IF(A56="(prázdné)","",IF(($G$1-B56)>25,"","Junior v roce "&$G$1)) -> 
A57: Daniel Dvorak | B57: 1980 | C57: Letkov | D57: CZ/C1 | E57: M
A58: Daniel Krasnicky | B58: 1984 | C58: Příbram | D58: CZ/C1 | E58: M
A59: Daniel Moravek | B59: 1973 | C59: Hodkovice | D59: CZ/C2 | E59: M
A60: Daniel Novak | B60: 1971 | C60: Letkov | D60: CZ/C1 | E60: M
A61: Daniel Ryba | B61: 1994 | C61: Dvůr Králové | D61: CZ/C2 | E61: M
A62: Daniel Suchy | B62: 1995 | C62: Hranice | D62: CZ/M | E62: M
A63: Daniela Frankova | B63: 1997 | C63: Jaroměř | D63: CZ/C2 | E63: M | F63: Junior v roce 2022
A64: Daniela Stepankova | B64: 1988 | C64: Hosín | D64: CZ/C1 | E64: F
A65: David Cisar | B65: 1987 | C65: Křižanov | D65: CZ/M | E65: M
A66: David Kaspar | B66: 1993 | C66: Jaroměř | D66: =VLOOKUP(C66,Region,2,0) -> CZ/C2 | E66: M
A67: David Krcil | B67: 1976 | C67: Raná | D67: =VLOOKUP(C67,Region,2,0) -> CZ/C2 | E67: M
A68: David Londa | B68: 1973 | C68: Mladá Boleslav | D68: CZ/C1 | E68: M
A69: David Mach | B69: 1994 | C69: Hronov | D69: CZ/C2 | E69: M
A70: David Marek | B70: 1991 | C70: Křižanov | D70: CZ/M | E70: M
A71: David Novotny | B71: 1984 | C71: Polička | D71: CZ/C2 | E71: M
A72: David Popovsky | B72: 1976 | C72: Rakovník | D72: CZ/C1 | E72: M | F72: =IF(A72="(prázdné)","",IF(($G$1-B72)>25,"","Junior v roce "&$G$1)) -> 
A73: David Prihoda | B73: 1994 | C73: Hranice | D73: CZ/M | E73: M
A74: David Rozporka | B74: 1994 | C74: Hronov | D74: CZ/C2 | E74: M
A75: David Rytina | B75: 1983 | C75: Zbraslavice | D75: CZ/C1 | E75: M
A76: David Riha | B76: 1983 | C76: Vlašim | D76: CZ/C1 | E76: M
A77: David Sachl | B77: 1978 | C77: Kralupy | D77: CZ/C1 | E77: M
A78: David Tejnora | B78: 1982 | C78: Jaroměř | D78: CZ/C2 | E78: M
A79: David Trnecka | B79: 1979 | C79: Medlánky | D79: CZ/M | E79: M
A80: David Vrchota | B80: 1976 | C80: Jaroměř | D80: =VLOOKUP(C80,Region,2,0) -> CZ/C2 | E80: M
A81: David Zapletal | B81: 1970 | C81: Mladá Boleslav | D81: CZ/C1 | E81: M
A82: David Zatecka | B82: 1993 | C82: GAC Benešov | D82: =VLOOKUP(C82,Region,2,0) -> CZ/C1 | E82: M
A83: Dusan Gadas | B83: 1960 | C83: Hranice | D83: CZ/M | E83: M
A84: Dusan Kmet | B84: 1972 | C84: Křižanov | D84: CZ/M | E84: M
A85: Dusan Patocka | B85: 1972 | C85: Vrchlabí | D85: =VLOOKUP(C85,Region,2,0) -> CZ/C2 | E85: M | F85: =IF(A85="(prázdné)","",IF(($G$1-B85)>25,"","Junior v roce "&$G$1)) -> 
A86: Dusan Sys | B86: 1977 | C86: Šumperk | D86: CZ/M | E86: M
A87: Dusan Zerzan | B87: 1970 | C87: Šumperk | D87: CZ/M | E87: M
A88: Eduard Svoboda | B88: 1957 | C88: Raná | D88: CZ/C2 | E88: M
A89: Eliska Bohunovska | B89: 2001 | C89: Hranice | D89: =VLOOKUP(C89,Region,2,0) -> CZ/M | E89: F | F89: Junior v roce 2022
A90: Eva Cerna | B90: 1964 | C90: Příbram | D90: CZ/C1 | E90: F
A91: Evzen Skala | B91: 1954 | C91: Vrchlabí | D91: CZ/C2 | E91: M
A92: Fabian Curda | B92: 2004 | C92: Zábřeh | D92: =VLOOKUP(C92,Region,2,0) -> CZ/M | E92: M | F92: Junior v roce 2022
A93: Filip Borůvka | B93: 2004 | C93: Nové Město nad Metují | D93: =VLOOKUP(C93,Region,2,0) -> CZ/C2 | E93: M | F93: =IF(A93="(prázdné)","",IF(($G$1-B93)>25,"","Junior v roce "&$G$1)) -> Junior v roce 2022
A94: Filip Graf | B94: 1981 | C94: Křižanov | D94: CZ/M | E94: M
A95: Filip Malik | B95: 2001 | C95: Letňany | D95: =VLOOKUP(C95,Region,2,0) -> CZ/C1 | E95: M | F95: Junior v roce 2022
A96: Filip Neumann | B96: 1977 | C96: GAC Benešov | D96: CZ/C1 | E96: M
A97: Filip Sklenar | B97: 1990 | C97: Žamberk | D97: CZ/C2 | E97: M
A98: Filip sirc | B98: 1993 | C98: Letňany | D98: CZ/C1 | E98: M
A99: Filip Vita | B99: 2001 | C99: Kroměříž | D99: CZ/M | E99: M | F99: Junior v roce 2022
A100: Frantisek Brozman | B100: 1960 | C100: Tachov | D100: CZ/C1 | E100: M
A101: Frantisek Filandr | B101: 1956 | C101: Most | D101: CZ/C2 | E101: M
A102: Frantisek Hubacek | B102: 1978 | C102: Točná | D102: CZ/C1 | E102: M
A103: Frantisek Komarek | B103: 1985 | C103: Zbraslavice | D103: CZ/C1 | E103: M
A104: Frantisek Kriz | B104: 1961 | C104: Toužim | D104: CZ/C1 | E104: M
A105: Frantisek Marek | B105: 1960 | C105: Křižanov | D105: CZ/M | E105: M
A106: Frantisek Matousek | B106: 1937 | C106: Nové Město nad Metují | D106: CZ/C2 | E106: M
A107: Frantisek Myska | B107: 1968 | C107: Most | D107: CZ/C2 | E107: M
A108: Frantisek Pycha | B108: 1972 | C108: Chrudim | D108: CZ/C2 | E108: M
A109: Frantisek Soucek | B109: 1945 | C109: Dvůr Králové | D109: CZ/C2 | E109: M
A110: Frantisek Sindelar | B110: 1954 | C110: Kralupy | D110: CZ/C1 | E110: M
A111: Frantisek Suna | B111: 1983 | C111: Hosín | D111: =VLOOKUP(C111,Region,2,0) -> CZ/C1 | E111: M
A112: Frantisek Vancura | B112: 1966 | C112: Hranice | D112: CZ/M | E112: M
A113: Gabriela Cervena | B113: 1966 | C113: Jaroměř | D113: CZ/C2 | E113: F
A114: Gustav Vrbacky | B114: 1933 | C114: Medlánky | D114: CZ/M | E114: M
A115: Hana Treslova | B115: 1991 | C115: Raná | D115: CZ/C2 | E115: F
A116: Hana Vokrinkova | B116: 1958 | C116: Hodkovice | D116: CZ/C2 | E116: F
A117: Hynek Pokorny | B117: 1991 | C117: Letňany | D117: CZ/C1 | E117: M
A118: Christof Madory | B118: 1958 | C118: Šumperk | D118: CZ/M | E118: M
A119: Ilja Kopacek | B119: 1943 | C119: Jičín | D119: =VLOOKUP(C119,Region,2,0) -> CZ/C2 | E119: M
A120: Ivan Filakovsky | B120: 1965 | C120: Medlánky | D120: CZ/M | E120: M
A121: Ivan Harasta 65 | B121: 1965 | C121: Toužim | D121: CZ/C1 | E121: M
A122: Ivan Harasta 98 | B122: 1998 | C122: Toužim | D122: CZ/C1 | E122: M | F122: Junior v roce 2022
A123: Ivan Kuzelka | B123: 1945 | C123: Havlíčkův Brod | D123: CZ/C2 | E123: M
A124: Ivan Ladr | B124: 1940 | C124: Dvůr Králové | D124: CZ/C2 | E124: M
A125: Ivan Novak | B125: 1962 | C125: Mladá Boleslav | D125: CZ/C1 | E125: M
A126: Ivan Tvrdik | B126: 1997 | C126: Letňany | D126: CZ/C1 | E126: M | F126: Junior v roce 2022
A127: Ivo Burda | B127: 1962 | C127: Zbraslavice | D127: CZ/C1 | E127: M
A128: Ivo Nezval | B128: 1964 | C128: Šumperk | D128: CZ/M | E128: M
A129: Ivo Vudarcik | B129: 1994 | C129: Rakovník | D129: CZ/C1 | E129: M
A130: Jacek Kerum | B130: 1943 | C130: Příbram | D130: CZ/C1 | E130: M
A131: Jakub Brotanek | B131: 1985 | C131: Roudnice | D131: CZ/C2 | E131: M
A132: Jakub Hlavacek | B132: 1991 | C132: Letkov | D132: CZ/C1 | E132: M
A133: Jakub Kmosek | B133: 1978 | C133: Zbraslavice | D133: CZ/C1 | E133: M
A134: Jakub Kohn | B134: 1992 | C134: Prostějov | D134: CZ/M | E134: M
A135: Jakub Koudelka | B135: 2000 | C135: Křižanov | D135: =VLOOKUP(C135,Region,2,0) -> CZ/M | E135: M | F135: Junior v roce 2022
A136: Jakub Malik | B136: 1999 | C136: Letňany | D136: CZ/C1 | E136: M | F136: Junior v roce 2022
A137: Jakub Michalicka | B137: 1993 | C137: Rakovník | D137: CZ/C1 | E137: M
A138: Jakub Spanger | B138: 2002 | C138: Jeseník | D138: =VLOOKUP(C138,Region,2,0) -> CZ/M | E138: M | F138: Junior v roce 2022
A139: Jakub Tiller | B139: 1987 | C139: Broumov | D139: CZ/C2 | E139: M
A140: Jakub Vimr | B140: 1975 | C140: GAC Benešov | D140: CZ/C1 | E140: M | F140: =IF(A140="(prázdné)","",IF(($G$1-B140)>25,"","Junior v roce "&$G$1)) -> 
A141: Jan Adam | B141: 2002 | C141: Podhořany | D141: =VLOOKUP(C141,Region,2,0) -> CZ/C2 | E141: M | F141: Junior v roce 2022
A142: Jan Bejdl | B142: 1978 | C142: Zbraslavice | D142: =VLOOKUP(C142,Region,2,0) -> CZ/C1 | E142: M
A143: Jan Belina | B143: 1979 | C143: Hořice | D143: CZ/C2 | E143: M
A144: Jan Beran | B144: 1999 | C144: Kladno | D144: =VLOOKUP(C144,Region,2,0) -> CZ/C1 | E144: M | F144: Junior v roce 2022
A145: Jan Beranek | B145: 1976 | C145: Jihlava | D145: CZ/M | E145: M
A146: Jan Boruvka | B146: 1984 | C146: Jičín | D146: CZ/C2 | E146: M
A147: Jan Camr | B147: 2002 | C147: Jaroměř | D147: =VLOOKUP(C147,Region,2,0) -> CZ/C2 | E147: M | F147: Junior v roce 2022
A148: Jan Cerveny | B148: 1984 | C148: Jaroměř | D148: CZ/C2 | E148: M
A149: Jan Cibulka | B149: 2002 | C149: Letňany | D149: =VLOOKUP(C149,Region,2,0) -> CZ/C1 | E149: M | F149: Junior v roce 2022
A150: Jan Dersak 69 | B150: 1969 | C150: Kralupy | D150: CZ/C1 | E150: M
A151: Jan Dersak 92 | B151: 1992 | C151: Kralupy | D151: CZ/C1 | E151: M
A152: Jan Drahota | B152: 1988 | C152: Rakovník | D152: CZ/C1 | E152: M
A153: Jan Drbohlav | B153: 1999 | C153: Hodkovice | D153: =VLOOKUP(C153,Region,2,0) -> CZ/C2 | E153: M | F153: Junior v roce 2022
A154: Jan Florian | B154: 1992 | C154: Zbraslavice | D154: CZ/C1 | E154: M
A155: Jan Habermann | B155: 1975 | C155: Vlašim | D155: =VLOOKUP(C155,Region,2,0) -> CZ/C1 | E155: M
A156: Jan Hejret | B156: 1976 | C156: Jaroměř | D156: CZ/C2 | E156: M
A157: Jan Heroudek | B157: 1970 | C157: Rakovník | D157: =VLOOKUP(C157,Region,2,0) -> CZ/C1 | E157: M
A158: Jan Hlavacek | B158: 1965 | C158: Rakovník | D158: CZ/C1 | E158: M
A159: Jan Horak | B159: 1971 | C159: Zbraslavice | D159: CZ/C1 | E159: M
A160: Jan Horky | B160: 1968 | C160: Medlánky | D160: CZ/M | E160: M
A161: Jan Hrbatsch | B161: 1989 | C161: Hodkovice | D161: CZ/C2 | E161: M
A162: Jan Hruska | B162: 1988 | C162: Tábor | D162: CZ/C1 | E162: M
A163: Jan Hybner | B163: 1977 | C163: Liberec | D163: =VLOOKUP(C163,Region,2,0) -> CZ/C2 | E163: M
A164: Jan Jicha | B164: 1984 | C164: Podhořany | D164: CZ/C2 | E164: M
A165: Jan Jindra | B165: 1981 | C165: Roudnice | D165: CZ/C2 | E165: M
A166: Jan Kantor | B166: 1983 | C166: Letňany | D166: CZ/C1 | E166: M
A167: Jan Kapralek | B167: 1991 | C167: Kladno | D167: CZ/C1 | E167: M
A168: Jan Karabec | B168: 2000 | C168: Podhořany | D168: =VLOOKUP(C168,Region,2,0) -> CZ/C2 | E168: M | F168: Junior v roce 2022
A169: Jan Karnik | B169: 1976 | C169: Letkov | D169: =VLOOKUP(C169,Region,2,0) -> CZ/C1 | E169: M
A170: Jan Kaspar | B170: 1994 | C170: Letňany | D170: =VLOOKUP(C170,Region,2,0) -> CZ/C1 | E170: M
A171: Jan Kohout | B171: 1970 | C171: Žamberk | D171: CZ/C2 | E171: M
A172: Jan Konecny | B172: 1972 | C172: Rakovník | D172: CZ/C1 | E172: M
A173: Jan Kostka | B173: 1996 | C173: Kladno | D173: CZ/C1 | E173: M
A174: Jan Kotan | B174: 1982 | C174: Letňany | D174: CZ/C1 | E174: M
A175: Jan Kralik | B175: 1991 | C175: Letkov | D175: CZ/C1 | E175: M
A176: Jan Kristof | B176: 1962 | C176: Frýdlant | D176: CZ/M | E176: M
A177: Jan Kulistak | B177: 1990 | C177: Kunovice | D177: CZ/M | E177: M
A178: Jan Lancdorf | B178: 1988 | C178: Panenský Týnec | D178: CZ/C1 | E178: M
A179: Jan Louda | B179: 1986 | C179: Mladá Boleslav | D179: CZ/C1 | E179: M
A180: Jan Mareth | B180: 1979 | C180: Frýdlant | D180: CZ/M | E180: M
A181: Jan Masek | B181: 1977 | C181: Kladno | D181: CZ/C1 | E181: M
A182: Jan Matejovsky | B182: 1972 | C182: Hranice | D182: CZ/M | E182: M
A183: Jan Merta | B183: 1952 | C183: Šumperk | D183: CZ/M | E183: M
A184: Jan Mittner | B184: 1986 | C184: Zbraslavice | D184: =VLOOKUP(C184,Region,2,0) -> CZ/C1 | E184: M
A185: Jan Moravec | B185: 1979 | C185: Zábřeh | D185: CZ/M | E185: M
A186: Jan Nyc | B186: 1943 | C186: Dvůr Králové | D186: =VLOOKUP(C186,Region,2,0) -> CZ/C2 | E186: M
A187: Jan Obrucnik | B187: 1991 | C187: Kralupy | D187: CZ/C1 | E187: M
A188: Jan Oscatka | B188: 1990 | C188: Jaroměř | D188: =VLOOKUP(C188,Region,2,0) -> CZ/C2 | E188: M
A189: Jan Otrusina | B189: 1976 | C189: Křižanov | D189: CZ/M | E189: M
A190: Jan Ourada | B190: 1978 | C190: Točná | D190: CZ/C1 | E190: M
A191: Jan Pavlik | B191: 1987 | C191: Křižanov | D191: CZ/M | E191: M
A192: Jan Pazour | B192: 1979 | C192: Dvůr Králové | D192: =VLOOKUP(C192,Region,2,0) -> CZ/C2 | E192: M
A193: Jan Platenik | B193: 1981 | C193: Krnov | D193: CZ/M | E193: M
A194: Jan Podhrazsky | B194: 1976 | C194: Šumperk | D194: CZ/M | E194: M
A195: Jan Pokluda | B195: 1973 | C195: Šumperk | D195: CZ/M | E195: M
A196: Jan Pubec | B196: 1979 | C196: Plzeň Bory | D196: CZ/C1 | E196: M
A197: Jan Ratz | B197: 1987 | C197: Zbraslavice | D197: CZ/C1 | E197: M
A198: Jan Rensa | B198: 1980 | C198: Polička | D198: CZ/C2 | E198: M
A199: Jan Rolinek | B199: 1973 | C199: Luhačovice | D199: CZ/M | E199: M
A200: Jan Rott | B200: 1962 | C200: Hronov | D200: CZ/C2 | E200: M
... 784 more rows

Sheet Region
A1: Aeroklub | B1: Region | C1: Počet | D1: =C70+C37+C2 -> 89
A2: Benešov | B2: CZ/C1 | C2: =COUNTIF(B2:B35,B2) -> 34
A3: Beroun | B3: CZ/C1
A4: Bystřice u Benešova | B4: CZ/C1
A5: Erpužice | B5: CZ/C1
A6: GAC Benešov | B6: CZ/C1
A7: Hořovice | B7: CZ/C1
A8: Hosín | B8: CZ/C1
A9: Jindřichův Hradec | B9: CZ/C1
A10: Karlovy Vary | B10: CZ/C1
A11: Karlštejn | B11: CZ/C1
A12: Kladno | B12: CZ/C1
A13: Klatovy | B13: CZ/C1
A14: Kolín | B14: CZ/C1
A15: Kralupy | B15: CZ/C1
A16: Letkov | B16: CZ/C1
A17: Letňany | B17: CZ/C1
A18: Mladá Boleslav | B18: CZ/C1
A19: Nesvačily | B19: CZ/C1
A20: Panenský Týnec | B20: CZ/C1
A21: Plasy | B21: CZ/C1
A22: Plzeň Bory | B22: CZ/C1
A23: Prachatice | B23: CZ/C1
A24: Příbram | B24: CZ/C1
A25: Rakovník | B25: CZ/C1
A26: Slaný | B26: CZ/C1
A27: Soběslav | B27: CZ/C1
A28: Staňkov | B28: CZ/C1
A29: Strakonice | B29: CZ/C1
A30: Tábor | B30: CZ/C1
A31: Tachov | B31: CZ/C1
A32: Točná | B32: CZ/C1
A33: Toužim | B33: CZ/C1
A34: Vlašim | B34: CZ/C1
A35: Zbraslavice | B35: CZ/C1
A36: - | B36: -
A37: Broumov | B37: CZ/C2 | C37: =COUNTIF(B37:B68,B37) -> 32
A38: Česká Lípa | B38: CZ/C2
A39: Dvůr Králové | B39: CZ/C2
A40: Havlíčkův Brod | B40: CZ/C2
A41: Hodkovice | B41: CZ/C2
A42: Hořice | B42: CZ/C2
A43: Hradčany | B43: CZ/C2
A44: Hronov | B44: CZ/C2
A45: Chomutov | B45: CZ/C2
A46: Chotěboř | B46: CZ/C2
A47: Chrudim | B47: CZ/C2
A48: Jaroměř | B48: CZ/C2
A49: Jičín | B49: CZ/C2
A50: Letecká společnost na Vysočině | B50: CZ/C2
A51: Liberec | B51: CZ/C2
A52: Mnichovo Hradiště | B52: CZ/C2
A53: Most | B53: CZ/C2
A54: Náchod | B54: CZ/C2
A55: Nové Město nad Metují | B55: CZ/C2
A56: Pardubice | B56: CZ/C2
A57: Podhořany | B57: CZ/C2
A58: Polička | B58: CZ/C2
A59: Přibyslav | B59: CZ/C2
A60: Raná | B60: CZ/C2
A61: Roudnice | B61: CZ/C2
A62: Skuteč | B62: CZ/C2
A63: Turnov | B63: CZ/C2
A64: Ústí nad Labem | B64: CZ/C2
A65: Ústí nad Orlicí | B65: CZ/C2
A66: Vrchlabí | B66: CZ/C2
A67: Vysoké Mýto | B67: CZ/C2
A68: Žamberk | B68: CZ/C2
A69: - | B69: -
A70: Bohuňovice | B70: CZ/M | C70: =COUNTIF(B70:B92,B70) -> 23
A71: Břeclav | B71: CZ/M
A72: LK Břeclav | B72: CZ/M
A73: Frýdlant | B73: CZ/M
A74: Hranice | B74: CZ/M
A75: Jeseník | B75: CZ/M
A76: Jihlava | B76: CZ/M
A77: Krnov | B77: CZ/M
A78: Kroměříž | B78: CZ/M
A79: Křižanov | B79: CZ/M
A80: Kunovice | B80: CZ/M
A81: Kyjov | B81: CZ/M
A82: Luhačovice | B82: CZ/M
A83: Medlánky | B83: CZ/M
A84: Moravská Třebová | B84: CZ/M
A85: Olomouc | B85: CZ/M
A86: Prostějov | B86: CZ/M
A87: Slatina | B87: CZ/M
A88: Slavičín | B88: CZ/M
A89: Stichovice | B89: CZ/M
A90: Šumperk | B90: CZ/M
A91: Vyškov | B91: CZ/M
A92: Zábřeh | B92: CZ/M
A94: Aalborg | B94: DK
A95: Air Sympatia | B95: SK
A96: Akaflieg Dresden | B96: DE
A97: Bad Nauheim | B97: DE
A98: Bratislava | B98: SK
A99: Dánsko | B99: DK
A100: Greiz | B100: DE
A101: Japonsko | B101: JP
A102: Jelenia Góra | B102: PL
A103: Martin | B103: SK
A104: Německo | B104: DE
A105: Nitra | B105: SK
A106: Novo Mesto | B106: SI
A107: Poprad | B107: SK
A108: Prešov | B108: SK
A109: Prievidza | B109: SK
A110: Rakousko | B110: AT
A111: Ružomberok | B111: SK
A112: SGC Martin | B112: SK
A113: Slovinsko | B113: SI
A114: Trenčín | B114: SK
A115: Trnava | B115: SK
A116: Žilina | B116: SK

Sheet Data
M1: Počet X filtr: | N1: =SUBTOTAL(103,N7:N3718) -> 967 | O1: =SUBTOTAL(103,O7:O3718) -> 76
A2: * | M2: Počet X: | N2: =COUNTIFS(N$7:N$3718,"x",$A$7:$A$3718,$A$2) -> 967 | O2: =COUNTIFS(O$7:O$3718,"x",$A$7:$A$3718,$A$2) -> 76
H3: 2017 | N3: =COUNTIFS(#REF!,$H3,#REF!,"x",#REF!,$A$2) ->  | O3: =COUNTIFS(#REF!,$H3,#REF!,"x",#REF!,$A$2) -> 
H4: 2016 | N4: =COUNTIFS(#REF!,$H4,#REF!,"x",#REF!,$A$2) ->  | O4: =COUNTIFS(#REF!,$H4,#REF!,"x",#REF!,$A$2) -> 
H5: 2015 | N5: =COUNTIFS(#REF!,$H5,#REF!,"x",#REF!,$A$2) ->  | O5: =COUNTIFS(#REF!,$H5,#REF!,"x",#REF!,$A$2) -> 
A6: Jméno | B6: Rok narození | C6: M/F | D6: Aeroklub | E6: Region | F6: Soutěž | G6: Stát | H6: Rok | I6: Pořadí ve třídě | J6: Body ve třídě | K6: Kinp | L6: Bi | M6: Bi×Kinp | N6: G | O6: W | P6: Typ | Q6: CN | R6: Junior | S6: Poznámka
A7: Jake Brattle | F7: WGC Juniors 2019 - Klub | G7: HU | H7: 2019 | I7: 1 | J7: 8453 | K7: =VLOOKUP(F7,Soutez,12,0) -> 1.045 | L7: =ROUND(J7/MAX($J$7:$J$50)*10000*0.7+(MAX($I$7:$I$50)-I7)/(MAX($I$7:$I$50)-1)*10000*0.3,0) -> 10000 | M7: =ROUND(K7*L7,0) -> 10450 | P7: ASW-20 | Q7: 25 | R7: =IF(ISERROR(VLOOKUP(A7,Pilot,6,0)),"Není v databázi",VLOOKUP(A7,Pilot,6,0)) -> Není v databázi
A8: Finn Sleigh | F8: WGC Juniors 2019 - Klub | G8: HU | H8: 2019 | I8: 2 | J8: 8306 | K8: 1.045 | L8: =ROUND(J8/MAX($J$7:$J$50)*10000*0.7+(MAX($I$7:$I$50)-I8)/(MAX($I$7:$I$50)-1)*10000*0.3,0) -> 9809 | M8: 10250 | P8: ASW-20 | Q8: 5 | R8: Není v databázi
A9: Maximilian Dorsch | F9: WGC Juniors 2019 - Klub | G9: HU | H9: 2019 | I9: 3 | J9: 8263 | K9: 1.045 | L9: 9703 | M9: 10140 | P9: LS-4 | Q9: 39 | R9: Není v databázi
A10: Tobias Pachowsky | F10: WGC Juniors 2019 - Klub | G10: HU | H10: 2019 | I10: 4 | J10: 8145 | K10: 1.045 | L10: 9536 | M10: 9965 | P10: LS-4a | Q10: IGP | R10: Není v databázi
A11: David Mach | B11: =VLOOKUP(A11,Pilot,2,0) -> 1994 | C11: =VLOOKUP(A11,Pilot,5,0) -> M | D11: =VLOOKUP(A11,Pilot,3,0) -> Hronov | E11: =VLOOKUP(A11,Pilot,4,0) -> CZ/C2 | F11: WGC Juniors 2019 - Klub | G11: HU | H11: 2019 | I11: 5 | J11: 8077 | K11: 1.045 | L11: =ROUND(J11/MAX($J$7:$J$50)*10000*0.7+(MAX($I$7:$I$50)-I11)/(MAX($I$7:$I$50)-1)*10000*0.3,0) -> 9410 | M11: 9833 | P11: LS-4 | Q11: IX
A12: Philipp Lauer | F12: WGC Juniors 2019 - Klub | G12: HU | H12: 2019 | I12: 6 | J12: 7939 | K12: 1.045 | L12: 9226 | M12: 9641 | P12: LS-4 | Q12: LI | R12: Není v databázi
A13: Robin Smit | F13: WGC Juniors 2019 - Klub | G13: HU | H13: 2019 | I13: 7 | J13: 7888 | K13: 1.045 | L13: 9114 | M13: 9524 | P13: Standard Cirrus | Q13: RSM | R13: Není v databázi
A14: Milan SurovCik | F14: WGC Juniors 2019 - Klub | G14: HU | H14: 2019 | I14: 8 | J14: 7803 | K14: 1.045 | L14: 8973 | M14: 9377 | P14: Pegasus 101A | Q14: EL | R14: Není v databázi
A15: Mark Travner | F15: WGC Juniors 2019 - Klub | G15: HU | H15: 2019 | I15: 9 | J15: 7626 | K15: 1.045 | L15: 8757 | M15: 9151 | P15: DG-300 | Q15: CE | R15: Není v databázi
A16: Jelmer Vis | F16: WGC Juniors 2019 - Klub | G16: HU | H16: 2019 | I16: 10 | J16: 7608 | K16: 1.045 | L16: 8672 | M16: 9062 | P16: Standard Cirrus | Q16: HE | R16: Není v databázi
A17: Daniel Ryba | B17: =VLOOKUP(A17,Pilot,2,0) -> 1994 | C17: =VLOOKUP(A17,Pilot,5,0) -> M | D17: =VLOOKUP(A17,Pilot,3,0) -> Dvůr Králové | E17: =VLOOKUP(A17,Pilot,4,0) -> CZ/C2 | F17: WGC Juniors 2019 - Klub | G17: HU | H17: 2019 | I17: 11 | J17: 7510 | K17: 1.045 | L17: 8521 | M17: 8904 | N17: x | P17: ASW-19B | Q17: L7
A18: Thijs Bastiaanse | F18: WGC Juniors 2019 - Klub | G18: HU | H18: 2019 | I18: 12 | J18: 7504 | K18: 1.045 | L18: 8447 | M18: 8827 | P18: LS-4 | Q18: AU | R18: Není v databázi
A19: Simon Gantner | F19: WGC Juniors 2019 - Klub | G19: HU | H19: 2019 | I19: 13 | J19: 7423 | K19: 1.045 | L19: 8310 | M19: 8684 | P19: LS-4a | Q19: MN | R19: Není v databázi
A20: Daniel Sazhin | F20: WGC Juniors 2019 - Klub | G20: HU | H20: 2019 | I20: 14 | J20: 7299 | K20: 1.045 | L20: 8137 | M20: 8503 | P20: LS-4a | Q20: 8M | R20: Není v databázi
A21: Sviatoslav Roublev | F21: WGC Juniors 2019 - Klub | G21: HU | H21: 2019 | I21: 15 | J21: 7210 | K21: 1.045 | L21: 7994 | M21: 8354 | P21: Discus Cs | Q21: G3 | R21: Není v databázi
A22: Adrien Dubreuil | F22: WGC Juniors 2019 - Klub | G22: HU | H22: 2019 | I22: 16 | J22: 7140 | K22: 1.045 | L22: 7866 | M22: 8220 | P22: LS-4 | Q22: SD | R22: Není v databázi
A23: Thomas Leduc | F23: WGC Juniors 2019 - Klub | G23: HU | H23: 2019 | I23: 17 | J23: 7005 | K23: 1.045 | L23: 7685 | M23: 8031 | P23: LS-1F | Q23: 1 neo | R23: Není v databázi
A24: Pascal Zollikofer | F24: WGC Juniors 2019 - Klub | G24: HU | H24: 2019 | I24: 18 | J24: 6970 | K24: 1.045 | L24: 7586 | M24: 7927 | P24: LS-4 | Q24: FC | R24: Není v databázi
A25: Clément Flick | F25: WGC Juniors 2019 - Klub | G25: HU | H25: 2019 | I25: 19 | J25: 6958 | K25: 1.045 | L25: 7506 | M25: 7844 | P25: LS-4 | Q25: FAY | R25: Není v databázi
A26: Mark Polajzar | F26: WGC Juniors 2019 - Klub | G26: HU | H26: 2019 | I26: 20 | J26: 6953 | K26: 1.045 | L26: 7432 | M26: 7766 | P26: DG-300 | Q26: CP | R26: Není v databázi
A27: Adam Kacvinsky | F27: WGC Juniors 2019 - Klub | G27: HU | H27: 2019 | I27: 21 | J27: 6890 | K27: 1.045 | L27: 7310 | M27: 7639 | P27: ASW-19B | Q27: BA4 | R27: Není v databázi
A28: James Stewart | F28: WGC Juniors 2019 - Klub | G28: HU | H28: 2019 | I28: 22 | J28: 6857 | K28: 1.045 | L28: 7213 | M28: 7538 | P28: LS-4a | Q28: S5 | R28: Není v databázi
A29: Noah Reitter | F29: WGC Juniors 2019 - Klub | G29: HU | H29: 2019 | I29: 23 | J29: 6806 | K29: 1.045 | L29: 7101 | M29: 7421 | P29: LS-4a | Q29: S9 | R29: Není v databázi
A30: Barbora Moravcova | B30: =VLOOKUP(A30,Pilot,2,0) -> 1994 | C30: =VLOOKUP(A30,Pilot,5,0) -> F | D30: =VLOOKUP(A30,Pilot,3,0) -> Zbraslavice | E30: =VLOOKUP(A30,Pilot,4,0) -> CZ/C1 | F30: WGC Juniors 2019 - Klub | G30: HU | H30: 2019 | I30: 24 | J30: 6783 | K30: 1.045 | L30: =ROUND(J30/MAX($J$7:$J$50)*10000*0.7+(MAX($I$7:$I$50)-I30)/(MAX($I$7:$I$50)-1)*10000*0.3,0) -> 7012 | M30: 7328 | P30: ASW-19B | Q30: CF
A31: Julien Duboc | F31: WGC Juniors 2019 - Klub | G31: HU | H31: 2019 | I31: 25 | J31: 6749 | K31: 1.045 | L31: 6914 | M31: 7225 | P31: LS-4 | Q31: 79 | R31: Není v databázi
A32: Konrad Partyka | F32: WGC Juniors 2019 - Klub | G32: HU | H32: 2019 | I32: 26 | J32: 6551 | K32: 1.045 | L32: 6681 | M32: 6982 | P32: ASW-19 | Q32: J1 | R32: Není v databázi
A33: Oskar Minds | F33: WGC Juniors 2019 - Klub | G33: HU | H33: 2019 | I33: 27 | J33: 6496 | K33: 1.045 | L33: 6565 | M33: 6860 | P33: DG-300 | Q33: RU | R33: Není v databázi
A34: Martynas LiutkeviCius | F34: WGC Juniors 2019 - Klub | G34: HU | H34: 2019 | I34: 28 | J34: 6491 | K34: 1.045 | L34: 6492 | M34: 6784 | P34: SZD-48-2 JantarSTD 2 | Q34: CI | R34: Není v databázi
A35: simon siska | F35: WGC Juniors 2019 - Klub | G35: HU | H35: 2019 | I35: 29 | J35: 6466 | K35: 1.045 | L35: 6401 | M35: 6689 | P35: ASW-19B | Q35: A1 | R35: Není v databázi
A36: Kinga Tchorz | F36: WGC Juniors 2019 - Klub | G36: HU | H36: 2019 | I36: 30 | J36: 6463 | K36: 1.045 | L36: 6329 | M36: 6614 | P36: ASW-19 | Q36: 11 | R36: Není v databázi
A37: Jokūbas Motūza | F37: WGC Juniors 2019 - Klub | G37: HU | H37: 2019 | I37: 31 | J37: 6398 | K37: 1.045 | L37: 6205 | M37: 6484 | P37: Jantar Std. 1 | Q37: JM | R37: Není v databázi
A38: Rokas Liaugaudas | F38: WGC Juniors 2019 - Klub | G38: HU | H38: 2019 | I38: 32 | J38: 6364 | K38: 1.045 | L38: 6107 | M38: 6382 | P38: Pegasus 101A | Q38: PL | R38: Není v databázi
A39: Mikko Ylihärsilä | F39: WGC Juniors 2019 - Klub | G39: HU | H39: 2019 | I39: 33 | J39: 6312 | K39: 1.045 | L39: 5994 | M39: 6264 | P39: LS7 | Q39: GE | R39: Není v databázi
A40: Tymoteusz Dolata | F40: WGC Juniors 2019 - Klub | G40: HU | H40: 2019 | I40: 34 | J40: 6302 | K40: =VLOOKUP(F40,Soutez,12,0) -> 1.045 | L40: 5916 | M40: 6182 | P40: ASW-19B | Q40: JAY | R40: =IF(ISERROR(VLOOKUP(A40,Pilot,6,0)),"Není v databázi",VLOOKUP(A40,Pilot,6,0)) -> Není v databázi
A41: Mikkel Refsgaard Schmidt-Nielsen | F41: WGC Juniors 2019 - Klub | G41: HU | H41: 2019 | I41: 35 | J41: 6023 | K41: 1.045 | L41: 5616 | M41: 5869 | P41: LS-1F | Q41: BB | R41: Není v databázi
A42: Barnabas Tóth | F42: WGC Juniors 2019 - Klub | G42: HU | H42: 2019 | I42: 36 | J42: 5943 | K42: 1.045 | L42: 5480 | M42: 5727 | P42: Pegasus 101A | Q42: BT | R42: Není v databázi
A43: Niklas Unterrainer | F43: WGC Juniors 2019 - Klub | G43: HU | H43: 2019 | I43: 37 | J43: 5743 | K43: 1.045 | L43: 5244 | M43: 5480 | P43: LS-4 | Q43: 8F | R43: Není v databázi
A44: David Collins | F44: WGC Juniors 2019 - Klub | G44: HU | H44: 2019 | I44: 38 | J44: 5639 | K44: 1.045 | L44: 5088 | M44: 5317 | P44: LS-3 | Q44: 1A | R44: Není v databázi
A45: WÉBER Zsombor | F45: WGC Juniors 2019 - Klub | G45: HU | H45: 2019 | I45: 39 | J45: 5402 | K45: 1.045 | L45: 4822 | M45: 5039 | P45: SZD-48-2 JantarSTD 2 | Q45: 16 | R45: Není v databázi
A46: Michael Keller | F46: WGC Juniors 2019 - Klub | G46: HU | H46: 2019 | I46: 40 | J46: 5068 | K46: 1.045 | L46: 4476 | M46: 4677 | P46: Std Cirrus 75 | Q46: XII | R46: Není v databázi
A47: Sondre Bjoro | F47: WGC Juniors 2019 - Klub | G47: HU | H47: 2019 | I47: 41 | J47: 4886 | K47: 1.045 | L47: 4255 | M47: 4446 | P47: ASW-15B | Q47: DB | R47: Není v databázi
A48: Kristoffer D. Samuelsen | F48: WGC Juniors 2019 - Klub | G48: HU | H48: 2019 | I48: 42 | J48: 4749 | K48: 1.045 | L48: 4072 | M48: 4255 | P48: LS-1F | Q48: 577 | R48: Není v databázi
A49: Christer Ervik Mjos | F49: WGC Juniors 2019 - Klub | G49: HU | H49: 2019 | I49: 43 | J49: 4403 | K49: 1.045 | L49: 3716 | M49: 3883 | P49: ASW-15B | Q49: SW | R49: Není v databázi
A50: Reuben Lane | F50: WGC Juniors 2019 - Klub | G50: HU | H50: 2019 | I50: 44 | J50: 3790 | K50: 1.045 | L50: =ROUND(J50/MAX($J$7:$J$50)*10000*0.7+(MAX($I$7:$I$50)-I50)/(MAX($I$7:$I$50)-1)*10000*0.3,0) -> 3139 | M50: 3280 | P50: LS-1F | Q50: ELY | R50: Není v databázi
A51: Simon Schröder | F51: WGC Juniors 2019 - Std | G51: HU | H51: 2019 | I51: 1 | J51: 7422 | K51: 1.07 | L51: =ROUND(J51/MAX($J$51:$J$86)*10000*0.7+(MAX($I$51:$I$86)-I51)/(MAX($I$51:$I$86)-1)*10000*0.3,0) -> 10000 | M51: 10700 | P51: LS-8-15 - winglet | Q51: S2 | R51: Není v databázi
A52: Simon Briel | F52: WGC Juniors 2019 - Std | G52: HU | H52: 2019 | I52: 2 | J52: 7262 | K52: 1.07 | L52: =ROUND(J52/MAX($J$51:$J$86)*10000*0.7+(MAX($I$51:$I$86)-I52)/(MAX($I$51:$I$86)-1)*10000*0.3,0) -> 9763 | M52: 10446 | P52: Discus 2A - winglet | Q52: SB | R52: Není v databázi
A53: Tomasz Hornik | F53: WGC Juniors 2019 - Std | G53: HU | H53: 2019 | I53: 3 | J53: 7000 | K53: 1.07 | L53: 9431 | M53: 10091 | P53: Discus 2A - winglet | Q53: ii | R53: Není v databázi
A54: Juliusz Pieniazek | F54: WGC Juniors 2019 - Std | G54: HU | H54: 2019 | I54: 4 | J54: 6750 | K54: 1.07 | L54: 9109 | M54: 9747 | P54: Discus 2A - winglet | Q54: Y | R54: Není v databázi
A55: Robin Sittmann | F55: WGC Juniors 2019 - Std | G55: HU | H55: 2019 | I55: 5 | J55: 6729 | K55: 1.07 | L55: 9004 | M55: 9634 | P55: Discus 2A - winglet | Q55: RA | R55: Není v databázi
A56: Aude Untersee | F56: WGC Juniors 2019 - Std | G56: HU | H56: 2019 | I56: 6 | J56: 6632 | K56: 1.07 | L56: 8826 | M56: 9444 | P56: Discus 2A - winglet | Q56: JPA | R56: Není v databázi
A57: Hugo Corbillé | F57: WGC Juniors 2019 - Std | G57: HU | H57: 2019 | I57: 7 | J57: 6607 | K57: 1.07 | L57: 8717 | M57: 9327 | P57: LS-8-15 - winglet | Q57: 7X | R57: Není v databázi
A58: Sjoerd van Empelen | F58: WGC Juniors 2019 - Std | G58: HU | H58: 2019 | I58: 8 | J58: 6604 | K58: 1.07 | L58: 8629 | M58: 9233 | P58: LS-8-15 - winglet | Q58: E8 | R58: Není v databázi
A59: Sofiane Scally | F59: WGC Juniors 2019 - Std | G59: HU | H59: 2019 | I59: 9 | J59: 6536 | K59: 1.07 | L59: 8479 | M59: 9073 | P59: LS-8-15 - winglet | Q59: RJ | R59: Není v databázi
A60: Jaromir Macoun | B60: =VLOOKUP(A60,Pilot,2,0) -> 1999 | C60: =VLOOKUP(A60,Pilot,5,0) -> M | D60: =VLOOKUP(A60,Pilot,3,0) -> Jičín | E60: =VLOOKUP(A60,Pilot,4,0) -> CZ/C2 | F60: WGC Juniors 2019 - Std | G60: HU | H60: 2019 | I60: 10 | J60: 6442 | K60: 1.07 | L60: =ROUND(J60/MAX($J$51:$J$86)*10000*0.7+(MAX($I$51:$I$86)-I60)/(MAX($I$51:$I$86)-1)*10000*0.3,0) -> 8304 | M60: 8885 | N60: x | P60: LS-8-15 - winglet | Q60: EU | R60: Junior v roce 2022
A61: Ringaudas Kikalas | F61: WGC Juniors 2019 - Std | G61: HU | H61: 2019 | I61: 11 | J61: 6369 | K61: 1.07 | L61: 8150 | M61: 8721 | P61: LS-8-15 - winglet | Q61: H8 | R61: Není v databázi
A62: Jan Viskot | B62: =VLOOKUP(A62,Pilot,2,0) -> 1995 | C62: =VLOOKUP(A62,Pilot,5,0) -> M | D62: =VLOOKUP(A62,Pilot,3,0) -> Břeclav | E62: =VLOOKUP(A62,Pilot,4,0) -> CZ/M | F62: WGC Juniors 2019 - Std | G62: HU | H62: 2019 | I62: 12 | J62: 6360 | K62: 1.07 | L62: 8056 | M62: 8620 | N62: x | P62: Discus 2A - winglet | Q62: GX
A63: Emil Dalboe-Pedersen | F63: WGC Juniors 2019 - Std | G63: HU | H63: 2019 | I63: 13 | J63: 6317 | K63: 1.07 | L63: 7929 | M63: 8484 | P63: LS-8-15 - winglet | Q63: SE | R63: Není v databázi
A64: Ignas Bitinaitis | F64: WGC Juniors 2019 - Std | G64: HU | H64: 2019 | I64: 14 | J64: 6300 | K64: 1.07 | L64: 7828 | M64: 8376 | P64: Discus 2A - winglet | Q64: VM | R64: Není v databázi
A65: Balazs Laktis | F65: WGC Juniors 2019 - Std | G65: HU | H65: 2019 | I65: 15 | J65: 6294 | K65: 1.07 | L65: 7736 | M65: 8278 | P65: Discus 2A - winglet | Q65: HUN | R65: Není v databázi
A66: Nico Jägli | F66: WGC Juniors 2019 - Std | G66: HU | H66: 2019 | I66: 16 | J66: 6290 | K66: 1.07 | L66: 7647 | M66: =ROUND(K66*L66,0) -> 8182 | P66: Discus 2B - winglet | Q66: 2S | R66: Není v databázi
A67: Sjors van Loon | F67: WGC Juniors 2019 - Std | G67: HU | H67: 2019 | I67: 17 | J67: 6131 | K67: 1.07 | L67: 7411 | M67: 7930 | P67: LS-8-15 - winglet | Q67: M7 | R67: Není v databázi
A68: Michael Marshall | F68: WGC Juniors 2019 - Std | G68: HU | H68: 2019 | I68: 18 | J68: 5827 | K68: 1.07 | L68: 7039 | M68: 7532 | P68: Discus 2A - winglet | Q68: DA | R68: Není v databázi
A69: Peter Carter | F69: WGC Juniors 2019 - Std | G69: HU | H69: 2019 | I69: 19 | J69: 5790 | K69: 1.07 | L69: 6918 | M69: 7402 | P69: LS-8-18 525 - winglet | Q69: 95 | R69: Není v databázi
A70: Simon Brown | F70: WGC Juniors 2019 - Std | G70: HU | H70: 2019 | I70: 20 | J70: 5700 | K70: 1.07 | L70: 6747 | M70: 7219 | P70: LS-8-15 - winglet | Q70: B | R70: Není v databázi
A71: Nick Fremau | F71: WGC Juniors 2019 - Std | G71: HU | H71: 2019 | I71: 21 | J71: 5674 | K71: 1.07 | L71: 6637 | M71: 7102 | P71: LS-8-15 - winglet | Q71: L8 | R71: Není v databázi
A72: Samuel Posluch | F72: WGC Juniors 2019 - Std | G72: HU | H72: 2019 | I72: 22 | J72: 5521 | K72: 1.07 | L72: 6407 | M72: 6855 | P72: LS-8-15 - winglet | Q72: SI | R72: Není v databázi
A73: Lars Groot | F73: WGC Juniors 2019 - Std | G73: HU | H73: 2019 | I73: 23 | J73: 5359 | K73: 1.07 | L73: 6169 | M73: 6601 | P73: LS-8-15 - winglet | Q73: E5 | R73: Není v databázi
A74: Jonas Pitschen | F74: WGC Juniors 2019 - Std | G74: HU | H74: 2019 | I74: 24 | J74: 5304 | K74: 1.07 | L74: 6031 | M74: 6453 | P74: Discus 2B - winglet | Q74: UB | R74: Není v databázi
A75: Balint Biro | F75: WGC Juniors 2019 - Std | G75: HU | H75: 2019 | I75: 25 | J75: 5278 | K75: 1.07 | L75: 5921 | M75: 6335 | P75: Discus 2A - winglet | Q75: HAL | R75: Není v databázi
A76: Jens Andersen | F76: WGC Juniors 2019 - Std | G76: HU | H76: 2019 | I76: 26 | J76: 5264 | K76: 1.07 | L76: 5822 | M76: 6230 | P76: LS-8-15 - winglet | Q76: KL | R76: Není v databázi
A77: Tizian Steiger | F77: WGC Juniors 2019 - Std | G77: HU | H77: 2019 | I77: 27 | J77: 5174 | K77: 1.07 | L77: 5651 | M77: 6047 | P77: Discus 2A - winglet | Q77: O2 | R77: Není v databázi
A78: Arnulf Snekvik | F78: WGC Juniors 2019 - Std | G78: HU | H78: 2019 | I78: 28 | J78: 5123 | K78: 1.07 | L78: 5517 | M78: 5903 | P78: LS-8-15 - winglet | Q78: TT | R78: Není v databázi
A79: Jan Zapletal | B79: =VLOOKUP(A79,Pilot,2,0) -> 1997 | C79: =VLOOKUP(A79,Pilot,5,0) -> M | D79: =VLOOKUP(A79,Pilot,3,0) -> Břeclav | E79: =VLOOKUP(A79,Pilot,4,0) -> CZ/M | F79: WGC Juniors 2019 - Std | G79: HU | H79: 2019 | I79: 29 | J79: 5104 | K79: 1.07 | L79: 5414 | M79: 5793 | P79: LS-8-15 - winglet | Q79: JS | R79: Junior v roce 2022
A80: Wiktor CZUBSKI | F80: WGC Juniors 2019 - Std | G80: HU | H80: 2019 | I80: 30 | J80: 5038 | K80: 1.07 | L80: 5266 | M80: 5635 | P80: LS-8-15 - winglet | Q80: LOT | R80: Není v databázi
A81: Joshua Geerlings | F81: WGC Juniors 2019 - Std | G81: HU | H81: 2019 | I81: 31 | J81: 5012 | K81: 1.07 | L81: 5156 | M81: 5517 | P81: LS-8-15 - winglet | Q81: 59 | R81: Není v databázi
A82: Laurynas supinys | F82: WGC Juniors 2019 - Std | G82: HU | H82: 2019 | I82: 32 | J82: 4915 | K82: 1.07 | L82: 4978 | M82: 5326 | P82: LAK-19 - winglet | Q82: ZM | R82: Není v databázi
A83: Viktoria Divokova | F83: WGC Juniors 2019 - Std | G83: HU | H83: 2019 | I83: 33 | J83: 4898 | K83: 1.07 | L83: 4877 | M83: 5218 | P83: Discus 2B - winglet | Q83: DI | R83: Není v databázi
A84: Sebastian Pöchlauer | F84: WGC Juniors 2019 - Std | G84: HU | H84: 2019 | I84: 34 | J84: 4497 | K84: 1.07 | L84: 4413 | M84: 4722 | P84: Discus 2A - winglet | Q84: KG | R84: Není v databázi
A85: Miroslav Beliansky | F85: WGC Juniors 2019 - Std | G85: HU | H85: 2019 | I85: 35 | J85: 4470 | K85: 1.07 | L85: 4302 | M85: 4603 | P85: LS-8-15 - winglet | Q85: TC | R85: Není v databázi
A86: Lukas Schneeberger | F86: WGC Juniors 2019 - Std | G86: HU | H86: 2019 | I86: 36 | J86: 4048 | K86: 1.07 | L86: 3818 | M86: 4085 | P86: Discus B | Q86: I | R86: Není v databázi
A87: Rene Hudak | B87: =VLOOKUP(A87,Pilot,2,0) -> 1972 | C87: =VLOOKUP(A87,Pilot,5,0) -> M | D87: =VLOOKUP(A87,Pilot,3,0) -> Kunovice | E87: =VLOOKUP(A87,Pilot,4,0) -> CZ/M | F87: JPJ 2019 - Klub | G87: CZ | H87: 2019 | I87: 1 | J87: 2214 | K87: 0.9 | L87: =ROUND(J87/MAX($J$87:$J$122)*10000*0.7+(MAX($I$87:$I$122)-I87)/(MAX($I$87:$I$122)-1)*10000*0.3,0) -> 10000 | M87: 9000 | N87: x | P87: Std. Cirrus WL | Q87: NK
A88: Martin Ficnar | B88: 1971 | C88: M | D88: Šumperk | E88: CZ/M | F88: JPJ 2019 - Klub | G88: CZ | H88: 2019 | I88: 2 | J88: 2174 | K88: 0.9 | L88: =ROUND(J88/MAX($J$87:$J$122)*10000*0.7+(MAX($I$87:$I$122)-I88)/(MAX($I$87:$I$122)-1)*10000*0.3,0) -> 9785 | M88: 8807 | N88: x | P88: LS-3a 15m | Q88: S20
A89: Josef Novak | B89: 1981 | C89: M | D89: Kunovice | E89: CZ/M | F89: JPJ 2019 - Klub | G89: CZ | H89: 2019 | I89: 3 | J89: 2097 | K89: 0.9 | L89: =ROUND(J89/MAX($J$87:$J$122)*10000*0.7+(MAX($I$87:$I$122)-I89)/(MAX($I$87:$I$122)-1)*10000*0.3,0) -> 9454 | M89: 8509 | N89: x | P89: LS-1f | Q89: JT
A90: Martin Urner | B90: 1974 | C90: M | D90: Letňany | E90: CZ/C1 | F90: JPJ 2019 - Klub | G90: CZ | H90: 2019 | I90: 4 | J90: 2082 | K90: 0.9 | L90: 9318 | M90: 8386 | N90: x | P90: ASW-15B | Q90: JJ
A91: Martin Svarc | B91: 1981 | C91: M | D91: Olomouc | E91: CZ/M | F91: JPJ 2019 - Klub | G91: CZ | H91: 2019 | I91: 5 | J91: 2055 | K91: 0.9 | L91: 9144 | M91: 8230 | N91: x | P91: DG-101 G | Q91: HE
A92: Pavel Rericha | B92: 1967 | C92: M | D92: Moravská Třebová | E92: CZ/M | F92: JPJ 2019 - Klub | G92: CZ | H92: 2019 | I92: 6 | J92: 2024 | K92: 0.9 | L92: 8958 | M92: 8062 | N92: x | P92: ASW-19B | Q92: NO
A93: Jan Zezula | B93: 1979 | C93: M | D93: Letňany | E93: CZ/C1 | F93: JPJ 2019 - Klub | G93: CZ | H93: 2019 | I93: 7 | J93: 1974 | K93: 0.9 | L93: 8712 | M93: 7841 | N93: x | P93: ASW-19B | Q93: HD
A94: Roman Schotli | B94: 1970 | C94: M | D94: Hranice | E94: CZ/M | F94: JPJ 2019 - Klub | G94: CZ | H94: 2019 | I94: 8 | J94: 1954 | K94: 0.9 | L94: 8560 | M94: 7704 | N94: x | P94: ASW-19B | Q94: 19
A95: Petr Kolacek | B95: 1965 | C95: M | D95: Šumperk | E95: CZ/M | F95: JPJ 2019 - Klub | G95: CZ | H95: 2019 | I95: 9 | J95: 1904 | K95: 0.9 | L95: 8314 | M95: 7483 | N95: x | P95: SZD-48 Jantar std. 2 | Q95: SU
A96: Petr Kolomaznik | B96: 1981 | C96: M | D96: Šumperk | E96: CZ/M | F96: JPJ 2019 - Klub | G96: CZ | H96: 2019 | I96: 10 | J96: 1840 | K96: 0.9 | L96: 8023 | M96: 7221 | N96: x | P96: Discus b | Q96: SJ
A97: Petr Havrlant | B97: 1965 | C97: M | D97: Šumperk | E97: CZ/M | F97: JPJ 2019 - Klub | G97: CZ | H97: 2019 | I97: 11 | J97: 1756 | K97: 0.9 | L97: 7670 | M97: 6903 | N97: x | P97: ASW-15B | Q97: Q1
A98: Jiri Koudela | B98: 1974 | C98: M | D98: Vyškov | E98: CZ/M | F98: JPJ 2019 - Klub | G98: CZ | H98: 2019 | I98: 12 | J98: 1710 | K98: 0.9 | L98: 7436 | M98: 6692 | N98: x | P98: ASW-19B | Q98: JK
A99: Jiri Vavrina | B99: 1958 | C99: M | D99: Kyjov | E99: CZ/M | F99: JPJ 2019 - Klub | G99: CZ | H99: 2019 | I99: 13 | J99: 1592 | K99: 0.9 | L99: 6975 | M99: 6278 | N99: x | P99: LS-1f | Q99: BS
A100: Jaromir Vlk | B100: 1959 | C100: M | D100: Šumperk | E100: CZ/M | F100: JPJ 2019 - Klub | G100: CZ | H100: 2019 | I100: 14 | J100: 1514 | K100: 0.9 | L100: 6640 | M100: 5976 | N100: x | P100: ASW-15B | Q100: R5
A101: Lukas Petrzela | B101: 1987 | C101: M | D101: Olomouc | E101: CZ/M | F101: JPJ 2019 - Klub | G101: CZ | H101: 2019 | I101: 15 | J101: 1513 | K101: 0.9 | L101: 6548 | M101: 5893 | N101: x | P101: G-102 Astir cs | Q101: AL
A102: Peter Kaspar | B102: 1980 | C102: M | D102: Vyškov | E102: CZ/M | F102: JPJ 2019 - Klub | G102: CZ | H102: 2019 | I102: 16 | J102: 1509 | K102: 0.9 | L102: 6447 | M102: 5802 | N102: x | P102: G-102 Astir 77 | Q102: AP
A103: Michaela Krizova | B103: 2001 | C103: F | D103: Přibyslav | E103: CZ/C2 | F103: JPJ 2019 - Klub | G103: CZ | H103: 2019 | I103: 17 | J103: 1430 | K103: 0.9 | L103: 6109 | M103: 5498 | P103: ASW-15B | Q103: BE | R103: Junior v roce 2022
A104: Jan Pokluda | B104: 1973 | C104: M | D104: Šumperk | E104: CZ/M | F104: JPJ 2019 - Klub | G104: CZ | H104: 2019 | I104: 18 | J104: 1422 | K104: =VLOOKUP(F104,Soutez,12,0) -> 0.9 | L104: 5996 | M104: 5396 | N104: x | P104: ASW-15B WL | Q104: JG | R104: =IF(ISERROR(VLOOKUP(A104,Pilot,6,0)),"Není v databázi",VLOOKUP(A104,Pilot,6,0)) -> 
A105: Yvona Vyhnankova | B105: 1963 | C105: F | D105: Olomouc | E105: CZ/M | F105: JPJ 2019 - Klub | G105: CZ | H105: 2019 | I105: 19 | J105: 1293 | K105: 0.9 | L105: 5500 | M105: 4950 | N105: x | O105: x | P105: ASW-15 | Q105: YZ
A106: Antonin Pilat | B106: 1971 | C106: M | D106: Vyškov | E106: CZ/M | F106: JPJ 2019 - Klub | G106: CZ | H106: 2019 | I106: 20 | J106: 1267 | K106: 0.9 | L106: 5329 | M106: 4796 | N106: x | P106: DG-200 15m | Q106: JB
A107: Radek Hamrla | B107: 1973 | C107: M | D107: Vyškov | E107: CZ/M | F107: JPJ 2019 - Klub | G107: CZ | H107: 2019 | I107: 21 | J107: 1172 | K107: 0.9 | L107: 4941 | M107: 4447 | N107: x | P107: DG-1000S 18m | Q107: 66
A108: Miroslav Mancik | B108: 1976 | C108: M | D108: Kyjov | E108: CZ/M | F108: JPJ 2019 - Klub | G108: CZ | H108: 2019 | I108: 22 | J108: 1160 | K108: 0.9 | L108: 4815 | M108: 4334 | N108: x | P108: G-103 Twin Astir | Q108: KW
A109: Lukas Fronek | B109: 1989 | C109: M | D109: Kyjov | E109: CZ/M | F109: JPJ 2019 - Klub | G109: CZ | H109: 2019 | I109: 23 | J109: 1044 | K109: 0.9 | L109: 4360 | M109: 3924 | N109: x | P109: ASW-15B | Q109: E
A110: Lubomir Papezik | B110: 1951 | C110: M | D110: Luhačovice | E110: CZ/M | F110: JPJ 2019 - Klub | G110: CZ | H110: 2019 | I110: 24 | J110: 910 | K110: 0.9 | L110: 3848 | M110: 3463 | N110: x | P110: LS-4 | Q110: FP
A111: Sabina Vitova | B111: 1998 | C111: F | D111: Kroměříž | E111: CZ/M | F111: JPJ 2019 - Klub | G111: CZ | H111: 2019 | I111: 25 | J111: 890 | K111: 0.9 | L111: 3696 | M111: 3326 | N111: x | O111: x | P111: G-102 Astir Jeans | Q111: 2Y | R111: Junior v roce 2022
A112: Libor Danhel | B112: 1966 | C112: M | D112: Kunovice | E112: CZ/M | F112: JPJ 2019 - Klub | G112: CZ | H112: 2019 | I112: 26 | J112: 852 | K112: 0.9 | L112: 3488 | M112: 3139 | P112: Std. Cirrus | Q112: OK
A113: Libor Bednarik | B113: 1972 | C113: M | D113: Kunovice | E113: CZ/M | F113: JPJ 2019 - Klub | G113: CZ | H113: 2019 | I113: 27 | J113: 784 | K113: 0.9 | L113: 3185 | M113: 2867 | P113: G-103 Twin Astir | Q113: 103
A114: Leos Nosek | B114: 1958 | C114: M | D114: Křižanov | E114: CZ/M | F114: JPJ 2019 - Klub | G114: CZ | H114: 2019 | I114: 28 | J114: 750 | K114: 0.9 | L114: 2989 | M114: 2690 | N114: x | P114: G-104 Speed Astir II b | Q114: KF
A115: Lukas Zach | B115: 1987 | C115: M | D115: Vyškov | E115: CZ/M | F115: JPJ 2019 - Klub | G115: CZ | H115: 2019 | I115: 29 | J115: 732 | K115: 0.9 | L115: =ROUND(J115/MAX($J$87:$J$122)*10000*0.7+(MAX($I$87:$I$122)-I115)/(MAX($I$87:$I$122)-1)*10000*0.3,0) -> 2844 | M115: 2560 | N115: x | P115: G-102 Astir 77 | Q115: AS
A116: Pavel Simek | B116: 1957 | C116: M | D116: Vyškov | E116: CZ/M | F116: JPJ 2019 - Klub | G116: CZ | H116: 2019 | I116: 30 | J116: 544 | K116: 0.9 | L116: 2161 | M116: 1945 | N116: x | P116: DG-500 Elan Trainer | Q116: 4H
A117: Michal Linhart | B117: 1982 | C117: M | D117: Vyškov | E117: CZ/M | F117: JPJ 2019 - Klub | G117: CZ | H117: 2019 | I117: 31 | J117: 512 | K117: 0.9 | L117: 1972 | M117: 1775 | N117: x | P117: VSO-10 | Q117: J9
A118: Stanislava Zemlickova | B118: 2000 | C118: F | D118: Vyškov | E118: CZ/M | F118: JPJ 2019 - Klub | G118: CZ | H118: 2019 | I118: 32 | J118: 354 | K118: 0.9 | L118: 1384 | M118: 1246 | N118: x | O118: x | P118: VSO-10 | Q118: B2S | R118: Junior v roce 2022
A119: Ludek Mikl | B119: =VLOOKUP(A119,Pilot,2,0) -> 1963 | C119: =VLOOKUP(A119,Pilot,5,0) -> M | D119: =VLOOKUP(A119,Pilot,3,0) -> Kroměříž | E119: =VLOOKUP(A119,Pilot,4,0) -> CZ/M | F119: JPJ 2019 - Klub | G119: CZ | H119: 2019 | I119: 33 | J119: 237 | K119: 0.9 | L119: 926 | M119: 833 | N119: x | P119: G-102 Astir CS Jeans | Q119: L1
A120: Karel Horalek | B120: 1976 | C120: M | D120: Olomouc | E120: CZ/M | F120: JPJ 2019 - Klub | G120: CZ | H120: 2019 | I120: 34 | J120: 220 | K120: 0.9 | L120: 784 | M120: 706 | P120: LS-3 15m | Q120: Y1
A121: Pavel Handl | B121: 1971 | C121: M | D121: Kroměříž | E121: CZ/M | F121: JPJ 2019 - Klub | G121: CZ | H121: 2019 | I121: 35 | J121: 0 | K121: 0.9 | L121: 0 | M121: 0 | P121: Phoebus A1 | Q121: PH
A122: Petr Lonsky | B122: 1965 | C122: M | D122: Toužim | E122: CZ/C1 | F122: JPJ 2019 - Klub | G122: CZ | H122: 2019 | I122: 35 | J122: 0 | K122: 0.9 | L122: 0 | M122: 0 | P122: LS-1d | Q122: CL
A123: Antonin Konicek | B123: 1973 | C123: M | D123: Kunovice | E123: CZ/M | F123: JPJ 2019 - Kombi | G123: CZ | H123: 2019 | I123: 1 | J123: 2788 | K123: 0.905 | L123: =ROUND(J123/MAX($J$123:$J$150)*10000*0.7+(MAX($I$123:$I$150)-I123)/(MAX($I$123:$I$150)-1)*10000*0.3,0) -> 10000 | M123: 9050 | N123: x | P123: HpH 304M SHARK | Q123: KK
A124: Frantisek Vancura | B124: 1966 | C124: M | D124: Hranice | E124: CZ/M | F124: JPJ 2019 - Kombi | G124: CZ | H124: 2019 | I124: 2 | J124: 2756 | K124: 0.905 | L124: =ROUND(J124/MAX($J$123:$J$150)*10000*0.7+(MAX($I$123:$I$150)-I124)/(MAX($I$123:$I$150)-1)*10000*0.3,0) -> 9809 | M124: 8877 | N124: x | P124: Nimbus 3T 24,5m WL | Q124: A1
A125: Vratislav Sram | B125: 1966 | C125: M | D125: Broumov | E125: CZ/C2 | F125: JPJ 2019 - Kombi | G125: CZ | H125: 2019 | I125: 3 | J125: 2691 | K125: 0.905 | L125: 9534 | M125: 8628 | N125: x | P125: Nimbus 2M WL | Q125: NB
A126: Marek Blatak | B126: 1969 | C126: M | D126: Šumperk | E126: CZ/M | F126: JPJ 2019 - Kombi | G126: CZ | H126: 2019 | I126: 4 | J126: 2624 | K126: 0.905 | L126: 9255 | M126: 8376 | N126: x | P126: Ventus c 17,6m | Q126: W
A127: Jan Simon | B127: 1970 | C127: M | D127: Kralupy | E127: CZ/C1 | F127: JPJ 2019 - Kombi | G127: CZ | H127: 2019 | I127: 5 | J127: 2604 | K127: 0.905 | L127: 9094 | M127: 8230 | N127: x | P127: Ventus ct 17,6m | Q127: KR
A128: Michal Cechmanek | B128: 1978 | C128: M | D128: Luhačovice | E128: CZ/M | F128: JPJ 2019 - Kombi | G128: CZ | H128: 2019 | I128: 6 | J128: 2599 | K128: 0.905 | L128: 8970 | M128: 8118 | N128: x | P128: ASW 20 L+FL 16.6m | Q128: MK
A129: Jiri Steiger | B129: 1969 | C129: M | D129: Olomouc | E129: CZ/M | F129: JPJ 2019 - Kombi | G129: CZ | H129: 2019 | I129: 6 | J129: 2599 | K129: 0.905 | L129: 8970 | M129: 8118 | N129: x | P129: Ventus 2cxt 18m | Q129: JS
A130: Miroslav Sklenar | B130: 1964 | C130: M | D130: Žamberk | E130: CZ/C2 | F130: JPJ 2019 - Kombi | G130: CZ | H130: 2019 | I130: 8 | J130: 2217 | K130: 0.905 | L130: 7789 | M130: =ROUND(K130*L130,0) -> 7049 | N130: x | P130: Duo Discus T | Q130: VP
A131: Vaclav Kult | B131: 1973 | C131: M | D131: Broumov | E131: CZ/C2 | F131: JPJ 2019 - Kombi | G131: CZ | H131: 2019 | I131: 9 | J131: 2169 | K131: 0.905 | L131: 7557 | M131: 6839 | N131: x | P131: Nimbus 2b WL | Q131: VK
A132: Zdenek Boruvka 54 | B132: 1954 | C132: M | D132: Jičín | E132: CZ/C2 | F132: JPJ 2019 - Kombi | G132: CZ | H132: 2019 | I132: 10 | J132: 2093 | K132: 0.905 | L132: 7255 | M132: 6566 | P132: LS-8 15m | Q132: ZB
A133: Jaroslav Buryan | B133: 1953 | C133: M | D133: Zábřeh | E133: CZ/M | F133: JPJ 2019 - Kombi | G133: CZ | H133: 2019 | I133: 11 | J133: 1916 | K133: 0.905 | L133: 6700 | M133: 6064 | P133: ASW-20 15m WL | Q133: NS
A134: Jiri Prochazka | B134: 1971 | C134: M | D134: Toužim | E134: CZ/C1 | F134: JPJ 2019 - Kombi | G134: CZ | H134: 2019 | I134: 12 | J134: 1871 | K134: 0.905 | L134: 6475 | M134: 5860 | N134: x | P134: DG-500 22m | Q134: SR
A135: Zdenek Schenk | B135: 1972 | C135: M | D135: Hranice | E135: CZ/M | F135: JPJ 2019 - Kombi | G135: CZ | H135: 2019 | I135: 13 | J135: 1698 | K135: 0.905 | L135: 5930 | M135: 5367 | P135: Ventus cm 17,6m | Q135: ŠNeK
A136: Filip Vita | B136: 2001 | C136: M | D136: Kroměříž | E136: CZ/M | F136: JPJ 2019 - Kombi | G136: CZ | H136: 2019 | I136: 14 | J136: 1676 | K136: 0.905 | L136: 5764 | M136: 5216 | N136: x | P136: LAK-12 | Q136: FL | R136: Junior v roce 2022
A137: Miroslav Koci | B137: 1961 | C137: M | D137: Žamberk | E137: CZ/C2 | F137: JPJ 2019 - Kombi | G137: CZ | H137: 2019 | I137: 15 | J137: 1665 | K137: 0.905 | L137: 5625 | M137: 5091 | P137: Ventus 2cxm 18m | Q137: E8
A138: Martin Kriz | B138: 1968 | C138: M | D138: Přibyslav | E138: CZ/C2 | F138: JPJ 2019 - Kombi | G138: CZ | H138: 2019 | I138: 16 | J138: 1613 | K138: 0.905 | L138: 5383 | M138: 4872 | N138: x | P138: ASW-20 15m WL | Q138: 67
A139: Michal Hemrle | B139: 1974 | C139: M | D139: Česká Lípa | E139: CZ/C2 | F139: JPJ 2019 - Kombi | G139: CZ | H139: 2019 | I139: 17 | J139: 1569 | K139: 0.905 | L139: 5162 | M139: 4672 | N139: x | P139: Ventus c 17,6m | Q139: XE
A140: Jan Matejovsky | B140: 1972 | C140: M | D140: Hranice | E140: CZ/M | F140: JPJ 2019 - Kombi | G140: CZ | H140: 2019 | I140: 18 | J140: 1549 | K140: 0.905 | L140: 5000 | M140: 4525 | N140: x | P140: Duo Discus | Q140: OKD
A141: Jan Kohout | B141: 1970 | C141: M | D141: Žamberk | E141: CZ/C2 | F141: JPJ 2019 - Kombi | G141: CZ | H141: 2019 | I141: 19 | J141: 1494 | K141: 0.905 | L141: =ROUND(J141/MAX($J$123:$J$150)*10000*0.7+(MAX($I$123:$I$150)-I141)/(MAX($I$123:$I$150)-1)*10000*0.3,0) -> 4751 | M141: 4300 | P141: LS-8 15m | Q141: SK
A142: Roman Cerny | B142: 1971 | C142: M | D142: Hranice | E142: CZ/M | F142: JPJ 2019 - Kombi | G142: CZ | H142: 2019 | I142: 20 | J142: 1474 | K142: 0.905 | L142: 4590 | M142: 4154 | N142: x | P142: LAK-17AT 18m | Q142: B2
A143: Pavel Haluza | B143: 1966 | C143: M | D143: Prostějov | E143: CZ/M | F143: JPJ 2019 - Kombi | G143: CZ | H143: 2019 | I143: 21 | J143: 1373 | K143: 0.905 | L143: 4225 | M143: 3824 | N143: x | P143: Nimbus 2b | Q143: HT
A144: Kamil Sohr | B144: 1973 | C144: M | D144: Šumperk | E144: CZ/M | F144: JPJ 2019 - Kombi | G144: CZ | H144: 2019 | I144: 22 | J144: 1363 | K144: 0.905 | L144: =ROUND(J144/MAX($J$123:$J$150)*10000*0.7+(MAX($I$123:$I$150)-I144)/(MAX($I$123:$I$150)-1)*10000*0.3,0) -> 4089 | M144: 3701 | N144: x | P144: SZD-55 Promyk | Q144: BC
A145: Petr Babak | B145: 1973 | C145: M | D145: Hořice | E145: CZ/C2 | F145: JPJ 2019 - Kombi | G145: CZ | H145: 2019 | I145: 23 | J145: 1272 | K145: 0.905 | L145: 3749 | M145: 3393 | P145: Ventus c 17,6m | Q145: LS
A146: Olga Mokosova | B146: 1970 | C146: F | D146: Jihlava | E146: CZ/M | F146: JPJ 2019 - Kombi | G146: CZ | H146: 2019 | I146: 24 | J146: 1193 | K146: 0.905 | L146: 3440 | M146: 3113 | P146: LS-6c 18m WL | Q146: MM
A147: Vladimir Spilka | B147: 1940 | C147: M | D147: Hranice | E147: CZ/M | F147: JPJ 2019 - Kombi | G147: CZ | H147: 2019 | I147: 25 | J147: 896 | K147: 0.905 | L147: 2583 | M147: 2338 | N147: x | P147: Nimbus 2b | Q147: AY
A148: Albrecht Beat | B148: 1953 | C148: M | D148: Šumperk | E148: CZ/M | F148: JPJ 2019 - Kombi | G148: CZ | H148: 2019 | I148: 26 | J148: 815 | K148: 0.905 | L148: 2268 | M148: 2053 | N148: x | P148: LS-8 15m | Q148: GL
A149: Dusan Sys | B149: 1977 | C149: M | D149: Šumperk | E149: CZ/M | F149: JPJ 2019 - Kombi | G149: CZ | H149: 2019 | I149: 27 | J149: 802 | K149: 0.905 | L149: 2125 | M149: 1923 | N149: x | P149: DG-808 C 18m WL | Q149: MS
A150: Christof Madoery | B150: 1958 | C150: M | D150: Šumperk | E150: CZ/M | F150: JPJ 2019 - Kombi | G150: CZ | H150: 2019 | I150: 28 | J150: 490 | K150: 0.905 | L150: 1230 | M150: 1113 | N150: x | P150: ASH-25 26m | Q150: IQ
A151: Michal Janda | B151: =VLOOKUP(A151,Pilot,2,0) -> 1972 | C151: M | D151: AK Broumov | E151: CZ/C2 | F151: HOP 2019 - Klub | G151: CZ | H151: 2019 | I151: 1 | J151: 1477 | K151: 0 | L151: =ROUND(J151/MAX($J$151:$J$177)*10000*0.7+(MAX($I$151:$I$177)-I151)/(MAX($I$151:$I$177)-1)*10000*0.3,0) -> 10000 | M151: 0 | P151: VT-116 Orlik 2 | Q151: 7402
A152: Milan Svoboda 80 | B152: 1980 | C152: M | D152: AK Havlíčkův Brod | E152: CZ/C2 | F152: HOP 2019 - Klub | G152: CZ | H152: 2019 | I152: 2 | J152: 1437 | K152: 0 | L152: =ROUND(J152/MAX($J$151:$J$177)*10000*0.7+(MAX($I$151:$I$177)-I152)/(MAX($I$151:$I$177)-1)*10000*0.3,0) -> 9695 | M152: 0 | P152: VT-116 Orlik 2 | Q152: 6446
A153: Oldrich Slavicek | B153: 1959 | C153: M | D153: AK Hronov | E153: CZ/C2 | F153: HOP 2019 - Klub | G153: CZ | H153: 2019 | I153: 3 | J153: 1433 | K153: 0 | L153: 9561 | M153: 0 | P153: VT-116 Orlik 2 | Q153: 4310
A154: Ivan Kuzelka | B154: 1945 | C154: M | D154: AK Havlíčkův Brod | E154: CZ/C2 | F154: HOP 2019 - Klub | G154: CZ | H154: 2019 | I154: 4 | J154: 1403 | K154: 0 | L154: 9303 | M154: 0 | P154: VT-116 Orlik 2 | Q154: 4314
A155: Wolfgang Sluka | B155: 1942 | C155: M | D155: AK Liberec | E155: CZ/C2 | F155: HOP 2019 - Klub | G155: CZ | H155: 2019 | I155: 5 | J155: 1393 | K155: 0 | L155: 9140 | M155: 0 | P155: VT-116 Orlik 2 | Q155: 8425
A156: Petr Seibrt, Dan Kubrt | D156: AK Náchod | F156: HOP 2019 - Klub | G156: CZ | H156: 2019 | I156: 6 | J156: 1257 | K156: 0 | L156: 8380 | M156: 0 | P156: VT-16 Orlik | Q156: 2412 | R156: Není v databázi
A157: Ondrej Teichman | B157: =VLOOKUP(A157,Pilot,2,0) -> 1984 | C157: =VLOOKUP(A157,Pilot,5,0) -> M | D157: AK Dvůr Králové nad Labem | E157: =VLOOKUP(A157,Pilot,4,0) -> CZ/C2 | F157: HOP 2019 - Klub | G157: CZ | H157: 2019 | I157: 7 | J157: 1240 | K157: 0 | L157: 8184 | M157: 0 | P157: VT-116 Orlik 2 | Q157: 6445
A158: Tomas Mezera | B158: 1973 | C158: M | D158: AK Raná | E158: CZ/C2 | F158: HOP 2019 - Klub | G158: CZ | H158: 2019 | I158: 8 | J158: 1225 | K158: 0 | L158: 7998 | M158: 0 | P158: VT-116 Orlik 2 | Q158: 8401
A159: Jaromir Vlk | B159: 1959 | C159: M | D159: AK Šumperk | E159: CZ/M | F159: HOP 2019 - Klub | G159: CZ | H159: 2019 | I159: 9 | J159: 1197 | K159: 0 | L159: 7750 | M159: 0 | P159: VT-116 Orlik 2 | Q159: 6907
A160: Krystof Mimra | B160: 1992 | C160: M | D160: AK Most | E160: CZ/C2 | F160: HOP 2019 - Klub | G160: CZ | H160: 2019 | I160: 10 | J160: 1195 | K160: 0 | L160: 7625 | M160: 0 | P160: VT-116 Orlik 2 | Q160: 7413
A161: Jana Mezerova | B161: 1975 | C161: F | D161: AK Raná | E161: CZ/C2 | F161: HOP 2019 - Klub | G161: CZ | H161: 2019 | I161: 11 | J161: 1142 | K161: 0 | L161: 7258 | M161: 0 | P161: VT-116 Orlik 2 | Q161: 7425
A162: Karel Kotlan | B162: 1957 | C162: M | D162: AK Medlánky | E162: CZ/M | F162: HOP 2019 - Klub | G162: CZ | H162: 2019 | I162: 12 | J162: 1083 | K162: 0 | L162: 6863 | M162: 0 | P162: VT-116 Orlik 2 | Q162: 8406
A163: Petr Vezda | B163: 1974 | C163: M | D163: AK Medlánky | E163: CZ/M | F163: HOP 2019 - Klub | G163: CZ | H163: 2019 | I163: 13 | J163: 1054 | K163: 0 | L163: 6611 | M163: 0 | P163: VT-116 Orlik 2 | Q163: 4321
A164: Miroslav Stepan | B164: 1955 | C164: M | D164: AK Žamberk | E164: CZ/C2 | F164: HOP 2019 - Klub | G164: CZ | H164: 2019 | I164: 14 | J164: 1018 | K164: 0 | L164: 6325 | M164: 0 | P164: VT-116 Orlik 2 | Q164: 8412
A165: Vaclav Kysilka | B165: 1979 | C165: M | D165: GAC Benešov | E165: CZ/C1 | F165: HOP 2019 - Klub | G165: CZ | H165: 2019 | I165: 15 | J165: 973 | K165: 0 | L165: 5996 | M165: 0 | P165: VT-116 Orlik 2 | Q165: 8430
A166: Sarka Lochova | B166: 1966 | C166: F | D166: AK Šumperk | E166: CZ/M | F166: HOP 2019 - Klub | G166: CZ | H166: 2019 | I166: 16 | J166: 910 | K166: 0 | L166: 5582 | M166: 0 | P166: VT-116 Orlik 2 | Q166: 7445
A167: J.Linhart, M.Ondracek | D167: AK Medlánky | F167: HOP 2019 - Klub | G167: CZ | H167: 2019 | I167: 17 | J167: 713 | K167: 0 | L167: 4533 | M167: 0 | P167: Ka 6 E | Q167: 9781 | R167: Není v databázi
A168: Michal Nutil | B168: =VLOOKUP(A168,Pilot,2,0) -> 1966 | C168: =VLOOKUP(A168,Pilot,5,0) -> M | D168: AK Náchod | E168: =VLOOKUP(A168,Pilot,4,0) -> CZ/C2 | F168: HOP 2019 - Klub | G168: CZ | H168: 2019 | I168: 18 | J168: 711 | K168: =VLOOKUP(F168,Soutez,12,0) -> 0 | L168: 4408 | M168: 0 | P168: VT-116 Orlik 2 | Q168: 7424 | R168: =IF(ISERROR(VLOOKUP(A168,Pilot,6,0)),"Není v databázi",VLOOKUP(A168,Pilot,6,0)) -> 
A169: Oldrich Hlavacek | B169: 1973 | C169: M | D169: AK Medlánky | E169: CZ/M | F169: HOP 2019 - Klub | G169: CZ | H169: 2019 | I169: 19 | J169: 694 | K169: 0 | L169: 4212 | M169: 0 | P169: VT-116 Orlik 2 | Q169: 8439
A170: Jaromir Hendrych | B170: 1954 | C170: M | D170: AK Raná | E170: CZ/C2 | F170: HOP 2019 - Klub | G170: CZ | H170: 2019 | I170: 20 | J170: 645 | K170: 0 | L170: =ROUND(J170/MAX($J$151:$J$177)*10000*0.7+(MAX($I$151:$I$177)-I170)/(MAX($I$151:$I$177)-1)*10000*0.3,0) -> 3865 | M170: 0 | P170: M-35 | Q170: 2403
A171: Miroslav Major | B171: 1968 | C171: M | D171: AK Kralupy | E171: CZ/C1 | F171: HOP 2019 - Klub | G171: CZ | H171: 2019 | I171: 21 | J171: 502 | K171: 0 | L171: 3071 | M171: 0 | P171: VT-116 Orlik 2 | Q171: 7403
A172: Ondrej Blaha | B172: 1976 | C172: M | D172: AK Praha Letňany | E172: CZ/C1 | F172: HOP 2019 - Klub | G172: CZ | H172: 2019 | I172: 22 | J172: 441 | K172: 0 | L172: 2667 | M172: 0 | P172: VT-116 Orlik 2 | Q172: 6444
A173: Jan Sindelar | B173: 1946 | C173: M | D173: SAK Kunovice | E173: CZ/M | F173: HOP 2019 - Klub | G173: CZ | H173: 2019 | I173: 23 | J173: 405 | K173: 0 | L173: 2381 | M173: 0 | P173: VT-116 Orlik 2 | Q173: 7410
A174: M.Jiraskova, J. Stepan | D174: AK Hronov | F174: HOP 2019 - Klub | G174: CZ | H174: 2019 | I174: 24 | J174: 344 | K174: 0 | L174: 1976 | M174: 0 | P174: VT-116 Orlik 2 | Q174: 6922 | R174: Není v databázi
A175: Bohumil Rikal | B175: =VLOOKUP(A175,Pilot,2,0) -> 1946 | C175: =VLOOKUP(A175,Pilot,5,0) -> M | D175: AK Hronov | E175: =VLOOKUP(A175,Pilot,4,0) -> CZ/C2 | F175: HOP 2019 - Klub | G175: CZ | H175: 2019 | I175: 25 | J175: 264 | K175: 0 | L175: 1482 | M175: 0 | P175: VT-16 Orlik | Q175: 3405
A176: Martin Adamec | B176: =VLOOKUP(A176,Pilot,2,0) -> 1971 | C176: =VLOOKUP(A176,Pilot,5,0) -> M | D176: AK Medlánky | E176: =VLOOKUP(A176,Pilot,4,0) -> CZ/M | F176: HOP 2019 - Klub | G176: CZ | H176: 2019 | I176: 26 | J176: 245 | K176: 0 | L176: 1277 | M176: 0 | P176: M-28 | Q176: 2903
A177: Petr Vlasak | B177: =VLOOKUP(A177,Pilot,2,0) -> 1974 | C177: =VLOOKUP(A177,Pilot,5,0) -> M | D177: AK Medlánky | E177: =VLOOKUP(A177,Pilot,4,0) -> CZ/M | F177: HOP 2019 - Klub | G177: CZ | H177: 2019 | I177: 27 | J177: 120 | K177: 0 | L177: 569 | M177: 0 | P177: VT-16 Orlik | Q177: 2909
A178: Timo + George Jakl | D178: AK Pivo | F178: HOP 2019 - Kombi | G178: CZ | H178: 2019 | I178: 1 | J178: 2945 | K178: 0.755 | L178: =ROUND(J178/MAX($J$178:$J$193)*10000*0.7+(MAX($I$178:$I$193)-I178)/(MAX($I$178:$I$193)-1)*10000*0.3,0) -> 10000 | M178: 7550 | P178: ASW 22/24m (bez vody) | Q178: GJ | R178: Není v databázi
A179: Jan Kohout | B179: =VLOOKUP(A179,Pilot,2,0) -> 1970 | C179: =VLOOKUP(A179,Pilot,5,0) -> M | D179: =VLOOKUP(A179,Pilot,3,0) -> Žamberk | E179: =VLOOKUP(A179,Pilot,4,0) -> CZ/C2 | F179: HOP 2019 - Kombi | G179: CZ | H179: 2019 | I179: 2 | J179: 2873 | K179: 0.755 | L179: =ROUND(J179/MAX($J$178:$J$193)*10000*0.7+(MAX($I$178:$I$193)-I179)/(MAX($I$178:$I$193)-1)*10000*0.3,0) -> 9629 | M179: 7270 | N179: x | P179: LS 8 15 m (voda) | Q179: SK
A180: Zdenek Schenk | B180: 1972 | C180: M | D180: Hranice | E180: CZ/M | F180: HOP 2019 - Kombi | G180: CZ | H180: 2019 | I180: 3 | J180: 2857 | K180: 0.755 | L180: 9391 | M180: 7090 | N180: x | P180: Ventus cm 17,6m (bez vody) | Q180: SNeK
A181: Petr Babak | B181: 1973 | C181: M | D181: Hořice | E181: CZ/C2 | F181: HOP 2019 - Kombi | G181: CZ | H181: 2019 | I181: 4 | J181: 2740 | K181: 0.755 | L181: 8913 | M181: 6729 | N181: x | P181: Ventus c (s vodou) | Q181: LS
A182: Vaclav Kult | B182: 1973 | C182: M | D182: Broumov | E182: CZ/C2 | F182: HOP 2019 - Kombi | G182: CZ | H182: 2019 | I182: 5 | J182: 2693 | K182: 0.755 | L182: 8601 | M182: 6494 | P182: Nimbus 2 b WL (voda) | Q182: VK
A183: Martin Koci | B183: 1975 | C183: M | D183: Ústí nad Orlicí | E183: CZ/C2 | F183: HOP 2019 - Kombi | G183: CZ | H183: 2019 | I183: 6 | J183: 2511 | K183: 0.755 | L183: 7968 | M183: 6016 | N183: x | P183: Discus b (bez vody) | Q183: 5E
A184: Petr Fisar | B184: 1974 | C184: M | D184: Ústí nad Orlicí | E184: CZ/C2 | F184: HOP 2019 - Kombi | G184: CZ | H184: 2019 | I184: 7 | J184: 2492 | K184: 0.755 | L184: =ROUND(J184/MAX($J$178:$J$193)*10000*0.7+(MAX($I$178:$I$193)-I184)/(MAX($I$178:$I$193)-1)*10000*0.3,0) -> 7723 | M184: 5831 | N184: x | P184: Mosquito b (bez vody) | Q184: PF
A185: Miroslav + Josef Plechac | D185: AK Hronov | F185: HOP 2019 - Kombi | G185: CZ | H185: 2019 | I185: 8 | J185: 2173 | K185: 0.755 | L185: 6765 | M185: 5108 | P185: Nimbus 2 WL (voda) | Q185: SP | R185: Není v databázi
A186: Vratislav Sram | B186: =VLOOKUP(A186,Pilot,2,0) -> 1966 | C186: =VLOOKUP(A186,Pilot,5,0) -> M | D186: =VLOOKUP(A186,Pilot,3,0) -> Broumov | E186: =VLOOKUP(A186,Pilot,4,0) -> CZ/C2 | F186: HOP 2019 - Kombi | G186: CZ | H186: 2019 | I186: 9 | J186: 2159 | K186: 0.755 | L186: 6532 | M186: 4932 | P186: Arcus M (bez vody) | Q186: AR
A187: Jan Rott | B187: =VLOOKUP(A187,Pilot,2,0) -> 1962 | C187: =VLOOKUP(A187,Pilot,5,0) -> M | D187: =VLOOKUP(A187,Pilot,3,0) -> Hronov | E187: =VLOOKUP(A187,Pilot,4,0) -> CZ/C2 | F187: HOP 2019 - Kombi | G187: CZ | H187: 2019 | I187: 10 | J187: 2152 | K187: 0.755 | L187: 6315 | M187: 4768 | N187: x | P187: Nimbus 2 b (bez vody) | Q187: EL
A188: Zdenek Boruvka 54 | B188: =VLOOKUP(A188,Pilot,2,0) -> 1954 | C188: =VLOOKUP(A188,Pilot,5,0) -> M | D188: =VLOOKUP(A188,Pilot,3,0) -> Jičín | E188: =VLOOKUP(A188,Pilot,4,0) -> CZ/C2 | F188: HOP 2019 - Kombi | G188: CZ | H188: 2019 | I188: 11 | J188: 2008 | K188: 0.755 | L188: 5773 | M188: 4359 | P188: LS 8 15 m (voda) | Q188: ZB
A189: Sebastian Bode | C189: M | D189: FSV Eisenhüttenstadt | E189: DE | F189: HOP 2019 - Kombi | G189: CZ | H189: 2019 | I189: 12 | J189: 1902 | K189: 0.755 | L189: 5321 | M189: 4017 | P189: Discus b (voda) | Q189: E4 | R189: Není v databázi
A190: Christian Rakowski | C190: M | D190: FSV Eisenhüttenstadt | E190: DE | F190: HOP 2019 - Kombi | G190: CZ | H190: 2019 | I190: 13 | J190: 1842 | K190: 0.755 | L190: =ROUND(J190/MAX($J$178:$J$193)*10000*0.7+(MAX($I$178:$I$193)-I190)/(MAX($I$178:$I$193)-1)*10000*0.3,0) -> 4978 | M190: 3758 | P190: ASW 24 WL (bez vody) | Q190: TD | R190: Není v databázi
A191: Jiri Suchomel | B191: =VLOOKUP(A191,Pilot,2,0) -> 1950 | C191: =VLOOKUP(A191,Pilot,5,0) -> M | D191: =VLOOKUP(A191,Pilot,3,0) -> Broumov | E191: =VLOOKUP(A191,Pilot,4,0) -> CZ/C2 | F191: HOP 2019 - Kombi | G191: CZ | H191: 2019 | I191: 14 | J191: 1718 | K191: 0.755 | L191: 4484 | M191: 3385 | N191: x | P191: Janus b (bez vody) | Q191: V1
A192: Miloslav Cindr | B192: =VLOOKUP(A192,Pilot,2,0) -> 1974 | C192: =VLOOKUP(A192,Pilot,5,0) -> M | D192: =VLOOKUP(A192,Pilot,3,0) -> Ústí nad Orlicí | E192: =VLOOKUP(A192,Pilot,4,0) -> CZ/C2 | F192: HOP 2019 - Kombi | G192: CZ | H192: 2019 | I192: 15 | J192: 1642 | K192: 0.755 | L192: 4103 | M192: 3098 | N192: x | P192: Ventus c (bez vody) | Q192: MC
A193: Milos Novotny | B193: =VLOOKUP(A193,Pilot,2,0) -> 1973 | C193: =VLOOKUP(A193,Pilot,5,0) -> M | D193: =VLOOKUP(A193,Pilot,3,0) -> Hronov | E193: =VLOOKUP(A193,Pilot,4,0) -> CZ/C2 | F193: HOP 2019 - Kombi | G193: CZ | H193: 2019 | I193: 16 | J193: 992 | K193: 0.755 | L193: 2358 | M193: 1780 | N193: x | P193: Ventus b 16.6m (bez vody) | Q193: VeV
A194: Sebastian Kawa | D194: Poland | F194: EGC 2019 - 15m | G194: SK | H194: 2019 | I194: 1 | J194: 10390 | K194: 1.105 | L194: =ROUND(J194/MAX($J$194:$J$215)*10000*0.7+(MAX($I$194:$I$215)-I194)/(MAX($I$194:$I$215)-1)*10000*0.3,0) -> 10000 | M194: =ROUND(K194*L194,0) -> 11050 | P194: Diana 2 | Q194: RP | R194: Není v databázi
A195: Maximilian Seis | D195: France | F195: EGC 2019 - 15m | G195: SK | H195: 2019 | I195: 2 | J195: 9976 | K195: 1.105 | L195: =ROUND(J195/MAX($J$194:$J$215)*10000*0.7+(MAX($I$194:$I$215)-I195)/(MAX($I$194:$I$215)-1)*10000*0.3,0) -> 9578 | M195: 10584 | P195: JS3 - 15m | Q195: FM | R195: Není v databázi
A196: Jan Omsels | D196: Germany | F196: EGC 2019 - 15m | G196: SK | H196: 2019 | I196: 3 | J196: 9863 | K196: 1.105 | L196: 9359 | M196: 10342 | P196: Ventus 3T / 15m | Q196: Y4 | R196: Není v databázi
A197: Louis Bouderlique | D197: France | F197: EGC 2019 - 15m | G197: SK | H197: 2019 | I197: 4 | J197: 9603 | K197: 1.105 | L197: 9041 | M197: 9990 | P197: JS3 - 15m | Q197: FQ | R197: Není v databázi
A198: Radek Krejcirik | B198: =VLOOKUP(A198,Pilot,2,0) -> 1991 | C198: =VLOOKUP(A198,Pilot,5,0) -> M | D198: =VLOOKUP(A198,Pilot,3,0) -> Hranice | E198: =VLOOKUP(A198,Pilot,4,0) -> CZ/M | F198: EGC 2019 - 15m | G198: SK | H198: 2019 | I198: 5 | J198: 9561 | K198: 1.105 | L198: 8870 | M198: 9801 | N198: x | P198: JS3 - 15m | Q198: ZE
A199: Freddy Hein | D199: Germany | F199: EGC 2019 - 15m | G199: SK | H199: 2019 | I199: 6 | J199: 9560 | K199: 1.105 | L199: 8727 | M199: 9643 | P199: Ventus 3T | Q199: IYB | R199: Není v databázi
A200: Lukasz Grabowski | D200: Poland | F200: EGC 2019 - 15m | G200: SK | H200: 2019 | I200: 7 | J200: 9509 | K200: 1.105 | L200: 8549 | M200: 9447 | P200: SZD-56-2 Diana-2 | Q200: BB | R200: Není v databázi
... 2501 more rows

Sheet Temp (hidden)
A1: Jmeno | B1: Rok narození | C1: M/F | D1: Aeroklub | E1: Region | F1: Soutěž | G1: Stát | H1: Rok | I1: Pořadí ve třídě | J1: Body ve třídě | K1: Kinp | L1: Bi | M1: Bi×Kinp | N1: G | O1: W | P1: Typ | Q1: CN | R1: Junior | S1: Poznámka

Sheet Zebrik G
B1: ="Všeobecný Žebřík pilotů plachtařů PK AeČR "&A6 -> Všeobecný Žebřík pilotů plachtařů PK AeČR 2021 | I1: =Zmeny!A3 -> 2021-11-25 | J1: Rev. | K1: =Zmeny!B3 -> 00 | L1: =Zmeny!C3 -> Základní verze
B3: G | C3: x | I3: Junior v roce: | J3: Junior v roce: | K3: ="Repre družstvo "&I4 -> Repre družstvo 2022 | L3: ="Repre výběr "&I4 -> Repre výběr 2022 | M3: ="W "&L3 -> W Repre výběr 2022 | N3: Poznámka
I4: =A6+1 -> 2022 | J4: =I4+1 -> 2023 | K4: (RD) | L4: (RV) | M4: (WRV)
A5: Pořadí | G5: Data | I5: =COUNTIF(I7:I980,"Junior v roce "&$I$4) -> 51 | J5: =COUNTIF(J7:J980,"Junior v roce "&$J$4) -> 47 | K5: =COUNTIF(K7:K980,"RD "&$I$4) -> 0 | L5: =COUNTIF(L7:L980,"RV "&$I$4) -> 32 | M5: =COUNTIF(M7:M980,"WRV "&$I$4) -> 9 | N5: =COUNTIF(N7:N980,"<>") -> 0
A6: 2021 | B6: Jméno | C6: Rok narození | D6: M/F | E6: Aeroklub | F6: Region | G6: Součet z Bi×Kinp | H6: Počet G
A7: =RANK(G7,G:G) -> 1 | B7: Petr Koutny | C7: 1971 | D7: M | E7: Křižanov | F7: CZ/M | G7: 31111 | H7: 3 | I7: =IF(C7="(prázdné)","",IF(($I$4-C7)>25,"","Junior v roce "&$I$4)) ->  | J7: =IF(C7="(prázdné)","",IF(($J$4-C7)>25,"","Junior v roce "&$J$4)) ->  | L7: RV 2022 | M7: =IF(ISERROR(VLOOKUP(B7,'Zebrik W'!$B$7:$L$998,11,0)),"",IF(VLOOKUP(B7,'Zebrik W'!$B$7:$L$998,11,0)=0,"--",VLOOKUP(B7,'Zebrik W'!$B$7:$L$998,11,0))) -> 
A8: 2 | B8: Roman Mracek | C8: 1980 | D8: M | E8: Letkov | F8: CZ/C1 | G8: 30637 | H8: 3 | I8: =IF(C8="(prázdné)","",IF(($I$4-C8)>25,"","Junior v roce "&$I$4)) ->  | J8: =IF(C8="(prázdné)","",IF(($J$4-C8)>25,"","Junior v roce "&$J$4)) ->  | L8: RV 2022 | M8: =IF(ISERROR(VLOOKUP(B8,'Zebrik W'!$B$7:$L$998,11,0)),"",IF(VLOOKUP(B8,'Zebrik W'!$B$7:$L$998,11,0)=0,"--",VLOOKUP(B8,'Zebrik W'!$B$7:$L$998,11,0))) -> 
A9: 3 | B9: Pavel Louzecky | C9: 1957 | D9: M | E9: Přibyslav | F9: CZ/C2 | G9: 30536 | H9: 3 | I9: =IF(C9="(prázdné)","",IF(($I$4-C9)>25,"","Junior v roce "&$I$4)) ->  | L9: RV 2022 | M9: =IF(ISERROR(VLOOKUP(B9,'Zebrik W'!$B$7:$L$998,11,0)),"",IF(VLOOKUP(B9,'Zebrik W'!$B$7:$L$998,11,0)=0,"--",VLOOKUP(B9,'Zebrik W'!$B$7:$L$998,11,0))) -> 
A10: 4 | B10: Miloslav Cink | C10: 1987 | D10: M | E10: Letkov | F10: CZ/C1 | G10: 30414 | H10: 3 | L10: RV 2022 | M10: =IF(ISERROR(VLOOKUP(B10,'Zebrik W'!$B$7:$L$998,11,0)),"",IF(VLOOKUP(B10,'Zebrik W'!$B$7:$L$998,11,0)=0,"--",VLOOKUP(B10,'Zebrik W'!$B$7:$L$998,11,0))) -> 
A11: 5 | B11: Jan Pavlik | C11: 1987 | D11: M | E11: Křižanov | F11: CZ/M | G11: 30039 | H11: 3 | L11: RV 2022 | M11: =IF(ISERROR(VLOOKUP(B11,'Zebrik W'!$B$7:$L$998,11,0)),"",IF(VLOOKUP(B11,'Zebrik W'!$B$7:$L$998,11,0)=0,"--",VLOOKUP(B11,'Zebrik W'!$B$7:$L$998,11,0))) -> 
A12: 6 | B12: Radek Krejcirik | C12: 1991 | D12: M | E12: Hranice | F12: CZ/M | G12: 30030 | H12: 3 | L12: RV 2022 | M12: =IF(ISERROR(VLOOKUP(B12,'Zebrik W'!$B$7:$L$998,11,0)),"",IF(VLOOKUP(B12,'Zebrik W'!$B$7:$L$998,11,0)=0,"--",VLOOKUP(B12,'Zebrik W'!$B$7:$L$998,11,0))) -> 
A13: 7 | B13: Tomas Suchanek | C13: 1964 | D13: M | E13: GAC Benešov | F13: CZ/C1 | G13: 29771 | H13: 3 | L13: RV 2022 | M13: =IF(ISERROR(VLOOKUP(B13,'Zebrik W'!$B$7:$L$998,11,0)),"",IF(VLOOKUP(B13,'Zebrik W'!$B$7:$L$998,11,0)=0,"--",VLOOKUP(B13,'Zebrik W'!$B$7:$L$998,11,0))) -> 
A14: 8 | B14: David Mach | C14: 1994 | D14: M | E14: Hronov | F14: CZ/C2 | G14: 29448 | H14: 3 | L14: RV 2022 | M14: =IF(ISERROR(VLOOKUP(B14,'Zebrik W'!$B$7:$L$998,11,0)),"",IF(VLOOKUP(B14,'Zebrik W'!$B$7:$L$998,11,0)=0,"--",VLOOKUP(B14,'Zebrik W'!$B$7:$L$998,11,0))) -> 
A15: 9 | B15: Jan Ratz | C15: 1987 | D15: M | E15: Zbraslavice | F15: CZ/C1 | G15: 29396 | H15: 3 | L15: RV 2022 | M15: =IF(ISERROR(VLOOKUP(B15,'Zebrik W'!$B$7:$L$998,11,0)),"",IF(VLOOKUP(B15,'Zebrik W'!$B$7:$L$998,11,0)=0,"--",VLOOKUP(B15,'Zebrik W'!$B$7:$L$998,11,0))) -> 
A16: 10 | B16: Ivan Novak | C16: 1962 | D16: M | E16: Mladá Boleslav | F16: CZ/C1 | G16: 28975 | H16: 3 | L16: RV 2022 | M16: =IF(ISERROR(VLOOKUP(B16,'Zebrik W'!$B$7:$L$998,11,0)),"",IF(VLOOKUP(B16,'Zebrik W'!$B$7:$L$998,11,0)=0,"--",VLOOKUP(B16,'Zebrik W'!$B$7:$L$998,11,0))) -> 
A17: 11 | B17: Karel Novak | C17: 1993 | D17: M | E17: Mladá Boleslav | F17: CZ/C1 | G17: 28876 | H17: 3 | L17: RV 2022 | M17: =IF(ISERROR(VLOOKUP(B17,'Zebrik W'!$B$7:$L$998,11,0)),"",IF(VLOOKUP(B17,'Zebrik W'!$B$7:$L$998,11,0)=0,"--",VLOOKUP(B17,'Zebrik W'!$B$7:$L$998,11,0))) -> 
A18: 12 | B18: Ondrej Dupal | C18: 1966 | D18: M | E18: GAC Benešov | F18: CZ/C1 | G18: 28642 | H18: 3 | L18: RV 2022 | M18: =IF(ISERROR(VLOOKUP(B18,'Zebrik W'!$B$7:$L$998,11,0)),"",IF(VLOOKUP(B18,'Zebrik W'!$B$7:$L$998,11,0)=0,"--",VLOOKUP(B18,'Zebrik W'!$B$7:$L$998,11,0))) -> 
A19: 13 | B19: Jaroslav Tomana | C19: 1975 | D19: M | E19: Zbraslavice | F19: CZ/C1 | G19: 28570 | H19: 3 | L19: RV 2022 | M19: =IF(ISERROR(VLOOKUP(B19,'Zebrik W'!$B$7:$L$998,11,0)),"",IF(VLOOKUP(B19,'Zebrik W'!$B$7:$L$998,11,0)=0,"--",VLOOKUP(B19,'Zebrik W'!$B$7:$L$998,11,0))) -> 
A20: 14 | B20: Jan Zapletal | C20: 1997 | D20: M | E20: Břeclav | F20: CZ/M | G20: 28447 | H20: 3 | I20: Junior v roce 2022 | L20: RV 2022 | M20: =IF(ISERROR(VLOOKUP(B20,'Zebrik W'!$B$7:$L$998,11,0)),"",IF(VLOOKUP(B20,'Zebrik W'!$B$7:$L$998,11,0)=0,"--",VLOOKUP(B20,'Zebrik W'!$B$7:$L$998,11,0))) -> 
A21: 15 | B21: Petr Tichy | C21: 1973 | D21: M | E21: Zbraslavice | F21: CZ/C1 | G21: 28365 | H21: 3 | L21: RV 2022 | M21: =IF(ISERROR(VLOOKUP(B21,'Zebrik W'!$B$7:$L$998,11,0)),"",IF(VLOOKUP(B21,'Zebrik W'!$B$7:$L$998,11,0)=0,"--",VLOOKUP(B21,'Zebrik W'!$B$7:$L$998,11,0))) -> 
A22: 16 | B22: Radek Kucirek | C22: 1973 | D22: M | E22: Havlíčkův Brod | F22: CZ/C2 | G22: 27958 | H22: 3 | L22: RV 2022 | M22: =IF(ISERROR(VLOOKUP(B22,'Zebrik W'!$B$7:$L$998,11,0)),"",IF(VLOOKUP(B22,'Zebrik W'!$B$7:$L$998,11,0)=0,"--",VLOOKUP(B22,'Zebrik W'!$B$7:$L$998,11,0))) -> 
A23: 17 | B23: Ondrej Bordovsky | C23: 1983 | D23: M | E23: Krnov | F23: CZ/M | G23: 27922 | H23: 3 | L23: RV 2022 | M23: =IF(ISERROR(VLOOKUP(B23,'Zebrik W'!$B$7:$L$998,11,0)),"",IF(VLOOKUP(B23,'Zebrik W'!$B$7:$L$998,11,0)=0,"--",VLOOKUP(B23,'Zebrik W'!$B$7:$L$998,11,0))) -> 
A24: 18 | B24: Alena Netusilova | C24: 1970 | D24: F | E24: Zbraslavice | F24: CZ/C1 | G24: 27907 | H24: 3 | L24: RV 2022 | M24: =IF(ISERROR(VLOOKUP(B24,'Zebrik W'!$B$7:$L$998,11,0)),"",IF(VLOOKUP(B24,'Zebrik W'!$B$7:$L$998,11,0)=0,"--",VLOOKUP(B24,'Zebrik W'!$B$7:$L$998,11,0))) -> WRV 2022
A25: 19 | B25: Michal Lesinger | C25: 1966 | D25: M | E25: Moravská Třebová | F25: CZ/M | G25: 27671 | H25: 3 | L25: RV 2022 | M25: =IF(ISERROR(VLOOKUP(B25,'Zebrik W'!$B$7:$L$998,11,0)),"",IF(VLOOKUP(B25,'Zebrik W'!$B$7:$L$998,11,0)=0,"--",VLOOKUP(B25,'Zebrik W'!$B$7:$L$998,11,0))) -> 
A26: 20 | B26: Jan Viskot | C26: 1995 | D26: M | E26: Břeclav | F26: CZ/M | G26: 27070 | H26: 3 | I26: =IF(C26="(prázdné)","",IF(($I$4-C26)>25,"","Junior v roce "&$I$4)) ->  | L26: RV 2022 | M26: =IF(ISERROR(VLOOKUP(B26,'Zebrik W'!$B$7:$L$998,11,0)),"",IF(VLOOKUP(B26,'Zebrik W'!$B$7:$L$998,11,0)=0,"--",VLOOKUP(B26,'Zebrik W'!$B$7:$L$998,11,0))) -> 
A27: 21 | B27: Danes Grula | C27: 1961 | D27: M | E27: Medlánky | F27: CZ/M | G27: 27057 | H27: 3 | M27: =IF(ISERROR(VLOOKUP(B27,'Zebrik W'!$B$7:$L$998,11,0)),"",IF(VLOOKUP(B27,'Zebrik W'!$B$7:$L$998,11,0)=0,"--",VLOOKUP(B27,'Zebrik W'!$B$7:$L$998,11,0))) -> 
A28: 22 | B28: Jan Boruvka | C28: 1984 | D28: M | E28: Jičín | F28: CZ/C2 | G28: 27050 | H28: 3 | M28: =IF(ISERROR(VLOOKUP(B28,'Zebrik W'!$B$7:$L$998,11,0)),"",IF(VLOOKUP(B28,'Zebrik W'!$B$7:$L$998,11,0)=0,"--",VLOOKUP(B28,'Zebrik W'!$B$7:$L$998,11,0))) -> 
A29: 23 | B29: Tomas Rendla | C29: 1973 | D29: M | E29: Zbraslavice | F29: CZ/C1 | G29: 27040 | H29: 3 | M29: =IF(ISERROR(VLOOKUP(B29,'Zebrik W'!$B$7:$L$998,11,0)),"",IF(VLOOKUP(B29,'Zebrik W'!$B$7:$L$998,11,0)=0,"--",VLOOKUP(B29,'Zebrik W'!$B$7:$L$998,11,0))) -> 
A30: 24 | B30: Jaromir Macoun | C30: 1999 | D30: M | E30: Jičín | F30: CZ/C2 | G30: 27028 | H30: 3 | I30: Junior v roce 2022 | J30: Junior v roce 2023 | L30: RV 2022 | M30: =IF(ISERROR(VLOOKUP(B30,'Zebrik W'!$B$7:$L$998,11,0)),"",IF(VLOOKUP(B30,'Zebrik W'!$B$7:$L$998,11,0)=0,"--",VLOOKUP(B30,'Zebrik W'!$B$7:$L$998,11,0))) -> 
A31: 25 | B31: Pavel Trybenekr | C31: 1990 | D31: M | E31: Hořice | F31: CZ/C2 | G31: 26991 | H31: 3 | M31: =IF(ISERROR(VLOOKUP(B31,'Zebrik W'!$B$7:$L$998,11,0)),"",IF(VLOOKUP(B31,'Zebrik W'!$B$7:$L$998,11,0)=0,"--",VLOOKUP(B31,'Zebrik W'!$B$7:$L$998,11,0))) -> 
A32: 26 | B32: Lukas Kriz | C32: 2003 | D32: M | E32: Křižanov | F32: CZ/M | G32: 26799 | H32: 3 | I32: Junior v roce 2022 | J32: Junior v roce 2023 | L32: RV 2022 | M32: =IF(ISERROR(VLOOKUP(B32,'Zebrik W'!$B$7:$L$998,11,0)),"",IF(VLOOKUP(B32,'Zebrik W'!$B$7:$L$998,11,0)=0,"--",VLOOKUP(B32,'Zebrik W'!$B$7:$L$998,11,0))) -> 
A33: 27 | B33: Josef Novotny | C33: 1983 | D33: M | E33: Přibyslav | F33: CZ/C2 | G33: 26723 | H33: 3 | M33: =IF(ISERROR(VLOOKUP(B33,'Zebrik W'!$B$7:$L$998,11,0)),"",IF(VLOOKUP(B33,'Zebrik W'!$B$7:$L$998,11,0)=0,"--",VLOOKUP(B33,'Zebrik W'!$B$7:$L$998,11,0))) -> 
A34: 28 | B34: Zdenek Boruvka 86 | C34: 1986 | D34: M | E34: Jičín | F34: CZ/C2 | G34: 26694 | H34: 3 | M34: =IF(ISERROR(VLOOKUP(B34,'Zebrik W'!$B$7:$L$998,11,0)),"",IF(VLOOKUP(B34,'Zebrik W'!$B$7:$L$998,11,0)=0,"--",VLOOKUP(B34,'Zebrik W'!$B$7:$L$998,11,0))) -> 
A35: 29 | B35: Jan Kotan | C35: 1982 | D35: M | E35: Letňany | F35: CZ/C1 | G35: 26642 | H35: 3 | M35: =IF(ISERROR(VLOOKUP(B35,'Zebrik W'!$B$7:$L$998,11,0)),"",IF(VLOOKUP(B35,'Zebrik W'!$B$7:$L$998,11,0)=0,"--",VLOOKUP(B35,'Zebrik W'!$B$7:$L$998,11,0))) -> 
A36: 30 | B36: Frantisek Vancura | C36: 1966 | D36: M | E36: Hranice | F36: CZ/M | G36: 26066 | H36: 3 | M36: =IF(ISERROR(VLOOKUP(B36,'Zebrik W'!$B$7:$L$998,11,0)),"",IF(VLOOKUP(B36,'Zebrik W'!$B$7:$L$998,11,0)=0,"--",VLOOKUP(B36,'Zebrik W'!$B$7:$L$998,11,0))) -> 
A37: 31 | B37: Jan Louda | C37: 1986 | D37: M | E37: Mladá Boleslav | F37: CZ/C1 | G37: 26037 | H37: 3 | M37: =IF(ISERROR(VLOOKUP(B37,'Zebrik W'!$B$7:$L$998,11,0)),"",IF(VLOOKUP(B37,'Zebrik W'!$B$7:$L$998,11,0)=0,"--",VLOOKUP(B37,'Zebrik W'!$B$7:$L$998,11,0))) -> 
A38: 32 | B38: Jiri Kusbach | C38: 1959 | D38: M | E38: Luhačovice | F38: CZ/M | G38: 26005 | H38: 3 | M38: =IF(ISERROR(VLOOKUP(B38,'Zebrik W'!$B$7:$L$998,11,0)),"",IF(VLOOKUP(B38,'Zebrik W'!$B$7:$L$998,11,0)=0,"--",VLOOKUP(B38,'Zebrik W'!$B$7:$L$998,11,0))) -> 
A39: 33 | B39: Marek Blatak | C39: 1969 | D39: M | E39: Šumperk | F39: CZ/M | G39: 25950 | H39: 3 | M39: =IF(ISERROR(VLOOKUP(B39,'Zebrik W'!$B$7:$L$998,11,0)),"",IF(VLOOKUP(B39,'Zebrik W'!$B$7:$L$998,11,0)=0,"--",VLOOKUP(B39,'Zebrik W'!$B$7:$L$998,11,0))) -> 
A40: 34 | B40: Vit Morkovsky | C40: 2000 | D40: M | E40: Polička | F40: CZ/C2 | G40: 25891 | H40: 3 | I40: Junior v roce 2022 | J40: Junior v roce 2023 | L40: RV 2022 | M40: =IF(ISERROR(VLOOKUP(B40,'Zebrik W'!$B$7:$L$998,11,0)),"",IF(VLOOKUP(B40,'Zebrik W'!$B$7:$L$998,11,0)=0,"--",VLOOKUP(B40,'Zebrik W'!$B$7:$L$998,11,0))) -> 
A41: 35 | B41: Martin Ficnar | C41: 1971 | D41: M | E41: Šumperk | F41: CZ/M | G41: 25745 | H41: 3 | M41: =IF(ISERROR(VLOOKUP(B41,'Zebrik W'!$B$7:$L$998,11,0)),"",IF(VLOOKUP(B41,'Zebrik W'!$B$7:$L$998,11,0)=0,"--",VLOOKUP(B41,'Zebrik W'!$B$7:$L$998,11,0))) -> 
A42: 36 | B42: Hana Treslova | C42: 1991 | D42: F | E42: Raná | F42: CZ/C2 | G42: 25596 | H42: 3 | L42: RV 2022 | M42: =IF(ISERROR(VLOOKUP(B42,'Zebrik W'!$B$7:$L$998,11,0)),"",IF(VLOOKUP(B42,'Zebrik W'!$B$7:$L$998,11,0)=0,"--",VLOOKUP(B42,'Zebrik W'!$B$7:$L$998,11,0))) -> WRV 2022
A43: 37 | B43: Petr Krejcirik | C43: 1960 | D43: M | E43: Hranice | F43: CZ/M | G43: 25507 | H43: 3 | M43: =IF(ISERROR(VLOOKUP(B43,'Zebrik W'!$B$7:$L$998,11,0)),"",IF(VLOOKUP(B43,'Zebrik W'!$B$7:$L$998,11,0)=0,"--",VLOOKUP(B43,'Zebrik W'!$B$7:$L$998,11,0))) -> 
A44: 38 | B44: Lubomir Motl | C44: 1959 | D44: M | E44: Kyjov | F44: CZ/M | G44: 25325 | H44: 3 | I44: =IF(C44="(prázdné)","",IF(($I$4-C44)>25,"","Junior v roce "&$I$4)) ->  | J44: =IF(C44="(prázdné)","",IF(($J$4-C44)>25,"","Junior v roce "&$J$4)) ->  | M44: =IF(ISERROR(VLOOKUP(B44,'Zebrik W'!$B$7:$L$998,11,0)),"",IF(VLOOKUP(B44,'Zebrik W'!$B$7:$L$998,11,0)=0,"--",VLOOKUP(B44,'Zebrik W'!$B$7:$L$998,11,0))) -> 
A45: 39 | B45: Vojtech Novotny | C45: 1992 | D45: M | E45: Kralupy | F45: CZ/C1 | G45: 25012 | H45: 3 | M45: =IF(ISERROR(VLOOKUP(B45,'Zebrik W'!$B$7:$L$998,11,0)),"",IF(VLOOKUP(B45,'Zebrik W'!$B$7:$L$998,11,0)=0,"--",VLOOKUP(B45,'Zebrik W'!$B$7:$L$998,11,0))) -> 
A46: 40 | B46: Tereza Koubkova | C46: 1999 | D46: F | E46: Vysoké Mýto | F46: CZ/C2 | G46: 24997 | H46: 3 | I46: Junior v roce 2022 | J46: Junior v roce 2023 | L46: RV 2022 | M46: =IF(ISERROR(VLOOKUP(B46,'Zebrik W'!$B$7:$L$998,11,0)),"",IF(VLOOKUP(B46,'Zebrik W'!$B$7:$L$998,11,0)=0,"--",VLOOKUP(B46,'Zebrik W'!$B$7:$L$998,11,0))) -> WRV 2022
A47: 41 | B47: Pavel Jiranek | C47: 1993 | D47: M | E47: Toužim | F47: CZ/C1 | G47: 24978 | H47: 3 | M47: =IF(ISERROR(VLOOKUP(B47,'Zebrik W'!$B$7:$L$998,11,0)),"",IF(VLOOKUP(B47,'Zebrik W'!$B$7:$L$998,11,0)=0,"--",VLOOKUP(B47,'Zebrik W'!$B$7:$L$998,11,0))) -> 
A48: 42 | B48: Petr Hotovy | C48: 1958 | D48: M | E48: Česká Lípa | F48: CZ/C2 | G48: 24885 | H48: 3 | M48: =IF(ISERROR(VLOOKUP(B48,'Zebrik W'!$B$7:$L$998,11,0)),"",IF(VLOOKUP(B48,'Zebrik W'!$B$7:$L$998,11,0)=0,"--",VLOOKUP(B48,'Zebrik W'!$B$7:$L$998,11,0))) -> 
A49: 43 | B49: Radek Zima 78 | C49: 1978 | D49: M | E49: Hodkovice | F49: CZ/C2 | G49: 24826 | H49: 3 | M49: =IF(ISERROR(VLOOKUP(B49,'Zebrik W'!$B$7:$L$998,11,0)),"",IF(VLOOKUP(B49,'Zebrik W'!$B$7:$L$998,11,0)=0,"--",VLOOKUP(B49,'Zebrik W'!$B$7:$L$998,11,0))) -> 
A50: 44 | B50: Martin Urner | C50: 1974 | D50: M | E50: Letňany | F50: CZ/C1 | G50: 24629 | H50: 3 | M50: =IF(ISERROR(VLOOKUP(B50,'Zebrik W'!$B$7:$L$998,11,0)),"",IF(VLOOKUP(B50,'Zebrik W'!$B$7:$L$998,11,0)=0,"--",VLOOKUP(B50,'Zebrik W'!$B$7:$L$998,11,0))) -> 
A51: 45 | B51: Vratislav Sram | C51: 1966 | D51: M | E51: Broumov | F51: CZ/C2 | G51: 24616 | H51: 3 | M51: =IF(ISERROR(VLOOKUP(B51,'Zebrik W'!$B$7:$L$998,11,0)),"",IF(VLOOKUP(B51,'Zebrik W'!$B$7:$L$998,11,0)=0,"--",VLOOKUP(B51,'Zebrik W'!$B$7:$L$998,11,0))) -> 
A52: 46 | B52: Jindrich Svorc | C52: 1978 | D52: M | E52: Letňany | F52: CZ/C1 | G52: 24605 | H52: 3 | M52: =IF(ISERROR(VLOOKUP(B52,'Zebrik W'!$B$7:$L$998,11,0)),"",IF(VLOOKUP(B52,'Zebrik W'!$B$7:$L$998,11,0)=0,"--",VLOOKUP(B52,'Zebrik W'!$B$7:$L$998,11,0))) -> 
A53: 47 | B53: David Sachl | C53: 1978 | D53: M | E53: Kralupy | F53: CZ/C1 | G53: 24594 | H53: 3 | M53: =IF(ISERROR(VLOOKUP(B53,'Zebrik W'!$B$7:$L$998,11,0)),"",IF(VLOOKUP(B53,'Zebrik W'!$B$7:$L$998,11,0)=0,"--",VLOOKUP(B53,'Zebrik W'!$B$7:$L$998,11,0))) -> 
A54: 48 | B54: Jana Veprekova | C54: 1961 | D54: F | E54: Dvůr Králové | F54: CZ/C2 | G54: 24546 | H54: 3 | L54: RV 2022 | M54: =IF(ISERROR(VLOOKUP(B54,'Zebrik W'!$B$7:$L$998,11,0)),"",IF(VLOOKUP(B54,'Zebrik W'!$B$7:$L$998,11,0)=0,"--",VLOOKUP(B54,'Zebrik W'!$B$7:$L$998,11,0))) -> WRV 2022
A55: 49 | B55: Daniel Ryba | C55: 1994 | D55: M | E55: Dvůr Králové | F55: CZ/C2 | G55: 24464 | H55: 3 | M55: =IF(ISERROR(VLOOKUP(B55,'Zebrik W'!$B$7:$L$998,11,0)),"",IF(VLOOKUP(B55,'Zebrik W'!$B$7:$L$998,11,0)=0,"--",VLOOKUP(B55,'Zebrik W'!$B$7:$L$998,11,0))) -> 
A56: 50 | B56: Pavel Rericha | C56: 1967 | D56: M | E56: Moravská Třebová | F56: CZ/M | G56: 24406 | H56: 3 | M56: =IF(ISERROR(VLOOKUP(B56,'Zebrik W'!$B$7:$L$998,11,0)),"",IF(VLOOKUP(B56,'Zebrik W'!$B$7:$L$998,11,0)=0,"--",VLOOKUP(B56,'Zebrik W'!$B$7:$L$998,11,0))) -> 
A57: 51 | B57: Jana Treslova | C57: 1963 | D57: F | E57: Raná | F57: CZ/C2 | G57: 24356 | H57: 3 | L57: RV 2022 | M57: =IF(ISERROR(VLOOKUP(B57,'Zebrik W'!$B$7:$L$998,11,0)),"",IF(VLOOKUP(B57,'Zebrik W'!$B$7:$L$998,11,0)=0,"--",VLOOKUP(B57,'Zebrik W'!$B$7:$L$998,11,0))) -> WRV 2022
A58: 52 | B58: Ivan Tvrdik | C58: 1997 | D58: M | E58: Letňany | F58: CZ/C1 | G58: 24110 | H58: 3 | I58: Junior v roce 2022 | L58: RV 2022 | M58: =IF(ISERROR(VLOOKUP(B58,'Zebrik W'!$B$7:$L$998,11,0)),"",IF(VLOOKUP(B58,'Zebrik W'!$B$7:$L$998,11,0)=0,"--",VLOOKUP(B58,'Zebrik W'!$B$7:$L$998,11,0))) -> 
A59: 53 | B59: Barbora Moravcova | C59: 1994 | D59: F | E59: Zbraslavice | F59: CZ/C1 | G59: 24045 | H59: 3 | L59: RV 2022 | M59: =IF(ISERROR(VLOOKUP(B59,'Zebrik W'!$B$7:$L$998,11,0)),"",IF(VLOOKUP(B59,'Zebrik W'!$B$7:$L$998,11,0)=0,"--",VLOOKUP(B59,'Zebrik W'!$B$7:$L$998,11,0))) -> WRV 2022
A60: 54 | B60: Martin Hrivna | C60: 1978 | D60: M | E60: Zbraslavice | F60: CZ/C1 | G60: 23965 | H60: 3 | M60: =IF(ISERROR(VLOOKUP(B60,'Zebrik W'!$B$7:$L$998,11,0)),"",IF(VLOOKUP(B60,'Zebrik W'!$B$7:$L$998,11,0)=0,"--",VLOOKUP(B60,'Zebrik W'!$B$7:$L$998,11,0))) -> 
A61: 55 | B61: Michal Cechmanek | C61: 1978 | D61: M | E61: Luhačovice | F61: CZ/M | G61: 23920 | H61: 3 | M61: =IF(ISERROR(VLOOKUP(B61,'Zebrik W'!$B$7:$L$998,11,0)),"",IF(VLOOKUP(B61,'Zebrik W'!$B$7:$L$998,11,0)=0,"--",VLOOKUP(B61,'Zebrik W'!$B$7:$L$998,11,0))) -> 
A62: 56 | B62: Ivan Harasta 65 | C62: 1965 | D62: M | E62: Toužim | F62: CZ/C1 | G62: 23885 | H62: 3 | M62: =IF(ISERROR(VLOOKUP(B62,'Zebrik W'!$B$7:$L$998,11,0)),"",IF(VLOOKUP(B62,'Zebrik W'!$B$7:$L$998,11,0)=0,"--",VLOOKUP(B62,'Zebrik W'!$B$7:$L$998,11,0))) -> 
A63: 57 | B63: Dana Novakova | C63: 1965 | D63: F | E63: Mladá Boleslav | F63: CZ/C1 | G63: 23857 | H63: 3 | L63: RV 2022 | M63: =IF(ISERROR(VLOOKUP(B63,'Zebrik W'!$B$7:$L$998,11,0)),"",IF(VLOOKUP(B63,'Zebrik W'!$B$7:$L$998,11,0)=0,"--",VLOOKUP(B63,'Zebrik W'!$B$7:$L$998,11,0))) -> WRV 2022
A64: 58 | B64: Jan Stastny | C64: 2003 | D64: M | E64: Medlánky | F64: CZ/M | G64: 23693 | H64: 3 | I64: Junior v roce 2022 | J64: Junior v roce 2023 | M64: =IF(ISERROR(VLOOKUP(B64,'Zebrik W'!$B$7:$L$998,11,0)),"",IF(VLOOKUP(B64,'Zebrik W'!$B$7:$L$998,11,0)=0,"--",VLOOKUP(B64,'Zebrik W'!$B$7:$L$998,11,0))) -> 
A65: 59 | B65: Lenka Kuthanova | C65: 1960 | D65: F | E65: Tábor | F65: CZ/C1 | G65: 23579 | H65: 3 | L65: RV 2022 | M65: =IF(ISERROR(VLOOKUP(B65,'Zebrik W'!$B$7:$L$998,11,0)),"",IF(VLOOKUP(B65,'Zebrik W'!$B$7:$L$998,11,0)=0,"--",VLOOKUP(B65,'Zebrik W'!$B$7:$L$998,11,0))) -> WRV 2022
A66: 60 | B66: Zdenek Balcarek | C66: 1967 | D66: M | E66: Kroměříž | F66: CZ/M | G66: 23575 | H66: 3 | M66: =IF(ISERROR(VLOOKUP(B66,'Zebrik W'!$B$7:$L$998,11,0)),"",IF(VLOOKUP(B66,'Zebrik W'!$B$7:$L$998,11,0)=0,"--",VLOOKUP(B66,'Zebrik W'!$B$7:$L$998,11,0))) -> 
A67: 61 | B67: Josef Novak | C67: 1981 | D67: M | E67: Kunovice | F67: CZ/M | G67: 23510 | H67: 3 | M67: =IF(ISERROR(VLOOKUP(B67,'Zebrik W'!$B$7:$L$998,11,0)),"",IF(VLOOKUP(B67,'Zebrik W'!$B$7:$L$998,11,0)=0,"--",VLOOKUP(B67,'Zebrik W'!$B$7:$L$998,11,0))) -> 
A68: 62 | B68: Jiri Stepanek | C68: 1956 | D68: M | E68: Moravská Třebová | F68: CZ/M | G68: 23435 | H68: 3 | M68: =IF(ISERROR(VLOOKUP(B68,'Zebrik W'!$B$7:$L$998,11,0)),"",IF(VLOOKUP(B68,'Zebrik W'!$B$7:$L$998,11,0)=0,"--",VLOOKUP(B68,'Zebrik W'!$B$7:$L$998,11,0))) -> 
A69: 63 | B69: Jan Dersak 69 | C69: 1969 | D69: M | E69: Kralupy | F69: CZ/C1 | G69: 23395 | H69: 3 | M69: =IF(ISERROR(VLOOKUP(B69,'Zebrik W'!$B$7:$L$998,11,0)),"",IF(VLOOKUP(B69,'Zebrik W'!$B$7:$L$998,11,0)=0,"--",VLOOKUP(B69,'Zebrik W'!$B$7:$L$998,11,0))) -> 
A70: 64 | B70: Rene Hudak | C70: 1972 | D70: M | E70: Kunovice | F70: CZ/M | G70: 23287 | H70: 3 | M70: =IF(ISERROR(VLOOKUP(B70,'Zebrik W'!$B$7:$L$998,11,0)),"",IF(VLOOKUP(B70,'Zebrik W'!$B$7:$L$998,11,0)=0,"--",VLOOKUP(B70,'Zebrik W'!$B$7:$L$998,11,0))) -> 
A71: =RANK(G71,G:G) -> 65 | B71: Miroslav Koci | C71: 1961 | D71: M | E71: Žamberk | F71: CZ/C2 | G71: 23255 | H71: 3 | M71: =IF(ISERROR(VLOOKUP(B71,'Zebrik W'!$B$7:$L$998,11,0)),"",IF(VLOOKUP(B71,'Zebrik W'!$B$7:$L$998,11,0)=0,"--",VLOOKUP(B71,'Zebrik W'!$B$7:$L$998,11,0))) -> 
A72: 66 | B72: Jiri Steiger | C72: 1969 | D72: M | E72: Olomouc | F72: CZ/M | G72: 23138 | H72: 3 | M72: =IF(ISERROR(VLOOKUP(B72,'Zebrik W'!$B$7:$L$998,11,0)),"",IF(VLOOKUP(B72,'Zebrik W'!$B$7:$L$998,11,0)=0,"--",VLOOKUP(B72,'Zebrik W'!$B$7:$L$998,11,0))) -> 
A73: 67 | B73: Jan Horak | C73: 1971 | D73: M | E73: Zbraslavice | F73: CZ/C1 | G73: 22927 | H73: 3 | M73: =IF(ISERROR(VLOOKUP(B73,'Zebrik W'!$B$7:$L$998,11,0)),"",IF(VLOOKUP(B73,'Zebrik W'!$B$7:$L$998,11,0)=0,"--",VLOOKUP(B73,'Zebrik W'!$B$7:$L$998,11,0))) -> 
A74: 68 | B74: Michaela Krizova | C74: 2001 | D74: F | E74: Přibyslav | F74: CZ/C2 | G74: 22883 | H74: 3 | I74: Junior v roce 2022 | J74: Junior v roce 2023 | L74: RV 2022 | M74: =IF(ISERROR(VLOOKUP(B74,'Zebrik W'!$B$7:$L$998,11,0)),"",IF(VLOOKUP(B74,'Zebrik W'!$B$7:$L$998,11,0)=0,"--",VLOOKUP(B74,'Zebrik W'!$B$7:$L$998,11,0))) -> WRV 2022
A75: 69 | B75: Petr Stepanek | C75: 1989 | D75: M | E75: Moravská Třebová | F75: CZ/M | G75: 22752 | H75: 3 | M75: =IF(ISERROR(VLOOKUP(B75,'Zebrik W'!$B$7:$L$998,11,0)),"",IF(VLOOKUP(B75,'Zebrik W'!$B$7:$L$998,11,0)=0,"--",VLOOKUP(B75,'Zebrik W'!$B$7:$L$998,11,0))) -> 
A76: 70 | B76: Jan Zahradka | C76: 1981 | D76: M | E76: Hodkovice | F76: CZ/C2 | G76: 22732 | H76: 3 | M76: =IF(ISERROR(VLOOKUP(B76,'Zebrik W'!$B$7:$L$998,11,0)),"",IF(VLOOKUP(B76,'Zebrik W'!$B$7:$L$998,11,0)=0,"--",VLOOKUP(B76,'Zebrik W'!$B$7:$L$998,11,0))) -> 
A77: 71 | B77: Petra Piskata | C77: 1989 | D77: F | E77: Luhačovice | F77: CZ/M | G77: 22548 | H77: 3 | M77: =IF(ISERROR(VLOOKUP(B77,'Zebrik W'!$B$7:$L$998,11,0)),"",IF(VLOOKUP(B77,'Zebrik W'!$B$7:$L$998,11,0)=0,"--",VLOOKUP(B77,'Zebrik W'!$B$7:$L$998,11,0))) -> --
A78: 72 | B78: Michaela Rendlova | C78: 2004 | D78: F | E78: Toužim | F78: CZ/C1 | G78: 22534 | H78: 3 | I78: Junior v roce 2022 | J78: Junior v roce 2023 | M78: =IF(ISERROR(VLOOKUP(B78,'Zebrik W'!$B$7:$L$998,11,0)),"",IF(VLOOKUP(B78,'Zebrik W'!$B$7:$L$998,11,0)=0,"--",VLOOKUP(B78,'Zebrik W'!$B$7:$L$998,11,0))) -> --
A79: 73 | B79: Petr Kolomaznik | C79: 1981 | D79: M | E79: Šumperk | F79: CZ/M | G79: 22435 | H79: 3 | M79: =IF(ISERROR(VLOOKUP(B79,'Zebrik W'!$B$7:$L$998,11,0)),"",IF(VLOOKUP(B79,'Zebrik W'!$B$7:$L$998,11,0)=0,"--",VLOOKUP(B79,'Zebrik W'!$B$7:$L$998,11,0))) -> 
A80: 74 | B80: Lukas Hynek | C80: 1979 | D80: M | E80: Dvůr Králové | F80: CZ/C2 | G80: 22404 | H80: 3 | M80: =IF(ISERROR(VLOOKUP(B80,'Zebrik W'!$B$7:$L$998,11,0)),"",IF(VLOOKUP(B80,'Zebrik W'!$B$7:$L$998,11,0)=0,"--",VLOOKUP(B80,'Zebrik W'!$B$7:$L$998,11,0))) -> 
A81: 75 | B81: Petr Valenta 94 | C81: 1994 | D81: M | E81: Kunovice | F81: CZ/M | G81: 22386 | H81: 3 | M81: =IF(ISERROR(VLOOKUP(B81,'Zebrik W'!$B$7:$L$998,11,0)),"",IF(VLOOKUP(B81,'Zebrik W'!$B$7:$L$998,11,0)=0,"--",VLOOKUP(B81,'Zebrik W'!$B$7:$L$998,11,0))) -> 
A82: 76 | B82: Tomas Hynek | C82: 2002 | D82: M | E82: Dvůr Králové | F82: CZ/C2 | G82: 21836 | H82: 3 | I82: Junior v roce 2022 | J82: Junior v roce 2023 | M82: =IF(ISERROR(VLOOKUP(B82,'Zebrik W'!$B$7:$L$998,11,0)),"",IF(VLOOKUP(B82,'Zebrik W'!$B$7:$L$998,11,0)=0,"--",VLOOKUP(B82,'Zebrik W'!$B$7:$L$998,11,0))) -> 
A83: 77 | B83: Zdenek Boruvka 54 | C83: 1954 | D83: M | E83: Jičín | F83: CZ/C2 | G83: 21681 | H83: 3 | M83: =IF(ISERROR(VLOOKUP(B83,'Zebrik W'!$B$7:$L$998,11,0)),"",IF(VLOOKUP(B83,'Zebrik W'!$B$7:$L$998,11,0)=0,"--",VLOOKUP(B83,'Zebrik W'!$B$7:$L$998,11,0))) -> 
A84: 78 | B84: Milan Svoboda 80 | C84: 1980 | D84: M | E84: Havlíčkův Brod | F84: CZ/C2 | G84: 21628 | H84: 3 | M84: =IF(ISERROR(VLOOKUP(B84,'Zebrik W'!$B$7:$L$998,11,0)),"",IF(VLOOKUP(B84,'Zebrik W'!$B$7:$L$998,11,0)=0,"--",VLOOKUP(B84,'Zebrik W'!$B$7:$L$998,11,0))) -> 
A85: 79 | B85: Jaroslav Buryan | C85: 1953 | D85: M | E85: Zábřeh | F85: CZ/M | G85: 21600 | H85: 3 | M85: =IF(ISERROR(VLOOKUP(B85,'Zebrik W'!$B$7:$L$998,11,0)),"",IF(VLOOKUP(B85,'Zebrik W'!$B$7:$L$998,11,0)=0,"--",VLOOKUP(B85,'Zebrik W'!$B$7:$L$998,11,0))) -> 
A86: 80 | B86: Marek Kornec | C86: 1957 | D86: M | E86: Dvůr Králové | F86: CZ/C2 | G86: 21583 | H86: 3 | M86: =IF(ISERROR(VLOOKUP(B86,'Zebrik W'!$B$7:$L$998,11,0)),"",IF(VLOOKUP(B86,'Zebrik W'!$B$7:$L$998,11,0)=0,"--",VLOOKUP(B86,'Zebrik W'!$B$7:$L$998,11,0))) -> 
A87: 81 | B87: Jan Simon | C87: 1970 | D87: M | E87: Kralupy | F87: CZ/C1 | G87: 21464 | H87: 3 | M87: =IF(ISERROR(VLOOKUP(B87,'Zebrik W'!$B$7:$L$998,11,0)),"",IF(VLOOKUP(B87,'Zebrik W'!$B$7:$L$998,11,0)=0,"--",VLOOKUP(B87,'Zebrik W'!$B$7:$L$998,11,0))) -> 
A88: 82 | B88: Vladimir Hammer | C88: 2000 | D88: M | E88: Letkov | F88: CZ/C1 | G88: 21404 | H88: 3 | I88: Junior v roce 2022 | J88: Junior v roce 2023 | M88: =IF(ISERROR(VLOOKUP(B88,'Zebrik W'!$B$7:$L$998,11,0)),"",IF(VLOOKUP(B88,'Zebrik W'!$B$7:$L$998,11,0)=0,"--",VLOOKUP(B88,'Zebrik W'!$B$7:$L$998,11,0))) -> 
A89: 83 | B89: Lumir Motyka | C89: 1955 | D89: M | E89: Frýdlant | F89: CZ/M | G89: 21167 | H89: 3 | M89: =IF(ISERROR(VLOOKUP(B89,'Zebrik W'!$B$7:$L$998,11,0)),"",IF(VLOOKUP(B89,'Zebrik W'!$B$7:$L$998,11,0)=0,"--",VLOOKUP(B89,'Zebrik W'!$B$7:$L$998,11,0))) -> 
A90: 84 | B90: Zdenek Schenk | C90: 1972 | D90: M | E90: Hranice | F90: CZ/M | G90: 21095 | H90: 3 | M90: =IF(ISERROR(VLOOKUP(B90,'Zebrik W'!$B$7:$L$998,11,0)),"",IF(VLOOKUP(B90,'Zebrik W'!$B$7:$L$998,11,0)=0,"--",VLOOKUP(B90,'Zebrik W'!$B$7:$L$998,11,0))) -> 
A91: 85 | B91: Milan Dvorak | C91: 1965 | D91: M | E91: Liberec | F91: CZ/C2 | G91: 21004 | H91: 3 | M91: =IF(ISERROR(VLOOKUP(B91,'Zebrik W'!$B$7:$L$998,11,0)),"",IF(VLOOKUP(B91,'Zebrik W'!$B$7:$L$998,11,0)=0,"--",VLOOKUP(B91,'Zebrik W'!$B$7:$L$998,11,0))) -> 
A92: 86 | B92: Tomas Kulhavy | C92: 2001 | D92: M | E92: Liberec | F92: CZ/C2 | G92: 20887 | H92: 3 | I92: Junior v roce 2022 | J92: Junior v roce 2023 | M92: =IF(ISERROR(VLOOKUP(B92,'Zebrik W'!$B$7:$L$998,11,0)),"",IF(VLOOKUP(B92,'Zebrik W'!$B$7:$L$998,11,0)=0,"--",VLOOKUP(B92,'Zebrik W'!$B$7:$L$998,11,0))) -> 
A93: 87 | B93: Slavomir Valecko | C93: 1960 | D93: M | E93: Hranice | F93: CZ/M | G93: 20739 | H93: 3 | M93: =IF(ISERROR(VLOOKUP(B93,'Zebrik W'!$B$7:$L$998,11,0)),"",IF(VLOOKUP(B93,'Zebrik W'!$B$7:$L$998,11,0)=0,"--",VLOOKUP(B93,'Zebrik W'!$B$7:$L$998,11,0))) -> 
A94: 88 | B94: Milan Meisner | C94: 1961 | D94: M | E94: Dvůr Králové | F94: CZ/C2 | G94: 20630 | H94: 3 | M94: =IF(ISERROR(VLOOKUP(B94,'Zebrik W'!$B$7:$L$998,11,0)),"",IF(VLOOKUP(B94,'Zebrik W'!$B$7:$L$998,11,0)=0,"--",VLOOKUP(B94,'Zebrik W'!$B$7:$L$998,11,0))) -> 
A95: 89 | B95: Klara Teichmannova | C95: 1993 | D95: F | E95: Hronov | F95: CZ/C2 | G95: 20610 | H95: 3 | M95: =IF(ISERROR(VLOOKUP(B95,'Zebrik W'!$B$7:$L$998,11,0)),"",IF(VLOOKUP(B95,'Zebrik W'!$B$7:$L$998,11,0)=0,"--",VLOOKUP(B95,'Zebrik W'!$B$7:$L$998,11,0))) -> --
A96: 90 | B96: Wolfgang Sluka | C96: 1942 | D96: M | E96: Liberec | F96: CZ/C2 | G96: 20555 | H96: 3 | M96: =IF(ISERROR(VLOOKUP(B96,'Zebrik W'!$B$7:$L$998,11,0)),"",IF(VLOOKUP(B96,'Zebrik W'!$B$7:$L$998,11,0)=0,"--",VLOOKUP(B96,'Zebrik W'!$B$7:$L$998,11,0))) -> 
A97: 91 | B97: Pavlina Horackova | C97: 1965 | D97: F | E97: Šumperk | F97: CZ/M | G97: 20532 | H97: 3 | M97: =IF(ISERROR(VLOOKUP(B97,'Zebrik W'!$B$7:$L$998,11,0)),"",IF(VLOOKUP(B97,'Zebrik W'!$B$7:$L$998,11,0)=0,"--",VLOOKUP(B97,'Zebrik W'!$B$7:$L$998,11,0))) -> --
A98: 92 | B98: Martin Svarc | C98: 1981 | D98: M | E98: Olomouc | F98: CZ/M | G98: 20482 | H98: 3 | M98: =IF(ISERROR(VLOOKUP(B98,'Zebrik W'!$B$7:$L$998,11,0)),"",IF(VLOOKUP(B98,'Zebrik W'!$B$7:$L$998,11,0)=0,"--",VLOOKUP(B98,'Zebrik W'!$B$7:$L$998,11,0))) -> 
A99: 93 | B99: Tomas Hulmak | C99: 1999 | D99: M | E99: Hosín | F99: CZ/C1 | G99: 20380 | H99: 3 | I99: Junior v roce 2022 | J99: Junior v roce 2023 | M99: =IF(ISERROR(VLOOKUP(B99,'Zebrik W'!$B$7:$L$998,11,0)),"",IF(VLOOKUP(B99,'Zebrik W'!$B$7:$L$998,11,0)=0,"--",VLOOKUP(B99,'Zebrik W'!$B$7:$L$998,11,0))) -> 
A100: 94 | B100: Jan Smaha | C100: 1958 | D100: M | E100: Česká Lípa | F100: CZ/C2 | G100: 20177 | H100: 3 | M100: =IF(ISERROR(VLOOKUP(B100,'Zebrik W'!$B$7:$L$998,11,0)),"",IF(VLOOKUP(B100,'Zebrik W'!$B$7:$L$998,11,0)=0,"--",VLOOKUP(B100,'Zebrik W'!$B$7:$L$998,11,0))) -> 
A101: 95 | B101: Martin Stepanek | C101: 1987 | D101: M | E101: Moravská Třebová | F101: CZ/M | G101: 20139 | H101: 3 | M101: =IF(ISERROR(VLOOKUP(B101,'Zebrik W'!$B$7:$L$998,11,0)),"",IF(VLOOKUP(B101,'Zebrik W'!$B$7:$L$998,11,0)=0,"--",VLOOKUP(B101,'Zebrik W'!$B$7:$L$998,11,0))) -> 
A102: 96 | B102: Ladislav Jozsa | C102: 1981 | D102: M | E102: Medlánky | F102: CZ/M | G102: 20030 | H102: 3 | M102: =IF(ISERROR(VLOOKUP(B102,'Zebrik W'!$B$7:$L$998,11,0)),"",IF(VLOOKUP(B102,'Zebrik W'!$B$7:$L$998,11,0)=0,"--",VLOOKUP(B102,'Zebrik W'!$B$7:$L$998,11,0))) -> 
A103: 97 | B103: Petr Kolacek | C103: 1965 | D103: M | E103: Šumperk | F103: CZ/M | G103: 19837 | H103: 3 | M103: =IF(ISERROR(VLOOKUP(B103,'Zebrik W'!$B$7:$L$998,11,0)),"",IF(VLOOKUP(B103,'Zebrik W'!$B$7:$L$998,11,0)=0,"--",VLOOKUP(B103,'Zebrik W'!$B$7:$L$998,11,0))) -> 
A104: 98 | B104: David Vrchota | C104: 1976 | D104: M | E104: Jaroměř | F104: CZ/C2 | G104: 19803 | H104: 3 | M104: =IF(ISERROR(VLOOKUP(B104,'Zebrik W'!$B$7:$L$998,11,0)),"",IF(VLOOKUP(B104,'Zebrik W'!$B$7:$L$998,11,0)=0,"--",VLOOKUP(B104,'Zebrik W'!$B$7:$L$998,11,0))) -> 
A105: 99 | B105: Ondrej Teichman | C105: 1984 | D105: M | E105: Dvůr Králové | F105: CZ/C2 | G105: 19587 | H105: 3 | M105: =IF(ISERROR(VLOOKUP(B105,'Zebrik W'!$B$7:$L$998,11,0)),"",IF(VLOOKUP(B105,'Zebrik W'!$B$7:$L$998,11,0)=0,"--",VLOOKUP(B105,'Zebrik W'!$B$7:$L$998,11,0))) -> 
A106: 100 | B106: Petr Lonsky | C106: 1965 | D106: M | E106: Toužim | F106: CZ/C1 | G106: 19169 | H106: 3 | M106: =IF(ISERROR(VLOOKUP(B106,'Zebrik W'!$B$7:$L$998,11,0)),"",IF(VLOOKUP(B106,'Zebrik W'!$B$7:$L$998,11,0)=0,"--",VLOOKUP(B106,'Zebrik W'!$B$7:$L$998,11,0))) -> 
A107: 101 | B107: Martin Koci | C107: 1975 | D107: M | E107: Ústí nad Orlicí | F107: CZ/C2 | G107: 19038 | H107: 3 | M107: =IF(ISERROR(VLOOKUP(B107,'Zebrik W'!$B$7:$L$998,11,0)),"",IF(VLOOKUP(B107,'Zebrik W'!$B$7:$L$998,11,0)=0,"--",VLOOKUP(B107,'Zebrik W'!$B$7:$L$998,11,0))) -> 
A108: 102 | B108: Jan Kohout | C108: 1970 | D108: M | E108: Žamberk | F108: CZ/C2 | G108: 18936 | H108: 3 | I108: =IF(C108="(prázdné)","",IF(($I$4-C108)>25,"","Junior v roce "&$I$4)) ->  | J108: =IF(C108="(prázdné)","",IF(($J$4-C108)>25,"","Junior v roce "&$J$4)) ->  | M108: =IF(ISERROR(VLOOKUP(B108,'Zebrik W'!$B$7:$L$998,11,0)),"",IF(VLOOKUP(B108,'Zebrik W'!$B$7:$L$998,11,0)=0,"--",VLOOKUP(B108,'Zebrik W'!$B$7:$L$998,11,0))) -> 
A109: 103 | B109: Petr Havrlant | C109: 1965 | D109: M | E109: Šumperk | F109: CZ/M | G109: 18854 | H109: 3 | M109: =IF(ISERROR(VLOOKUP(B109,'Zebrik W'!$B$7:$L$998,11,0)),"",IF(VLOOKUP(B109,'Zebrik W'!$B$7:$L$998,11,0)=0,"--",VLOOKUP(B109,'Zebrik W'!$B$7:$L$998,11,0))) -> 
A110: 104 | B110: Jiri Koudela | C110: 1974 | D110: M | E110: Vyškov | F110: CZ/M | G110: 18739 | H110: 3 | M110: =IF(ISERROR(VLOOKUP(B110,'Zebrik W'!$B$7:$L$998,11,0)),"",IF(VLOOKUP(B110,'Zebrik W'!$B$7:$L$998,11,0)=0,"--",VLOOKUP(B110,'Zebrik W'!$B$7:$L$998,11,0))) -> 
A111: 105 | B111: Jiri Maier 66 | C111: 1966 | D111: M | E111: Raná | F111: CZ/C2 | G111: 18734 | H111: 3 | M111: =IF(ISERROR(VLOOKUP(B111,'Zebrik W'!$B$7:$L$998,11,0)),"",IF(VLOOKUP(B111,'Zebrik W'!$B$7:$L$998,11,0)=0,"--",VLOOKUP(B111,'Zebrik W'!$B$7:$L$998,11,0))) -> 
A112: 106 | B112: Ondrej Dvorak 98 | C112: 1998 | D112: M | E112: Mladá Boleslav | F112: CZ/C1 | G112: 18696 | H112: 3 | I112: Junior v roce 2022 | J112: Junior v roce 2023 | M112: =IF(ISERROR(VLOOKUP(B112,'Zebrik W'!$B$7:$L$998,11,0)),"",IF(VLOOKUP(B112,'Zebrik W'!$B$7:$L$998,11,0)=0,"--",VLOOKUP(B112,'Zebrik W'!$B$7:$L$998,11,0))) -> 
A113: 107 | B113: Roman Schotli | C113: 1970 | D113: M | E113: Hranice | F113: CZ/M | G113: 18636 | H113: 3 | M113: =IF(ISERROR(VLOOKUP(B113,'Zebrik W'!$B$7:$L$998,11,0)),"",IF(VLOOKUP(B113,'Zebrik W'!$B$7:$L$998,11,0)=0,"--",VLOOKUP(B113,'Zebrik W'!$B$7:$L$998,11,0))) -> 
A114: 108 | B114: Jiri Slemr | C114: 1979 | D114: M | E114: Vysoké Mýto | F114: CZ/C2 | G114: 18611 | H114: 3 | M114: =IF(ISERROR(VLOOKUP(B114,'Zebrik W'!$B$7:$L$998,11,0)),"",IF(VLOOKUP(B114,'Zebrik W'!$B$7:$L$998,11,0)=0,"--",VLOOKUP(B114,'Zebrik W'!$B$7:$L$998,11,0))) -> 
A115: 109 | B115: Petr Babak | C115: 1973 | D115: M | E115: Hořice | F115: CZ/C2 | G115: 18531 | H115: 3 | M115: =IF(ISERROR(VLOOKUP(B115,'Zebrik W'!$B$7:$L$998,11,0)),"",IF(VLOOKUP(B115,'Zebrik W'!$B$7:$L$998,11,0)=0,"--",VLOOKUP(B115,'Zebrik W'!$B$7:$L$998,11,0))) -> 
A116: 110 | B116: Lukas Maly | C116: 1998 | D116: M | E116: Vysoké Mýto | F116: CZ/C2 | G116: 18368 | H116: 3 | I116: Junior v roce 2022 | J116: Junior v roce 2023 | M116: =IF(ISERROR(VLOOKUP(B116,'Zebrik W'!$B$7:$L$998,11,0)),"",IF(VLOOKUP(B116,'Zebrik W'!$B$7:$L$998,11,0)=0,"--",VLOOKUP(B116,'Zebrik W'!$B$7:$L$998,11,0))) -> 
A117: 111 | B117: Karel Horalek | C117: 1976 | D117: M | E117: Olomouc | F117: CZ/M | G117: 18201 | H117: 3 | M117: =IF(ISERROR(VLOOKUP(B117,'Zebrik W'!$B$7:$L$998,11,0)),"",IF(VLOOKUP(B117,'Zebrik W'!$B$7:$L$998,11,0)=0,"--",VLOOKUP(B117,'Zebrik W'!$B$7:$L$998,11,0))) -> 
A118: 112 | B118: Miroslav Sklenar | C118: 1964 | D118: M | E118: Žamberk | F118: CZ/C2 | G118: 18183 | H118: 3 | M118: =IF(ISERROR(VLOOKUP(B118,'Zebrik W'!$B$7:$L$998,11,0)),"",IF(VLOOKUP(B118,'Zebrik W'!$B$7:$L$998,11,0)=0,"--",VLOOKUP(B118,'Zebrik W'!$B$7:$L$998,11,0))) -> 
A119: 113 | B119: Jiri Maier 99 | C119: 1999 | D119: M | E119: Raná | F119: CZ/C2 | G119: 18136 | H119: 3 | I119: Junior v roce 2022 | J119: Junior v roce 2023 | M119: =IF(ISERROR(VLOOKUP(B119,'Zebrik W'!$B$7:$L$998,11,0)),"",IF(VLOOKUP(B119,'Zebrik W'!$B$7:$L$998,11,0)=0,"--",VLOOKUP(B119,'Zebrik W'!$B$7:$L$998,11,0))) -> 
A120: 114 | B120: Petr Fisar | C120: 1974 | D120: M | E120: Ústí nad Orlicí | F120: CZ/C2 | G120: 18005 | H120: 3 | M120: =IF(ISERROR(VLOOKUP(B120,'Zebrik W'!$B$7:$L$998,11,0)),"",IF(VLOOKUP(B120,'Zebrik W'!$B$7:$L$998,11,0)=0,"--",VLOOKUP(B120,'Zebrik W'!$B$7:$L$998,11,0))) -> 
A121: 115 | B121: Martin Picka | C121: 1974 | D121: M | E121: Tábor | F121: CZ/C1 | G121: 17995 | H121: 3 | M121: =IF(ISERROR(VLOOKUP(B121,'Zebrik W'!$B$7:$L$998,11,0)),"",IF(VLOOKUP(B121,'Zebrik W'!$B$7:$L$998,11,0)=0,"--",VLOOKUP(B121,'Zebrik W'!$B$7:$L$998,11,0))) -> 
A122: 116 | B122: Tomas Profeld | C122: 1964 | D122: M | E122: Jičín | F122: CZ/C2 | G122: 17976 | H122: 3 | M122: =IF(ISERROR(VLOOKUP(B122,'Zebrik W'!$B$7:$L$998,11,0)),"",IF(VLOOKUP(B122,'Zebrik W'!$B$7:$L$998,11,0)=0,"--",VLOOKUP(B122,'Zebrik W'!$B$7:$L$998,11,0))) -> 
A123: 117 | B123: Jiri Vondracek | C123: 1989 | D123: M | E123: Kladno | F123: CZ/C1 | G123: 17859 | H123: 3 | M123: =IF(ISERROR(VLOOKUP(B123,'Zebrik W'!$B$7:$L$998,11,0)),"",IF(VLOOKUP(B123,'Zebrik W'!$B$7:$L$998,11,0)=0,"--",VLOOKUP(B123,'Zebrik W'!$B$7:$L$998,11,0))) -> 
A124: 118 | B124: Jakub Hlavacek | C124: 1991 | D124: M | E124: Letkov | F124: CZ/C1 | G124: 17849 | H124: 2 | M124: =IF(ISERROR(VLOOKUP(B124,'Zebrik W'!$B$7:$L$998,11,0)),"",IF(VLOOKUP(B124,'Zebrik W'!$B$7:$L$998,11,0)=0,"--",VLOOKUP(B124,'Zebrik W'!$B$7:$L$998,11,0))) -> 
A125: 119 | B125: Jan Hruska | C125: 1988 | D125: M | E125: Tábor | F125: CZ/C1 | G125: 17812 | H125: 3 | M125: =IF(ISERROR(VLOOKUP(B125,'Zebrik W'!$B$7:$L$998,11,0)),"",IF(VLOOKUP(B125,'Zebrik W'!$B$7:$L$998,11,0)=0,"--",VLOOKUP(B125,'Zebrik W'!$B$7:$L$998,11,0))) -> 
A126: 120 | B126: Jan Hybner | C126: 1977 | D126: M | E126: Liberec | F126: CZ/C2 | G126: 17778 | H126: 3 | M126: =IF(ISERROR(VLOOKUP(B126,'Zebrik W'!$B$7:$L$998,11,0)),"",IF(VLOOKUP(B126,'Zebrik W'!$B$7:$L$998,11,0)=0,"--",VLOOKUP(B126,'Zebrik W'!$B$7:$L$998,11,0))) -> 
A127: 121 | B127: Vaclav Kult | C127: 1973 | D127: M | E127: Broumov | F127: CZ/C2 | G127: 17608 | H127: 3 | M127: =IF(ISERROR(VLOOKUP(B127,'Zebrik W'!$B$7:$L$998,11,0)),"",IF(VLOOKUP(B127,'Zebrik W'!$B$7:$L$998,11,0)=0,"--",VLOOKUP(B127,'Zebrik W'!$B$7:$L$998,11,0))) -> 
A128: 122 | B128: Lukas Volek | C128: 2004 | D128: M | E128: Hodkovice | F128: CZ/C2 | G128: 17601 | H128: 3 | I128: Junior v roce 2022 | J128: Junior v roce 2023 | M128: =IF(ISERROR(VLOOKUP(B128,'Zebrik W'!$B$7:$L$998,11,0)),"",IF(VLOOKUP(B128,'Zebrik W'!$B$7:$L$998,11,0)=0,"--",VLOOKUP(B128,'Zebrik W'!$B$7:$L$998,11,0))) -> 
A129: 123 | B129: Lukas Koukal | C129: 1991 | D129: M | E129: Letkov | F129: CZ/C1 | G129: 17527 | H129: 2 | M129: =IF(ISERROR(VLOOKUP(B129,'Zebrik W'!$B$7:$L$998,11,0)),"",IF(VLOOKUP(B129,'Zebrik W'!$B$7:$L$998,11,0)=0,"--",VLOOKUP(B129,'Zebrik W'!$B$7:$L$998,11,0))) -> 
A130: 124 | B130: Tomas Moravec | C130: 2000 | D130: M | E130: Žamberk | F130: CZ/C2 | G130: 17506 | H130: 3 | I130: Junior v roce 2022 | J130: Junior v roce 2023 | M130: =IF(ISERROR(VLOOKUP(B130,'Zebrik W'!$B$7:$L$998,11,0)),"",IF(VLOOKUP(B130,'Zebrik W'!$B$7:$L$998,11,0)=0,"--",VLOOKUP(B130,'Zebrik W'!$B$7:$L$998,11,0))) -> 
A131: 125 | B131: Petr Bartak | C131: 1984 | D131: M | E131: Letkov | F131: CZ/C1 | G131: 17445 | H131: 3 | M131: =IF(ISERROR(VLOOKUP(B131,'Zebrik W'!$B$7:$L$998,11,0)),"",IF(VLOOKUP(B131,'Zebrik W'!$B$7:$L$998,11,0)=0,"--",VLOOKUP(B131,'Zebrik W'!$B$7:$L$998,11,0))) -> 
A132: 126 | B132: Jan Pubec | C132: 1979 | D132: M | E132: Plzeň Bory | F132: CZ/C1 | G132: 17431 | H132: 2 | M132: =IF(ISERROR(VLOOKUP(B132,'Zebrik W'!$B$7:$L$998,11,0)),"",IF(VLOOKUP(B132,'Zebrik W'!$B$7:$L$998,11,0)=0,"--",VLOOKUP(B132,'Zebrik W'!$B$7:$L$998,11,0))) -> 
A133: 127 | B133: Tibor Hezina | C133: 2002 | D133: M | E133: Křižanov | F133: CZ/M | G133: 17299 | H133: 3 | I133: Junior v roce 2022 | J133: Junior v roce 2023 | M133: =IF(ISERROR(VLOOKUP(B133,'Zebrik W'!$B$7:$L$998,11,0)),"",IF(VLOOKUP(B133,'Zebrik W'!$B$7:$L$998,11,0)=0,"--",VLOOKUP(B133,'Zebrik W'!$B$7:$L$998,11,0))) -> 
A134: 128 | B134: Pavel Derda | C134: 1952 | D134: M | E134: Dvůr Králové | F134: CZ/C2 | G134: 17207 | H134: 3 | M134: =IF(ISERROR(VLOOKUP(B134,'Zebrik W'!$B$7:$L$998,11,0)),"",IF(VLOOKUP(B134,'Zebrik W'!$B$7:$L$998,11,0)=0,"--",VLOOKUP(B134,'Zebrik W'!$B$7:$L$998,11,0))) -> 
A135: =RANK(G135,G:G) -> 129 | B135: Martin Zahalka | C135: 1987 | D135: M | E135: Staňkov | F135: CZ/C1 | G135: 16987 | H135: 2 | M135: =IF(ISERROR(VLOOKUP(B135,'Zebrik W'!$B$7:$L$998,11,0)),"",IF(VLOOKUP(B135,'Zebrik W'!$B$7:$L$998,11,0)=0,"--",VLOOKUP(B135,'Zebrik W'!$B$7:$L$998,11,0))) -> 
A136: 130 | B136: Jan Zezula | C136: 1979 | D136: M | E136: Letňany | F136: CZ/C1 | G136: 16887 | H136: 3 | M136: =IF(ISERROR(VLOOKUP(B136,'Zebrik W'!$B$7:$L$998,11,0)),"",IF(VLOOKUP(B136,'Zebrik W'!$B$7:$L$998,11,0)=0,"--",VLOOKUP(B136,'Zebrik W'!$B$7:$L$998,11,0))) -> 
A137: 131 | B137: Vojtech Hajek | C137: 1987 | D137: M | E137: Mladá Boleslav | F137: CZ/C1 | G137: 16820 | H137: 3 | M137: =IF(ISERROR(VLOOKUP(B137,'Zebrik W'!$B$7:$L$998,11,0)),"",IF(VLOOKUP(B137,'Zebrik W'!$B$7:$L$998,11,0)=0,"--",VLOOKUP(B137,'Zebrik W'!$B$7:$L$998,11,0))) -> 
A138: 132 | B138: Peter Kaspar | C138: 1980 | D138: M | E138: Vyškov | F138: CZ/M | G138: 16813 | H138: 3 | M138: =IF(ISERROR(VLOOKUP(B138,'Zebrik W'!$B$7:$L$998,11,0)),"",IF(VLOOKUP(B138,'Zebrik W'!$B$7:$L$998,11,0)=0,"--",VLOOKUP(B138,'Zebrik W'!$B$7:$L$998,11,0))) -> 
A139: 133 | B139: Matej Krestes | C139: 1986 | D139: M | E139: Slaný | F139: CZ/C1 | G139: 16742 | H139: 3 | M139: =IF(ISERROR(VLOOKUP(B139,'Zebrik W'!$B$7:$L$998,11,0)),"",IF(VLOOKUP(B139,'Zebrik W'!$B$7:$L$998,11,0)=0,"--",VLOOKUP(B139,'Zebrik W'!$B$7:$L$998,11,0))) -> 
A140: 134 | B140: Jan Florian | C140: 1992 | D140: M | E140: Zbraslavice | F140: CZ/C1 | G140: 16690 | H140: 3 | M140: =IF(ISERROR(VLOOKUP(B140,'Zebrik W'!$B$7:$L$998,11,0)),"",IF(VLOOKUP(B140,'Zebrik W'!$B$7:$L$998,11,0)=0,"--",VLOOKUP(B140,'Zebrik W'!$B$7:$L$998,11,0))) -> 
A141: 135 | B141: Jaromir Vlk | C141: 1959 | D141: M | E141: Šumperk | F141: CZ/M | G141: 16643 | H141: 3 | M141: =IF(ISERROR(VLOOKUP(B141,'Zebrik W'!$B$7:$L$998,11,0)),"",IF(VLOOKUP(B141,'Zebrik W'!$B$7:$L$998,11,0)=0,"--",VLOOKUP(B141,'Zebrik W'!$B$7:$L$998,11,0))) -> 
A142: 136 | B142: Petr Jiranek 91 | C142: 1991 | D142: M | E142: Toužim | F142: CZ/C1 | G142: 16579 | H142: 2 | M142: =IF(ISERROR(VLOOKUP(B142,'Zebrik W'!$B$7:$L$998,11,0)),"",IF(VLOOKUP(B142,'Zebrik W'!$B$7:$L$998,11,0)=0,"--",VLOOKUP(B142,'Zebrik W'!$B$7:$L$998,11,0))) -> 
A143: 137 | B143: Kamil Sohr | C143: 1973 | D143: M | E143: Šumperk | F143: CZ/M | G143: 16481 | H143: 3 | M143: =IF(ISERROR(VLOOKUP(B143,'Zebrik W'!$B$7:$L$998,11,0)),"",IF(VLOOKUP(B143,'Zebrik W'!$B$7:$L$998,11,0)=0,"--",VLOOKUP(B143,'Zebrik W'!$B$7:$L$998,11,0))) -> 
A144: 138 | B144: Dalibor Pek | C144: 1968 | D144: M | E144: Raná | F144: CZ/C2 | G144: 16409 | H144: 3 | M144: =IF(ISERROR(VLOOKUP(B144,'Zebrik W'!$B$7:$L$998,11,0)),"",IF(VLOOKUP(B144,'Zebrik W'!$B$7:$L$998,11,0)=0,"--",VLOOKUP(B144,'Zebrik W'!$B$7:$L$998,11,0))) -> 
A145: 139 | B145: Tomas Mezera | C145: 1973 | D145: M | E145: Raná | F145: CZ/C2 | G145: 16318 | H145: 3 | M145: =IF(ISERROR(VLOOKUP(B145,'Zebrik W'!$B$7:$L$998,11,0)),"",IF(VLOOKUP(B145,'Zebrik W'!$B$7:$L$998,11,0)=0,"--",VLOOKUP(B145,'Zebrik W'!$B$7:$L$998,11,0))) -> 
A146: 140 | B146: Jan Vozeh | C146: 1995 | D146: M | E146: Rakovník | F146: CZ/C1 | G146: 16317 | H146: 3 | M146: =IF(ISERROR(VLOOKUP(B146,'Zebrik W'!$B$7:$L$998,11,0)),"",IF(VLOOKUP(B146,'Zebrik W'!$B$7:$L$998,11,0)=0,"--",VLOOKUP(B146,'Zebrik W'!$B$7:$L$998,11,0))) -> 
A147: 141 | B147: Tomas Novak | C147: 1974 | D147: M | E147: Česká Lípa | F147: CZ/C2 | G147: 16297 | H147: 3 | M147: =IF(ISERROR(VLOOKUP(B147,'Zebrik W'!$B$7:$L$998,11,0)),"",IF(VLOOKUP(B147,'Zebrik W'!$B$7:$L$998,11,0)=0,"--",VLOOKUP(B147,'Zebrik W'!$B$7:$L$998,11,0))) -> 
A148: 142 | B148: Petr Panek | C148: 1975 | D148: M | E148: Dvůr Králové | F148: CZ/C2 | G148: 16035 | H148: 3 | M148: =IF(ISERROR(VLOOKUP(B148,'Zebrik W'!$B$7:$L$998,11,0)),"",IF(VLOOKUP(B148,'Zebrik W'!$B$7:$L$998,11,0)=0,"--",VLOOKUP(B148,'Zebrik W'!$B$7:$L$998,11,0))) -> 
A149: 143 | B149: Ladislav Prokes | C149: 1954 | D149: M | E149: Vrchlabí | F149: CZ/C2 | G149: 15980 | H149: 3 | M149: =IF(ISERROR(VLOOKUP(B149,'Zebrik W'!$B$7:$L$998,11,0)),"",IF(VLOOKUP(B149,'Zebrik W'!$B$7:$L$998,11,0)=0,"--",VLOOKUP(B149,'Zebrik W'!$B$7:$L$998,11,0))) -> 
A150: 144 | B150: Martin Cicvarek | C150: 1966 | D150: M | E150: Liberec | F150: CZ/C2 | G150: 15975 | H150: 3 | M150: =IF(ISERROR(VLOOKUP(B150,'Zebrik W'!$B$7:$L$998,11,0)),"",IF(VLOOKUP(B150,'Zebrik W'!$B$7:$L$998,11,0)=0,"--",VLOOKUP(B150,'Zebrik W'!$B$7:$L$998,11,0))) -> 
A151: 145 | B151: Jaromir Hendrych | C151: 1954 | D151: M | E151: Raná | F151: CZ/C2 | G151: 15943 | H151: 3 | M151: =IF(ISERROR(VLOOKUP(B151,'Zebrik W'!$B$7:$L$998,11,0)),"",IF(VLOOKUP(B151,'Zebrik W'!$B$7:$L$998,11,0)=0,"--",VLOOKUP(B151,'Zebrik W'!$B$7:$L$998,11,0))) -> 
A152: 146 | B152: Michal Drab | C152: 1969 | D152: M | E152: Letkov | F152: CZ/C1 | G152: 15621 | H152: 2 | M152: =IF(ISERROR(VLOOKUP(B152,'Zebrik W'!$B$7:$L$998,11,0)),"",IF(VLOOKUP(B152,'Zebrik W'!$B$7:$L$998,11,0)=0,"--",VLOOKUP(B152,'Zebrik W'!$B$7:$L$998,11,0))) -> 
A153: 147 | B153: Karel Benisek 76 | C153: 1976 | D153: M | E153: Toužim | F153: CZ/C1 | G153: 15560 | H153: 2 | M153: =IF(ISERROR(VLOOKUP(B153,'Zebrik W'!$B$7:$L$998,11,0)),"",IF(VLOOKUP(B153,'Zebrik W'!$B$7:$L$998,11,0)=0,"--",VLOOKUP(B153,'Zebrik W'!$B$7:$L$998,11,0))) -> 
A154: 148 | B154: Jan Vavrin | C154: 1987 | D154: M | E154: Vysoké Mýto | F154: CZ/C2 | G154: 15528 | H154: 2 | M154: =IF(ISERROR(VLOOKUP(B154,'Zebrik W'!$B$7:$L$998,11,0)),"",IF(VLOOKUP(B154,'Zebrik W'!$B$7:$L$998,11,0)=0,"--",VLOOKUP(B154,'Zebrik W'!$B$7:$L$998,11,0))) -> 
A155: 149 | B155: Jan Beran | C155: 1999 | D155: M | E155: Kladno | F155: CZ/C1 | G155: 15469 | H155: 3 | I155: Junior v roce 2022 | J155: Junior v roce 2023 | M155: =IF(ISERROR(VLOOKUP(B155,'Zebrik W'!$B$7:$L$998,11,0)),"",IF(VLOOKUP(B155,'Zebrik W'!$B$7:$L$998,11,0)=0,"--",VLOOKUP(B155,'Zebrik W'!$B$7:$L$998,11,0))) -> 
A156: 150 | B156: Roman Jokl | C156: 1979 | D156: M | E156: Letkov | F156: CZ/C1 | G156: 15447 | H156: 2 | M156: =IF(ISERROR(VLOOKUP(B156,'Zebrik W'!$B$7:$L$998,11,0)),"",IF(VLOOKUP(B156,'Zebrik W'!$B$7:$L$998,11,0)=0,"--",VLOOKUP(B156,'Zebrik W'!$B$7:$L$998,11,0))) -> 
A157: 151 | B157: Jan Cibulka | C157: 2002 | D157: M | E157: Letňany | F157: CZ/C1 | G157: 15208 | H157: 3 | I157: Junior v roce 2022 | J157: Junior v roce 2023 | M157: =IF(ISERROR(VLOOKUP(B157,'Zebrik W'!$B$7:$L$998,11,0)),"",IF(VLOOKUP(B157,'Zebrik W'!$B$7:$L$998,11,0)=0,"--",VLOOKUP(B157,'Zebrik W'!$B$7:$L$998,11,0))) -> 
A158: 152 | B158: Josef Busek | C158: 1967 | D158: M | E158: Hosín | F158: CZ/C1 | G158: 14929 | H158: 2 | M158: =IF(ISERROR(VLOOKUP(B158,'Zebrik W'!$B$7:$L$998,11,0)),"",IF(VLOOKUP(B158,'Zebrik W'!$B$7:$L$998,11,0)=0,"--",VLOOKUP(B158,'Zebrik W'!$B$7:$L$998,11,0))) -> 
A159: 153 | B159: Jaromir Pauer | C159: 1974 | D159: M | E159: Hosín | F159: CZ/C1 | G159: 14906 | H159: 2 | M159: =IF(ISERROR(VLOOKUP(B159,'Zebrik W'!$B$7:$L$998,11,0)),"",IF(VLOOKUP(B159,'Zebrik W'!$B$7:$L$998,11,0)=0,"--",VLOOKUP(B159,'Zebrik W'!$B$7:$L$998,11,0))) -> 
A160: 154 | B160: Martin Kriz | C160: 1968 | D160: M | E160: Přibyslav | F160: CZ/C2 | G160: 14863 | H160: 3 | M160: =IF(ISERROR(VLOOKUP(B160,'Zebrik W'!$B$7:$L$998,11,0)),"",IF(VLOOKUP(B160,'Zebrik W'!$B$7:$L$998,11,0)=0,"--",VLOOKUP(B160,'Zebrik W'!$B$7:$L$998,11,0))) -> 
A161: 155 | B161: Tomas Jung | C161: 1950 | D161: M | E161: Zbraslavice | F161: CZ/C1 | G161: 14842 | H161: 3 | M161: =IF(ISERROR(VLOOKUP(B161,'Zebrik W'!$B$7:$L$998,11,0)),"",IF(VLOOKUP(B161,'Zebrik W'!$B$7:$L$998,11,0)=0,"--",VLOOKUP(B161,'Zebrik W'!$B$7:$L$998,11,0))) -> 
A162: 156 | B162: Vaclav Marel | C162: 1974 | D162: M | E162: Jaroměř | F162: CZ/C2 | G162: 14796 | H162: 2 | M162: =IF(ISERROR(VLOOKUP(B162,'Zebrik W'!$B$7:$L$998,11,0)),"",IF(VLOOKUP(B162,'Zebrik W'!$B$7:$L$998,11,0)=0,"--",VLOOKUP(B162,'Zebrik W'!$B$7:$L$998,11,0))) -> 
A163: 157 | B163: Oldrich Slavicek | C163: 1959 | D163: M | E163: Hronov | F163: CZ/C2 | G163: 14614 | H163: 2 | M163: =IF(ISERROR(VLOOKUP(B163,'Zebrik W'!$B$7:$L$998,11,0)),"",IF(VLOOKUP(B163,'Zebrik W'!$B$7:$L$998,11,0)=0,"--",VLOOKUP(B163,'Zebrik W'!$B$7:$L$998,11,0))) -> 
A164: 158 | B164: Krystof Mimra | C164: 1992 | D164: M | E164: Most | F164: CZ/C2 | G164: 14522 | H164: 3 | M164: =IF(ISERROR(VLOOKUP(B164,'Zebrik W'!$B$7:$L$998,11,0)),"",IF(VLOOKUP(B164,'Zebrik W'!$B$7:$L$998,11,0)=0,"--",VLOOKUP(B164,'Zebrik W'!$B$7:$L$998,11,0))) -> 
A165: 159 | B165: Martin Fric | C165: 1967 | D165: M | E165: Raná | F165: CZ/C2 | G165: 14461 | H165: 3 | M165: =IF(ISERROR(VLOOKUP(B165,'Zebrik W'!$B$7:$L$998,11,0)),"",IF(VLOOKUP(B165,'Zebrik W'!$B$7:$L$998,11,0)=0,"--",VLOOKUP(B165,'Zebrik W'!$B$7:$L$998,11,0))) -> 
A166: 160 | B166: Jiri Holcman | C166: 1976 | D166: M | E166: Hosín | F166: CZ/C1 | G166: 14414 | H166: 2 | M166: =IF(ISERROR(VLOOKUP(B166,'Zebrik W'!$B$7:$L$998,11,0)),"",IF(VLOOKUP(B166,'Zebrik W'!$B$7:$L$998,11,0)=0,"--",VLOOKUP(B166,'Zebrik W'!$B$7:$L$998,11,0))) -> 
A167: 161 | B167: Jan Pazour | C167: 1979 | D167: M | E167: Dvůr Králové | F167: CZ/C2 | G167: 14374 | H167: 3 | M167: =IF(ISERROR(VLOOKUP(B167,'Zebrik W'!$B$7:$L$998,11,0)),"",IF(VLOOKUP(B167,'Zebrik W'!$B$7:$L$998,11,0)=0,"--",VLOOKUP(B167,'Zebrik W'!$B$7:$L$998,11,0))) -> 
A168: 162 | B168: Martin Urban | C168: 1971 | D168: M | E168: Frýdlant | F168: CZ/M | G168: 14235 | H168: 2 | M168: =IF(ISERROR(VLOOKUP(B168,'Zebrik W'!$B$7:$L$998,11,0)),"",IF(VLOOKUP(B168,'Zebrik W'!$B$7:$L$998,11,0)=0,"--",VLOOKUP(B168,'Zebrik W'!$B$7:$L$998,11,0))) -> 
A169: 163 | B169: Katerina Vojtova | C169: 1983 | D169: F | E169: Slaný | F169: CZ/C1 | G169: 14143 | H169: 3 | M169: =IF(ISERROR(VLOOKUP(B169,'Zebrik W'!$B$7:$L$998,11,0)),"",IF(VLOOKUP(B169,'Zebrik W'!$B$7:$L$998,11,0)=0,"--",VLOOKUP(B169,'Zebrik W'!$B$7:$L$998,11,0))) -> --
A170: 164 | B170: David Tejnora | C170: 1982 | D170: M | E170: Jaroměř | F170: CZ/C2 | G170: 14065 | H170: 2 | M170: =IF(ISERROR(VLOOKUP(B170,'Zebrik W'!$B$7:$L$998,11,0)),"",IF(VLOOKUP(B170,'Zebrik W'!$B$7:$L$998,11,0)=0,"--",VLOOKUP(B170,'Zebrik W'!$B$7:$L$998,11,0))) -> 
A171: 165 | B171: Vaclav Svoboda | C171: 1970 | D171: M | E171: Letkov | F171: CZ/C1 | G171: 14028 | H171: 3 | M171: =IF(ISERROR(VLOOKUP(B171,'Zebrik W'!$B$7:$L$998,11,0)),"",IF(VLOOKUP(B171,'Zebrik W'!$B$7:$L$998,11,0)=0,"--",VLOOKUP(B171,'Zebrik W'!$B$7:$L$998,11,0))) -> 
A172: 166 | B172: Michael Fik | C172: 1972 | D172: M | E172: Strakonice | F172: CZ/C1 | G172: 13994 | H172: 2 | I172: =IF(C172="(prázdné)","",IF(($I$4-C172)>25,"","Junior v roce "&$I$4)) ->  | J172: =IF(C172="(prázdné)","",IF(($J$4-C172)>25,"","Junior v roce "&$J$4)) ->  | M172: =IF(ISERROR(VLOOKUP(B172,'Zebrik W'!$B$7:$L$998,11,0)),"",IF(VLOOKUP(B172,'Zebrik W'!$B$7:$L$998,11,0)=0,"--",VLOOKUP(B172,'Zebrik W'!$B$7:$L$998,11,0))) -> 
A173: 167 | B173: Vojtech Pivonka | C173: 1976 | D173: M | E173: Vrchlabí | F173: CZ/C2 | G173: 13991 | H173: 2 | M173: =IF(ISERROR(VLOOKUP(B173,'Zebrik W'!$B$7:$L$998,11,0)),"",IF(VLOOKUP(B173,'Zebrik W'!$B$7:$L$998,11,0)=0,"--",VLOOKUP(B173,'Zebrik W'!$B$7:$L$998,11,0))) -> 
A174: 168 | B174: Oldrich Bartonik | C174: 1961 | D174: M | E174: Luhačovice | F174: CZ/M | G174: 13982 | H174: 3 | M174: =IF(ISERROR(VLOOKUP(B174,'Zebrik W'!$B$7:$L$998,11,0)),"",IF(VLOOKUP(B174,'Zebrik W'!$B$7:$L$998,11,0)=0,"--",VLOOKUP(B174,'Zebrik W'!$B$7:$L$998,11,0))) -> 
A175: 169 | B175: Jakub Kmosek | C175: 1978 | D175: M | E175: Zbraslavice | F175: CZ/C1 | G175: 13976 | H175: 2 | M175: =IF(ISERROR(VLOOKUP(B175,'Zebrik W'!$B$7:$L$998,11,0)),"",IF(VLOOKUP(B175,'Zebrik W'!$B$7:$L$998,11,0)=0,"--",VLOOKUP(B175,'Zebrik W'!$B$7:$L$998,11,0))) -> 
A176: 170 | B176: Miloslav Hulmak | C176: 1963 | D176: M | E176: Hosín | F176: CZ/C1 | G176: 13879 | H176: 2 | M176: =IF(ISERROR(VLOOKUP(B176,'Zebrik W'!$B$7:$L$998,11,0)),"",IF(VLOOKUP(B176,'Zebrik W'!$B$7:$L$998,11,0)=0,"--",VLOOKUP(B176,'Zebrik W'!$B$7:$L$998,11,0))) -> 
A177: 171 | B177: Petr Jiranek 63 | C177: 1962 | D177: M | E177: Toužim | F177: CZ/C1 | G177: 13856 | H177: 3 | M177: =IF(ISERROR(VLOOKUP(B177,'Zebrik W'!$B$7:$L$998,11,0)),"",IF(VLOOKUP(B177,'Zebrik W'!$B$7:$L$998,11,0)=0,"--",VLOOKUP(B177,'Zebrik W'!$B$7:$L$998,11,0))) -> 
A178: 172 | B178: Lukas Plocek | C178: 1990 | D178: M | E178: Mladá Boleslav | F178: CZ/C1 | G178: 13830 | H178: 3 | M178: =IF(ISERROR(VLOOKUP(B178,'Zebrik W'!$B$7:$L$998,11,0)),"",IF(VLOOKUP(B178,'Zebrik W'!$B$7:$L$998,11,0)=0,"--",VLOOKUP(B178,'Zebrik W'!$B$7:$L$998,11,0))) -> 
A179: 173 | B179: Juraj Dudas | C179: 1990 | D179: M | E179: Křižanov | F179: CZ/M | G179: 13806 | H179: 3 | M179: =IF(ISERROR(VLOOKUP(B179,'Zebrik W'!$B$7:$L$998,11,0)),"",IF(VLOOKUP(B179,'Zebrik W'!$B$7:$L$998,11,0)=0,"--",VLOOKUP(B179,'Zebrik W'!$B$7:$L$998,11,0))) -> 
A180: 174 | B180: Jaroslav Sima | C180: 1972 | D180: M | E180: Chomutov | F180: CZ/C2 | G180: 13799 | H180: 3 | M180: =IF(ISERROR(VLOOKUP(B180,'Zebrik W'!$B$7:$L$998,11,0)),"",IF(VLOOKUP(B180,'Zebrik W'!$B$7:$L$998,11,0)=0,"--",VLOOKUP(B180,'Zebrik W'!$B$7:$L$998,11,0))) -> 
A181: 175 | B181: Tomas Jilek | C181: 1995 | D181: M | E181: Raná | F181: CZ/C2 | G181: 13740 | H181: 2 | M181: =IF(ISERROR(VLOOKUP(B181,'Zebrik W'!$B$7:$L$998,11,0)),"",IF(VLOOKUP(B181,'Zebrik W'!$B$7:$L$998,11,0)=0,"--",VLOOKUP(B181,'Zebrik W'!$B$7:$L$998,11,0))) -> 
A182: 176 | B182: Jakub Malik | C182: 1999 | D182: M | E182: Letňany | F182: CZ/C1 | G182: 13725 | H182: 3 | I182: Junior v roce 2022 | J182: Junior v roce 2023 | M182: =IF(ISERROR(VLOOKUP(B182,'Zebrik W'!$B$7:$L$998,11,0)),"",IF(VLOOKUP(B182,'Zebrik W'!$B$7:$L$998,11,0)=0,"--",VLOOKUP(B182,'Zebrik W'!$B$7:$L$998,11,0))) -> 
A183: 177 | B183: Vladimir Abraham | C183: 1962 | D183: M | E183: Raná | F183: CZ/C2 | G183: 13718 | H183: 2 | M183: =IF(ISERROR(VLOOKUP(B183,'Zebrik W'!$B$7:$L$998,11,0)),"",IF(VLOOKUP(B183,'Zebrik W'!$B$7:$L$998,11,0)=0,"--",VLOOKUP(B183,'Zebrik W'!$B$7:$L$998,11,0))) -> 
A184: 178 | B184: Roman Cerny | C184: 1971 | D184: M | E184: Hranice | F184: CZ/M | G184: 13712 | H184: 3 | M184: =IF(ISERROR(VLOOKUP(B184,'Zebrik W'!$B$7:$L$998,11,0)),"",IF(VLOOKUP(B184,'Zebrik W'!$B$7:$L$998,11,0)=0,"--",VLOOKUP(B184,'Zebrik W'!$B$7:$L$998,11,0))) -> 
A185: 179 | B185: Michal Janda | C185: 1972 | D185: M | E185: Broumov | F185: CZ/C2 | G185: 13701 | H185: 2 | M185: =IF(ISERROR(VLOOKUP(B185,'Zebrik W'!$B$7:$L$998,11,0)),"",IF(VLOOKUP(B185,'Zebrik W'!$B$7:$L$998,11,0)=0,"--",VLOOKUP(B185,'Zebrik W'!$B$7:$L$998,11,0))) -> 
A186: 180 | B186: Jindrich Hruska | C186: 1986 | D186: M | E186: Soběslav | F186: CZ/C1 | G186: 13607 | H186: 2 | M186: =IF(ISERROR(VLOOKUP(B186,'Zebrik W'!$B$7:$L$998,11,0)),"",IF(VLOOKUP(B186,'Zebrik W'!$B$7:$L$998,11,0)=0,"--",VLOOKUP(B186,'Zebrik W'!$B$7:$L$998,11,0))) -> 
A187: 181 | B187: Slavomir Piskaty 84 | C187: 1984 | D187: M | E187: Kunovice | F187: CZ/M | G187: 13599 | H187: 2 | M187: =IF(ISERROR(VLOOKUP(B187,'Zebrik W'!$B$7:$L$998,11,0)),"",IF(VLOOKUP(B187,'Zebrik W'!$B$7:$L$998,11,0)=0,"--",VLOOKUP(B187,'Zebrik W'!$B$7:$L$998,11,0))) -> 
A188: 182 | B188: Radek Tobolka | C188: 1977 | D188: M | E188: Jičín | F188: CZ/C2 | G188: 13551 | H188: 2 | M188: =IF(ISERROR(VLOOKUP(B188,'Zebrik W'!$B$7:$L$998,11,0)),"",IF(VLOOKUP(B188,'Zebrik W'!$B$7:$L$998,11,0)=0,"--",VLOOKUP(B188,'Zebrik W'!$B$7:$L$998,11,0))) -> 
A189: 183 | B189: Lukas Petrzela | C189: 1987 | D189: M | E189: Olomouc | F189: CZ/M | G189: 13485 | H189: 3 | M189: =IF(ISERROR(VLOOKUP(B189,'Zebrik W'!$B$7:$L$998,11,0)),"",IF(VLOOKUP(B189,'Zebrik W'!$B$7:$L$998,11,0)=0,"--",VLOOKUP(B189,'Zebrik W'!$B$7:$L$998,11,0))) -> 
A190: 184 | B190: Michal Hemrle | C190: 1974 | D190: M | E190: Česká Lípa | F190: CZ/C2 | G190: 13418 | H190: 3 | M190: =IF(ISERROR(VLOOKUP(B190,'Zebrik W'!$B$7:$L$998,11,0)),"",IF(VLOOKUP(B190,'Zebrik W'!$B$7:$L$998,11,0)=0,"--",VLOOKUP(B190,'Zebrik W'!$B$7:$L$998,11,0))) -> 
A191: 185 | B191: Pavel Haluza | C191: 1966 | D191: M | E191: Prostějov | F191: CZ/M | G191: 13412 | H191: 3 | M191: =IF(ISERROR(VLOOKUP(B191,'Zebrik W'!$B$7:$L$998,11,0)),"",IF(VLOOKUP(B191,'Zebrik W'!$B$7:$L$998,11,0)=0,"--",VLOOKUP(B191,'Zebrik W'!$B$7:$L$998,11,0))) -> 
A192: 186 | B192: Karel Mares | C192: 1974 | D192: M | E192: Slaný | F192: CZ/C1 | G192: 13408 | H192: 2 | M192: =IF(ISERROR(VLOOKUP(B192,'Zebrik W'!$B$7:$L$998,11,0)),"",IF(VLOOKUP(B192,'Zebrik W'!$B$7:$L$998,11,0)=0,"--",VLOOKUP(B192,'Zebrik W'!$B$7:$L$998,11,0))) -> 
A193: 187 | B193: Ivan Harasta 98 | C193: 1998 | D193: M | E193: Toužim | F193: CZ/C1 | G193: 13271 | H193: 2 | I193: Junior v roce 2022 | J193: Junior v roce 2023 | M193: =IF(ISERROR(VLOOKUP(B193,'Zebrik W'!$B$7:$L$998,11,0)),"",IF(VLOOKUP(B193,'Zebrik W'!$B$7:$L$998,11,0)=0,"--",VLOOKUP(B193,'Zebrik W'!$B$7:$L$998,11,0))) -> 
A194: 188 | B194: Tomas Talanda | C194: 1988 | D194: M | E194: Křižanov | F194: CZ/M | G194: 12980 | H194: 2 | M194: =IF(ISERROR(VLOOKUP(B194,'Zebrik W'!$B$7:$L$998,11,0)),"",IF(VLOOKUP(B194,'Zebrik W'!$B$7:$L$998,11,0)=0,"--",VLOOKUP(B194,'Zebrik W'!$B$7:$L$998,11,0))) -> 
A195: 189 | B195: Tomas Prikryl | C195: 1973 | D195: M | E195: Vyškov | F195: CZ/M | G195: 12970 | H195: 2 | M195: =IF(ISERROR(VLOOKUP(B195,'Zebrik W'!$B$7:$L$998,11,0)),"",IF(VLOOKUP(B195,'Zebrik W'!$B$7:$L$998,11,0)=0,"--",VLOOKUP(B195,'Zebrik W'!$B$7:$L$998,11,0))) -> 
A196: 190 | B196: Jana Mezerova | C196: 1975 | D196: F | E196: Raná | F196: CZ/C2 | G196: 12654 | H196: 3 | M196: =IF(ISERROR(VLOOKUP(B196,'Zebrik W'!$B$7:$L$998,11,0)),"",IF(VLOOKUP(B196,'Zebrik W'!$B$7:$L$998,11,0)=0,"--",VLOOKUP(B196,'Zebrik W'!$B$7:$L$998,11,0))) -> --
A197: 191 | B197: Miroslav Stepan | C197: 1955 | D197: M | E197: Žamberk | F197: CZ/C2 | G197: 12646 | H197: 2 | M197: =IF(ISERROR(VLOOKUP(B197,'Zebrik W'!$B$7:$L$998,11,0)),"",IF(VLOOKUP(B197,'Zebrik W'!$B$7:$L$998,11,0)=0,"--",VLOOKUP(B197,'Zebrik W'!$B$7:$L$998,11,0))) -> 
A198: 192 | B198: Jaroslav Hot | C198: 1965 | D198: M | E198: Toužim | F198: CZ/C1 | G198: 12586 | H198: 2 | M198: =IF(ISERROR(VLOOKUP(B198,'Zebrik W'!$B$7:$L$998,11,0)),"",IF(VLOOKUP(B198,'Zebrik W'!$B$7:$L$998,11,0)=0,"--",VLOOKUP(B198,'Zebrik W'!$B$7:$L$998,11,0))) -> 
A199: =RANK(G199,G:G) -> 193 | B199: Martin Zvonicek | C199: 1972 | D199: M | E199: Raná | F199: CZ/C2 | G199: 12559 | H199: 2 | M199: =IF(ISERROR(VLOOKUP(B199,'Zebrik W'!$B$7:$L$998,11,0)),"",IF(VLOOKUP(B199,'Zebrik W'!$B$7:$L$998,11,0)=0,"--",VLOOKUP(B199,'Zebrik W'!$B$7:$L$998,11,0))) -> 
A200: 194 | B200: Linda Vasatova | C200: 1990 | D200: F | E200: Mladá Boleslav | F200: CZ/C1 | G200: 12544 | H200: 3 | M200: =IF(ISERROR(VLOOKUP(B200,'Zebrik W'!$B$7:$L$998,11,0)),"",IF(VLOOKUP(B200,'Zebrik W'!$B$7:$L$998,11,0)=0,"--",VLOOKUP(B200,'Zebrik W'!$B$7:$L$998,11,0))) -> --
A201: 195 | B201: Pavel Liska | C201: 1965 | D201: M | E201: Roudnice | F201: CZ/C2 | G201: 12494 | H201: 2 | M201: =IF(ISERROR(VLOOKUP(B201,'Zebrik W'!$B$7:$L$998,11,0)),"",IF(VLOOKUP(B201,'Zebrik W'!$B$7:$L$998,11,0)=0,"--",VLOOKUP(B201,'Zebrik W'!$B$7:$L$998,11,0))) -> 
... 272 more rows

Sheet Zebrik W
B1: ="Ženský Žebřík pilotek plachtařek PK AeČR "&A6 -> Ženský Žebřík pilotek plachtařek PK AeČR 2021 | I1: ='Zebrik G'!I1 -> 2021-11-25 | J1: Rev. | K1: ='Zebrik G'!K1 -> 00 | L1: ='Zebrik G'!L1 -> Základní verze
B3: W | C3: x | I3: Juniorka v roce: | J3: Juniorka v roce: | K3: ="W Repre družstvo "&I4 -> W Repre družstvo 2022 | L3: ="W Repre výběr "&I4 -> W Repre výběr 2022 | M3: Poznámka
I4: =A6+1 -> 2022 | J4: =A6+2 -> 2023 | K4: (WRD) | L4: (WRV)
A5: Pořadí | G5: Data | I5: =COUNTIF(I7:I495,"Juniorka v roce "&$I$4) -> 9 | J5: =COUNTIF(J7:J495,"Juniorka v roce "&$J$4) -> 9 | K5: =COUNTIF(K7:K495,"WRD "&$I$4) -> 0 | L5: =COUNTIF(L7:L495,"WRV "&$I$4) -> 9 | M5: =COUNTIF(M7:M495,"<>") -> 0
A6: ='Zebrik G'!A6 -> 2021 | B6: Jméno | C6: Rok narození | D6: M/F | E6: Aeroklub | F6: Region | G6: Součet z Bi×Kinp | H6: Počet W
A7: =RANK(G7,G:G) -> 1 | B7: Alena Netusilova | C7: 1970 | D7: F | E7: Zbraslavice | F7: CZ/C1 | G7: 27973 | H7: 3 | I7: =IF(C7="(prázdné)","",IF(($I$4-C7)>25,"","Juniorka v roce "&$I$4)) ->  | J7: =IF(C7="(prázdné)","",IF(($J$4-C7)>25,"","Juniorka v roce "&$J$4)) ->  | L7: WRV 2022
A8: 2 | B8: Dana Novakova | C8: 1965 | D8: F | E8: Mladá Boleslav | F8: CZ/C1 | G8: 27076 | H8: 3 | I8: =IF(C8="(prázdné)","",IF(($I$4-C8)>25,"","Juniorka v roce "&$I$4)) ->  | J8: =IF(C8="(prázdné)","",IF(($J$4-C8)>25,"","Juniorka v roce "&$J$4)) ->  | L8: WRV 2022
A9: 3 | B9: Hana Treslova | C9: 1991 | D9: F | E9: Raná | F9: CZ/C2 | G9: 26594 | H9: 3 | L9: WRV 2022
A10: 4 | B10: Jana Veprekova | C10: 1961 | D10: F | E10: Dvůr Králové | F10: CZ/C2 | G10: 26037 | H10: 3 | L10: WRV 2022
A11: 5 | B11: Tereza Koubkova | C11: 1999 | D11: F | E11: Vysoké Mýto | F11: CZ/C2 | G11: 24997 | H11: 3 | I11: Juniorka v roce 2022 | J11: Juniorka v roce 2023 | L11: WRV 2022
A12: 6 | B12: Barbora Moravcova | C12: 1994 | D12: F | E12: Zbraslavice | F12: CZ/C1 | G12: 24734 | H12: 3 | L12: WRV 2022
A13: 7 | B13: Jana Treslova | C13: 1963 | D13: F | E13: Raná | F13: CZ/C2 | G13: 24699 | H13: 3 | L13: WRV 2022
A14: 8 | B14: Lenka Kuthanova | C14: 1960 | D14: F | E14: Tábor | F14: CZ/C1 | G14: 23579 | H14: 3 | L14: WRV 2022
A15: 9 | B15: Michaela Krizova | C15: 2001 | D15: F | E15: Přibyslav | F15: CZ/C2 | G15: 22883 | H15: 3 | I15: Juniorka v roce 2022 | J15: Juniorka v roce 2023 | L15: WRV 2022
A16: 10 | B16: Petra Piskata | C16: 1989 | D16: F | E16: Luhačovice | F16: CZ/M | G16: 22834 | H16: 3
A17: 11 | B17: Michaela Rendlova | C17: 2004 | D17: F | E17: Toužim | F17: CZ/C1 | G17: 22534 | H17: 3 | I17: Juniorka v roce 2022 | J17: Juniorka v roce 2023
A18: 12 | B18: Klara Teichmannova | C18: 1993 | D18: F | E18: Hronov | F18: CZ/C2 | G18: 22073 | H18: 3
A19: 13 | B19: Pavlina Horackova | C19: 1965 | D19: F | E19: Šumperk | F19: CZ/M | G19: 20532 | H19: 3
A20: 14 | B20: Eva Cerna | C20: 1964 | D20: F | E20: Příbram | F20: CZ/C1 | G20: 17027 | H20: 3
A21: 15 | B21: Katerina Vojtova | C21: 1983 | D21: F | E21: Slaný | F21: CZ/C1 | G21: 14143 | H21: 3
A22: 16 | B22: Jana Mezerova | C22: 1975 | D22: F | E22: Raná | F22: CZ/C2 | G22: 12654 | H22: 3
A23: 17 | B23: Linda Vasatova | C23: 1990 | D23: F | E23: Mladá Boleslav | F23: CZ/C1 | G23: 12544 | H23: 3
A24: 18 | B24: Sarka Lochova | C24: 1966 | D24: F | E24: Šumperk | F24: CZ/M | G24: 11576 | H24: 3
A25: 19 | B25: Yvona Vyhnankova | C25: 1963 | D25: F | E25: Olomouc | F25: CZ/M | G25: 10609 | H25: 3
A26: 20 | B26: Olga Mokosova | C26: 1970 | D26: F | E26: Jihlava | F26: CZ/M | G26: 8468 | H26: 2
A27: 21 | B27: Katerina Vancurova | C27: 2002 | D27: F | E27: Hranice | F27: CZ/M | G27: 7483 | H27: 2 | I27: Juniorka v roce 2022 | J27: Juniorka v roce 2023
A28: 22 | B28: Anna Bordovska | C28: 1989 | D28: F | E28: Mladá Boleslav | F28: CZ/C1 | G28: 5980 | H28: 1
A29: 23 | B29: Jarmila Zatykova | C29: 1959 | D29: F | E29: Kralupy | F29: CZ/C1 | G29: 5567 | H29: 1
A30: 24 | B30: Barbora Kubickova | C30: 1993 | D30: F | E30: Medlánky | F30: CZ/M | G30: 5434 | H30: 1
A31: 25 | B31: Kristina Santruckova | C31: 1996 | D31: F | E31: Podhořany | F31: CZ/C2 | G31: 5236 | H31: 2
A32: 26 | B32: Tereza Krcilova Spalenkova | C32: 1981 | D32: F | E32: Raná | F32: CZ/C2 | G32: 4805 | H32: 2
A33: 27 | B33: Sabina Vitova | C33: 1998 | D33: F | E33: Kroměříž | F33: CZ/M | G33: 3326 | H33: 1 | I33: Juniorka v roce 2022 | J33: Juniorka v roce 2023
A34: 28 | B34: Tereza Novakova | C34: 1993 | D34: F | E34: Chrudim | F34: CZ/C2 | G34: 3215 | H34: 1
A35: 29 | B35: Zuzana Markesova | C35: 2001 | D35: F | E35: Medlánky | F35: CZ/M | G35: 3044 | H35: 1 | I35: Juniorka v roce 2022 | J35: Juniorka v roce 2023
A36: 30 | B36: Eliska Bohunovska | C36: 2001 | D36: F | E36: Hranice | F36: CZ/M | G36: 2073 | H36: 1 | I36: Juniorka v roce 2022 | J36: Juniorka v roce 2023
A37: 31 | B37: Michaela Sirmerova | C37: 2000 | D37: F | E37: Jihlava | F37: CZ/M | G37: 1259 | H37: 1 | I37: Juniorka v roce 2022 | J37: Juniorka v roce 2023
A38: 32 | B38: Stanislava Zemlickova | C38: 2000 | D38: F | E38: Vyškov | F38: CZ/M | G38: 1246 | H38: 1 | I38: Juniorka v roce 2022 | J38: Juniorka v roce 2023
A39: 33 | B39: Zuzana Kutilkova | C39: 1993 | D39: F | E39: Křižanov | F39: CZ/M | G39: 925 | H39: 1
A40: 34 | B40: Gabriela Cervena | C40: 1966 | D40: F | E40: Jaroměř | F40: CZ/C2 | G40: 599 | H40: 1
A43: =Soutez!B139 -> Schváleno Plachtařskou komisí AeČR dne xx.yy.2021 v ZZZZ

Sheet KB PMRg 2019
A1: PMRg 2019 - Vysoké Mýto - Korigované body
A2: Pořadí v KB | B2: Jméno | C2: Rok narození | D2: M/F | E2: Aeroklub | F2: Region | G2: Soutěž | H2: Pořadí ve třídě | I2: Body ve třídě | J2: Bi | K2: Typ | L2: CN | M2: Junior
A3: =RANK(J3,J:J) -> 1 | B3: Karel Novak | C3: =VLOOKUP(B3,Pilot,2,0) -> 1993 | D3: =VLOOKUP(B3,Pilot,5,0) -> M | E3: =VLOOKUP(B3,Pilot,3,0) -> Mladá Boleslav | F3: =VLOOKUP(B3,Pilot,4,0) -> CZ/C1 | G3: PMRg 2019 - Klub | H3: 1 | I3: 7016 | J3: 10000 | K3: Std. Cirrus | L3: DI | M3: =IF(ISERROR(VLOOKUP(B3,Pilot,6,0)),"Není v databázi",VLOOKUP(B3,Pilot,6,0)) -> 
A4: 1 | B4: Jan Louda | C4: 1986 | D4: M | E4: Mladá Boleslav | F4: CZ/C1 | G4: PMRg 2019 - Kombi | H4: 1 | I4: 6191 | J4: 10000 | K4: Ventus a 15m WL 500kg (voda) | L4: FW
A5: 3 | B5: Karel Mares | C5: 1974 | D5: M | E5: Slaný | F5: CZ/C1 | G5: PMRg 2019 - Kombi | H5: 2 | I5: 6041 | J5: 9580 | K5: Ventus b 16.6m WL | L5: 7F
A6: 4 | B6: Michal Lesinger | C6: 1966 | D6: M | E6: Moravská Třebová | F6: CZ/M | G6: PMRg 2019 - Klub | H6: 2 | I6: 6536 | J6: 9391 | K6: ASW-19B | L6: LL
A7: 5 | B7: Vojtech Novotny | C7: 1992 | D7: M | E7: Kralupy | F7: CZ/C1 | G7: PMRg 2019 - Klub | H7: 3 | I7: 6445 | J7: 9169 | K7: LS 1f | L7: EF
A8: 6 | B8: Hana Treslova | C8: 1991 | D8: F | E8: Raná | F8: CZ/C2 | G8: PMRg 2019 - Kombi | H8: 3 | I8: 5887 | J8: 9156 | K8: LS 8 15m (voda) | L8: AU
A9: 7 | B9: Jiri Stepanek | C9: 1956 | D9: M | E9: Moravská Třebová | F9: CZ/M | G9: PMRg 2019 - Klub | H9: 4 | I9: 6307 | J9: 8901 | K9: ASW-15B | L9: LE
A10: 8 | B10: Zdenek Boruvka 54 | C10: 1954 | D10: M | E10: Jičín | F10: CZ/C2 | G10: PMRg 2019 - Kombi | H10: 4 | I10: 5813 | J10: 8823 | K10: LS 8 15m (voda) | L10: ZB
A11: 9 | B11: Jan Zahradka | C11: 1981 | D11: M | E11: Hodkovice | F11: CZ/C2 | G11: PMRg 2019 - Klub | H11: 5 | I11: 6168 | J11: 8632 | K11: Std. Cirrus | L11: AR
A12: 10 | B12: Dana Novakova | C12: 1965 | D12: F | E12: Mladá Boleslav | F12: CZ/C1 | G12: PMRg 2019 - Kombi | H12: 5 | I12: 5693 | J12: 8437 | K12: LS 8 15m (voda) | L12: FX
A13: 11 | B13: Zdenek Boruvka 86 | C13: 1986 | D13: M | E13: Jičín | F13: CZ/C2 | G13: PMRg 2019 - Klub | H13: 6 | I13: 6082 | J13: 8416 | K13: Std. Cirrus | L13: BJ
A14: 12 | B14: Michal Krupicka | C14: 1975 | D14: M | E14: Most | F14: CZ/C2 | G14: PMRg 2019 - Klub | H14: 7 | I14: 5981 | J14: 8185 | K14: Std. Cirrus | L14: K
A15: 13 | B15: Jan Vavrin | C15: 1987 | D15: M | E15: Vysoké Mýto | F15: CZ/C2 | G15: PMRg 2019 - Klub | H15: 8 | I15: 5958 | J15: 8031 | K15: ASW-15B | L15: IG
A16: 14 | B16: Miroslav Koci | C16: 1961 | D16: M | E16: Žamberk | F16: CZ/C2 | G16: PMRg 2019 - Kombi | H16: 6 | I16: 5213 | J16: 7644 | K16: Ventus 2cxm 18m 565kg (voda) | L16: E8
A17: 15 | B17: Tereza Koubkova | C17: 1999 | D17: F | E17: Vysoké Mýto | F17: CZ/C2 | G17: PMRg 2019 - Klub | H17: 9 | I17: 5495 | J17: 7439 | K17: Std. Cirrus | L17: WY | M17: Junior v roce 2022
A18: 16 | B18: Vaclav Marel | C18: 1974 | D18: M | E18: Jaroměř | F18: CZ/C2 | G18: PMRg 2019 - Klub | H18: 10 | I18: 5399 | J18: 7213 | K18: Std. Cirrus | L18: IF
A19: 17 | B19: Jana Treslova | C19: 1963 | D19: F | E19: Raná | F19: CZ/C2 | G19: PMRg 2019 - Kombi | H19: 7 | I19: 5029 | J19: 7186 | K19: JS-3, TJ 18m (voda) | L19: ZE
A20: 18 | B20: Jindrich Hruska | C20: 1986 | D20: M | E20: Soběslav | F20: CZ/C1 | G20: PMRg 2019 - Klub | H20: 11 | I20: 5336 | J20: 7019 | K20: 303 Mosquito | L20: UFO
A21: 19 | B21: Jan Vozeh | C21: 1995 | D21: M | E21: Rakovník | F21: CZ/C1 | G21: PMRg 2019 - Klub | H21: 12 | I21: 5287 | J21: 6840 | K21: Std. Cirrus | L21: OG
A22: 20 | B22: Jiri Slemr | C22: 1979 | D22: M | E22: Vysoké Mýto | F22: CZ/C2 | G22: PMRg 2019 - Kombi | H22: 8 | I22: 4840 | J22: 6722 | K22: Discus b (voda) | L22: 65
A23: 21 | B23: Lukas Plocek | C23: 1990 | D23: M | E23: Mladá Boleslav | F23: CZ/C1 | G23: PMRg 2019 - Klub | H23: 13 | I23: 5284 | J23: 6707 | K23: ASW-19B | L23: AH
A24: 22 | B24: Pavlina Horackova | C24: 1965 | D24: F | E24: Šumperk | F24: CZ/M | G24: PMRg 2019 - Klub | H24: 14 | I24: 5256 | J24: 6548 | K24: SZD-48 Jantar Std. 2(3) | L24: SU
A25: 23 | B25: Lenka Kuthanova | C25: 1960 | D25: F | E25: Tábor | F25: CZ/C1 | G25: PMRg 2019 - Kombi | H25: 9 | I25: 4767 | J25: 6390 | K25: JS-1C (TJ) 18m EVO | L25: LX
A26: 24 | B26: Jan Smaha | C26: 1958 | D26: M | E26: Česká Lípa | F26: CZ/C2 | G26: PMRg 2019 - Klub | H26: 15 | I26: 4916 | J26: 6079 | K26: ASW-15B | L26: CW
A27: 25 | B27: Martin Stepanek | C27: 1987 | D27: M | E27: Moravská Třebová | F27: CZ/M | G27: PMRg 2019 - Klub | H27: 16 | I27: 4840 | J27: 5872 | K27: ASW-15B | L27: ZP
A28: 26 | B28: Barbora Kubickova | C28: 1993 | D28: F | E28: Medlánky | F28: CZ/M | G28: PMRg 2019 - Kombi | H28: 10 | I28: 4477 | J28: 5812 | K28: LAK 17 A 18m WL | L28: BI
A29: 27 | B29: Lukas Maly | C29: 1998 | D29: M | E29: Vysoké Mýto | F29: CZ/C2 | G29: PMRg 2019 - Klub | H29: 17 | I29: 4697 | J29: 5599 | K29: ASW-15B | L29: AM | M29: Junior v roce 2022
A30: 28 | B30: Ladislav Jozsa | C30: 1981 | D30: M | E30: Medlánky | F30: CZ/M | G30: PMRg 2019 - Klub | H30: 18 | I30: 4541 | J30: 5313 | K30: Std. Cirrus | L30: LJ
A31: 29 | B31: Vaclav Zak | C31: 1962 | D31: M | E31: GAC Benešov | F31: CZ/C1 | G31: PMRg 2019 - Klub | H31: 19 | I31: 4256 | J31: 4898 | K31: Std. Cirrus | L31: TS
A32: 30 | B32: Petr Frycek | C32: 1960 | D32: M | E32: Most | F32: CZ/C2 | G32: PMRg 2019 - Kombi | H32: 11 | I32: 3755 | J32: 4746 | K32: Nimbus 3 (25,5m, 700kg) (voda) | L32: F
A33: 31 | B33: Karel Knotek | C33: 1961 | D33: M | E33: Soběslav | F33: CZ/C1 | G33: PMRg 2019 - Klub | H33: 20 | I33: 4021 | J33: 4534 | K33: ASW-19 | L33: SO
A34: 32 | B34: Slavomir Piskaty 58 | C34: 1958 | D34: M | E34: Kunovice | F34: CZ/M | G34: PMRg 2019 - Kombi | H34: 12 | I34: 3547 | J34: 4260 | K34: Discus b (voda) WL | L34: KAL
A35: 33 | B35: Josef Hlusek | C35: 1993 | D35: M | E35: Kunovice | F35: CZ/M | G35: PMRg 2019 - Klub | H35: 21 | I35: 3831 | J35: 4214 | K35: Std. Cirrus G | L35: WO
A36: 34 | B36: Jan Florian | C36: 1992 | D36: M | E36: Zbraslavice | F36: CZ/C1 | G36: PMRg 2019 - Klub | H36: 22 | I36: 3824 | J36: 4076 | K36: Std. Cirrus | L36: C1
A37: 35 | B37: Ladislav Prokes | C37: 1954 | D37: M | E37: Vrchlabí | F37: CZ/C2 | G37: PMRg 2019 - Kombi | H37: 13 | I37: 3314 | J37: 3747 | K37: Discus b (voda) | L37: VR
A38: 36 | B38: Petr Velek | C38: 1975 | D38: M | E38: GAC Benešov | F38: CZ/C1 | G38: PMRg 2019 - Klub | H38: 23 | I38: 3398 | J38: 3521 | K38: LS 1c | L38: I
A39: 37 | B39: Kristina Santruckova | C39: 1996 | D39: F | E39: Podhořany | F39: CZ/C2 | G39: PMRg 2019 - Klub | H39: 24 | I39: 2941 | J39: 2934 | K39: ASW-15B WL | L39: KS
A42: Schváleno Plachtařskou komisí AeČR dne 10.11.2019 ve Vysokém Mýtě

Sheet KB PMRg 2020
A1: PMRg 2020 - Hosín - Korigované body
A2: Pořadí v KB | B2: Jméno | C2: Rok narození | D2: M/F | E2: Aeroklub | F2: Region | G2: Soutěž | H2: Pořadí ve třídě | I2: Body ve třídě | J2: Bi | K2: Typ | L2: CN | M2: Junior
A3: =RANK(J3,J:J) -> 1 | B3: Michal Lesinger | C3: 1966 | D3: M | E3: Moravská Třebová | F3: CZ/M | G3: PMRg 2020 - Klub | H3: 1 | I3: 4243 | J3: 10000 | K3: ASW 19B | L3: LL | M3: =IF(ISERROR(VLOOKUP(B3,Pilot,6,0)),"Není v databázi",VLOOKUP(B3,Pilot,6,0)) -> 
A4: 1 | B4: Danes Grula | C4: 1961 | D4: M | E4: Medlánky | F4: CZ/M | G4: PMRg 2020 - Kombi | H4: 1 | I4: 4243 | J4: 10000 | K4: ASG29E | L4: DX
A5: 3 | B5: Zdenek Boruvka 86 | C5: 1986 | D5: M | E5: Jičín | F5: CZ/C2 | G5: PMRg 2020 - Klub | H5: 2 | I5: 4134 | J5: 9690 | K5: STD. CIRRUS | L5: BJ
A6: 4 | B6: Petr Hotovy | C6: 1958 | D6: M | E6: Česká Lípa | F6: CZ/C2 | G6: PMRg 2020 - Kombi | H6: 2 | I6: 4106 | J6: 9501 | K6: JS1B 18m | L6: IGC
A7: 5 | B7: Josef Busek | C7: 1967 | D7: M | E7: Hosín | F7: CZ/C1 | G7: PMRg 2020 - Kombi | H7: 3 | I7: 3900 | J7: 8889 | K7: Duodiscus X 750kg | L7: BB
A8: 6 | B8: Jan Zahradka | C8: 1981 | D8: M | E8: Hodkovice | F8: CZ/C2 | G8: PMRg 2020 - Klub | H8: 3 | I8: 3619 | J8: 8710 | K8: Std. Cirrus | L8: AR
A9: 7 | B9: Marek Svancara | C9: 1976 | D9: M | E9: GAC Benešov | F9: CZ/C1 | G9: PMRg 2020 - Klub | H9: 4 | I9: 3499 | J9: 8381 | K9: Std. Cirrus | L9: GT
A10: 8 | B10: Michael Fik | C10: 1972 | D10: M | E10: Strakonice | F10: CZ/C1 | G10: PMRg 2020 - Kombi | H10: 4 | I10: 3722 | J10: 8322 | K10: Ventus C 17,6 | L10: GE
A11: 9 | B11: Jan Stastny | C11: 2003 | D11: M | E11: Medlánky | F11: CZ/M | G11: PMRg 2020 - Klub | H11: 5 | I11: 3276 | J11: 7883 | K11: ASW-15B | L11: TW | M11: Junior v roce 2022
A12: 10 | B12: Jindrich Hruska | C12: 1986 | D12: M | E12: Soběslav | F12: CZ/C1 | G12: PMRg 2020 - Klub | H12: 6 | I12: 3243 | J12: 7698 | K12: Mosquito | L12: UFO
A13: 11 | B13: Hana Treslova | C13: 1991 | D13: F | E13: Raná | F13: CZ/C2 | G13: PMRg 2020 - Kombi | H13: 5 | I13: 3460 | J13: 7617 | K13: Ventus 2ax | L13: AX
A14: 12 | B14: Jiri Vondracek | C14: 1989 | D14: M | E14: Kladno | F14: CZ/C1 | G14: PMRg 2020 - Klub | H14: 7 | I14: 3122 | J14: 7368 | K14: ASW-15B | L14: 2P
A15: 13 | B15: Jaromir Macoun | C15: 1999 | D15: M | E15: Jičín | F15: CZ/C2 | G15: PMRg 2020 - Kombi | H15: 6 | I15: 3413 | J15: 7267 | K15: LS 8 | L15: EU | M15: Junior v roce 2022
A16: 14 | B16: Vladimir Hammer | C16: 2000 | D16: M | E16: Letkov | F16: CZ/C1 | G16: PMRg 2020 - Klub | H16: 8 | I16: 3106 | J16: 7211 | K16: Std. Cirrus | L16: XII | M16: Junior v roce 2022
A17: 15 | B17: Miloslav Hulmak | C17: 1963 | D17: M | E17: Hosín | F17: CZ/C1 | G17: PMRg 2020 - Klub | H17: 9 | I17: 3030 | J17: 6955 | K17: ASW15B | L17: HH
A18: 16 | B18: Jaromir Pauer | C18: 1974 | D18: M | E18: Hosín | F18: CZ/C1 | G18: PMRg 2020 - Kombi | H18: 7 | I18: 3293 | J18: 6796 | K18: Ventus C 17,6m | L18: XE
A19: 17 | B19: Pavlina Horackova | C19: 1965 | D19: F | E19: Šumperk | F19: CZ/M | G19: PMRg 2020 - Klub | H19: 10 | I19: 2891 | J19: 6596 | K19: SZD 48 Jantar Std. 2 | L19: SU
A20: 18 | B20: Karel Novak | C20: 1993 | D20: M | E20: Mladá Boleslav | F20: CZ/C1 | G20: PMRg 2020 - Kombi | H20: 8 | I20: 3255 | J20: 6461 | K20: JS-3 | L20: XM
A21: 19 | B21: Jan Florian | C21: 1992 | D21: M | E21: Zbraslavice | F21: CZ/C1 | G21: PMRg 2020 - Klub | H21: 11 | I21: 2831 | J21: 6366 | K21: Std. Cirrus | L21: C1
A22: 20 | B22: Tomas Hulmak | C22: 1999 | D22: M | E22: Hosín | F22: CZ/C1 | G22: PMRg 2020 - Klub | H22: 12 | I22: 2823 | J22: 6223 | K22: ASW-15B | L22: XI | M22: Junior v roce 2022
A23: 21 | B23: Jiri Holcman | C23: 1976 | D23: M | E23: Hosín | F23: CZ/C1 | G23: PMRg 2020 - Klub | H23: 13 | I23: 2717 | J23: 5917 | K23: ASW-19 | L23: BO
A24: 22 | B24: Petr Rozhon | C24: 1972 | D24: M | E24: Hosín | F24: CZ/C1 | G24: PMRg 2020 - Klub | H24: 14 | I24: 2611 | J24: 5612 | K24: vso-10 | L24: 9
A25: 23 | B25: Pavel Koudelka | C25: 1973 | D25: M | E25: Křižanov | F25: CZ/M | G25: PMRg 2020 - Klub | H25: 15 | I25: 2442 | J25: 5203 | K25: Std.Cirrus | L25: ICQ
A26: 24 | B26: Michal Vranek | C26: 1993 | D26: M | E26: Hosín | F26: CZ/C1 | G26: PMRg 2020 - Klub | H26: 16 | I26: 2440 | J26: 5069 | K26: DG-100 | L26: 8W
A27: 25 | B27: Jan Beran | C27: 1999 | D27: M | E27: Kladno | F27: CZ/C1 | G27: PMRg 2020 - Klub | H27: 17 | I27: 2275 | J27: 4666 | K27: ASW 19 | L27: HB | M27: Junior v roce 2022
A28: 26 | B28: Jaroslav Potmesil | C28: 1964 | D28: M | E28: Zbraslavice | F28: CZ/C1 | G28: PMRg 2020 - Kombi | H28: 9 | I28: 2273 | J28: 4568 | K28: 304TS TwinShark | L28: DL
A29: 27 | B29: Martin Tison | C29: 2000 | D29: M | E29: Hosín | F29: CZ/C1 | G29: PMRg 2020 - Klub | H29: 18 | I29: 2175 | J29: 4371 | K29: ASW-15B | L29: EZ | M29: Junior v roce 2022
A30: 28 | B30: Petr Velek | C30: 1975 | D30: M | E30: GAC Benešov | F30: CZ/C1 | G30: PMRg 2020 - Klub | H30: 19 | I30: 2138 | J30: 4179 | K30: DG400 | L30: HX
A31: 29 | B31: Lukas Plocek | C31: 1990 | D31: M | E31: Mladá Boleslav | F31: CZ/C1 | G31: PMRg 2020 - Klub | H31: 20 | I31: 1896 | J31: 3650 | K31: ASW-19B | L31: AH
A32: 30 | B32: Radek Zima 78 | C32: 1978 | D32: M | E32: Hodkovice | F32: CZ/C2 | G32: PMRg 2020 - Kombi | H32: 10 | I32: 1751 | J32: 3434 | K32: Ventus b 16,6m 430kg WL | L32: 7F
A33: 31 | B33: Vaclav Zak | C33: 1962 | D33: M | E33: GAC Benešov | F33: CZ/C1 | G33: PMRg 2020 - Klub | H33: 21 | I33: 1721 | J33: 3231 | K33: Std. Cirrus | L33: TS
A34: 32 | B34: Jiri Krofta | C34: 1988 | D34: M | E34: Hosín | F34: CZ/C1 | G34: PMRg 2020 - Klub | H34: 22 | I34: 1563 | J34: 2839 | K34: Std. Cirrus | L34: 2U
A35: 33 | B35: Frantisek Suna | C35: 1983 | D35: M | E35: Hosín | F35: CZ/C1 | G35: PMRg 2020 - Klub | H35: 23 | I35: 1461 | J35: 2541 | K35: DG-100 | L35: 78
A36: 34 | B36: Jan Kohout | C36: 1970 | D36: M | E36: Žamberk | F36: CZ/C2 | G36: PMRg 2020 - Kombi | H36: 11 | I36: 1320 | J36: 2450 | K36: LS8a | L36: SK
A37: 35 | B37: Petr Sochor | C37: 1986 | D37: M | E37: Hosín | F37: CZ/C1 | G37: PMRg 2020 - Klub | H37: 24 | I37: 1308 | J37: 2158 | K37: ASW15B | L37: 6Y
A38: 36 | B38: Radoslav Pur | C38: 1973 | D38: M | E38: Hosín | F38: CZ/C1 | G38: PMRg 2020 - Kombi | H38: 12 | I38: 1147 | J38: 1892 | K38: DG-200 | L38: EK
A41: Schváleno Plachtařskou komisí AeČR dne xx.yy.2020 v ZZZZ
A70: Schváleno Plachtařskou komisí AeČR dne xx.yy.2020 v ZZZZ

Sheet KB PMRg 2021
A1: PMRg 2021 - Moravská Třebová - Korigované body
A2: Pořadí v KB | B2: Jméno | C2: Rok narození | D2: M/F | E2: Aeroklub | F2: Region | G2: Soutěž | H2: Pořadí ve třídě | I2: Body ve třídě | J2: Bi | K2: Typ | L2: CN | M2: Junior
A3: =RANK(J3,J:J) -> 1 | B3: Jan Louda | C3: =VLOOKUP(B3,Pilot,2,0) -> 1986 | D3: =VLOOKUP(B3,Pilot,5,0) -> M | E3: =VLOOKUP(B3,Pilot,3,0) -> Mladá Boleslav | F3: =VLOOKUP(B3,Pilot,4,0) -> CZ/C1 | G3: PMRg 2021 - Klub | H3: 1 | I3: 5782 | J3: 10000 | K3: ASW-19B | L3: XS | M3: =IF(ISERROR(VLOOKUP(B3,Pilot,6,0)),"Není v databázi",VLOOKUP(B3,Pilot,6,0)) -> 
A4: 1 | B4: Tomas Rendla | C4: =VLOOKUP(B4,Pilot,2,0) -> 1973 | D4: =VLOOKUP(B4,Pilot,5,0) -> M | E4: =VLOOKUP(B4,Pilot,3,0) -> Zbraslavice | F4: =VLOOKUP(B4,Pilot,4,0) -> CZ/C1 | G4: PMRg 2021 - Kombi | H4: 1 | I4: 5477 | J4: 10000 | K4: EB-29R | L4: EX
A5: 3 | B5: Pavel Jiranek | C5: 1993 | D5: M | E5: Toužim | F5: CZ/C1 | G5: PMRg 2021 - Klub | H5: 2 | I5: 5754 | J5: 9846 | K5: Std. Cirrus | L5: IYD
A6: 4 | B6: Radek Kucirek | C6: 1973 | D6: M | E6: Havlíčkův Brod | F6: CZ/C2 | G6: PMRg 2021 - Kombi | H6: 2 | I6: 5461 | J6: 9730 | K6: EB-28 edition | L6: NA
A7: 5 | B7: Pavel Trybenekr | C7: 1990 | D7: M | E7: Hořice | F7: CZ/C2 | G7: PMRg 2021 - Klub | H7: 3 | I7: 5741 | J7: 9710 | K7: LS-4 | L7: PF
A8: 6 | B8: Hana Treslova | C8: 1991 | D8: F | E8: Raná | F8: CZ/C2 | G8: PMRg 2021 - Klub | H8: 4 | I8: 5404 | J8: 9182 | K8: Std. Cirrus | L8: CI
A9: 7 | B9: Jan Boruvka | C9: 1984 | D9: M | E9: Jičín | F9: CZ/C2 | G9: PMRg 2021 - Kombi | H9: 3 | I9: 5225 | J9: 9178 | K9: Ventus C 17.6m | L9: EG
A10: 8 | B10: Jiri Stepanek | C10: 1956 | D10: M | E10: Moravská Třebová | F10: CZ/M | G10: PMRg 2021 - Klub | H10: 5 | I10: 5331 | J10: 8974 | K10: VSO-10 | L10: H9
A11: 9 | B11: Martin Stepanek | C11: 1987 | D11: M | E11: Moravská Třebová | F11: CZ/M | G11: PMRg 2021 - Klub | H11: 6 | I11: 5267 | J11: 8777 | K11: ASW-15B | L11: LE
A12: 10 | B12: Petr Stepanek | C12: 1989 | D12: M | E12: Moravská Třebová | F12: CZ/M | G12: PMRg 2021 - Klub | H12: 7 | I12: 5104 | J12: 8459 | K12: ASW-15B | L12: ZP
A13: 11 | B13: Michaela Rendlova | C13: 2004 | D13: F | E13: Toužim | F13: CZ/C1 | G13: PMRg 2021 - Kombi | H13: 4 | I13: 4833 | J13: 8427 | K13: ASG 29/18m | L13: NX | M13: Junior v roce 2022
A14: 12 | B14: Radek Zima 78 | C14: 1978 | D14: M | E14: Hodkovice | F14: CZ/C2 | G14: PMRg 2021 - Kombi | H14: 5 | I14: 4825 | J14: 8167 | K14: ASG 29/18m | L14: XZ
A15: 13 | B15: Zdenek Balcarek | C15: 1967 | D15: M | E15: Kroměříž | F15: CZ/M | G15: PMRg 2021 - Klub | H15: 8 | I15: 4662 | J15: 7804 | K15: Discus b | L15: OS
A16: 14 | B16: Zdenek Boruvka 86 | C16: 1986 | D16: M | E16: Jičín | F16: CZ/C2 | G16: PMRg 2021 - Klub | H16: 9 | I16: 4641 | J16: 7659 | K16: Std. Cirrus | L16: BJ
A17: 15 | B17: Jiri Steiger | C17: 1969 | D17: M | E17: Olomouc | F17: CZ/M | G17: PMRg 2021 - Kombi | H17: 6 | I17: 4284 | J17: 7225 | K17: Ventus 3M 18m | L17: JSI
A18: 16 | B18: Petr Valenta 94 | C18: 1994 | D18: M | E18: Kunovice | F18: CZ/M | G18: PMRg 2021 - Klub | H18: 10 | I18: 4371 | J18: 7212 | K18: Std. Cirrus | L18: OK
A19: 17 | B19: Pavlina Horackova | C19: 1965 | D19: F | E19: Šumperk | F19: CZ/M | G19: PMRg 2021 - Klub | H19: 11 | I19: 4345 | J19: 7060 | K19: SZD-48 Jantar std. 2 (3) | L19: SU
A20: 18 | B20: Jiri Vondracek | C20: 1989 | D20: M | E20: Kladno | F20: CZ/C1 | G20: PMRg 2021 - Klub | H20: 12 | I20: 4337 | J20: 6931 | K20: ASW-15B | L20: 2P
A21: 19 | B21: Jiri Maier 66 | C21: 1966 | D21: M | E21: Raná | F21: CZ/C2 | G21: PMRg 2021 - Klub | H21: 13 | I21: 4311 | J21: 6779 | K21: ASW-24E | L21: JM
A22: 20 | B22: Jaromir Macoun | C22: 1999 | D22: M | E22: Jičín | F22: CZ/C2 | G22: PMRg 2021 - Kombi | H22: 7 | I22: 4128 | J22: 6776 | K22: LS-8 15m | L22: AU | M22: Junior v roce 2022
A23: 21 | B23: Martin Kriz | C23: 1968 | D23: M | E23: Přibyslav | F23: CZ/C2 | G23: PMRg 2021 - Klub | H23: 14 | I23: 4245 | J23: 6579 | K23: ASW-20 (A)+F /15m WL | L23: 67
A24: 22 | B24: Miroslav Koci | C24: 1961 | D24: M | E24: Žamberk | F24: CZ/C2 | G24: PMRg 2021 - Kombi | H24: 8 | I24: 3695 | J24: 5972 | K24: Ventus 2cxm | L24: E8
A25: 23 | B25: Jan Florian | C25: 1992 | D25: M | E25: Zbraslavice | F25: CZ/C1 | G25: PMRg 2021 - Klub | H25: 15 | I25: 3748 | J25: 5858 | K25: Std. Cirrus | L25: C1
A26: 23 | B26: Pavel Liska | C26: 1965 | D26: M | E26: Roudnice | F26: CZ/C2 | G26: PMRg 2021 - Klub | H26: 15 | I26: 3748 | J26: 5858 | K26: ASW-19B | L26: RCE
A27: 25 | B27: Vit Morkovsky | C27: 2000 | D27: M | E27: Polička | F27: CZ/C2 | G27: PMRg 2021 - Kombi | H27: 9 | I27: 3438 | J27: 5394 | K27: Discus 2a | L27: GX | M27: Junior v roce 2022
A28: 26 | B28: Michal Lesinger | C28: 1966 | D28: M | E28: Moravská Třebová | F28: CZ/M | G28: PMRg 2021 - Klub | H28: 17 | I28: 3527 | J28: 5350 | K28: ASW-19B | L28: LL
A29: 27 | B29: Pavel Koudelka | C29: 1973 | D29: M | E29: Křižanov | F29: CZ/M | G29: PMRg 2021 - Klub | H29: 18 | I29: 3320 | J29: 4979 | K29: Std. Cirrus | L29: ZL
A30: 28 | B30: Petr Prichystal | C30: 1973 | D30: M | E30: Moravská Třebová | F30: CZ/M | G30: PMRg 2021 - Klub | H30: 19 | I30: 3256 | J30: 4782 | K30: ASW-19B | L30: AE
A31: 29 | B31: Ivan Tvrdik | C31: 1997 | D31: M | E31: Letňany | F31: CZ/C1 | G31: PMRg 2021 - Kombi | H31: 10 | I31: 2951 | J31: 4522 | K31: LS-8 15m | L31: EU | M31: Junior v roce 2022
A32: 30 | B32: Jan Vozeh | C32: 1995 | D32: M | E32: Rakovník | F32: CZ/C1 | G32: PMRg 2021 - Klub | H32: 20 | I32: 3074 | J32: 4442 | K32: Std. Cirrus | L32: OG
A33: 31 | B33: Jakub Kohn | C33: 1992 | D33: M | E33: Prostějov | F33: CZ/M | G33: PMRg 2021 - Klub | H33: 21 | I33: 2944 | J33: 4164 | K33: ASW-15B | L33: FK
A34: 32 | B34: Jan Zapletal | C34: 1997 | D34: M | E34: Břeclav | F34: CZ/M | G34: PMRg 2021 - Kombi | H34: 11 | I34: 2697 | J34: 3947 | K34: LS-8 15m | L34: JS | M34: Junior v roce 2022
A35: 33 | B35: Josef Hlusek | C35: 1993 | D35: M | E35: Kunovice | F35: CZ/M | G35: PMRg 2021 - Klub | H35: 22 | I35: 2433 | J35: 3426 | K35: Std. Cirrus | L35: WO
A36: 34 | B36: Petr Kubik 75 | C36: 1975 | D36: M | E36: Moravská Třebová | F36: CZ/M | G36: PMRg 2021 - Klub | H36: 23 | I36: 2399 | J36: 3264 | K36: ASW-19B | L36: NO
A37: 35 | B37: Antonin Kutalek | C37: 1943 | D37: M | E37: Zábřeh | F37: CZ/M | G37: PMRg 2021 - Kombi | H37: 12 | I37: 1816 | J37: 2571 | K37: LAK-17AT 18m | L37: GL
A38: 36 | B38: Marek Pechar | C38: 1995 | D38: M | E38: Chrudim | F38: CZ/C2 | G38: PMRg 2021 - Klub | H38: 24 | I38: 1755 | J38: 2365 | K38: Std. Cirrus | L38: JE
A39: 37 | B39: Jiri Krofta | C39: 1988 | D39: M | E39: Hosín | F39: CZ/C1 | G39: PMRg 2021 - Klub | H39: 25 | I39: 1748 | J39: 2236 | K39: Std. Cirrus | L39: YU
A40: 38 | B40: Zuzana Kutilkova | C40: 1993 | D40: F | E40: Křižanov | F40: CZ/M | G40: PMRg 2021 - Klub | H40: 26 | I40: 813 | J40: 984 | K40: LS-1f | L40: DP
A41: 39 | B41: Petr Panek | C41: 1975 | D41: M | E41: Dvůr Králové | F41: CZ/C2 | G41: PMRg 2021 - Kombi | H41: 13 | I41: 495 | J41: 633 | K41: JS1B EVO 18m | L41: IGC
A44: Schváleno Plachtařskou komisí AeČR dne xx.yy.2020 v ZZZZ
A70: Schváleno Plachtařskou komisí AeČR dne xx.yy.2020 v ZZZZ

Sheet N PMČR 2022
B1: Nominace na PMČR 2022 | H1: Kontrola: | I1: Počet | J1: Nominace | K1: Počet | L1: Nominace | M1: Počet | N1: Nominace | O1: M: | P1: F: | Q1: M+F:
A2: No | B2: Jméno | C2: Aeroklub | D2: Rok narození | E2: M/F | F2: Junior | G2: No | I2: PMČR | J2: PMČR | K2: PMRg | L2: PMRg | M2: PMČRj | N2: PMČRj | O2: =COUNTIF(E:E,"M") -> 83 | P2: =COUNTIF(E:E,"F") -> 12 | Q2: =O2+P2 -> 95 | R2: S náhradníky
A3: 6.6.5. | B3: Nominace na PMČR - všeobecně (dle SŘ ZM9) | N3: Celkem řádně nominováno: | O3: =O2-COUNTIF(E61:E65,"M")-COUNTIF(E112:E120,"M") -> 69 | P3: =P2-COUNTIF(E61:E65,"F")-COUNTIF(E112:E120,"F") -> 12 | Q3: =O3+P3 -> 81 | R3: Bez náhradníků
B4: Na PMČR nominuje PK minimálně 80 pilotů/pilotek a příslušný počet náhradníků pro stanovená nominační kritéria.
B5: PMČR se mohou zúčastnit pouze soutěžící nominovaní dle jednotlivých bodů odstavců 6.6.6., 6.6.7. a 6.6.8.
B6: Pořadatel soutěže nemůže doplnit soutěžící na základě jiných kritérií.
A7: 6.6.6. | B7: Řádná nominace - Na PMČR jsou nominováni
A8: 6.6.6.1. | B8: všichni členové reprezentačního výběru (RV) ČR stanoveného pro daný soutěžní ročník (bez náhradníků)
A9: 1 | B9: Petr Koutny | C9: =VLOOKUP(B9,Pilot!A:C,3,0) -> Křižanov | D9: =VLOOKUP(B9,Pilot!A:B,2,0) -> 1971 | E9: =VLOOKUP(B9,Pilot!A:E,5,0) -> M | F9: =VLOOKUP(B9,Pilot!A:F,6,0) ->  | G9: =A9 -> 1 | I9: =COUNTIF(B:B,B9) -> 1 | J9: =IF(ISERROR(VLOOKUP(B9,B:G,6,0)),"-",VLOOKUP(B9,B:G,6,0)) -> 1 | K9: =IF(COUNTIF('N PMRg 2022'!B:B,B9)=0,"-",COUNTIF('N PMRg 2022'!B:B,B9)) -> - | L9: =IF(ISERROR(VLOOKUP(B9,'N PMRg 2022'!B:G,6,0)),"-",VLOOKUP(B9,'N PMRg 2022'!B:G,6,0)) -> - | M9: =IF(COUNTIF('N PMČRj 2022'!B:B,B9)=0,"-",COUNTIF('N PMČRj 2022'!B:B,B9)) -> - | N9: =IF(ISERROR(VLOOKUP(B9,'N PMČRj 2022'!B:G,6,0)),"-",VLOOKUP(B9,'N PMČRj 2022'!B:G,6,0)) -> -
A10: =A9+1 -> 2 | B10: Roman Mracek | C10: =VLOOKUP(B10,Pilot!A:C,3,0) -> Letkov | D10: =VLOOKUP(B10,Pilot!A:B,2,0) -> 1980 | E10: =VLOOKUP(B10,Pilot!A:E,5,0) -> M | F10: =VLOOKUP(B10,Pilot!A:F,6,0) ->  | G10: =A10 -> 2 | I10: 1 | J10: 2 | K10: =IF(COUNTIF('N PMRg 2022'!B:B,B10)=0,"-",COUNTIF('N PMRg 2022'!B:B,B10)) -> - | L10: =IF(ISERROR(VLOOKUP(B10,'N PMRg 2022'!B:G,6,0)),"-",VLOOKUP(B10,'N PMRg 2022'!B:G,6,0)) -> - | M10: =IF(COUNTIF('N PMČRj 2022'!B:B,B10)=0,"-",COUNTIF('N PMČRj 2022'!B:B,B10)) -> - | N10: =IF(ISERROR(VLOOKUP(B10,'N PMČRj 2022'!B:G,6,0)),"-",VLOOKUP(B10,'N PMČRj 2022'!B:G,6,0)) -> -
A11: =A10+1 -> 3 | B11: Pavel Louzecky | C11: =VLOOKUP(B11,Pilot!A:C,3,0) -> Přibyslav | D11: =VLOOKUP(B11,Pilot!A:B,2,0) -> 1957 | E11: =VLOOKUP(B11,Pilot!A:E,5,0) -> M | F11: =VLOOKUP(B11,Pilot!A:F,6,0) ->  | G11: 3 | I11: 1 | J11: 3 | K11: =IF(COUNTIF('N PMRg 2022'!B:B,B11)=0,"-",COUNTIF('N PMRg 2022'!B:B,B11)) -> - | L11: =IF(ISERROR(VLOOKUP(B11,'N PMRg 2022'!B:G,6,0)),"-",VLOOKUP(B11,'N PMRg 2022'!B:G,6,0)) -> - | M11: =IF(COUNTIF('N PMČRj 2022'!B:B,B11)=0,"-",COUNTIF('N PMČRj 2022'!B:B,B11)) -> - | N11: =IF(ISERROR(VLOOKUP(B11,'N PMČRj 2022'!B:G,6,0)),"-",VLOOKUP(B11,'N PMČRj 2022'!B:G,6,0)) -> -
A12: 4 | B12: Miloslav Cink | C12: =VLOOKUP(B12,Pilot!A:C,3,0) -> Letkov | D12: =VLOOKUP(B12,Pilot!A:B,2,0) -> 1987 | E12: =VLOOKUP(B12,Pilot!A:E,5,0) -> M | F12: =VLOOKUP(B12,Pilot!A:F,6,0) ->  | G12: 4 | I12: 1 | J12: 4 | K12: =IF(COUNTIF('N PMRg 2022'!B:B,B12)=0,"-",COUNTIF('N PMRg 2022'!B:B,B12)) -> - | L12: =IF(ISERROR(VLOOKUP(B12,'N PMRg 2022'!B:G,6,0)),"-",VLOOKUP(B12,'N PMRg 2022'!B:G,6,0)) -> - | M12: =IF(COUNTIF('N PMČRj 2022'!B:B,B12)=0,"-",COUNTIF('N PMČRj 2022'!B:B,B12)) -> - | N12: =IF(ISERROR(VLOOKUP(B12,'N PMČRj 2022'!B:G,6,0)),"-",VLOOKUP(B12,'N PMČRj 2022'!B:G,6,0)) -> -
A13: 5 | B13: Jan Pavlik | C13: =VLOOKUP(B13,Pilot!A:C,3,0) -> Křižanov | D13: =VLOOKUP(B13,Pilot!A:B,2,0) -> 1987 | E13: =VLOOKUP(B13,Pilot!A:E,5,0) -> M | F13: =VLOOKUP(B13,Pilot!A:F,6,0) ->  | G13: 5 | I13: 1 | J13: 5 | K13: =IF(COUNTIF('N PMRg 2022'!B:B,B13)=0,"-",COUNTIF('N PMRg 2022'!B:B,B13)) -> - | L13: =IF(ISERROR(VLOOKUP(B13,'N PMRg 2022'!B:G,6,0)),"-",VLOOKUP(B13,'N PMRg 2022'!B:G,6,0)) -> - | M13: =IF(COUNTIF('N PMČRj 2022'!B:B,B13)=0,"-",COUNTIF('N PMČRj 2022'!B:B,B13)) -> - | N13: =IF(ISERROR(VLOOKUP(B13,'N PMČRj 2022'!B:G,6,0)),"-",VLOOKUP(B13,'N PMČRj 2022'!B:G,6,0)) -> -
A14: 6 | B14: Radek Krejcirik | C14: =VLOOKUP(B14,Pilot!A:C,3,0) -> Hranice | D14: =VLOOKUP(B14,Pilot!A:B,2,0) -> 1991 | E14: =VLOOKUP(B14,Pilot!A:E,5,0) -> M | F14: =VLOOKUP(B14,Pilot!A:F,6,0) ->  | G14: 6 | I14: 1 | J14: 6 | K14: =IF(COUNTIF('N PMRg 2022'!B:B,B14)=0,"-",COUNTIF('N PMRg 2022'!B:B,B14)) -> - | L14: =IF(ISERROR(VLOOKUP(B14,'N PMRg 2022'!B:G,6,0)),"-",VLOOKUP(B14,'N PMRg 2022'!B:G,6,0)) -> - | M14: =IF(COUNTIF('N PMČRj 2022'!B:B,B14)=0,"-",COUNTIF('N PMČRj 2022'!B:B,B14)) -> - | N14: =IF(ISERROR(VLOOKUP(B14,'N PMČRj 2022'!B:G,6,0)),"-",VLOOKUP(B14,'N PMČRj 2022'!B:G,6,0)) -> -
A15: 7 | B15: Tomas Suchanek | C15: =VLOOKUP(B15,Pilot!A:C,3,0) -> GAC Benešov | D15: =VLOOKUP(B15,Pilot!A:B,2,0) -> 1964 | E15: =VLOOKUP(B15,Pilot!A:E,5,0) -> M | F15: =VLOOKUP(B15,Pilot!A:F,6,0) ->  | G15: 7 | I15: 1 | J15: 7 | K15: =IF(COUNTIF('N PMRg 2022'!B:B,B15)=0,"-",COUNTIF('N PMRg 2022'!B:B,B15)) -> - | L15: =IF(ISERROR(VLOOKUP(B15,'N PMRg 2022'!B:G,6,0)),"-",VLOOKUP(B15,'N PMRg 2022'!B:G,6,0)) -> - | M15: =IF(COUNTIF('N PMČRj 2022'!B:B,B15)=0,"-",COUNTIF('N PMČRj 2022'!B:B,B15)) -> - | N15: =IF(ISERROR(VLOOKUP(B15,'N PMČRj 2022'!B:G,6,0)),"-",VLOOKUP(B15,'N PMČRj 2022'!B:G,6,0)) -> -
A16: 8 | B16: David Mach | C16: =VLOOKUP(B16,Pilot!A:C,3,0) -> Hronov | D16: =VLOOKUP(B16,Pilot!A:B,2,0) -> 1994 | E16: =VLOOKUP(B16,Pilot!A:E,5,0) -> M | F16: =VLOOKUP(B16,Pilot!A:F,6,0) ->  | G16: 8 | I16: 1 | J16: 8 | K16: =IF(COUNTIF('N PMRg 2022'!B:B,B16)=0,"-",COUNTIF('N PMRg 2022'!B:B,B16)) -> - | L16: =IF(ISERROR(VLOOKUP(B16,'N PMRg 2022'!B:G,6,0)),"-",VLOOKUP(B16,'N PMRg 2022'!B:G,6,0)) -> - | M16: =IF(COUNTIF('N PMČRj 2022'!B:B,B16)=0,"-",COUNTIF('N PMČRj 2022'!B:B,B16)) -> - | N16: =IF(ISERROR(VLOOKUP(B16,'N PMČRj 2022'!B:G,6,0)),"-",VLOOKUP(B16,'N PMČRj 2022'!B:G,6,0)) -> -
A17: 9 | B17: Jan Ratz | C17: =VLOOKUP(B17,Pilot!A:C,3,0) -> Zbraslavice | D17: =VLOOKUP(B17,Pilot!A:B,2,0) -> 1987 | E17: =VLOOKUP(B17,Pilot!A:E,5,0) -> M | F17: =VLOOKUP(B17,Pilot!A:F,6,0) ->  | G17: 9 | I17: 1 | J17: 9 | K17: =IF(COUNTIF('N PMRg 2022'!B:B,B17)=0,"-",COUNTIF('N PMRg 2022'!B:B,B17)) -> - | L17: =IF(ISERROR(VLOOKUP(B17,'N PMRg 2022'!B:G,6,0)),"-",VLOOKUP(B17,'N PMRg 2022'!B:G,6,0)) -> - | M17: =IF(COUNTIF('N PMČRj 2022'!B:B,B17)=0,"-",COUNTIF('N PMČRj 2022'!B:B,B17)) -> - | N17: =IF(ISERROR(VLOOKUP(B17,'N PMČRj 2022'!B:G,6,0)),"-",VLOOKUP(B17,'N PMČRj 2022'!B:G,6,0)) -> -
A18: 10 | B18: Ivan Novak | C18: =VLOOKUP(B18,Pilot!A:C,3,0) -> Mladá Boleslav | D18: =VLOOKUP(B18,Pilot!A:B,2,0) -> 1962 | E18: =VLOOKUP(B18,Pilot!A:E,5,0) -> M | F18: =VLOOKUP(B18,Pilot!A:F,6,0) ->  | G18: =A18 -> 10 | I18: 1 | J18: 10 | K18: =IF(COUNTIF('N PMRg 2022'!B:B,B18)=0,"-",COUNTIF('N PMRg 2022'!B:B,B18)) -> - | L18: =IF(ISERROR(VLOOKUP(B18,'N PMRg 2022'!B:G,6,0)),"-",VLOOKUP(B18,'N PMRg 2022'!B:G,6,0)) -> - | M18: =IF(COUNTIF('N PMČRj 2022'!B:B,B18)=0,"-",COUNTIF('N PMČRj 2022'!B:B,B18)) -> - | N18: =IF(ISERROR(VLOOKUP(B18,'N PMČRj 2022'!B:G,6,0)),"-",VLOOKUP(B18,'N PMČRj 2022'!B:G,6,0)) -> -
A19: 11 | B19: Karel Novak | C19: =VLOOKUP(B19,Pilot!A:C,3,0) -> Mladá Boleslav | D19: =VLOOKUP(B19,Pilot!A:B,2,0) -> 1993 | E19: =VLOOKUP(B19,Pilot!A:E,5,0) -> M | F19: =VLOOKUP(B19,Pilot!A:F,6,0) ->  | G19: 11 | I19: 1 | J19: 11 | K19: =IF(COUNTIF('N PMRg 2022'!B:B,B19)=0,"-",COUNTIF('N PMRg 2022'!B:B,B19)) -> - | L19: =IF(ISERROR(VLOOKUP(B19,'N PMRg 2022'!B:G,6,0)),"-",VLOOKUP(B19,'N PMRg 2022'!B:G,6,0)) -> - | M19: =IF(COUNTIF('N PMČRj 2022'!B:B,B19)=0,"-",COUNTIF('N PMČRj 2022'!B:B,B19)) -> - | N19: =IF(ISERROR(VLOOKUP(B19,'N PMČRj 2022'!B:G,6,0)),"-",VLOOKUP(B19,'N PMČRj 2022'!B:G,6,0)) -> -
A20: 12 | B20: Ondrej Dupal | C20: =VLOOKUP(B20,Pilot!A:C,3,0) -> GAC Benešov | D20: =VLOOKUP(B20,Pilot!A:B,2,0) -> 1966 | E20: =VLOOKUP(B20,Pilot!A:E,5,0) -> M | F20: =VLOOKUP(B20,Pilot!A:F,6,0) ->  | G20: 12 | I20: 1 | J20: 12 | K20: =IF(COUNTIF('N PMRg 2022'!B:B,B20)=0,"-",COUNTIF('N PMRg 2022'!B:B,B20)) -> - | L20: =IF(ISERROR(VLOOKUP(B20,'N PMRg 2022'!B:G,6,0)),"-",VLOOKUP(B20,'N PMRg 2022'!B:G,6,0)) -> - | M20: =IF(COUNTIF('N PMČRj 2022'!B:B,B20)=0,"-",COUNTIF('N PMČRj 2022'!B:B,B20)) -> - | N20: =IF(ISERROR(VLOOKUP(B20,'N PMČRj 2022'!B:G,6,0)),"-",VLOOKUP(B20,'N PMČRj 2022'!B:G,6,0)) -> -
A21: 13 | B21: Jaroslav Tomana | C21: =VLOOKUP(B21,Pilot!A:C,3,0) -> Zbraslavice | D21: =VLOOKUP(B21,Pilot!A:B,2,0) -> 1975 | E21: =VLOOKUP(B21,Pilot!A:E,5,0) -> M | F21: =VLOOKUP(B21,Pilot!A:F,6,0) ->  | G21: =A21 -> 13 | I21: 1 | J21: 13 | K21: =IF(COUNTIF('N PMRg 2022'!B:B,B21)=0,"-",COUNTIF('N PMRg 2022'!B:B,B21)) -> - | L21: =IF(ISERROR(VLOOKUP(B21,'N PMRg 2022'!B:G,6,0)),"-",VLOOKUP(B21,'N PMRg 2022'!B:G,6,0)) -> - | M21: =IF(COUNTIF('N PMČRj 2022'!B:B,B21)=0,"-",COUNTIF('N PMČRj 2022'!B:B,B21)) -> - | N21: =IF(ISERROR(VLOOKUP(B21,'N PMČRj 2022'!B:G,6,0)),"-",VLOOKUP(B21,'N PMČRj 2022'!B:G,6,0)) -> -
A22: 14 | B22: Jan Zapletal | C22: =VLOOKUP(B22,Pilot!A:C,3,0) -> Břeclav | D22: =VLOOKUP(B22,Pilot!A:B,2,0) -> 1997 | E22: =VLOOKUP(B22,Pilot!A:E,5,0) -> M | F22: =VLOOKUP(B22,Pilot!A:F,6,0) -> Junior v roce 2022 | G22: 14 | I22: 1 | J22: 14 | K22: =IF(COUNTIF('N PMRg 2022'!B:B,B22)=0,"-",COUNTIF('N PMRg 2022'!B:B,B22)) -> - | L22: =IF(ISERROR(VLOOKUP(B22,'N PMRg 2022'!B:G,6,0)),"-",VLOOKUP(B22,'N PMRg 2022'!B:G,6,0)) -> - | M22: =IF(COUNTIF('N PMČRj 2022'!B:B,B22)=0,"-",COUNTIF('N PMČRj 2022'!B:B,B22)) -> 1 | N22: =IF(ISERROR(VLOOKUP(B22,'N PMČRj 2022'!B:G,6,0)),"-",VLOOKUP(B22,'N PMČRj 2022'!B:G,6,0)) -> 1
A23: 15 | B23: Petr Tichy | C23: =VLOOKUP(B23,Pilot!A:C,3,0) -> Zbraslavice | D23: =VLOOKUP(B23,Pilot!A:B,2,0) -> 1973 | E23: =VLOOKUP(B23,Pilot!A:E,5,0) -> M | F23: =VLOOKUP(B23,Pilot!A:F,6,0) ->  | G23: 15 | I23: 1 | J23: 15 | K23: =IF(COUNTIF('N PMRg 2022'!B:B,B23)=0,"-",COUNTIF('N PMRg 2022'!B:B,B23)) -> - | L23: =IF(ISERROR(VLOOKUP(B23,'N PMRg 2022'!B:G,6,0)),"-",VLOOKUP(B23,'N PMRg 2022'!B:G,6,0)) -> - | M23: =IF(COUNTIF('N PMČRj 2022'!B:B,B23)=0,"-",COUNTIF('N PMČRj 2022'!B:B,B23)) -> - | N23: =IF(ISERROR(VLOOKUP(B23,'N PMČRj 2022'!B:G,6,0)),"-",VLOOKUP(B23,'N PMČRj 2022'!B:G,6,0)) -> -
A24: 16 | B24: Radek Kucirek | C24: =VLOOKUP(B24,Pilot!A:C,3,0) -> Havlíčkův Brod | D24: =VLOOKUP(B24,Pilot!A:B,2,0) -> 1973 | E24: =VLOOKUP(B24,Pilot!A:E,5,0) -> M | F24: =VLOOKUP(B24,Pilot!A:F,6,0) ->  | G24: 16 | I24: 1 | J24: 16 | K24: =IF(COUNTIF('N PMRg 2022'!B:B,B24)=0,"-",COUNTIF('N PMRg 2022'!B:B,B24)) -> - | L24: =IF(ISERROR(VLOOKUP(B24,'N PMRg 2022'!B:G,6,0)),"-",VLOOKUP(B24,'N PMRg 2022'!B:G,6,0)) -> - | M24: =IF(COUNTIF('N PMČRj 2022'!B:B,B24)=0,"-",COUNTIF('N PMČRj 2022'!B:B,B24)) -> - | N24: =IF(ISERROR(VLOOKUP(B24,'N PMČRj 2022'!B:G,6,0)),"-",VLOOKUP(B24,'N PMČRj 2022'!B:G,6,0)) -> -
A25: 17 | B25: Ondrej Bordovsky | C25: =VLOOKUP(B25,Pilot!A:C,3,0) -> Krnov | D25: =VLOOKUP(B25,Pilot!A:B,2,0) -> 1983 | E25: =VLOOKUP(B25,Pilot!A:E,5,0) -> M | F25: =VLOOKUP(B25,Pilot!A:F,6,0) ->  | G25: 17 | I25: 1 | J25: 17 | K25: =IF(COUNTIF('N PMRg 2022'!B:B,B25)=0,"-",COUNTIF('N PMRg 2022'!B:B,B25)) -> - | L25: =IF(ISERROR(VLOOKUP(B25,'N PMRg 2022'!B:G,6,0)),"-",VLOOKUP(B25,'N PMRg 2022'!B:G,6,0)) -> - | M25: =IF(COUNTIF('N PMČRj 2022'!B:B,B25)=0,"-",COUNTIF('N PMČRj 2022'!B:B,B25)) -> - | N25: =IF(ISERROR(VLOOKUP(B25,'N PMČRj 2022'!B:G,6,0)),"-",VLOOKUP(B25,'N PMČRj 2022'!B:G,6,0)) -> -
A26: 18 | B26: Alena Netusilova | C26: =VLOOKUP(B26,Pilot!A:C,3,0) -> Zbraslavice | D26: =VLOOKUP(B26,Pilot!A:B,2,0) -> 1970 | E26: =VLOOKUP(B26,Pilot!A:E,5,0) -> F | F26: =VLOOKUP(B26,Pilot!A:F,6,0) ->  | G26: 18 | I26: 1 | J26: 18 | K26: =IF(COUNTIF('N PMRg 2022'!B:B,B26)=0,"-",COUNTIF('N PMRg 2022'!B:B,B26)) -> - | L26: =IF(ISERROR(VLOOKUP(B26,'N PMRg 2022'!B:G,6,0)),"-",VLOOKUP(B26,'N PMRg 2022'!B:G,6,0)) -> - | M26: =IF(COUNTIF('N PMČRj 2022'!B:B,B26)=0,"-",COUNTIF('N PMČRj 2022'!B:B,B26)) -> - | N26: =IF(ISERROR(VLOOKUP(B26,'N PMČRj 2022'!B:G,6,0)),"-",VLOOKUP(B26,'N PMČRj 2022'!B:G,6,0)) -> -
A27: 19 | B27: Michal Lesinger | C27: =VLOOKUP(B27,Pilot!A:C,3,0) -> Moravská Třebová | D27: =VLOOKUP(B27,Pilot!A:B,2,0) -> 1966 | E27: =VLOOKUP(B27,Pilot!A:E,5,0) -> M | F27: =VLOOKUP(B27,Pilot!A:F,6,0) ->  | G27: 19 | I27: 1 | J27: 19 | K27: =IF(COUNTIF('N PMRg 2022'!B:B,B27)=0,"-",COUNTIF('N PMRg 2022'!B:B,B27)) -> - | L27: =IF(ISERROR(VLOOKUP(B27,'N PMRg 2022'!B:G,6,0)),"-",VLOOKUP(B27,'N PMRg 2022'!B:G,6,0)) -> - | M27: =IF(COUNTIF('N PMČRj 2022'!B:B,B27)=0,"-",COUNTIF('N PMČRj 2022'!B:B,B27)) -> - | N27: =IF(ISERROR(VLOOKUP(B27,'N PMČRj 2022'!B:G,6,0)),"-",VLOOKUP(B27,'N PMČRj 2022'!B:G,6,0)) -> -
A28: 20 | B28: Jan Viskot | C28: =VLOOKUP(B28,Pilot!A:C,3,0) -> Břeclav | D28: =VLOOKUP(B28,Pilot!A:B,2,0) -> 1995 | E28: =VLOOKUP(B28,Pilot!A:E,5,0) -> M | F28: =VLOOKUP(B28,Pilot!A:F,6,0) ->  | G28: 20 | I28: 1 | J28: 20 | K28: =IF(COUNTIF('N PMRg 2022'!B:B,B28)=0,"-",COUNTIF('N PMRg 2022'!B:B,B28)) -> - | L28: =IF(ISERROR(VLOOKUP(B28,'N PMRg 2022'!B:G,6,0)),"-",VLOOKUP(B28,'N PMRg 2022'!B:G,6,0)) -> - | M28: =IF(COUNTIF('N PMČRj 2022'!B:B,B28)=0,"-",COUNTIF('N PMČRj 2022'!B:B,B28)) -> - | N28: =IF(ISERROR(VLOOKUP(B28,'N PMČRj 2022'!B:G,6,0)),"-",VLOOKUP(B28,'N PMČRj 2022'!B:G,6,0)) -> -
A29: 21 | B29: Jaromir Macoun | C29: =VLOOKUP(B29,Pilot!A:C,3,0) -> Jičín | D29: =VLOOKUP(B29,Pilot!A:B,2,0) -> 1999 | E29: =VLOOKUP(B29,Pilot!A:E,5,0) -> M | F29: =VLOOKUP(B29,Pilot!A:F,6,0) -> Junior v roce 2022 | G29: 21 | I29: 1 | J29: 21 | K29: =IF(COUNTIF('N PMRg 2022'!B:B,B29)=0,"-",COUNTIF('N PMRg 2022'!B:B,B29)) -> - | L29: =IF(ISERROR(VLOOKUP(B29,'N PMRg 2022'!B:G,6,0)),"-",VLOOKUP(B29,'N PMRg 2022'!B:G,6,0)) -> - | M29: =IF(COUNTIF('N PMČRj 2022'!B:B,B29)=0,"-",COUNTIF('N PMČRj 2022'!B:B,B29)) -> 1 | N29: =IF(ISERROR(VLOOKUP(B29,'N PMČRj 2022'!B:G,6,0)),"-",VLOOKUP(B29,'N PMČRj 2022'!B:G,6,0)) -> 2
A30: 22 | B30: Lukas Kriz | C30: =VLOOKUP(B30,Pilot!A:C,3,0) -> Křižanov | D30: =VLOOKUP(B30,Pilot!A:B,2,0) -> 2003 | E30: =VLOOKUP(B30,Pilot!A:E,5,0) -> M | F30: =VLOOKUP(B30,Pilot!A:F,6,0) -> Junior v roce 2022 | G30: 22 | I30: 1 | J30: 22 | K30: =IF(COUNTIF('N PMRg 2022'!B:B,B30)=0,"-",COUNTIF('N PMRg 2022'!B:B,B30)) -> - | L30: =IF(ISERROR(VLOOKUP(B30,'N PMRg 2022'!B:G,6,0)),"-",VLOOKUP(B30,'N PMRg 2022'!B:G,6,0)) -> - | M30: =IF(COUNTIF('N PMČRj 2022'!B:B,B30)=0,"-",COUNTIF('N PMČRj 2022'!B:B,B30)) -> 1 | N30: =IF(ISERROR(VLOOKUP(B30,'N PMČRj 2022'!B:G,6,0)),"-",VLOOKUP(B30,'N PMČRj 2022'!B:G,6,0)) -> 3
A31: 23 | B31: Vit Morkovsky | C31: =VLOOKUP(B31,Pilot!A:C,3,0) -> Polička | D31: =VLOOKUP(B31,Pilot!A:B,2,0) -> 2000 | E31: =VLOOKUP(B31,Pilot!A:E,5,0) -> M | F31: =VLOOKUP(B31,Pilot!A:F,6,0) -> Junior v roce 2022 | G31: 23 | I31: 1 | J31: 23 | K31: =IF(COUNTIF('N PMRg 2022'!B:B,B31)=0,"-",COUNTIF('N PMRg 2022'!B:B,B31)) -> - | L31: =IF(ISERROR(VLOOKUP(B31,'N PMRg 2022'!B:G,6,0)),"-",VLOOKUP(B31,'N PMRg 2022'!B:G,6,0)) -> - | M31: =IF(COUNTIF('N PMČRj 2022'!B:B,B31)=0,"-",COUNTIF('N PMČRj 2022'!B:B,B31)) -> 1 | N31: =IF(ISERROR(VLOOKUP(B31,'N PMČRj 2022'!B:G,6,0)),"-",VLOOKUP(B31,'N PMČRj 2022'!B:G,6,0)) -> 4
A32: 24 | B32: Hana Treslova | C32: =VLOOKUP(B32,Pilot!A:C,3,0) -> Raná | D32: =VLOOKUP(B32,Pilot!A:B,2,0) -> 1991 | E32: =VLOOKUP(B32,Pilot!A:E,5,0) -> F | F32: =VLOOKUP(B32,Pilot!A:F,6,0) ->  | G32: 24 | I32: 1 | J32: 24 | K32: =IF(COUNTIF('N PMRg 2022'!B:B,B32)=0,"-",COUNTIF('N PMRg 2022'!B:B,B32)) -> - | L32: =IF(ISERROR(VLOOKUP(B32,'N PMRg 2022'!B:G,6,0)),"-",VLOOKUP(B32,'N PMRg 2022'!B:G,6,0)) -> - | M32: =IF(COUNTIF('N PMČRj 2022'!B:B,B32)=0,"-",COUNTIF('N PMČRj 2022'!B:B,B32)) -> - | N32: =IF(ISERROR(VLOOKUP(B32,'N PMČRj 2022'!B:G,6,0)),"-",VLOOKUP(B32,'N PMČRj 2022'!B:G,6,0)) -> -
A33: 25 | B33: Tereza Koubkova | C33: =VLOOKUP(B33,Pilot!A:C,3,0) -> Vysoké Mýto | D33: =VLOOKUP(B33,Pilot!A:B,2,0) -> 1999 | E33: =VLOOKUP(B33,Pilot!A:E,5,0) -> F | F33: =VLOOKUP(B33,Pilot!A:F,6,0) -> Junior v roce 2022 | G33: 25 | I33: 1 | J33: 25 | K33: =IF(COUNTIF('N PMRg 2022'!B:B,B33)=0,"-",COUNTIF('N PMRg 2022'!B:B,B33)) -> - | L33: =IF(ISERROR(VLOOKUP(B33,'N PMRg 2022'!B:G,6,0)),"-",VLOOKUP(B33,'N PMRg 2022'!B:G,6,0)) -> - | M33: =IF(COUNTIF('N PMČRj 2022'!B:B,B33)=0,"-",COUNTIF('N PMČRj 2022'!B:B,B33)) -> 1 | N33: =IF(ISERROR(VLOOKUP(B33,'N PMČRj 2022'!B:G,6,0)),"-",VLOOKUP(B33,'N PMČRj 2022'!B:G,6,0)) -> 5
A34: 26 | B34: Jana Veprekova | C34: =VLOOKUP(B34,Pilot!A:C,3,0) -> Dvůr Králové | D34: =VLOOKUP(B34,Pilot!A:B,2,0) -> 1961 | E34: =VLOOKUP(B34,Pilot!A:E,5,0) -> F | F34: =VLOOKUP(B34,Pilot!A:F,6,0) ->  | G34: =A34 -> 26 | I34: 1 | J34: 26 | K34: =IF(COUNTIF('N PMRg 2022'!B:B,B34)=0,"-",COUNTIF('N PMRg 2022'!B:B,B34)) -> - | L34: =IF(ISERROR(VLOOKUP(B34,'N PMRg 2022'!B:G,6,0)),"-",VLOOKUP(B34,'N PMRg 2022'!B:G,6,0)) -> - | M34: =IF(COUNTIF('N PMČRj 2022'!B:B,B34)=0,"-",COUNTIF('N PMČRj 2022'!B:B,B34)) -> - | N34: =IF(ISERROR(VLOOKUP(B34,'N PMČRj 2022'!B:G,6,0)),"-",VLOOKUP(B34,'N PMČRj 2022'!B:G,6,0)) -> -
A35: 27 | B35: Jana Treslova | C35: =VLOOKUP(B35,Pilot!A:C,3,0) -> Raná | D35: =VLOOKUP(B35,Pilot!A:B,2,0) -> 1963 | E35: =VLOOKUP(B35,Pilot!A:E,5,0) -> F | F35: =VLOOKUP(B35,Pilot!A:F,6,0) ->  | G35: 27 | I35: 1 | J35: 27 | K35: =IF(COUNTIF('N PMRg 2022'!B:B,B35)=0,"-",COUNTIF('N PMRg 2022'!B:B,B35)) -> - | L35: =IF(ISERROR(VLOOKUP(B35,'N PMRg 2022'!B:G,6,0)),"-",VLOOKUP(B35,'N PMRg 2022'!B:G,6,0)) -> - | M35: =IF(COUNTIF('N PMČRj 2022'!B:B,B35)=0,"-",COUNTIF('N PMČRj 2022'!B:B,B35)) -> - | N35: =IF(ISERROR(VLOOKUP(B35,'N PMČRj 2022'!B:G,6,0)),"-",VLOOKUP(B35,'N PMČRj 2022'!B:G,6,0)) -> -
A36: 28 | B36: Ivan Tvrdik | C36: =VLOOKUP(B36,Pilot!A:C,3,0) -> Letňany | D36: =VLOOKUP(B36,Pilot!A:B,2,0) -> 1997 | E36: =VLOOKUP(B36,Pilot!A:E,5,0) -> M | F36: =VLOOKUP(B36,Pilot!A:F,6,0) -> Junior v roce 2022 | G36: 28 | I36: 1 | J36: 28 | K36: =IF(COUNTIF('N PMRg 2022'!B:B,B36)=0,"-",COUNTIF('N PMRg 2022'!B:B,B36)) -> - | L36: =IF(ISERROR(VLOOKUP(B36,'N PMRg 2022'!B:G,6,0)),"-",VLOOKUP(B36,'N PMRg 2022'!B:G,6,0)) -> - | M36: =IF(COUNTIF('N PMČRj 2022'!B:B,B36)=0,"-",COUNTIF('N PMČRj 2022'!B:B,B36)) -> 1 | N36: =IF(ISERROR(VLOOKUP(B36,'N PMČRj 2022'!B:G,6,0)),"-",VLOOKUP(B36,'N PMČRj 2022'!B:G,6,0)) -> 6
A37: 29 | B37: Barbora Moravcova | C37: =VLOOKUP(B37,Pilot!A:C,3,0) -> Zbraslavice | D37: =VLOOKUP(B37,Pilot!A:B,2,0) -> 1994 | E37: =VLOOKUP(B37,Pilot!A:E,5,0) -> F | F37: =VLOOKUP(B37,Pilot!A:F,6,0) ->  | G37: 29 | I37: 1 | J37: 29 | K37: =IF(COUNTIF('N PMRg 2022'!B:B,B37)=0,"-",COUNTIF('N PMRg 2022'!B:B,B37)) -> - | L37: =IF(ISERROR(VLOOKUP(B37,'N PMRg 2022'!B:G,6,0)),"-",VLOOKUP(B37,'N PMRg 2022'!B:G,6,0)) -> - | M37: =IF(COUNTIF('N PMČRj 2022'!B:B,B37)=0,"-",COUNTIF('N PMČRj 2022'!B:B,B37)) -> - | N37: =IF(ISERROR(VLOOKUP(B37,'N PMČRj 2022'!B:G,6,0)),"-",VLOOKUP(B37,'N PMČRj 2022'!B:G,6,0)) -> -
A38: 30 | B38: Dana Novakova | C38: =VLOOKUP(B38,Pilot!A:C,3,0) -> Mladá Boleslav | D38: =VLOOKUP(B38,Pilot!A:B,2,0) -> 1965 | E38: =VLOOKUP(B38,Pilot!A:E,5,0) -> F | F38: =VLOOKUP(B38,Pilot!A:F,6,0) ->  | G38: 30 | I38: 1 | J38: 30 | K38: =IF(COUNTIF('N PMRg 2022'!B:B,B38)=0,"-",COUNTIF('N PMRg 2022'!B:B,B38)) -> - | L38: =IF(ISERROR(VLOOKUP(B38,'N PMRg 2022'!B:G,6,0)),"-",VLOOKUP(B38,'N PMRg 2022'!B:G,6,0)) -> - | M38: =IF(COUNTIF('N PMČRj 2022'!B:B,B38)=0,"-",COUNTIF('N PMČRj 2022'!B:B,B38)) -> - | N38: =IF(ISERROR(VLOOKUP(B38,'N PMČRj 2022'!B:G,6,0)),"-",VLOOKUP(B38,'N PMČRj 2022'!B:G,6,0)) -> -
A39: 31 | B39: Lenka Kuthanova | C39: =VLOOKUP(B39,Pilot!A:C,3,0) -> Tábor | D39: =VLOOKUP(B39,Pilot!A:B,2,0) -> 1960 | E39: =VLOOKUP(B39,Pilot!A:E,5,0) -> F | F39: =VLOOKUP(B39,Pilot!A:F,6,0) ->  | G39: =A39 -> 31 | I39: 1 | J39: 31 | K39: =IF(COUNTIF('N PMRg 2022'!B:B,B39)=0,"-",COUNTIF('N PMRg 2022'!B:B,B39)) -> - | L39: =IF(ISERROR(VLOOKUP(B39,'N PMRg 2022'!B:G,6,0)),"-",VLOOKUP(B39,'N PMRg 2022'!B:G,6,0)) -> - | M39: =IF(COUNTIF('N PMČRj 2022'!B:B,B39)=0,"-",COUNTIF('N PMČRj 2022'!B:B,B39)) -> - | N39: =IF(ISERROR(VLOOKUP(B39,'N PMČRj 2022'!B:G,6,0)),"-",VLOOKUP(B39,'N PMČRj 2022'!B:G,6,0)) -> -
A40: 32 | B40: Michaela Krizova | C40: =VLOOKUP(B40,Pilot!A:C,3,0) -> Přibyslav | D40: =VLOOKUP(B40,Pilot!A:B,2,0) -> 2001 | E40: =VLOOKUP(B40,Pilot!A:E,5,0) -> F | F40: =VLOOKUP(B40,Pilot!A:F,6,0) -> Junior v roce 2022 | G40: 32 | I40: 1 | J40: 32 | K40: =IF(COUNTIF('N PMRg 2022'!B:B,B40)=0,"-",COUNTIF('N PMRg 2022'!B:B,B40)) -> - | L40: =IF(ISERROR(VLOOKUP(B40,'N PMRg 2022'!B:G,6,0)),"-",VLOOKUP(B40,'N PMRg 2022'!B:G,6,0)) -> - | M40: =IF(COUNTIF('N PMČRj 2022'!B:B,B40)=0,"-",COUNTIF('N PMČRj 2022'!B:B,B40)) -> 1 | N40: =IF(ISERROR(VLOOKUP(B40,'N PMČRj 2022'!B:G,6,0)),"-",VLOOKUP(B40,'N PMČRj 2022'!B:G,6,0)) -> 7
A41: 6.6.6.2. | B41: další soutěžící, kteří se umístili v konečném pořadí na posledním platném PMČR ve své třídě nejhůře v první polovině celkového pořadí (bez náhradníků)
B42: PMČR 2021 - Tábor - Klub
A43: =MAX(A9:A41)+1 -> 33 | B43: Jakub Hlavacek | C43: =VLOOKUP(B43,Pilot!A:C,3,0) -> Letkov | D43: =VLOOKUP(B43,Pilot!A:B,2,0) -> 1991 | E43: =VLOOKUP(B43,Pilot!A:E,5,0) -> M | F43: =VLOOKUP(B43,Pilot!A:F,6,0) ->  | G43: =A43 -> 33 | I43: =COUNTIF(B:B,B43) -> 1 | J43: =IF(ISERROR(VLOOKUP(B43,B:G,6,0)),"-",VLOOKUP(B43,B:G,6,0)) -> 33 | K43: =IF(COUNTIF('N PMRg 2022'!B:B,B43)=0,"-",COUNTIF('N PMRg 2022'!B:B,B43)) -> - | L43: =IF(ISERROR(VLOOKUP(B43,'N PMRg 2022'!B:G,6,0)),"-",VLOOKUP(B43,'N PMRg 2022'!B:G,6,0)) -> - | M43: =IF(COUNTIF('N PMČRj 2022'!B:B,B43)=0,"-",COUNTIF('N PMČRj 2022'!B:B,B43)) -> - | N43: =IF(ISERROR(VLOOKUP(B43,'N PMČRj 2022'!B:G,6,0)),"-",VLOOKUP(B43,'N PMČRj 2022'!B:G,6,0)) -> -
A44: =A43+1 -> 34 | B44: Zdenek Boruvka 86 | C44: =VLOOKUP(B44,Pilot!A:C,3,0) -> Jičín | D44: =VLOOKUP(B44,Pilot!A:B,2,0) -> 1986 | E44: =VLOOKUP(B44,Pilot!A:E,5,0) -> M | F44: =VLOOKUP(B44,Pilot!A:F,6,0) ->  | G44: =A44 -> 34 | I44: =COUNTIF(B:B,B44) -> 1 | J44: =IF(ISERROR(VLOOKUP(B44,B:G,6,0)),"-",VLOOKUP(B44,B:G,6,0)) -> 34 | K44: =IF(COUNTIF('N PMRg 2022'!B:B,B44)=0,"-",COUNTIF('N PMRg 2022'!B:B,B44)) -> - | L44: =IF(ISERROR(VLOOKUP(B44,'N PMRg 2022'!B:G,6,0)),"-",VLOOKUP(B44,'N PMRg 2022'!B:G,6,0)) -> - | M44: =IF(COUNTIF('N PMČRj 2022'!B:B,B44)=0,"-",COUNTIF('N PMČRj 2022'!B:B,B44)) -> - | N44: =IF(ISERROR(VLOOKUP(B44,'N PMČRj 2022'!B:G,6,0)),"-",VLOOKUP(B44,'N PMČRj 2022'!B:G,6,0)) -> -
A45: =A44+1 -> 35 | B45: Pavel Rericha | C45: =VLOOKUP(B45,Pilot!A:C,3,0) -> Moravská Třebová | D45: =VLOOKUP(B45,Pilot!A:B,2,0) -> 1967 | E45: =VLOOKUP(B45,Pilot!A:E,5,0) -> M | F45: =VLOOKUP(B45,Pilot!A:F,6,0) ->  | G45: =A45 -> 35 | I45: =COUNTIF(B:B,B45) -> 1 | J45: =IF(ISERROR(VLOOKUP(B45,B:G,6,0)),"-",VLOOKUP(B45,B:G,6,0)) -> 35 | K45: =IF(COUNTIF('N PMRg 2022'!B:B,B45)=0,"-",COUNTIF('N PMRg 2022'!B:B,B45)) -> - | L45: =IF(ISERROR(VLOOKUP(B45,'N PMRg 2022'!B:G,6,0)),"-",VLOOKUP(B45,'N PMRg 2022'!B:G,6,0)) -> - | M45: =IF(COUNTIF('N PMČRj 2022'!B:B,B45)=0,"-",COUNTIF('N PMČRj 2022'!B:B,B45)) -> - | N45: =IF(ISERROR(VLOOKUP(B45,'N PMČRj 2022'!B:G,6,0)),"-",VLOOKUP(B45,'N PMČRj 2022'!B:G,6,0)) -> -
B46: PMČR 2021 - Tábor - Kombi 15m
A47: =MAX(A43:A46)+1 -> 36 | B47: Jan Horak | C47: =VLOOKUP(B47,Pilot!A:C,3,0) -> Zbraslavice | D47: =VLOOKUP(B47,Pilot!A:B,2,0) -> 1971 | E47: =VLOOKUP(B47,Pilot!A:E,5,0) -> M | F47: =VLOOKUP(B47,Pilot!A:F,6,0) ->  | G47: =A47 -> 36 | I47: =COUNTIF(B:B,B47) -> 1 | J47: =IF(ISERROR(VLOOKUP(B47,B:G,6,0)),"-",VLOOKUP(B47,B:G,6,0)) -> 36 | K47: =IF(COUNTIF('N PMRg 2022'!B:B,B47)=0,"-",COUNTIF('N PMRg 2022'!B:B,B47)) -> - | L47: =IF(ISERROR(VLOOKUP(B47,'N PMRg 2022'!B:G,6,0)),"-",VLOOKUP(B47,'N PMRg 2022'!B:G,6,0)) -> - | M47: =IF(COUNTIF('N PMČRj 2022'!B:B,B47)=0,"-",COUNTIF('N PMČRj 2022'!B:B,B47)) -> - | N47: =IF(ISERROR(VLOOKUP(B47,'N PMČRj 2022'!B:G,6,0)),"-",VLOOKUP(B47,'N PMČRj 2022'!B:G,6,0)) -> -
B48: PMČR 2021 - Tábor - Kombi Open
A49: =MAX(A47:A48)+1 -> 37 | B49: Jan Boruvka | C49: =VLOOKUP(B49,Pilot!A:C,3,0) -> Jičín | D49: =VLOOKUP(B49,Pilot!A:B,2,0) -> 1984 | E49: =VLOOKUP(B49,Pilot!A:E,5,0) -> M | F49: =VLOOKUP(B49,Pilot!A:F,6,0) ->  | G49: =A49 -> 37 | I49: =COUNTIF(B:B,B49) -> 1 | J49: =IF(ISERROR(VLOOKUP(B49,B:G,6,0)),"-",VLOOKUP(B49,B:G,6,0)) -> 37 | K49: =IF(COUNTIF('N PMRg 2022'!B:B,B49)=0,"-",COUNTIF('N PMRg 2022'!B:B,B49)) -> - | L49: =IF(ISERROR(VLOOKUP(B49,'N PMRg 2022'!B:G,6,0)),"-",VLOOKUP(B49,'N PMRg 2022'!B:G,6,0)) -> - | M49: =IF(COUNTIF('N PMČRj 2022'!B:B,B49)=0,"-",COUNTIF('N PMČRj 2022'!B:B,B49)) -> - | N49: =IF(ISERROR(VLOOKUP(B49,'N PMČRj 2022'!B:G,6,0)),"-",VLOOKUP(B49,'N PMČRj 2022'!B:G,6,0)) -> -
A50: =A49+1 -> 38 | B50: Martin Hrivna | C50: =VLOOKUP(B50,Pilot!A:C,3,0) -> Zbraslavice | D50: =VLOOKUP(B50,Pilot!A:B,2,0) -> 1978 | E50: =VLOOKUP(B50,Pilot!A:E,5,0) -> M | F50: =VLOOKUP(B50,Pilot!A:F,6,0) ->  | G50: 38 | I50: =COUNTIF(B:B,B50) -> 1 | J50: =IF(ISERROR(VLOOKUP(B50,B:G,6,0)),"-",VLOOKUP(B50,B:G,6,0)) -> 38 | K50: =IF(COUNTIF('N PMRg 2022'!B:B,B50)=0,"-",COUNTIF('N PMRg 2022'!B:B,B50)) -> - | L50: =IF(ISERROR(VLOOKUP(B50,'N PMRg 2022'!B:G,6,0)),"-",VLOOKUP(B50,'N PMRg 2022'!B:G,6,0)) -> - | M50: =IF(COUNTIF('N PMČRj 2022'!B:B,B50)=0,"-",COUNTIF('N PMČRj 2022'!B:B,B50)) -> - | N50: =IF(ISERROR(VLOOKUP(B50,'N PMČRj 2022'!B:G,6,0)),"-",VLOOKUP(B50,'N PMČRj 2022'!B:G,6,0)) -> -
A51: =A50+1 -> 39 | B51: Tomas Rendla | C51: =VLOOKUP(B51,Pilot!A:C,3,0) -> Zbraslavice | D51: =VLOOKUP(B51,Pilot!A:B,2,0) -> 1973 | E51: =VLOOKUP(B51,Pilot!A:E,5,0) -> M | F51: =VLOOKUP(B51,Pilot!A:F,6,0) ->  | G51: 39 | I51: =COUNTIF(B:B,B51) -> 1 | J51: =IF(ISERROR(VLOOKUP(B51,B:G,6,0)),"-",VLOOKUP(B51,B:G,6,0)) -> 39 | K51: =IF(COUNTIF('N PMRg 2022'!B:B,B51)=0,"-",COUNTIF('N PMRg 2022'!B:B,B51)) -> - | L51: =IF(ISERROR(VLOOKUP(B51,'N PMRg 2022'!B:G,6,0)),"-",VLOOKUP(B51,'N PMRg 2022'!B:G,6,0)) -> - | M51: =IF(COUNTIF('N PMČRj 2022'!B:B,B51)=0,"-",COUNTIF('N PMČRj 2022'!B:B,B51)) -> - | N51: =IF(ISERROR(VLOOKUP(B51,'N PMČRj 2022'!B:G,6,0)),"-",VLOOKUP(B51,'N PMČRj 2022'!B:G,6,0)) -> -
A52: 40 | B52: Radek Zima 78 | C52: =VLOOKUP(B52,Pilot!A:C,3,0) -> Hodkovice | D52: =VLOOKUP(B52,Pilot!A:B,2,0) -> 1978 | E52: =VLOOKUP(B52,Pilot!A:E,5,0) -> M | F52: =VLOOKUP(B52,Pilot!A:F,6,0) ->  | G52: 40 | I52: =COUNTIF(B:B,B52) -> 1 | J52: =IF(ISERROR(VLOOKUP(B52,B:G,6,0)),"-",VLOOKUP(B52,B:G,6,0)) -> 40 | K52: =IF(COUNTIF('N PMRg 2022'!B:B,B52)=0,"-",COUNTIF('N PMRg 2022'!B:B,B52)) -> - | L52: =IF(ISERROR(VLOOKUP(B52,'N PMRg 2022'!B:G,6,0)),"-",VLOOKUP(B52,'N PMRg 2022'!B:G,6,0)) -> - | M52: =IF(COUNTIF('N PMČRj 2022'!B:B,B52)=0,"-",COUNTIF('N PMČRj 2022'!B:B,B52)) -> - | N52: =IF(ISERROR(VLOOKUP(B52,'N PMČRj 2022'!B:G,6,0)),"-",VLOOKUP(B52,'N PMČRj 2022'!B:G,6,0)) -> -
A53: 41 | B53: Petr Krejcirik | C53: =VLOOKUP(B53,Pilot!A:C,3,0) -> Hranice | D53: =VLOOKUP(B53,Pilot!A:B,2,0) -> 1960 | E53: =VLOOKUP(B53,Pilot!A:E,5,0) -> M | F53: =VLOOKUP(B53,Pilot!A:F,6,0) ->  | G53: 41 | I53: =COUNTIF(B:B,B53) -> 1 | J53: =IF(ISERROR(VLOOKUP(B53,B:G,6,0)),"-",VLOOKUP(B53,B:G,6,0)) -> 41 | K53: =IF(COUNTIF('N PMRg 2022'!B:B,B53)=0,"-",COUNTIF('N PMRg 2022'!B:B,B53)) -> - | L53: =IF(ISERROR(VLOOKUP(B53,'N PMRg 2022'!B:G,6,0)),"-",VLOOKUP(B53,'N PMRg 2022'!B:G,6,0)) -> - | M53: =IF(COUNTIF('N PMČRj 2022'!B:B,B53)=0,"-",COUNTIF('N PMČRj 2022'!B:B,B53)) -> - | N53: =IF(ISERROR(VLOOKUP(B53,'N PMČRj 2022'!B:G,6,0)),"-",VLOOKUP(B53,'N PMČRj 2022'!B:G,6,0)) -> -
A54: 6.6.6.3. | B54: prvních 5 soutěžících z posledního platného PMČRj mimo RV (+ 5 náhradníků)
B55: PMČRj 2021 - Moravská Třebová - Klub
A56: =MAX(A42:A54)+1 -> 42 | B56: Jan Stastny | C56: =VLOOKUP(B56,Pilot!A:C,3,0) -> Medlánky | D56: =VLOOKUP(B56,Pilot!A:B,2,0) -> 2003 | E56: =VLOOKUP(B56,Pilot!A:E,5,0) -> M | F56: =VLOOKUP(B56,Pilot!A:F,6,0) -> Junior v roce 2022 | G56: =A56 -> 42 | I56: =COUNTIF(B:B,B56) -> 1 | J56: =IF(ISERROR(VLOOKUP(B56,B:G,6,0)),"-",VLOOKUP(B56,B:G,6,0)) -> 42 | K56: =IF(COUNTIF('N PMRg 2022'!B:B,B56)=0,"-",COUNTIF('N PMRg 2022'!B:B,B56)) -> - | L56: =IF(ISERROR(VLOOKUP(B56,'N PMRg 2022'!B:G,6,0)),"-",VLOOKUP(B56,'N PMRg 2022'!B:G,6,0)) -> - | M56: =IF(COUNTIF('N PMČRj 2022'!B:B,B56)=0,"-",COUNTIF('N PMČRj 2022'!B:B,B56)) -> 1 | N56: =IF(ISERROR(VLOOKUP(B56,'N PMČRj 2022'!B:G,6,0)),"-",VLOOKUP(B56,'N PMČRj 2022'!B:G,6,0)) -> 9
A57: =A56+1 -> 43 | B57: Vladimir Hammer | C57: =VLOOKUP(B57,Pilot!A:C,3,0) -> Letkov | D57: =VLOOKUP(B57,Pilot!A:B,2,0) -> 2000 | E57: =VLOOKUP(B57,Pilot!A:E,5,0) -> M | F57: =VLOOKUP(B57,Pilot!A:F,6,0) -> Junior v roce 2022 | G57: 43 | I57: 1 | J57: 43 | K57: =IF(COUNTIF('N PMRg 2022'!B:B,B57)=0,"-",COUNTIF('N PMRg 2022'!B:B,B57)) -> - | L57: =IF(ISERROR(VLOOKUP(B57,'N PMRg 2022'!B:G,6,0)),"-",VLOOKUP(B57,'N PMRg 2022'!B:G,6,0)) -> - | M57: =IF(COUNTIF('N PMČRj 2022'!B:B,B57)=0,"-",COUNTIF('N PMČRj 2022'!B:B,B57)) -> 1 | N57: =IF(ISERROR(VLOOKUP(B57,'N PMČRj 2022'!B:G,6,0)),"-",VLOOKUP(B57,'N PMČRj 2022'!B:G,6,0)) -> 10
A58: =A57+1 -> 44 | B58: Tomas Hynek | C58: =VLOOKUP(B58,Pilot!A:C,3,0) -> Dvůr Králové | D58: =VLOOKUP(B58,Pilot!A:B,2,0) -> 2002 | E58: =VLOOKUP(B58,Pilot!A:E,5,0) -> M | F58: =VLOOKUP(B58,Pilot!A:F,6,0) -> Junior v roce 2022 | G58: 44 | I58: 1 | J58: 44 | K58: =IF(COUNTIF('N PMRg 2022'!B:B,B58)=0,"-",COUNTIF('N PMRg 2022'!B:B,B58)) -> - | L58: =IF(ISERROR(VLOOKUP(B58,'N PMRg 2022'!B:G,6,0)),"-",VLOOKUP(B58,'N PMRg 2022'!B:G,6,0)) -> - | M58: =IF(COUNTIF('N PMČRj 2022'!B:B,B58)=0,"-",COUNTIF('N PMČRj 2022'!B:B,B58)) -> 1 | N58: =IF(ISERROR(VLOOKUP(B58,'N PMČRj 2022'!B:G,6,0)),"-",VLOOKUP(B58,'N PMČRj 2022'!B:G,6,0)) -> 11
A59: =A58+1 -> 45 | B59: Tomas Hulmak | C59: =VLOOKUP(B59,Pilot!A:C,3,0) -> Hosín | D59: =VLOOKUP(B59,Pilot!A:B,2,0) -> 1999 | E59: =VLOOKUP(B59,Pilot!A:E,5,0) -> M | F59: =VLOOKUP(B59,Pilot!A:F,6,0) -> Junior v roce 2022 | G59: 45 | I59: 1 | J59: 45 | K59: =IF(COUNTIF('N PMRg 2022'!B:B,B59)=0,"-",COUNTIF('N PMRg 2022'!B:B,B59)) -> - | L59: =IF(ISERROR(VLOOKUP(B59,'N PMRg 2022'!B:G,6,0)),"-",VLOOKUP(B59,'N PMRg 2022'!B:G,6,0)) -> - | M59: =IF(COUNTIF('N PMČRj 2022'!B:B,B59)=0,"-",COUNTIF('N PMČRj 2022'!B:B,B59)) -> 1 | N59: =IF(ISERROR(VLOOKUP(B59,'N PMČRj 2022'!B:G,6,0)),"-",VLOOKUP(B59,'N PMČRj 2022'!B:G,6,0)) -> 12
A60: =A59+1 -> 46 | B60: Lukas Volek | C60: =VLOOKUP(B60,Pilot!A:C,3,0) -> Hodkovice | D60: =VLOOKUP(B60,Pilot!A:B,2,0) -> 2004 | E60: =VLOOKUP(B60,Pilot!A:E,5,0) -> M | F60: =VLOOKUP(B60,Pilot!A:F,6,0) -> Junior v roce 2022 | G60: 46 | I60: 1 | J60: 46 | K60: =IF(COUNTIF('N PMRg 2022'!B:B,B60)=0,"-",COUNTIF('N PMRg 2022'!B:B,B60)) -> - | L60: =IF(ISERROR(VLOOKUP(B60,'N PMRg 2022'!B:G,6,0)),"-",VLOOKUP(B60,'N PMRg 2022'!B:G,6,0)) -> - | M60: =IF(COUNTIF('N PMČRj 2022'!B:B,B60)=0,"-",COUNTIF('N PMČRj 2022'!B:B,B60)) -> 1 | N60: =IF(ISERROR(VLOOKUP(B60,'N PMČRj 2022'!B:G,6,0)),"-",VLOOKUP(B60,'N PMČRj 2022'!B:G,6,0)) -> 13
A61: N1 | B61: Petr Havelka | C61: =VLOOKUP(B61,Pilot!A:C,3,0) -> Zbraslavice | D61: =VLOOKUP(B61,Pilot!A:B,2,0) -> 1997 | E61: =VLOOKUP(B61,Pilot!A:E,5,0) -> M | F61: =VLOOKUP(B61,Pilot!A:F,6,0) -> Junior v roce 2022 | G61: N1 | I61: 1 | J61: N1 | K61: =IF(COUNTIF('N PMRg 2022'!B:B,B61)=0,"-",COUNTIF('N PMRg 2022'!B:B,B61)) -> - | L61: =IF(ISERROR(VLOOKUP(B61,'N PMRg 2022'!B:G,6,0)),"-",VLOOKUP(B61,'N PMRg 2022'!B:G,6,0)) -> - | M61: =IF(COUNTIF('N PMČRj 2022'!B:B,B61)=0,"-",COUNTIF('N PMČRj 2022'!B:B,B61)) -> 1 | N61: =IF(ISERROR(VLOOKUP(B61,'N PMČRj 2022'!B:G,6,0)),"-",VLOOKUP(B61,'N PMČRj 2022'!B:G,6,0)) -> 14
A62: N2 | B62: Tomas Moravec | C62: =VLOOKUP(B62,Pilot!A:C,3,0) -> Žamberk | D62: =VLOOKUP(B62,Pilot!A:B,2,0) -> 2000 | E62: =VLOOKUP(B62,Pilot!A:E,5,0) -> M | F62: =VLOOKUP(B62,Pilot!A:F,6,0) -> Junior v roce 2022 | G62: N2 | I62: 1 | J62: N2 | K62: =IF(COUNTIF('N PMRg 2022'!B:B,B62)=0,"-",COUNTIF('N PMRg 2022'!B:B,B62)) -> - | L62: =IF(ISERROR(VLOOKUP(B62,'N PMRg 2022'!B:G,6,0)),"-",VLOOKUP(B62,'N PMRg 2022'!B:G,6,0)) -> - | M62: =IF(COUNTIF('N PMČRj 2022'!B:B,B62)=0,"-",COUNTIF('N PMČRj 2022'!B:B,B62)) -> 1 | N62: =IF(ISERROR(VLOOKUP(B62,'N PMČRj 2022'!B:G,6,0)),"-",VLOOKUP(B62,'N PMČRj 2022'!B:G,6,0)) -> 15
A63: N3 | B63: Lukas Maly | C63: =VLOOKUP(B63,Pilot!A:C,3,0) -> Vysoké Mýto | D63: =VLOOKUP(B63,Pilot!A:B,2,0) -> 1998 | E63: =VLOOKUP(B63,Pilot!A:E,5,0) -> M | F63: =VLOOKUP(B63,Pilot!A:F,6,0) -> Junior v roce 2022 | G63: N3 | I63: 1 | J63: N3 | K63: =IF(COUNTIF('N PMRg 2022'!B:B,B63)=0,"-",COUNTIF('N PMRg 2022'!B:B,B63)) -> - | L63: =IF(ISERROR(VLOOKUP(B63,'N PMRg 2022'!B:G,6,0)),"-",VLOOKUP(B63,'N PMRg 2022'!B:G,6,0)) -> - | M63: =IF(COUNTIF('N PMČRj 2022'!B:B,B63)=0,"-",COUNTIF('N PMČRj 2022'!B:B,B63)) -> 1 | N63: =IF(ISERROR(VLOOKUP(B63,'N PMČRj 2022'!B:G,6,0)),"-",VLOOKUP(B63,'N PMČRj 2022'!B:G,6,0)) -> 16
A64: N4 | B64: Vit Tvrdik | C64: =VLOOKUP(B64,Pilot!A:C,3,0) -> Letňany | D64: =VLOOKUP(B64,Pilot!A:B,2,0) -> 2000 | E64: =VLOOKUP(B64,Pilot!A:E,5,0) -> M | F64: =VLOOKUP(B64,Pilot!A:F,6,0) -> Junior v roce 2022 | G64: N4 | I64: 1 | J64: N4 | K64: =IF(COUNTIF('N PMRg 2022'!B:B,B64)=0,"-",COUNTIF('N PMRg 2022'!B:B,B64)) -> - | L64: =IF(ISERROR(VLOOKUP(B64,'N PMRg 2022'!B:G,6,0)),"-",VLOOKUP(B64,'N PMRg 2022'!B:G,6,0)) -> - | M64: =IF(COUNTIF('N PMČRj 2022'!B:B,B64)=0,"-",COUNTIF('N PMČRj 2022'!B:B,B64)) -> 1 | N64: =IF(ISERROR(VLOOKUP(B64,'N PMČRj 2022'!B:G,6,0)),"-",VLOOKUP(B64,'N PMČRj 2022'!B:G,6,0)) -> 17
A65: N5 | B65: Ondrej Dvorak 98 | C65: =VLOOKUP(B65,Pilot!A:C,3,0) -> Mladá Boleslav | D65: =VLOOKUP(B65,Pilot!A:B,2,0) -> 1998 | E65: =VLOOKUP(B65,Pilot!A:E,5,0) -> M | F65: =VLOOKUP(B65,Pilot!A:F,6,0) -> Junior v roce 2022 | G65: N5 | I65: 1 | J65: N5 | K65: =IF(COUNTIF('N PMRg 2022'!B:B,B65)=0,"-",COUNTIF('N PMRg 2022'!B:B,B65)) -> - | L65: =IF(ISERROR(VLOOKUP(B65,'N PMRg 2022'!B:G,6,0)),"-",VLOOKUP(B65,'N PMRg 2022'!B:G,6,0)) -> - | M65: =IF(COUNTIF('N PMČRj 2022'!B:B,B65)=0,"-",COUNTIF('N PMČRj 2022'!B:B,B65)) -> 1 | N65: =IF(ISERROR(VLOOKUP(B65,'N PMČRj 2022'!B:G,6,0)),"-",VLOOKUP(B65,'N PMČRj 2022'!B:G,6,0)) -> 18
A66: 6.6.6.4. | B66: 5 soutěžících může navrhnout PK podle jiných kritérií dle odstavce 9. (bez náhradníků)
A67: 81. | B67: - | C67: =VLOOKUP(B67,Pilot!A:C,3,0) ->  | D67: =VLOOKUP(B67,Pilot!A:B,2,0) ->  | E67: =VLOOKUP(B67,Pilot!A:E,5,0) ->  | F67: =VLOOKUP(B67,Pilot!A:F,6,0) ->  | G67: =A67 -> 81. | I67: =COUNTIF(B:B,B67) -> 5 | J67: =IF(ISERROR(VLOOKUP(B67,B:G,6,0)),"-",VLOOKUP(B67,B:G,6,0)) -> 81. | K67: =IF(COUNTIF('N PMRg 2022'!B:B,B67)=0,"-",COUNTIF('N PMRg 2022'!B:B,B67)) -> 70 | L67: =IF(ISERROR(VLOOKUP(B67,'N PMRg 2022'!B:G,6,0)),"-",VLOOKUP(B67,'N PMRg 2022'!B:G,6,0)) -> - | M67: =IF(COUNTIF('N PMČRj 2022'!B:B,B67)=0,"-",COUNTIF('N PMČRj 2022'!B:B,B67)) -> 35 | N67: =IF(ISERROR(VLOOKUP(B67,'N PMČRj 2022'!B:G,6,0)),"-",VLOOKUP(B67,'N PMČRj 2022'!B:G,6,0)) -> 21
A68: 82. | B68: - | C68: =VLOOKUP(B68,Pilot!A:C,3,0) ->  | D68: =VLOOKUP(B68,Pilot!A:B,2,0) ->  | E68: =VLOOKUP(B68,Pilot!A:E,5,0) ->  | F68: =VLOOKUP(B68,Pilot!A:F,6,0) ->  | G68: =A68 -> 82. | I68: =COUNTIF(B:B,B68) -> 5 | J68: =IF(ISERROR(VLOOKUP(B68,B:G,6,0)),"-",VLOOKUP(B68,B:G,6,0)) -> 81. | K68: =IF(COUNTIF('N PMRg 2022'!B:B,B68)=0,"-",COUNTIF('N PMRg 2022'!B:B,B68)) -> 70 | L68: =IF(ISERROR(VLOOKUP(B68,'N PMRg 2022'!B:G,6,0)),"-",VLOOKUP(B68,'N PMRg 2022'!B:G,6,0)) -> - | M68: =IF(COUNTIF('N PMČRj 2022'!B:B,B68)=0,"-",COUNTIF('N PMČRj 2022'!B:B,B68)) -> 35 | N68: =IF(ISERROR(VLOOKUP(B68,'N PMČRj 2022'!B:G,6,0)),"-",VLOOKUP(B68,'N PMČRj 2022'!B:G,6,0)) -> 21
A69: 83. | B69: - | C69: =VLOOKUP(B69,Pilot!A:C,3,0) ->  | D69: =VLOOKUP(B69,Pilot!A:B,2,0) ->  | E69: =VLOOKUP(B69,Pilot!A:E,5,0) ->  | F69: =VLOOKUP(B69,Pilot!A:F,6,0) ->  | G69: =A69 -> 83. | I69: =COUNTIF(B:B,B69) -> 5 | J69: =IF(ISERROR(VLOOKUP(B69,B:G,6,0)),"-",VLOOKUP(B69,B:G,6,0)) -> 81. | K69: =IF(COUNTIF('N PMRg 2022'!B:B,B69)=0,"-",COUNTIF('N PMRg 2022'!B:B,B69)) -> 70 | L69: =IF(ISERROR(VLOOKUP(B69,'N PMRg 2022'!B:G,6,0)),"-",VLOOKUP(B69,'N PMRg 2022'!B:G,6,0)) -> - | M69: =IF(COUNTIF('N PMČRj 2022'!B:B,B69)=0,"-",COUNTIF('N PMČRj 2022'!B:B,B69)) -> 35 | N69: =IF(ISERROR(VLOOKUP(B69,'N PMČRj 2022'!B:G,6,0)),"-",VLOOKUP(B69,'N PMČRj 2022'!B:G,6,0)) -> 21
A70: 84. | B70: - | C70: =VLOOKUP(B70,Pilot!A:C,3,0) ->  | D70: =VLOOKUP(B70,Pilot!A:B,2,0) ->  | E70: =VLOOKUP(B70,Pilot!A:E,5,0) ->  | F70: =VLOOKUP(B70,Pilot!A:F,6,0) ->  | G70: =A70 -> 84. | I70: =COUNTIF(B:B,B70) -> 5 | J70: =IF(ISERROR(VLOOKUP(B70,B:G,6,0)),"-",VLOOKUP(B70,B:G,6,0)) -> 81. | K70: =IF(COUNTIF('N PMRg 2022'!B:B,B70)=0,"-",COUNTIF('N PMRg 2022'!B:B,B70)) -> 70 | L70: =IF(ISERROR(VLOOKUP(B70,'N PMRg 2022'!B:G,6,0)),"-",VLOOKUP(B70,'N PMRg 2022'!B:G,6,0)) -> - | M70: =IF(COUNTIF('N PMČRj 2022'!B:B,B70)=0,"-",COUNTIF('N PMČRj 2022'!B:B,B70)) -> 35 | N70: =IF(ISERROR(VLOOKUP(B70,'N PMČRj 2022'!B:G,6,0)),"-",VLOOKUP(B70,'N PMČRj 2022'!B:G,6,0)) -> 21
A71: 85. | B71: - | C71: =VLOOKUP(B71,Pilot!A:C,3,0) ->  | D71: =VLOOKUP(B71,Pilot!A:B,2,0) ->  | E71: =VLOOKUP(B71,Pilot!A:E,5,0) ->  | F71: =VLOOKUP(B71,Pilot!A:F,6,0) ->  | G71: =A71 -> 85. | I71: =COUNTIF(B:B,B71) -> 5 | J71: =IF(ISERROR(VLOOKUP(B71,B:G,6,0)),"-",VLOOKUP(B71,B:G,6,0)) -> 81. | K71: =IF(COUNTIF('N PMRg 2022'!B:B,B71)=0,"-",COUNTIF('N PMRg 2022'!B:B,B71)) -> 70 | L71: =IF(ISERROR(VLOOKUP(B71,'N PMRg 2022'!B:G,6,0)),"-",VLOOKUP(B71,'N PMRg 2022'!B:G,6,0)) -> - | M71: =IF(COUNTIF('N PMČRj 2022'!B:B,B71)=0,"-",COUNTIF('N PMČRj 2022'!B:B,B71)) -> 35 | N71: =IF(ISERROR(VLOOKUP(B71,'N PMČRj 2022'!B:G,6,0)),"-",VLOOKUP(B71,'N PMČRj 2022'!B:G,6,0)) -> 21
A72: 6.6.6.5. | B72: ostatní soutěžící z posledního platného PMRg v pořadí podle umístění, do naplnění celkového počtu nominovaných 80 dle 6.6.5. (+ 10 náhradníků)
A73: 6.6.6.6. | B73: Je-li PMRg pořádáno ve více třídách, a/nebo ve více regionech, pak jsou na PMČR nominováni soutěžící podle korigovaných bodů z jednotlivých tříd/regionů do naplnění celkového počtu nominovaných dle 6.6.5.
A74: 6.6.6.7. | B74: V případě neplatnosti některé ze soutěžních tříd posledního PMRg budou pro výpočet korigovaných bodů použity výsledky z posledního platného PMRg v dané třídě.
B75: PMRg 2021 - Moravská Třebová - Korigované body
A76: =MAX(A56:A72)+1 -> 47 | B76: Jan Louda | C76: =VLOOKUP(B76,Pilot!A:C,3,0) -> Mladá Boleslav | D76: =VLOOKUP(B76,Pilot!A:B,2,0) -> 1986 | E76: =VLOOKUP(B76,Pilot!A:E,5,0) -> M | F76: =VLOOKUP(B76,Pilot!A:F,6,0) ->  | G76: =A76 -> 47 | I76: =COUNTIF(B:B,B76) -> 1 | J76: =IF(ISERROR(VLOOKUP(B76,B:G,6,0)),"-",VLOOKUP(B76,B:G,6,0)) -> 47 | K76: =IF(COUNTIF('N PMRg 2022'!B:B,B76)=0,"-",COUNTIF('N PMRg 2022'!B:B,B76)) -> - | L76: =IF(ISERROR(VLOOKUP(B76,'N PMRg 2022'!B:G,6,0)),"-",VLOOKUP(B76,'N PMRg 2022'!B:G,6,0)) -> - | M76: =IF(COUNTIF('N PMČRj 2022'!B:B,B76)=0,"-",COUNTIF('N PMČRj 2022'!B:B,B76)) -> - | N76: =IF(ISERROR(VLOOKUP(B76,'N PMČRj 2022'!B:G,6,0)),"-",VLOOKUP(B76,'N PMČRj 2022'!B:G,6,0)) -> -
A77: =A76+1 -> 48 | B77: Pavel Jiranek | C77: =VLOOKUP(B77,Pilot!A:C,3,0) -> Toužim | D77: =VLOOKUP(B77,Pilot!A:B,2,0) -> 1993 | E77: =VLOOKUP(B77,Pilot!A:E,5,0) -> M | F77: =VLOOKUP(B77,Pilot!A:F,6,0) ->  | G77: 48 | I77: 1 | J77: 48 | K77: =IF(COUNTIF('N PMRg 2022'!B:B,B77)=0,"-",COUNTIF('N PMRg 2022'!B:B,B77)) -> - | L77: =IF(ISERROR(VLOOKUP(B77,'N PMRg 2022'!B:G,6,0)),"-",VLOOKUP(B77,'N PMRg 2022'!B:G,6,0)) -> - | M77: =IF(COUNTIF('N PMČRj 2022'!B:B,B77)=0,"-",COUNTIF('N PMČRj 2022'!B:B,B77)) -> - | N77: =IF(ISERROR(VLOOKUP(B77,'N PMČRj 2022'!B:G,6,0)),"-",VLOOKUP(B77,'N PMČRj 2022'!B:G,6,0)) -> -
A78: =A77+1 -> 49 | B78: Pavel Trybenekr | C78: =VLOOKUP(B78,Pilot!A:C,3,0) -> Hořice | D78: =VLOOKUP(B78,Pilot!A:B,2,0) -> 1990 | E78: =VLOOKUP(B78,Pilot!A:E,5,0) -> M | F78: =VLOOKUP(B78,Pilot!A:F,6,0) ->  | G78: 49 | I78: 1 | J78: 49 | K78: =IF(COUNTIF('N PMRg 2022'!B:B,B78)=0,"-",COUNTIF('N PMRg 2022'!B:B,B78)) -> - | L78: =IF(ISERROR(VLOOKUP(B78,'N PMRg 2022'!B:G,6,0)),"-",VLOOKUP(B78,'N PMRg 2022'!B:G,6,0)) -> - | M78: =IF(COUNTIF('N PMČRj 2022'!B:B,B78)=0,"-",COUNTIF('N PMČRj 2022'!B:B,B78)) -> - | N78: =IF(ISERROR(VLOOKUP(B78,'N PMČRj 2022'!B:G,6,0)),"-",VLOOKUP(B78,'N PMČRj 2022'!B:G,6,0)) -> -
A79: 50 | B79: Jiri Stepanek | C79: =VLOOKUP(B79,Pilot!A:C,3,0) -> Moravská Třebová | D79: =VLOOKUP(B79,Pilot!A:B,2,0) -> 1956 | E79: =VLOOKUP(B79,Pilot!A:E,5,0) -> M | F79: =VLOOKUP(B79,Pilot!A:F,6,0) ->  | G79: 50 | I79: 1 | J79: 50 | K79: =IF(COUNTIF('N PMRg 2022'!B:B,B79)=0,"-",COUNTIF('N PMRg 2022'!B:B,B79)) -> - | L79: =IF(ISERROR(VLOOKUP(B79,'N PMRg 2022'!B:G,6,0)),"-",VLOOKUP(B79,'N PMRg 2022'!B:G,6,0)) -> - | M79: =IF(COUNTIF('N PMČRj 2022'!B:B,B79)=0,"-",COUNTIF('N PMČRj 2022'!B:B,B79)) -> - | N79: =IF(ISERROR(VLOOKUP(B79,'N PMČRj 2022'!B:G,6,0)),"-",VLOOKUP(B79,'N PMČRj 2022'!B:G,6,0)) -> -
A80: 51 | B80: Martin Stepanek | C80: =VLOOKUP(B80,Pilot!A:C,3,0) -> Moravská Třebová | D80: =VLOOKUP(B80,Pilot!A:B,2,0) -> 1987 | E80: =VLOOKUP(B80,Pilot!A:E,5,0) -> M | F80: =VLOOKUP(B80,Pilot!A:F,6,0) ->  | G80: 51 | I80: 1 | J80: 51 | K80: =IF(COUNTIF('N PMRg 2022'!B:B,B80)=0,"-",COUNTIF('N PMRg 2022'!B:B,B80)) -> - | L80: =IF(ISERROR(VLOOKUP(B80,'N PMRg 2022'!B:G,6,0)),"-",VLOOKUP(B80,'N PMRg 2022'!B:G,6,0)) -> - | M80: =IF(COUNTIF('N PMČRj 2022'!B:B,B80)=0,"-",COUNTIF('N PMČRj 2022'!B:B,B80)) -> - | N80: =IF(ISERROR(VLOOKUP(B80,'N PMČRj 2022'!B:G,6,0)),"-",VLOOKUP(B80,'N PMČRj 2022'!B:G,6,0)) -> -
A81: 52 | B81: Petr Stepanek | C81: =VLOOKUP(B81,Pilot!A:C,3,0) -> Moravská Třebová | D81: =VLOOKUP(B81,Pilot!A:B,2,0) -> 1989 | E81: =VLOOKUP(B81,Pilot!A:E,5,0) -> M | F81: =VLOOKUP(B81,Pilot!A:F,6,0) ->  | G81: 52 | I81: 1 | J81: 52 | K81: =IF(COUNTIF('N PMRg 2022'!B:B,B81)=0,"-",COUNTIF('N PMRg 2022'!B:B,B81)) -> - | L81: =IF(ISERROR(VLOOKUP(B81,'N PMRg 2022'!B:G,6,0)),"-",VLOOKUP(B81,'N PMRg 2022'!B:G,6,0)) -> - | M81: =IF(COUNTIF('N PMČRj 2022'!B:B,B81)=0,"-",COUNTIF('N PMČRj 2022'!B:B,B81)) -> - | N81: =IF(ISERROR(VLOOKUP(B81,'N PMČRj 2022'!B:G,6,0)),"-",VLOOKUP(B81,'N PMČRj 2022'!B:G,6,0)) -> -
A82: 53 | B82: Michaela Rendlova | C82: =VLOOKUP(B82,Pilot!A:C,3,0) -> Toužim | D82: =VLOOKUP(B82,Pilot!A:B,2,0) -> 2004 | E82: =VLOOKUP(B82,Pilot!A:E,5,0) -> F | F82: =VLOOKUP(B82,Pilot!A:F,6,0) -> Junior v roce 2022 | G82: 53 | I82: 1 | J82: 53 | K82: =IF(COUNTIF('N PMRg 2022'!B:B,B82)=0,"-",COUNTIF('N PMRg 2022'!B:B,B82)) -> - | L82: =IF(ISERROR(VLOOKUP(B82,'N PMRg 2022'!B:G,6,0)),"-",VLOOKUP(B82,'N PMRg 2022'!B:G,6,0)) -> - | M82: =IF(COUNTIF('N PMČRj 2022'!B:B,B82)=0,"-",COUNTIF('N PMČRj 2022'!B:B,B82)) -> 1 | N82: =IF(ISERROR(VLOOKUP(B82,'N PMČRj 2022'!B:G,6,0)),"-",VLOOKUP(B82,'N PMČRj 2022'!B:G,6,0)) -> 8
A83: 54 | B83: Zdenek Balcarek | C83: =VLOOKUP(B83,Pilot!A:C,3,0) -> Kroměříž | D83: =VLOOKUP(B83,Pilot!A:B,2,0) -> 1967 | E83: =VLOOKUP(B83,Pilot!A:E,5,0) -> M | F83: =VLOOKUP(B83,Pilot!A:F,6,0) ->  | G83: 54 | I83: 1 | J83: 54 | K83: =IF(COUNTIF('N PMRg 2022'!B:B,B83)=0,"-",COUNTIF('N PMRg 2022'!B:B,B83)) -> - | L83: =IF(ISERROR(VLOOKUP(B83,'N PMRg 2022'!B:G,6,0)),"-",VLOOKUP(B83,'N PMRg 2022'!B:G,6,0)) -> - | M83: =IF(COUNTIF('N PMČRj 2022'!B:B,B83)=0,"-",COUNTIF('N PMČRj 2022'!B:B,B83)) -> - | N83: =IF(ISERROR(VLOOKUP(B83,'N PMČRj 2022'!B:G,6,0)),"-",VLOOKUP(B83,'N PMČRj 2022'!B:G,6,0)) -> -
A84: 55 | B84: Jiri Steiger | C84: =VLOOKUP(B84,Pilot!A:C,3,0) -> Olomouc | D84: =VLOOKUP(B84,Pilot!A:B,2,0) -> 1969 | E84: =VLOOKUP(B84,Pilot!A:E,5,0) -> M | F84: =VLOOKUP(B84,Pilot!A:F,6,0) ->  | G84: 55 | I84: 1 | J84: 55 | K84: =IF(COUNTIF('N PMRg 2022'!B:B,B84)=0,"-",COUNTIF('N PMRg 2022'!B:B,B84)) -> - | L84: =IF(ISERROR(VLOOKUP(B84,'N PMRg 2022'!B:G,6,0)),"-",VLOOKUP(B84,'N PMRg 2022'!B:G,6,0)) -> - | M84: =IF(COUNTIF('N PMČRj 2022'!B:B,B84)=0,"-",COUNTIF('N PMČRj 2022'!B:B,B84)) -> - | N84: =IF(ISERROR(VLOOKUP(B84,'N PMČRj 2022'!B:G,6,0)),"-",VLOOKUP(B84,'N PMČRj 2022'!B:G,6,0)) -> -
A85: 56 | B85: Petr Valenta 94 | C85: =VLOOKUP(B85,Pilot!A:C,3,0) -> Kunovice | D85: =VLOOKUP(B85,Pilot!A:B,2,0) -> 1994 | E85: =VLOOKUP(B85,Pilot!A:E,5,0) -> M | F85: =VLOOKUP(B85,Pilot!A:F,6,0) ->  | G85: 56 | I85: 1 | J85: 56 | K85: =IF(COUNTIF('N PMRg 2022'!B:B,B85)=0,"-",COUNTIF('N PMRg 2022'!B:B,B85)) -> - | L85: =IF(ISERROR(VLOOKUP(B85,'N PMRg 2022'!B:G,6,0)),"-",VLOOKUP(B85,'N PMRg 2022'!B:G,6,0)) -> - | M85: =IF(COUNTIF('N PMČRj 2022'!B:B,B85)=0,"-",COUNTIF('N PMČRj 2022'!B:B,B85)) -> - | N85: =IF(ISERROR(VLOOKUP(B85,'N PMČRj 2022'!B:G,6,0)),"-",VLOOKUP(B85,'N PMČRj 2022'!B:G,6,0)) -> -
A86: 57 | B86: Pavlina Horackova | C86: =VLOOKUP(B86,Pilot!A:C,3,0) -> Šumperk | D86: =VLOOKUP(B86,Pilot!A:B,2,0) -> 1965 | E86: =VLOOKUP(B86,Pilot!A:E,5,0) -> F | F86: =VLOOKUP(B86,Pilot!A:F,6,0) ->  | G86: 57 | I86: 1 | J86: 57 | K86: =IF(COUNTIF('N PMRg 2022'!B:B,B86)=0,"-",COUNTIF('N PMRg 2022'!B:B,B86)) -> - | L86: =IF(ISERROR(VLOOKUP(B86,'N PMRg 2022'!B:G,6,0)),"-",VLOOKUP(B86,'N PMRg 2022'!B:G,6,0)) -> - | M86: =IF(COUNTIF('N PMČRj 2022'!B:B,B86)=0,"-",COUNTIF('N PMČRj 2022'!B:B,B86)) -> - | N86: =IF(ISERROR(VLOOKUP(B86,'N PMČRj 2022'!B:G,6,0)),"-",VLOOKUP(B86,'N PMČRj 2022'!B:G,6,0)) -> -
A87: 58 | B87: Jiri Vondracek | C87: =VLOOKUP(B87,Pilot!A:C,3,0) -> Kladno | D87: =VLOOKUP(B87,Pilot!A:B,2,0) -> 1989 | E87: =VLOOKUP(B87,Pilot!A:E,5,0) -> M | F87: =VLOOKUP(B87,Pilot!A:F,6,0) ->  | G87: 58 | I87: 1 | J87: 58 | K87: =IF(COUNTIF('N PMRg 2022'!B:B,B87)=0,"-",COUNTIF('N PMRg 2022'!B:B,B87)) -> - | L87: =IF(ISERROR(VLOOKUP(B87,'N PMRg 2022'!B:G,6,0)),"-",VLOOKUP(B87,'N PMRg 2022'!B:G,6,0)) -> - | M87: =IF(COUNTIF('N PMČRj 2022'!B:B,B87)=0,"-",COUNTIF('N PMČRj 2022'!B:B,B87)) -> - | N87: =IF(ISERROR(VLOOKUP(B87,'N PMČRj 2022'!B:G,6,0)),"-",VLOOKUP(B87,'N PMČRj 2022'!B:G,6,0)) -> -
A88: 59 | B88: Jiri Maier 66 | C88: =VLOOKUP(B88,Pilot!A:C,3,0) -> Raná | D88: =VLOOKUP(B88,Pilot!A:B,2,0) -> 1966 | E88: =VLOOKUP(B88,Pilot!A:E,5,0) -> M | F88: =VLOOKUP(B88,Pilot!A:F,6,0) ->  | G88: 59 | I88: 1 | J88: 59 | K88: =IF(COUNTIF('N PMRg 2022'!B:B,B88)=0,"-",COUNTIF('N PMRg 2022'!B:B,B88)) -> - | L88: =IF(ISERROR(VLOOKUP(B88,'N PMRg 2022'!B:G,6,0)),"-",VLOOKUP(B88,'N PMRg 2022'!B:G,6,0)) -> - | M88: =IF(COUNTIF('N PMČRj 2022'!B:B,B88)=0,"-",COUNTIF('N PMČRj 2022'!B:B,B88)) -> - | N88: =IF(ISERROR(VLOOKUP(B88,'N PMČRj 2022'!B:G,6,0)),"-",VLOOKUP(B88,'N PMČRj 2022'!B:G,6,0)) -> -
A89: 60 | B89: Martin Kriz | C89: =VLOOKUP(B89,Pilot!A:C,3,0) -> Přibyslav | D89: =VLOOKUP(B89,Pilot!A:B,2,0) -> 1968 | E89: =VLOOKUP(B89,Pilot!A:E,5,0) -> M | F89: =VLOOKUP(B89,Pilot!A:F,6,0) ->  | G89: 60 | I89: 1 | J89: 60 | K89: =IF(COUNTIF('N PMRg 2022'!B:B,B89)=0,"-",COUNTIF('N PMRg 2022'!B:B,B89)) -> - | L89: =IF(ISERROR(VLOOKUP(B89,'N PMRg 2022'!B:G,6,0)),"-",VLOOKUP(B89,'N PMRg 2022'!B:G,6,0)) -> - | M89: =IF(COUNTIF('N PMČRj 2022'!B:B,B89)=0,"-",COUNTIF('N PMČRj 2022'!B:B,B89)) -> - | N89: =IF(ISERROR(VLOOKUP(B89,'N PMČRj 2022'!B:G,6,0)),"-",VLOOKUP(B89,'N PMČRj 2022'!B:G,6,0)) -> -
A90: 61 | B90: Miroslav Koci | C90: =VLOOKUP(B90,Pilot!A:C,3,0) -> Žamberk | D90: =VLOOKUP(B90,Pilot!A:B,2,0) -> 1961 | E90: =VLOOKUP(B90,Pilot!A:E,5,0) -> M | F90: =VLOOKUP(B90,Pilot!A:F,6,0) ->  | G90: =A90 -> 61 | I90: 1 | J90: 61 | K90: =IF(COUNTIF('N PMRg 2022'!B:B,B90)=0,"-",COUNTIF('N PMRg 2022'!B:B,B90)) -> - | L90: =IF(ISERROR(VLOOKUP(B90,'N PMRg 2022'!B:G,6,0)),"-",VLOOKUP(B90,'N PMRg 2022'!B:G,6,0)) -> - | M90: =IF(COUNTIF('N PMČRj 2022'!B:B,B90)=0,"-",COUNTIF('N PMČRj 2022'!B:B,B90)) -> - | N90: =IF(ISERROR(VLOOKUP(B90,'N PMČRj 2022'!B:G,6,0)),"-",VLOOKUP(B90,'N PMČRj 2022'!B:G,6,0)) -> -
A91: 62 | B91: Jan Florian | C91: =VLOOKUP(B91,Pilot!A:C,3,0) -> Zbraslavice | D91: =VLOOKUP(B91,Pilot!A:B,2,0) -> 1992 | E91: =VLOOKUP(B91,Pilot!A:E,5,0) -> M | F91: =VLOOKUP(B91,Pilot!A:F,6,0) ->  | G91: 62 | I91: 1 | J91: 62 | K91: =IF(COUNTIF('N PMRg 2022'!B:B,B91)=0,"-",COUNTIF('N PMRg 2022'!B:B,B91)) -> - | L91: =IF(ISERROR(VLOOKUP(B91,'N PMRg 2022'!B:G,6,0)),"-",VLOOKUP(B91,'N PMRg 2022'!B:G,6,0)) -> - | M91: =IF(COUNTIF('N PMČRj 2022'!B:B,B91)=0,"-",COUNTIF('N PMČRj 2022'!B:B,B91)) -> - | N91: =IF(ISERROR(VLOOKUP(B91,'N PMČRj 2022'!B:G,6,0)),"-",VLOOKUP(B91,'N PMČRj 2022'!B:G,6,0)) -> -
A92: 63 | B92: Pavel Liska | C92: =VLOOKUP(B92,Pilot!A:C,3,0) -> Roudnice | D92: =VLOOKUP(B92,Pilot!A:B,2,0) -> 1965 | E92: =VLOOKUP(B92,Pilot!A:E,5,0) -> M | F92: =VLOOKUP(B92,Pilot!A:F,6,0) ->  | G92: 63 | I92: 1 | J92: 63 | K92: =IF(COUNTIF('N PMRg 2022'!B:B,B92)=0,"-",COUNTIF('N PMRg 2022'!B:B,B92)) -> - | L92: =IF(ISERROR(VLOOKUP(B92,'N PMRg 2022'!B:G,6,0)),"-",VLOOKUP(B92,'N PMRg 2022'!B:G,6,0)) -> - | M92: =IF(COUNTIF('N PMČRj 2022'!B:B,B92)=0,"-",COUNTIF('N PMČRj 2022'!B:B,B92)) -> - | N92: =IF(ISERROR(VLOOKUP(B92,'N PMČRj 2022'!B:G,6,0)),"-",VLOOKUP(B92,'N PMČRj 2022'!B:G,6,0)) -> -
A93: 64 | B93: Pavel Koudelka | C93: =VLOOKUP(B93,Pilot!A:C,3,0) -> Křižanov | D93: =VLOOKUP(B93,Pilot!A:B,2,0) -> 1973 | E93: =VLOOKUP(B93,Pilot!A:E,5,0) -> M | F93: =VLOOKUP(B93,Pilot!A:F,6,0) ->  | G93: 64 | I93: 1 | J93: 64 | K93: =IF(COUNTIF('N PMRg 2022'!B:B,B93)=0,"-",COUNTIF('N PMRg 2022'!B:B,B93)) -> - | L93: =IF(ISERROR(VLOOKUP(B93,'N PMRg 2022'!B:G,6,0)),"-",VLOOKUP(B93,'N PMRg 2022'!B:G,6,0)) -> - | M93: =IF(COUNTIF('N PMČRj 2022'!B:B,B93)=0,"-",COUNTIF('N PMČRj 2022'!B:B,B93)) -> - | N93: =IF(ISERROR(VLOOKUP(B93,'N PMČRj 2022'!B:G,6,0)),"-",VLOOKUP(B93,'N PMČRj 2022'!B:G,6,0)) -> -
A94: 65 | B94: Petr Prichystal | C94: =VLOOKUP(B94,Pilot!A:C,3,0) -> Moravská Třebová | D94: =VLOOKUP(B94,Pilot!A:B,2,0) -> 1973 | E94: =VLOOKUP(B94,Pilot!A:E,5,0) -> M | F94: =VLOOKUP(B94,Pilot!A:F,6,0) ->  | G94: 65 | I94: 1 | J94: 65 | K94: =IF(COUNTIF('N PMRg 2022'!B:B,B94)=0,"-",COUNTIF('N PMRg 2022'!B:B,B94)) -> - | L94: =IF(ISERROR(VLOOKUP(B94,'N PMRg 2022'!B:G,6,0)),"-",VLOOKUP(B94,'N PMRg 2022'!B:G,6,0)) -> - | M94: =IF(COUNTIF('N PMČRj 2022'!B:B,B94)=0,"-",COUNTIF('N PMČRj 2022'!B:B,B94)) -> - | N94: =IF(ISERROR(VLOOKUP(B94,'N PMČRj 2022'!B:G,6,0)),"-",VLOOKUP(B94,'N PMČRj 2022'!B:G,6,0)) -> -
A95: 66 | B95: Jan Vozeh | C95: =VLOOKUP(B95,Pilot!A:C,3,0) -> Rakovník | D95: =VLOOKUP(B95,Pilot!A:B,2,0) -> 1995 | E95: =VLOOKUP(B95,Pilot!A:E,5,0) -> M | F95: =VLOOKUP(B95,Pilot!A:F,6,0) ->  | G95: =A95 -> 66 | I95: 1 | J95: 66 | K95: =IF(COUNTIF('N PMRg 2022'!B:B,B95)=0,"-",COUNTIF('N PMRg 2022'!B:B,B95)) -> - | L95: =IF(ISERROR(VLOOKUP(B95,'N PMRg 2022'!B:G,6,0)),"-",VLOOKUP(B95,'N PMRg 2022'!B:G,6,0)) -> - | M95: =IF(COUNTIF('N PMČRj 2022'!B:B,B95)=0,"-",COUNTIF('N PMČRj 2022'!B:B,B95)) -> - | N95: =IF(ISERROR(VLOOKUP(B95,'N PMČRj 2022'!B:G,6,0)),"-",VLOOKUP(B95,'N PMČRj 2022'!B:G,6,0)) -> -
A96: 67 | B96: Jakub Kohn | C96: =VLOOKUP(B96,Pilot!A:C,3,0) -> Prostějov | D96: =VLOOKUP(B96,Pilot!A:B,2,0) -> 1992 | E96: =VLOOKUP(B96,Pilot!A:E,5,0) -> M | F96: =VLOOKUP(B96,Pilot!A:F,6,0) ->  | G96: 67 | I96: 1 | J96: 67 | K96: =IF(COUNTIF('N PMRg 2022'!B:B,B96)=0,"-",COUNTIF('N PMRg 2022'!B:B,B96)) -> - | L96: =IF(ISERROR(VLOOKUP(B96,'N PMRg 2022'!B:G,6,0)),"-",VLOOKUP(B96,'N PMRg 2022'!B:G,6,0)) -> - | M96: =IF(COUNTIF('N PMČRj 2022'!B:B,B96)=0,"-",COUNTIF('N PMČRj 2022'!B:B,B96)) -> - | N96: =IF(ISERROR(VLOOKUP(B96,'N PMČRj 2022'!B:G,6,0)),"-",VLOOKUP(B96,'N PMČRj 2022'!B:G,6,0)) -> -
A97: 68 | B97: Josef Hlusek | C97: =VLOOKUP(B97,Pilot!A:C,3,0) -> Kunovice | D97: =VLOOKUP(B97,Pilot!A:B,2,0) -> 1993 | E97: =VLOOKUP(B97,Pilot!A:E,5,0) -> M | F97: =VLOOKUP(B97,Pilot!A:F,6,0) ->  | G97: 68 | I97: 1 | J97: 68 | K97: =IF(COUNTIF('N PMRg 2022'!B:B,B97)=0,"-",COUNTIF('N PMRg 2022'!B:B,B97)) -> - | L97: =IF(ISERROR(VLOOKUP(B97,'N PMRg 2022'!B:G,6,0)),"-",VLOOKUP(B97,'N PMRg 2022'!B:G,6,0)) -> - | M97: =IF(COUNTIF('N PMČRj 2022'!B:B,B97)=0,"-",COUNTIF('N PMČRj 2022'!B:B,B97)) -> - | N97: =IF(ISERROR(VLOOKUP(B97,'N PMČRj 2022'!B:G,6,0)),"-",VLOOKUP(B97,'N PMČRj 2022'!B:G,6,0)) -> -
A98: 69 | B98: Petr Kubik 75 | C98: =VLOOKUP(B98,Pilot!A:C,3,0) -> Moravská Třebová | D98: =VLOOKUP(B98,Pilot!A:B,2,0) -> 1975 | E98: =VLOOKUP(B98,Pilot!A:E,5,0) -> M | F98: =VLOOKUP(B98,Pilot!A:F,6,0) ->  | G98: 69 | I98: 1 | J98: 69 | K98: =IF(COUNTIF('N PMRg 2022'!B:B,B98)=0,"-",COUNTIF('N PMRg 2022'!B:B,B98)) -> - | L98: =IF(ISERROR(VLOOKUP(B98,'N PMRg 2022'!B:G,6,0)),"-",VLOOKUP(B98,'N PMRg 2022'!B:G,6,0)) -> - | M98: =IF(COUNTIF('N PMČRj 2022'!B:B,B98)=0,"-",COUNTIF('N PMČRj 2022'!B:B,B98)) -> - | N98: =IF(ISERROR(VLOOKUP(B98,'N PMČRj 2022'!B:G,6,0)),"-",VLOOKUP(B98,'N PMČRj 2022'!B:G,6,0)) -> -
A99: 70 | B99: Antonin Kutalek | C99: =VLOOKUP(B99,Pilot!A:C,3,0) -> Zábřeh | D99: =VLOOKUP(B99,Pilot!A:B,2,0) -> 1943 | E99: =VLOOKUP(B99,Pilot!A:E,5,0) -> M | F99: =VLOOKUP(B99,Pilot!A:F,6,0) ->  | G99: 70 | I99: 1 | J99: 70 | K99: =IF(COUNTIF('N PMRg 2022'!B:B,B99)=0,"-",COUNTIF('N PMRg 2022'!B:B,B99)) -> - | L99: =IF(ISERROR(VLOOKUP(B99,'N PMRg 2022'!B:G,6,0)),"-",VLOOKUP(B99,'N PMRg 2022'!B:G,6,0)) -> - | M99: =IF(COUNTIF('N PMČRj 2022'!B:B,B99)=0,"-",COUNTIF('N PMČRj 2022'!B:B,B99)) -> - | N99: =IF(ISERROR(VLOOKUP(B99,'N PMČRj 2022'!B:G,6,0)),"-",VLOOKUP(B99,'N PMČRj 2022'!B:G,6,0)) -> -
A100: 71 | B100: Marek Pechar | C100: =VLOOKUP(B100,Pilot!A:C,3,0) -> Chrudim | D100: =VLOOKUP(B100,Pilot!A:B,2,0) -> 1995 | E100: =VLOOKUP(B100,Pilot!A:E,5,0) -> M | F100: =VLOOKUP(B100,Pilot!A:F,6,0) ->  | G100: 71 | I100: 1 | J100: 71 | K100: =IF(COUNTIF('N PMRg 2022'!B:B,B100)=0,"-",COUNTIF('N PMRg 2022'!B:B,B100)) -> - | L100: =IF(ISERROR(VLOOKUP(B100,'N PMRg 2022'!B:G,6,0)),"-",VLOOKUP(B100,'N PMRg 2022'!B:G,6,0)) -> - | M100: =IF(COUNTIF('N PMČRj 2022'!B:B,B100)=0,"-",COUNTIF('N PMČRj 2022'!B:B,B100)) -> - | N100: =IF(ISERROR(VLOOKUP(B100,'N PMČRj 2022'!B:G,6,0)),"-",VLOOKUP(B100,'N PMČRj 2022'!B:G,6,0)) -> -
A101: 72 | B101: Jiri Krofta | C101: =VLOOKUP(B101,Pilot!A:C,3,0) -> Hosín | D101: =VLOOKUP(B101,Pilot!A:B,2,0) -> 1988 | E101: =VLOOKUP(B101,Pilot!A:E,5,0) -> M | F101: =VLOOKUP(B101,Pilot!A:F,6,0) ->  | G101: 72 | I101: 1 | J101: 72 | K101: =IF(COUNTIF('N PMRg 2022'!B:B,B101)=0,"-",COUNTIF('N PMRg 2022'!B:B,B101)) -> - | L101: =IF(ISERROR(VLOOKUP(B101,'N PMRg 2022'!B:G,6,0)),"-",VLOOKUP(B101,'N PMRg 2022'!B:G,6,0)) -> - | M101: =IF(COUNTIF('N PMČRj 2022'!B:B,B101)=0,"-",COUNTIF('N PMČRj 2022'!B:B,B101)) -> - | N101: =IF(ISERROR(VLOOKUP(B101,'N PMČRj 2022'!B:G,6,0)),"-",VLOOKUP(B101,'N PMČRj 2022'!B:G,6,0)) -> -
A102: 73 | B102: Zuzana Kutilkova | C102: =VLOOKUP(B102,Pilot!A:C,3,0) -> Křižanov | D102: =VLOOKUP(B102,Pilot!A:B,2,0) -> 1993 | E102: =VLOOKUP(B102,Pilot!A:E,5,0) -> F | F102: =VLOOKUP(B102,Pilot!A:F,6,0) ->  | G102: 73 | I102: 1 | J102: 73 | K102: =IF(COUNTIF('N PMRg 2022'!B:B,B102)=0,"-",COUNTIF('N PMRg 2022'!B:B,B102)) -> - | L102: =IF(ISERROR(VLOOKUP(B102,'N PMRg 2022'!B:G,6,0)),"-",VLOOKUP(B102,'N PMRg 2022'!B:G,6,0)) -> - | M102: =IF(COUNTIF('N PMČRj 2022'!B:B,B102)=0,"-",COUNTIF('N PMČRj 2022'!B:B,B102)) -> - | N102: =IF(ISERROR(VLOOKUP(B102,'N PMČRj 2022'!B:G,6,0)),"-",VLOOKUP(B102,'N PMČRj 2022'!B:G,6,0)) -> -
A103: 74 | B103: Petr Panek | C103: =VLOOKUP(B103,Pilot!A:C,3,0) -> Dvůr Králové | D103: =VLOOKUP(B103,Pilot!A:B,2,0) -> 1975 | E103: =VLOOKUP(B103,Pilot!A:E,5,0) -> M | F103: =VLOOKUP(B103,Pilot!A:F,6,0) ->  | G103: 74 | I103: 1 | J103: 74 | K103: =IF(COUNTIF('N PMRg 2022'!B:B,B103)=0,"-",COUNTIF('N PMRg 2022'!B:B,B103)) -> - | L103: =IF(ISERROR(VLOOKUP(B103,'N PMRg 2022'!B:G,6,0)),"-",VLOOKUP(B103,'N PMRg 2022'!B:G,6,0)) -> - | M103: =IF(COUNTIF('N PMČRj 2022'!B:B,B103)=0,"-",COUNTIF('N PMČRj 2022'!B:B,B103)) -> - | N103: =IF(ISERROR(VLOOKUP(B103,'N PMČRj 2022'!B:G,6,0)),"-",VLOOKUP(B103,'N PMČRj 2022'!B:G,6,0)) -> -
A104: 6.6.6.8. | B104: ostatní soutěžící z posledního platného Všeobecného žebříku v pořadí podle umístění, do naplnění celkového počtu nominovaných dle 6.6.5. (+ 10 náhradníků).
A105: =MAX(A76:A104)+1 -> 75 | B105: Danes Grula | C105: =VLOOKUP(B105,Pilot!A:C,3,0) -> Medlánky | D105: =VLOOKUP(B105,Pilot!A:B,2,0) -> 1961 | E105: =VLOOKUP(B105,Pilot!A:E,5,0) -> M | F105: =VLOOKUP(B105,Pilot!A:F,6,0) ->  | G105: 75 | I105: =COUNTIF(B:B,B105) -> 1 | J105: =IF(ISERROR(VLOOKUP(B105,B:G,6,0)),"-",VLOOKUP(B105,B:G,6,0)) -> 75 | K105: =IF(COUNTIF('N PMRg 2022'!B:B,B105)=0,"-",COUNTIF('N PMRg 2022'!B:B,B105)) -> - | L105: =IF(ISERROR(VLOOKUP(B105,'N PMRg 2022'!B:G,6,0)),"-",VLOOKUP(B105,'N PMRg 2022'!B:G,6,0)) -> - | M105: =IF(COUNTIF('N PMČRj 2022'!B:B,B105)=0,"-",COUNTIF('N PMČRj 2022'!B:B,B105)) -> - | N105: =IF(ISERROR(VLOOKUP(B105,'N PMČRj 2022'!B:G,6,0)),"-",VLOOKUP(B105,'N PMČRj 2022'!B:G,6,0)) -> -
A106: =A105+1 -> 76 | B106: Josef Novotny | C106: =VLOOKUP(B106,Pilot!A:C,3,0) -> Přibyslav | D106: =VLOOKUP(B106,Pilot!A:B,2,0) -> 1983 | E106: =VLOOKUP(B106,Pilot!A:E,5,0) -> M | F106: =VLOOKUP(B106,Pilot!A:F,6,0) ->  | G106: =A106 -> 76 | I106: 1 | J106: 76 | K106: =IF(COUNTIF('N PMRg 2022'!B:B,B106)=0,"-",COUNTIF('N PMRg 2022'!B:B,B106)) -> - | L106: =IF(ISERROR(VLOOKUP(B106,'N PMRg 2022'!B:G,6,0)),"-",VLOOKUP(B106,'N PMRg 2022'!B:G,6,0)) -> - | M106: =IF(COUNTIF('N PMČRj 2022'!B:B,B106)=0,"-",COUNTIF('N PMČRj 2022'!B:B,B106)) -> - | N106: =IF(ISERROR(VLOOKUP(B106,'N PMČRj 2022'!B:G,6,0)),"-",VLOOKUP(B106,'N PMČRj 2022'!B:G,6,0)) -> -
A107: 77 | B107: Jan Kotan | C107: =VLOOKUP(B107,Pilot!A:C,3,0) -> Letňany | D107: =VLOOKUP(B107,Pilot!A:B,2,0) -> 1982 | E107: =VLOOKUP(B107,Pilot!A:E,5,0) -> M | F107: =VLOOKUP(B107,Pilot!A:F,6,0) ->  | G107: 77 | I107: 1 | J107: 77 | K107: =IF(COUNTIF('N PMRg 2022'!B:B,B107)=0,"-",COUNTIF('N PMRg 2022'!B:B,B107)) -> - | L107: =IF(ISERROR(VLOOKUP(B107,'N PMRg 2022'!B:G,6,0)),"-",VLOOKUP(B107,'N PMRg 2022'!B:G,6,0)) -> - | M107: =IF(COUNTIF('N PMČRj 2022'!B:B,B107)=0,"-",COUNTIF('N PMČRj 2022'!B:B,B107)) -> - | N107: =IF(ISERROR(VLOOKUP(B107,'N PMČRj 2022'!B:G,6,0)),"-",VLOOKUP(B107,'N PMČRj 2022'!B:G,6,0)) -> -
A108: 78 | B108: Frantisek Vancura | C108: =VLOOKUP(B108,Pilot!A:C,3,0) -> Hranice | D108: =VLOOKUP(B108,Pilot!A:B,2,0) -> 1966 | E108: =VLOOKUP(B108,Pilot!A:E,5,0) -> M | F108: =VLOOKUP(B108,Pilot!A:F,6,0) ->  | G108: 78 | I108: 1 | J108: 78 | K108: =IF(COUNTIF('N PMRg 2022'!B:B,B108)=0,"-",COUNTIF('N PMRg 2022'!B:B,B108)) -> - | L108: =IF(ISERROR(VLOOKUP(B108,'N PMRg 2022'!B:G,6,0)),"-",VLOOKUP(B108,'N PMRg 2022'!B:G,6,0)) -> - | M108: =IF(COUNTIF('N PMČRj 2022'!B:B,B108)=0,"-",COUNTIF('N PMČRj 2022'!B:B,B108)) -> - | N108: =IF(ISERROR(VLOOKUP(B108,'N PMČRj 2022'!B:G,6,0)),"-",VLOOKUP(B108,'N PMČRj 2022'!B:G,6,0)) -> -
A109: 79 | B109: Jiri Kusbach | C109: =VLOOKUP(B109,Pilot!A:C,3,0) -> Luhačovice | D109: =VLOOKUP(B109,Pilot!A:B,2,0) -> 1959 | E109: =VLOOKUP(B109,Pilot!A:E,5,0) -> M | F109: =VLOOKUP(B109,Pilot!A:F,6,0) ->  | G109: =A109 -> 79 | I109: 1 | J109: 79 | K109: =IF(COUNTIF('N PMRg 2022'!B:B,B109)=0,"-",COUNTIF('N PMRg 2022'!B:B,B109)) -> - | L109: =IF(ISERROR(VLOOKUP(B109,'N PMRg 2022'!B:G,6,0)),"-",VLOOKUP(B109,'N PMRg 2022'!B:G,6,0)) -> - | M109: =IF(COUNTIF('N PMČRj 2022'!B:B,B109)=0,"-",COUNTIF('N PMČRj 2022'!B:B,B109)) -> - | N109: =IF(ISERROR(VLOOKUP(B109,'N PMČRj 2022'!B:G,6,0)),"-",VLOOKUP(B109,'N PMČRj 2022'!B:G,6,0)) -> -
A110: 80 | B110: Marek Blatak | C110: =VLOOKUP(B110,Pilot!A:C,3,0) -> Šumperk | D110: =VLOOKUP(B110,Pilot!A:B,2,0) -> 1969 | E110: =VLOOKUP(B110,Pilot!A:E,5,0) -> M | F110: =VLOOKUP(B110,Pilot!A:F,6,0) ->  | G110: =A110 -> 80 | I110: 1 | J110: 80 | K110: =IF(COUNTIF('N PMRg 2022'!B:B,B110)=0,"-",COUNTIF('N PMRg 2022'!B:B,B110)) -> - | L110: =IF(ISERROR(VLOOKUP(B110,'N PMRg 2022'!B:G,6,0)),"-",VLOOKUP(B110,'N PMRg 2022'!B:G,6,0)) -> - | M110: =IF(COUNTIF('N PMČRj 2022'!B:B,B110)=0,"-",COUNTIF('N PMČRj 2022'!B:B,B110)) -> - | N110: =IF(ISERROR(VLOOKUP(B110,'N PMČRj 2022'!B:G,6,0)),"-",VLOOKUP(B110,'N PMČRj 2022'!B:G,6,0)) -> -
A111: N1 | B111: Martin Ficnar | C111: =VLOOKUP(B111,Pilot!A:C,3,0) -> Šumperk | D111: =VLOOKUP(B111,Pilot!A:B,2,0) -> 1971 | E111: =VLOOKUP(B111,Pilot!A:E,5,0) -> M | F111: =VLOOKUP(B111,Pilot!A:F,6,0) ->  | G111: =A111 -> N1 | I111: 1 | J111: N1 | K111: =IF(COUNTIF('N PMRg 2022'!B:B,B111)=0,"-",COUNTIF('N PMRg 2022'!B:B,B111)) -> - | L111: =IF(ISERROR(VLOOKUP(B111,'N PMRg 2022'!B:G,6,0)),"-",VLOOKUP(B111,'N PMRg 2022'!B:G,6,0)) -> - | M111: =IF(COUNTIF('N PMČRj 2022'!B:B,B111)=0,"-",COUNTIF('N PMČRj 2022'!B:B,B111)) -> - | N111: =IF(ISERROR(VLOOKUP(B111,'N PMČRj 2022'!B:G,6,0)),"-",VLOOKUP(B111,'N PMČRj 2022'!B:G,6,0)) -> -
A112: N2 | B112: Lubomir Motl | C112: =VLOOKUP(B112,Pilot!A:C,3,0) -> Kyjov | D112: =VLOOKUP(B112,Pilot!A:B,2,0) -> 1959 | E112: =VLOOKUP(B112,Pilot!A:E,5,0) -> M | F112: =VLOOKUP(B112,Pilot!A:F,6,0) ->  | G112: N2 | I112: 1 | J112: N2 | K112: =IF(COUNTIF('N PMRg 2022'!B:B,B112)=0,"-",COUNTIF('N PMRg 2022'!B:B,B112)) -> - | L112: =IF(ISERROR(VLOOKUP(B112,'N PMRg 2022'!B:G,6,0)),"-",VLOOKUP(B112,'N PMRg 2022'!B:G,6,0)) -> - | M112: =IF(COUNTIF('N PMČRj 2022'!B:B,B112)=0,"-",COUNTIF('N PMČRj 2022'!B:B,B112)) -> - | N112: =IF(ISERROR(VLOOKUP(B112,'N PMČRj 2022'!B:G,6,0)),"-",VLOOKUP(B112,'N PMČRj 2022'!B:G,6,0)) -> -
A113: N3 | B113: Vojtech Novotny | C113: =VLOOKUP(B113,Pilot!A:C,3,0) -> Kralupy | D113: =VLOOKUP(B113,Pilot!A:B,2,0) -> 1992 | E113: =VLOOKUP(B113,Pilot!A:E,5,0) -> M | F113: =VLOOKUP(B113,Pilot!A:F,6,0) ->  | G113: N3 | I113: 1 | J113: N3 | K113: =IF(COUNTIF('N PMRg 2022'!B:B,B113)=0,"-",COUNTIF('N PMRg 2022'!B:B,B113)) -> - | L113: =IF(ISERROR(VLOOKUP(B113,'N PMRg 2022'!B:G,6,0)),"-",VLOOKUP(B113,'N PMRg 2022'!B:G,6,0)) -> - | M113: =IF(COUNTIF('N PMČRj 2022'!B:B,B113)=0,"-",COUNTIF('N PMČRj 2022'!B:B,B113)) -> - | N113: =IF(ISERROR(VLOOKUP(B113,'N PMČRj 2022'!B:G,6,0)),"-",VLOOKUP(B113,'N PMČRj 2022'!B:G,6,0)) -> -
A114: N4 | B114: Petr Hotovy | C114: =VLOOKUP(B114,Pilot!A:C,3,0) -> Česká Lípa | D114: =VLOOKUP(B114,Pilot!A:B,2,0) -> 1958 | E114: =VLOOKUP(B114,Pilot!A:E,5,0) -> M | F114: =VLOOKUP(B114,Pilot!A:F,6,0) ->  | G114: N4 | I114: 1 | J114: N4 | K114: =IF(COUNTIF('N PMRg 2022'!B:B,B114)=0,"-",COUNTIF('N PMRg 2022'!B:B,B114)) -> 1 | L114: =IF(ISERROR(VLOOKUP(B114,'N PMRg 2022'!B:G,6,0)),"-",VLOOKUP(B114,'N PMRg 2022'!B:G,6,0)) -> 5 | M114: =IF(COUNTIF('N PMČRj 2022'!B:B,B114)=0,"-",COUNTIF('N PMČRj 2022'!B:B,B114)) -> - | N114: =IF(ISERROR(VLOOKUP(B114,'N PMČRj 2022'!B:G,6,0)),"-",VLOOKUP(B114,'N PMČRj 2022'!B:G,6,0)) -> -
A115: N5 | B115: Martin Urner | C115: =VLOOKUP(B115,Pilot!A:C,3,0) -> Letňany | D115: =VLOOKUP(B115,Pilot!A:B,2,0) -> 1974 | E115: =VLOOKUP(B115,Pilot!A:E,5,0) -> M | F115: =VLOOKUP(B115,Pilot!A:F,6,0) ->  | G115: N5 | I115: 1 | J115: N5 | K115: =IF(COUNTIF('N PMRg 2022'!B:B,B115)=0,"-",COUNTIF('N PMRg 2022'!B:B,B115)) -> - | L115: =IF(ISERROR(VLOOKUP(B115,'N PMRg 2022'!B:G,6,0)),"-",VLOOKUP(B115,'N PMRg 2022'!B:G,6,0)) -> - | M115: =IF(COUNTIF('N PMČRj 2022'!B:B,B115)=0,"-",COUNTIF('N PMČRj 2022'!B:B,B115)) -> - | N115: =IF(ISERROR(VLOOKUP(B115,'N PMČRj 2022'!B:G,6,0)),"-",VLOOKUP(B115,'N PMČRj 2022'!B:G,6,0)) -> -
A116: N6 | B116: Vratislav Sram | C116: =VLOOKUP(B116,Pilot!A:C,3,0) -> Broumov | D116: =VLOOKUP(B116,Pilot!A:B,2,0) -> 1966 | E116: =VLOOKUP(B116,Pilot!A:E,5,0) -> M | F116: =VLOOKUP(B116,Pilot!A:F,6,0) ->  | G116: N6 | I116: 1 | J116: N6 | K116: =IF(COUNTIF('N PMRg 2022'!B:B,B116)=0,"-",COUNTIF('N PMRg 2022'!B:B,B116)) -> - | L116: =IF(ISERROR(VLOOKUP(B116,'N PMRg 2022'!B:G,6,0)),"-",VLOOKUP(B116,'N PMRg 2022'!B:G,6,0)) -> - | M116: =IF(COUNTIF('N PMČRj 2022'!B:B,B116)=0,"-",COUNTIF('N PMČRj 2022'!B:B,B116)) -> - | N116: =IF(ISERROR(VLOOKUP(B116,'N PMČRj 2022'!B:G,6,0)),"-",VLOOKUP(B116,'N PMČRj 2022'!B:G,6,0)) -> -
A117: N7 | B117: Jindrich Svorc | C117: =VLOOKUP(B117,Pilot!A:C,3,0) -> Letňany | D117: =VLOOKUP(B117,Pilot!A:B,2,0) -> 1978 | E117: =VLOOKUP(B117,Pilot!A:E,5,0) -> M | F117: =VLOOKUP(B117,Pilot!A:F,6,0) ->  | G117: N7 | I117: 1 | J117: N7 | K117: =IF(COUNTIF('N PMRg 2022'!B:B,B117)=0,"-",COUNTIF('N PMRg 2022'!B:B,B117)) -> - | L117: =IF(ISERROR(VLOOKUP(B117,'N PMRg 2022'!B:G,6,0)),"-",VLOOKUP(B117,'N PMRg 2022'!B:G,6,0)) -> - | M117: =IF(COUNTIF('N PMČRj 2022'!B:B,B117)=0,"-",COUNTIF('N PMČRj 2022'!B:B,B117)) -> - | N117: =IF(ISERROR(VLOOKUP(B117,'N PMČRj 2022'!B:G,6,0)),"-",VLOOKUP(B117,'N PMČRj 2022'!B:G,6,0)) -> -
A118: N8 | B118: David Sachl | C118: =VLOOKUP(B118,Pilot!A:C,3,0) -> Kralupy | D118: =VLOOKUP(B118,Pilot!A:B,2,0) -> 1978 | E118: =VLOOKUP(B118,Pilot!A:E,5,0) -> M | F118: =VLOOKUP(B118,Pilot!A:F,6,0) ->  | G118: N8 | I118: 1 | J118: N8 | K118: =IF(COUNTIF('N PMRg 2022'!B:B,B118)=0,"-",COUNTIF('N PMRg 2022'!B:B,B118)) -> - | L118: =IF(ISERROR(VLOOKUP(B118,'N PMRg 2022'!B:G,6,0)),"-",VLOOKUP(B118,'N PMRg 2022'!B:G,6,0)) -> - | M118: =IF(COUNTIF('N PMČRj 2022'!B:B,B118)=0,"-",COUNTIF('N PMČRj 2022'!B:B,B118)) -> - | N118: =IF(ISERROR(VLOOKUP(B118,'N PMČRj 2022'!B:G,6,0)),"-",VLOOKUP(B118,'N PMČRj 2022'!B:G,6,0)) -> -
A119: N9 | B119: Daniel Ryba | C119: =VLOOKUP(B119,Pilot!A:C,3,0) -> Dvůr Králové | D119: =VLOOKUP(B119,Pilot!A:B,2,0) -> 1994 | E119: =VLOOKUP(B119,Pilot!A:E,5,0) -> M | F119: =VLOOKUP(B119,Pilot!A:F,6,0) ->  | G119: N9 | I119: 1 | J119: N9 | K119: =IF(COUNTIF('N PMRg 2022'!B:B,B119)=0,"-",COUNTIF('N PMRg 2022'!B:B,B119)) -> - | L119: =IF(ISERROR(VLOOKUP(B119,'N PMRg 2022'!B:G,6,0)),"-",VLOOKUP(B119,'N PMRg 2022'!B:G,6,0)) -> - | M119: =IF(COUNTIF('N PMČRj 2022'!B:B,B119)=0,"-",COUNTIF('N PMČRj 2022'!B:B,B119)) -> - | N119: =IF(ISERROR(VLOOKUP(B119,'N PMČRj 2022'!B:G,6,0)),"-",VLOOKUP(B119,'N PMČRj 2022'!B:G,6,0)) -> -
A120: N10 | B120: Michal Cechmanek | C120: =VLOOKUP(B120,Pilot!A:C,3,0) -> Luhačovice | D120: =VLOOKUP(B120,Pilot!A:B,2,0) -> 1978 | E120: =VLOOKUP(B120,Pilot!A:E,5,0) -> M | F120: =VLOOKUP(B120,Pilot!A:F,6,0) ->  | G120: N10 | I120: 1 | J120: N10 | K120: =IF(COUNTIF('N PMRg 2022'!B:B,B120)=0,"-",COUNTIF('N PMRg 2022'!B:B,B120)) -> - | L120: =IF(ISERROR(VLOOKUP(B120,'N PMRg 2022'!B:G,6,0)),"-",VLOOKUP(B120,'N PMRg 2022'!B:G,6,0)) -> - | M120: =IF(COUNTIF('N PMČRj 2022'!B:B,B120)=0,"-",COUNTIF('N PMČRj 2022'!B:B,B120)) -> - | N120: =IF(ISERROR(VLOOKUP(B120,'N PMČRj 2022'!B:G,6,0)),"-",VLOOKUP(B120,'N PMČRj 2022'!B:G,6,0)) -> -
A121: 6.6.7. | B121: Nominace zahraničních účastníků
B122: PMČR se mohou zúčastnit zahraniční účastníci pouze v případě, že nebude omezen počet řádně nominovaných soutěžících z ČR a soutěžící splňuje podmínky odstavce 6.1. a 6.6.1. SŘ.
B123: V případě pořádání společného PMČR s plachtařským mistrovstvím některého ze suverénních států může PK stanovit zvláštní pravidla pro nominaci.
A124: 6.6.8. | B124: Volná nominace
B125: Volnou nominaci je možné využít pouze v tom případě, že pilot na PMČR nepostupuje podle žádného z bodů odstavce 6.6.6.
B126: Umožňuje-li to kapacita pořádajícího letiště, mohou se z členů AeČR mimo řádně nominovaných do soutěže přihlásit také piloti/pilotky, kteří se:
A127: 6.6.8.1. | B127: v posledních 3 letech před rokem konání soutěže zúčastnili MS, ME, WAG nebo Světové Grand Prix jako velitel kluzáku,
A128: 6.6.8.2. | B128: umístili v aktuálním Všeobecném Žebříku do 100. místa,
A129: 6.6.8.3. | B129: Při větším počtu přihlášek, než je kapacita letiště Pořadatele, rozhoduje o přijetí do soutěže pořadí soutěžícího v aktuálním Všeobecném Žebříku s podmínkou zaplacení vkladu v termínu stanoveném Pořadatelem.
A132: Schváleno Plachtařskou komisí AeČR dne xx.yy.2021 v ZZZZ

Sheet N PMRg 2022
B1: Nominace na PMRg 2022 | H1: Kontrola: | I1: Počet | J1: Nominace | K1: Počet | L1: Nominace | M1: Počet | N1: Nominace | O1: M: | P1: F: | Q1: M+F:
A2: No | B2: Jméno | C2: Aeroklub | D2: Rok narození | E2: M/F | F2: Junior | G2: No | I2: PMRg | J2: PMRg | K2: PMČR | L2: PMČR | M2: PMČRj | N2: PMČRj | O2: =COUNTIF(E:E,"M") -> 7 | P2: =COUNTIF(E:E,"F") -> 1 | Q2: =O2+P2 -> 8 | R2: S náhradníky
A3: 6.8.5. | B3: Nominace na PMRg (dle SŘ ZM9) | N3: Celkem řádně nominováno: | O3: =O2-COUNTIF(E77:E85,"M") -> 7 | P3: =P2-COUNTIF(E82:E85,"F") -> 1 | Q3: =O3+P3 -> 8 | R3: Bez náhradníků
B4: Na PMRg nominuje PK minimálně 60 pilotů/pilotek a příslušný počet náhradníků pro stanovená nominační kritéria.
B5: Na PMRg jsou nominováni:
A6: 6.8.5.1. | B6: všichni soutěžící z posledního platného PMČR, kteří nepostoupili na PMČR v roce konání PMRg (bez náhradníků)
B7: PMČR 2021 - Tábor - Klub
A8: 1 | B8: Slavomir Piskaty 84 | C8: =VLOOKUP(B8,Pilot!A:C,3,0) -> Kunovice | D8: =VLOOKUP(B8,Pilot!A:C,2,0) -> 1984 | E8: =VLOOKUP(B8,Pilot!A:E,5,0) -> M | F8: =VLOOKUP(B8,Pilot!A:F,6,0) ->  | G8: =A8 -> 1 | I8: =COUNTIF(B:B,B8) -> 1 | J8: =IF(ISERROR(VLOOKUP(B8,B:G,6,0)),"-",VLOOKUP(B8,B:G,6,0)) -> 1 | K8: =IF(COUNTIF('N PMČR 2022'!B:B,B8)=0,"-",COUNTIF('N PMČR 2022'!B:B,B8)) -> - | L8: =IF(ISERROR(VLOOKUP(B8,'N PMČR 2022'!B:G,6,0)),"-",VLOOKUP(B8,'N PMČR 2022'!B:G,6,0)) -> - | M8: =IF(COUNTIF('N PMČRj 2022'!B:B,B8)=0,"-",COUNTIF('N PMČRj 2022'!B:B,B8)) -> - | N8: =IF(ISERROR(VLOOKUP(B8,'N PMČRj 2022'!B:G,6,0)),"-",VLOOKUP(B8,'N PMČRj 2022'!B:G,6,0)) -> -
A9: =A8+1 -> 2 | B9: Petra Piskata | C9: =VLOOKUP(B9,Pilot!A:C,3,0) -> Luhačovice | D9: =VLOOKUP(B9,Pilot!A:C,2,0) -> 1989 | E9: =VLOOKUP(B9,Pilot!A:E,5,0) -> F | F9: =VLOOKUP(B9,Pilot!A:F,6,0) ->  | G9: =A9 -> 2 | I9: =COUNTIF(B:B,B9) -> 1 | J9: =IF(ISERROR(VLOOKUP(B9,B:G,6,0)),"-",VLOOKUP(B9,B:G,6,0)) -> 2 | K9: =IF(COUNTIF('N PMČR 2022'!B:B,B9)=0,"-",COUNTIF('N PMČR 2022'!B:B,B9)) -> - | L9: =IF(ISERROR(VLOOKUP(B9,'N PMČR 2022'!B:G,6,0)),"-",VLOOKUP(B9,'N PMČR 2022'!B:G,6,0)) -> - | M9: =IF(COUNTIF('N PMČRj 2022'!B:B,B9)=0,"-",COUNTIF('N PMČRj 2022'!B:B,B9)) -> - | N9: =IF(ISERROR(VLOOKUP(B9,'N PMČRj 2022'!B:G,6,0)),"-",VLOOKUP(B9,'N PMČRj 2022'!B:G,6,0)) -> -
A10: =A9+1 -> 3 | B10: Lukas Plocek | C10: =VLOOKUP(B10,Pilot!A:C,3,0) -> Mladá Boleslav | D10: =VLOOKUP(B10,Pilot!A:C,2,0) -> 1990 | E10: =VLOOKUP(B10,Pilot!A:E,5,0) -> M | F10: =VLOOKUP(B10,Pilot!A:F,6,0) ->  | G10: 3 | I10: =COUNTIF(B:B,B10) -> 1 | J10: 3 | K10: =IF(COUNTIF('N PMČR 2022'!B:B,B10)=0,"-",COUNTIF('N PMČR 2022'!B:B,B10)) -> - | L10: =IF(ISERROR(VLOOKUP(B10,'N PMČR 2022'!B:G,6,0)),"-",VLOOKUP(B10,'N PMČR 2022'!B:G,6,0)) -> - | M10: =IF(COUNTIF('N PMČRj 2022'!B:B,B10)=0,"-",COUNTIF('N PMČRj 2022'!B:B,B10)) -> - | N10: =IF(ISERROR(VLOOKUP(B10,'N PMČRj 2022'!B:G,6,0)),"-",VLOOKUP(B10,'N PMČRj 2022'!B:G,6,0)) -> -
A11: 4 | B11: Marek Pechanec | C11: =VLOOKUP(B11,Pilot!A:C,3,0) -> Luhačovice | D11: =VLOOKUP(B11,Pilot!A:C,2,0) -> 1970 | E11: =VLOOKUP(B11,Pilot!A:E,5,0) -> M | F11: =VLOOKUP(B11,Pilot!A:F,6,0) ->  | G11: 4 | I11: =COUNTIF(B:B,B11) -> 1 | J11: 4 | K11: =IF(COUNTIF('N PMČR 2022'!B:B,B11)=0,"-",COUNTIF('N PMČR 2022'!B:B,B11)) -> - | L11: =IF(ISERROR(VLOOKUP(B11,'N PMČR 2022'!B:G,6,0)),"-",VLOOKUP(B11,'N PMČR 2022'!B:G,6,0)) -> - | M11: =IF(COUNTIF('N PMČRj 2022'!B:B,B11)=0,"-",COUNTIF('N PMČRj 2022'!B:B,B11)) -> - | N11: =IF(ISERROR(VLOOKUP(B11,'N PMČRj 2022'!B:G,6,0)),"-",VLOOKUP(B11,'N PMČRj 2022'!B:G,6,0)) -> -
B12: PMČR 2021 - Tábor - Kombi 15m
A13: - | B13: - | C13: =VLOOKUP(B13,Pilot!A:C,3,0) ->  | D13: =VLOOKUP(B13,Pilot!A:C,2,0) ->  | E13: =VLOOKUP(B13,Pilot!A:E,5,0) ->  | F13: =VLOOKUP(B13,Pilot!A:F,6,0) ->  | G13: =A13 -> - | I13: =COUNTIF(B:B,B13) -> 70 | J13: - | K13: =IF(COUNTIF('N PMČR 2022'!B:B,B13)=0,"-",COUNTIF('N PMČR 2022'!B:B,B13)) -> 5 | L13: =IF(ISERROR(VLOOKUP(B13,'N PMČR 2022'!B:G,6,0)),"-",VLOOKUP(B13,'N PMČR 2022'!B:G,6,0)) -> 81. | M13: =IF(COUNTIF('N PMČRj 2022'!B:B,B13)=0,"-",COUNTIF('N PMČRj 2022'!B:B,B13)) -> 35 | N13: =IF(ISERROR(VLOOKUP(B13,'N PMČRj 2022'!B:G,6,0)),"-",VLOOKUP(B13,'N PMČRj 2022'!B:G,6,0)) -> 21
B14: PMČR 2021 - Tábor - Kombi Open
A15: =MAX(A8:A14)+1 -> 5 | B15: Petr Hotovy | C15: =VLOOKUP(B15,Pilot!A:C,3,0) -> Česká Lípa | D15: =VLOOKUP(B15,Pilot!A:C,2,0) -> 1958 | E15: =VLOOKUP(B15,Pilot!A:E,5,0) -> M | F15: =VLOOKUP(B15,Pilot!A:F,6,0) ->  | G15: =A15 -> 5 | I15: =COUNTIF(B:B,B15) -> 1 | J15: 5 | K15: =IF(COUNTIF('N PMČR 2022'!B:B,B15)=0,"-",COUNTIF('N PMČR 2022'!B:B,B15)) -> 1 | L15: =IF(ISERROR(VLOOKUP(B15,'N PMČR 2022'!B:G,6,0)),"-",VLOOKUP(B15,'N PMČR 2022'!B:G,6,0)) -> N4 | M15: =IF(COUNTIF('N PMČRj 2022'!B:B,B15)=0,"-",COUNTIF('N PMČRj 2022'!B:B,B15)) -> - | N15: =IF(ISERROR(VLOOKUP(B15,'N PMČRj 2022'!B:G,6,0)),"-",VLOOKUP(B15,'N PMČRj 2022'!B:G,6,0)) -> -
A16: =A15+1 -> 6 | B16: Martin Picka | C16: =VLOOKUP(B16,Pilot!A:C,3,0) -> Tábor | D16: =VLOOKUP(B16,Pilot!A:C,2,0) -> 1974 | E16: =VLOOKUP(B16,Pilot!A:E,5,0) -> M | F16: =VLOOKUP(B16,Pilot!A:F,6,0) ->  | G16: =A16 -> 6 | I16: =COUNTIF(B:B,B16) -> 1 | J16: 6 | K16: =IF(COUNTIF('N PMČR 2022'!B:B,B16)=0,"-",COUNTIF('N PMČR 2022'!B:B,B16)) -> - | L16: =IF(ISERROR(VLOOKUP(B16,'N PMČR 2022'!B:G,6,0)),"-",VLOOKUP(B16,'N PMČR 2022'!B:G,6,0)) -> - | M16: =IF(COUNTIF('N PMČRj 2022'!B:B,B16)=0,"-",COUNTIF('N PMČRj 2022'!B:B,B16)) -> - | N16: =IF(ISERROR(VLOOKUP(B16,'N PMČRj 2022'!B:G,6,0)),"-",VLOOKUP(B16,'N PMČRj 2022'!B:G,6,0)) -> -
A17: =A16+1 -> 7 | B17: Petr Bartak | C17: =VLOOKUP(B17,Pilot!A:C,3,0) -> Letkov | D17: =VLOOKUP(B17,Pilot!A:C,2,0) -> 1984 | E17: =VLOOKUP(B17,Pilot!A:E,5,0) -> M | F17: =VLOOKUP(B17,Pilot!A:F,6,0) ->  | G17: 7 | I17: =COUNTIF(B:B,B17) -> 1 | J17: 7 | K17: =IF(COUNTIF('N PMČR 2022'!B:B,B17)=0,"-",COUNTIF('N PMČR 2022'!B:B,B17)) -> - | L17: =IF(ISERROR(VLOOKUP(B17,'N PMČR 2022'!B:G,6,0)),"-",VLOOKUP(B17,'N PMČR 2022'!B:G,6,0)) -> - | M17: =IF(COUNTIF('N PMČRj 2022'!B:B,B17)=0,"-",COUNTIF('N PMČRj 2022'!B:B,B17)) -> - | N17: =IF(ISERROR(VLOOKUP(B17,'N PMČRj 2022'!B:G,6,0)),"-",VLOOKUP(B17,'N PMČRj 2022'!B:G,6,0)) -> -
A18: 8 | B18: Ivan Harasta 65 | C18: =VLOOKUP(B18,Pilot!A:C,3,0) -> Toužim | D18: =VLOOKUP(B18,Pilot!A:C,2,0) -> 1965 | E18: =VLOOKUP(B18,Pilot!A:E,5,0) -> M | F18: =VLOOKUP(B18,Pilot!A:F,6,0) ->  | G18: 8 | I18: =COUNTIF(B:B,B18) -> 1 | J18: 8 | K18: =IF(COUNTIF('N PMČR 2022'!B:B,B18)=0,"-",COUNTIF('N PMČR 2022'!B:B,B18)) -> - | L18: =IF(ISERROR(VLOOKUP(B18,'N PMČR 2022'!B:G,6,0)),"-",VLOOKUP(B18,'N PMČR 2022'!B:G,6,0)) -> - | M18: =IF(COUNTIF('N PMČRj 2022'!B:B,B18)=0,"-",COUNTIF('N PMČRj 2022'!B:B,B18)) -> - | N18: =IF(ISERROR(VLOOKUP(B18,'N PMČRj 2022'!B:G,6,0)),"-",VLOOKUP(B18,'N PMČRj 2022'!B:G,6,0)) -> -
A19: 6.8.5.2. | B19: prvních 10 soutěžících z posledního platného PMRg, kteří nepostoupili na PMČR v roce konání PMRg, v pořadí podle korigovaných bodů ze všech tříd (bez náhradníků)
B20: V případě neplatnosti některé ze soutěžních tříd posledního PMRg budou pro výpočet korigovaných bodů použity výsledky z posledního platného PMRg v dané třídě.
B21: PMRg 2019 - Vysoké Mýto - Korigované body
A22: - | B22: - | D22: =VLOOKUP(B22,Pilot!A:C,2,0) ->  | E22: =VLOOKUP(B22,Pilot!A:E,5,0) ->  | F22: =VLOOKUP(B22,Pilot!A:F,6,0) ->  | G22: =A22 -> - | I22: =COUNTIF(B:B,B22) -> 70 | J22: - | K22: =IF(COUNTIF('N PMČR 2022'!B:B,B22)=0,"-",COUNTIF('N PMČR 2022'!B:B,B22)) -> 5 | L22: =IF(ISERROR(VLOOKUP(B22,'N PMČR 2022'!B:G,6,0)),"-",VLOOKUP(B22,'N PMČR 2022'!B:G,6,0)) -> 81. | M22: =IF(COUNTIF('N PMČRj 2022'!B:B,B22)=0,"-",COUNTIF('N PMČRj 2022'!B:B,B22)) -> 35 | N22: =IF(ISERROR(VLOOKUP(B22,'N PMČRj 2022'!B:G,6,0)),"-",VLOOKUP(B22,'N PMČRj 2022'!B:G,6,0)) -> 21
A23: 6.8.5.3. | B23: soutěžící z regionů Čechy 1, Čechy 2 a Morava v pořadí podle celkového umístění v CPS-INT předcházejícího roku konání PMRg do naplnění celkového počtu minimálně 60 nominovaných (+ 10 náhradníků)
A24: =MAX(A8:A23)+1 -> 9 | B24: - | C24: =VLOOKUP(B24,Pilot!A:C,3,0) ->  | D24: =VLOOKUP(B24,Pilot!A:C,2,0) ->  | E24: =VLOOKUP(B24,Pilot!A:E,5,0) ->  | F24: =VLOOKUP(B24,Pilot!A:F,6,0) ->  | G24: =A24 -> 9 | I24: =COUNTIF(B:B,B24) -> 70 | J24: - | K24: =IF(COUNTIF('N PMČR 2022'!B:B,B24)=0,"-",COUNTIF('N PMČR 2022'!B:B,B24)) -> 5 | L24: =IF(ISERROR(VLOOKUP(B24,'N PMČR 2022'!B:G,6,0)),"-",VLOOKUP(B24,'N PMČR 2022'!B:G,6,0)) -> 81. | M24: =IF(COUNTIF('N PMČRj 2022'!B:B,B24)=0,"-",COUNTIF('N PMČRj 2022'!B:B,B24)) -> 35 | N24: =IF(ISERROR(VLOOKUP(B24,'N PMČRj 2022'!B:G,6,0)),"-",VLOOKUP(B24,'N PMČRj 2022'!B:G,6,0)) -> 21
A25: =A24+1 -> 10 | B25: - | C25: =VLOOKUP(B25,Pilot!A:C,3,0) ->  | D25: =VLOOKUP(B25,Pilot!A:C,2,0) ->  | E25: =VLOOKUP(B25,Pilot!A:E,5,0) ->  | F25: =VLOOKUP(B25,Pilot!A:F,6,0) ->  | G25: 10 | I25: 70 | J25: - | K25: =IF(COUNTIF('N PMČR 2022'!B:B,B25)=0,"-",COUNTIF('N PMČR 2022'!B:B,B25)) -> 5 | L25: =IF(ISERROR(VLOOKUP(B25,'N PMČR 2022'!B:G,6,0)),"-",VLOOKUP(B25,'N PMČR 2022'!B:G,6,0)) -> 81. | M25: =IF(COUNTIF('N PMČRj 2022'!B:B,B25)=0,"-",COUNTIF('N PMČRj 2022'!B:B,B25)) -> 35 | N25: =IF(ISERROR(VLOOKUP(B25,'N PMČRj 2022'!B:G,6,0)),"-",VLOOKUP(B25,'N PMČRj 2022'!B:G,6,0)) -> 21
A26: =A25+1 -> 11 | B26: - | C26: =VLOOKUP(B26,Pilot!A:C,3,0) ->  | D26: =VLOOKUP(B26,Pilot!A:C,2,0) ->  | E26: =VLOOKUP(B26,Pilot!A:E,5,0) ->  | F26: =VLOOKUP(B26,Pilot!A:F,6,0) ->  | G26: 11 | I26: 70 | J26: - | K26: =IF(COUNTIF('N PMČR 2022'!B:B,B26)=0,"-",COUNTIF('N PMČR 2022'!B:B,B26)) -> 5 | L26: =IF(ISERROR(VLOOKUP(B26,'N PMČR 2022'!B:G,6,0)),"-",VLOOKUP(B26,'N PMČR 2022'!B:G,6,0)) -> 81. | M26: =IF(COUNTIF('N PMČRj 2022'!B:B,B26)=0,"-",COUNTIF('N PMČRj 2022'!B:B,B26)) -> 35 | N26: =IF(ISERROR(VLOOKUP(B26,'N PMČRj 2022'!B:G,6,0)),"-",VLOOKUP(B26,'N PMČRj 2022'!B:G,6,0)) -> 21
A27: 12 | B27: - | C27: =VLOOKUP(B27,Pilot!A:C,3,0) ->  | D27: =VLOOKUP(B27,Pilot!A:C,2,0) ->  | E27: =VLOOKUP(B27,Pilot!A:E,5,0) ->  | F27: =VLOOKUP(B27,Pilot!A:F,6,0) ->  | G27: 12 | I27: 70 | J27: - | K27: =IF(COUNTIF('N PMČR 2022'!B:B,B27)=0,"-",COUNTIF('N PMČR 2022'!B:B,B27)) -> 5 | L27: =IF(ISERROR(VLOOKUP(B27,'N PMČR 2022'!B:G,6,0)),"-",VLOOKUP(B27,'N PMČR 2022'!B:G,6,0)) -> 81. | M27: =IF(COUNTIF('N PMČRj 2022'!B:B,B27)=0,"-",COUNTIF('N PMČRj 2022'!B:B,B27)) -> 35 | N27: =IF(ISERROR(VLOOKUP(B27,'N PMČRj 2022'!B:G,6,0)),"-",VLOOKUP(B27,'N PMČRj 2022'!B:G,6,0)) -> 21
A28: 13 | B28: - | C28: =VLOOKUP(B28,Pilot!A:C,3,0) ->  | D28: =VLOOKUP(B28,Pilot!A:C,2,0) ->  | E28: =VLOOKUP(B28,Pilot!A:E,5,0) ->  | F28: =VLOOKUP(B28,Pilot!A:F,6,0) ->  | G28: 13 | I28: 70 | J28: - | K28: =IF(COUNTIF('N PMČR 2022'!B:B,B28)=0,"-",COUNTIF('N PMČR 2022'!B:B,B28)) -> 5 | L28: =IF(ISERROR(VLOOKUP(B28,'N PMČR 2022'!B:G,6,0)),"-",VLOOKUP(B28,'N PMČR 2022'!B:G,6,0)) -> 81. | M28: =IF(COUNTIF('N PMČRj 2022'!B:B,B28)=0,"-",COUNTIF('N PMČRj 2022'!B:B,B28)) -> 35 | N28: =IF(ISERROR(VLOOKUP(B28,'N PMČRj 2022'!B:G,6,0)),"-",VLOOKUP(B28,'N PMČRj 2022'!B:G,6,0)) -> 21
A29: 14 | B29: - | C29: =VLOOKUP(B29,Pilot!A:C,3,0) ->  | D29: =VLOOKUP(B29,Pilot!A:C,2,0) ->  | E29: =VLOOKUP(B29,Pilot!A:E,5,0) ->  | F29: =VLOOKUP(B29,Pilot!A:F,6,0) ->  | G29: 14 | I29: 70 | J29: - | K29: =IF(COUNTIF('N PMČR 2022'!B:B,B29)=0,"-",COUNTIF('N PMČR 2022'!B:B,B29)) -> 5 | L29: =IF(ISERROR(VLOOKUP(B29,'N PMČR 2022'!B:G,6,0)),"-",VLOOKUP(B29,'N PMČR 2022'!B:G,6,0)) -> 81. | M29: =IF(COUNTIF('N PMČRj 2022'!B:B,B29)=0,"-",COUNTIF('N PMČRj 2022'!B:B,B29)) -> 35 | N29: =IF(ISERROR(VLOOKUP(B29,'N PMČRj 2022'!B:G,6,0)),"-",VLOOKUP(B29,'N PMČRj 2022'!B:G,6,0)) -> 21
A30: 15 | B30: - | C30: =VLOOKUP(B30,Pilot!A:C,3,0) ->  | D30: =VLOOKUP(B30,Pilot!A:C,2,0) ->  | E30: =VLOOKUP(B30,Pilot!A:E,5,0) ->  | F30: =VLOOKUP(B30,Pilot!A:F,6,0) ->  | G30: 15 | I30: 70 | J30: - | K30: =IF(COUNTIF('N PMČR 2022'!B:B,B30)=0,"-",COUNTIF('N PMČR 2022'!B:B,B30)) -> 5 | L30: =IF(ISERROR(VLOOKUP(B30,'N PMČR 2022'!B:G,6,0)),"-",VLOOKUP(B30,'N PMČR 2022'!B:G,6,0)) -> 81. | M30: =IF(COUNTIF('N PMČRj 2022'!B:B,B30)=0,"-",COUNTIF('N PMČRj 2022'!B:B,B30)) -> 35 | N30: =IF(ISERROR(VLOOKUP(B30,'N PMČRj 2022'!B:G,6,0)),"-",VLOOKUP(B30,'N PMČRj 2022'!B:G,6,0)) -> 21
A31: 16 | B31: - | C31: =VLOOKUP(B31,Pilot!A:C,3,0) ->  | D31: =VLOOKUP(B31,Pilot!A:C,2,0) ->  | E31: =VLOOKUP(B31,Pilot!A:E,5,0) ->  | F31: =VLOOKUP(B31,Pilot!A:F,6,0) ->  | G31: 16 | I31: 70 | J31: - | K31: =IF(COUNTIF('N PMČR 2022'!B:B,B31)=0,"-",COUNTIF('N PMČR 2022'!B:B,B31)) -> 5 | L31: =IF(ISERROR(VLOOKUP(B31,'N PMČR 2022'!B:G,6,0)),"-",VLOOKUP(B31,'N PMČR 2022'!B:G,6,0)) -> 81. | M31: =IF(COUNTIF('N PMČRj 2022'!B:B,B31)=0,"-",COUNTIF('N PMČRj 2022'!B:B,B31)) -> 35 | N31: =IF(ISERROR(VLOOKUP(B31,'N PMČRj 2022'!B:G,6,0)),"-",VLOOKUP(B31,'N PMČRj 2022'!B:G,6,0)) -> 21
A32: 17 | B32: - | C32: =VLOOKUP(B32,Pilot!A:C,3,0) ->  | D32: =VLOOKUP(B32,Pilot!A:C,2,0) ->  | E32: =VLOOKUP(B32,Pilot!A:E,5,0) ->  | F32: =VLOOKUP(B32,Pilot!A:F,6,0) ->  | G32: 17 | I32: 70 | J32: - | K32: =IF(COUNTIF('N PMČR 2022'!B:B,B32)=0,"-",COUNTIF('N PMČR 2022'!B:B,B32)) -> 5 | L32: =IF(ISERROR(VLOOKUP(B32,'N PMČR 2022'!B:G,6,0)),"-",VLOOKUP(B32,'N PMČR 2022'!B:G,6,0)) -> 81. | M32: =IF(COUNTIF('N PMČRj 2022'!B:B,B32)=0,"-",COUNTIF('N PMČRj 2022'!B:B,B32)) -> 35 | N32: =IF(ISERROR(VLOOKUP(B32,'N PMČRj 2022'!B:G,6,0)),"-",VLOOKUP(B32,'N PMČRj 2022'!B:G,6,0)) -> 21
A33: 18 | B33: - | C33: =VLOOKUP(B33,Pilot!A:C,3,0) ->  | D33: =VLOOKUP(B33,Pilot!A:C,2,0) ->  | E33: =VLOOKUP(B33,Pilot!A:E,5,0) ->  | F33: =VLOOKUP(B33,Pilot!A:F,6,0) ->  | G33: 18 | I33: 70 | J33: - | K33: =IF(COUNTIF('N PMČR 2022'!B:B,B33)=0,"-",COUNTIF('N PMČR 2022'!B:B,B33)) -> 5 | L33: =IF(ISERROR(VLOOKUP(B33,'N PMČR 2022'!B:G,6,0)),"-",VLOOKUP(B33,'N PMČR 2022'!B:G,6,0)) -> 81. | M33: =IF(COUNTIF('N PMČRj 2022'!B:B,B33)=0,"-",COUNTIF('N PMČRj 2022'!B:B,B33)) -> 35 | N33: =IF(ISERROR(VLOOKUP(B33,'N PMČRj 2022'!B:G,6,0)),"-",VLOOKUP(B33,'N PMČRj 2022'!B:G,6,0)) -> 21
A34: 19 | B34: - | C34: =VLOOKUP(B34,Pilot!A:C,3,0) ->  | D34: =VLOOKUP(B34,Pilot!A:C,2,0) ->  | E34: =VLOOKUP(B34,Pilot!A:E,5,0) ->  | F34: =VLOOKUP(B34,Pilot!A:F,6,0) ->  | G34: 19 | I34: 70 | J34: - | K34: =IF(COUNTIF('N PMČR 2022'!B:B,B34)=0,"-",COUNTIF('N PMČR 2022'!B:B,B34)) -> 5 | L34: =IF(ISERROR(VLOOKUP(B34,'N PMČR 2022'!B:G,6,0)),"-",VLOOKUP(B34,'N PMČR 2022'!B:G,6,0)) -> 81. | M34: =IF(COUNTIF('N PMČRj 2022'!B:B,B34)=0,"-",COUNTIF('N PMČRj 2022'!B:B,B34)) -> 35 | N34: =IF(ISERROR(VLOOKUP(B34,'N PMČRj 2022'!B:G,6,0)),"-",VLOOKUP(B34,'N PMČRj 2022'!B:G,6,0)) -> 21
A35: 20 | B35: - | C35: =VLOOKUP(B35,Pilot!A:C,3,0) ->  | D35: =VLOOKUP(B35,Pilot!A:C,2,0) ->  | E35: =VLOOKUP(B35,Pilot!A:E,5,0) ->  | F35: =VLOOKUP(B35,Pilot!A:F,6,0) ->  | G35: 20 | I35: 70 | J35: - | K35: =IF(COUNTIF('N PMČR 2022'!B:B,B35)=0,"-",COUNTIF('N PMČR 2022'!B:B,B35)) -> 5 | L35: =IF(ISERROR(VLOOKUP(B35,'N PMČR 2022'!B:G,6,0)),"-",VLOOKUP(B35,'N PMČR 2022'!B:G,6,0)) -> 81. | M35: =IF(COUNTIF('N PMČRj 2022'!B:B,B35)=0,"-",COUNTIF('N PMČRj 2022'!B:B,B35)) -> 35 | N35: =IF(ISERROR(VLOOKUP(B35,'N PMČRj 2022'!B:G,6,0)),"-",VLOOKUP(B35,'N PMČRj 2022'!B:G,6,0)) -> 21
A36: 21 | B36: - | C36: =VLOOKUP(B36,Pilot!A:C,3,0) ->  | D36: =VLOOKUP(B36,Pilot!A:C,2,0) ->  | E36: =VLOOKUP(B36,Pilot!A:E,5,0) ->  | F36: =VLOOKUP(B36,Pilot!A:F,6,0) ->  | G36: 21 | I36: 70 | J36: - | K36: =IF(COUNTIF('N PMČR 2022'!B:B,B36)=0,"-",COUNTIF('N PMČR 2022'!B:B,B36)) -> 5 | L36: =IF(ISERROR(VLOOKUP(B36,'N PMČR 2022'!B:G,6,0)),"-",VLOOKUP(B36,'N PMČR 2022'!B:G,6,0)) -> 81. | M36: =IF(COUNTIF('N PMČRj 2022'!B:B,B36)=0,"-",COUNTIF('N PMČRj 2022'!B:B,B36)) -> 35 | N36: =IF(ISERROR(VLOOKUP(B36,'N PMČRj 2022'!B:G,6,0)),"-",VLOOKUP(B36,'N PMČRj 2022'!B:G,6,0)) -> 21
A37: 22 | B37: - | C37: =VLOOKUP(B37,Pilot!A:C,3,0) ->  | D37: =VLOOKUP(B37,Pilot!A:C,2,0) ->  | E37: =VLOOKUP(B37,Pilot!A:E,5,0) ->  | F37: =VLOOKUP(B37,Pilot!A:F,6,0) ->  | G37: 22 | I37: 70 | J37: - | K37: =IF(COUNTIF('N PMČR 2022'!B:B,B37)=0,"-",COUNTIF('N PMČR 2022'!B:B,B37)) -> 5 | L37: =IF(ISERROR(VLOOKUP(B37,'N PMČR 2022'!B:G,6,0)),"-",VLOOKUP(B37,'N PMČR 2022'!B:G,6,0)) -> 81. | M37: =IF(COUNTIF('N PMČRj 2022'!B:B,B37)=0,"-",COUNTIF('N PMČRj 2022'!B:B,B37)) -> 35 | N37: =IF(ISERROR(VLOOKUP(B37,'N PMČRj 2022'!B:G,6,0)),"-",VLOOKUP(B37,'N PMČRj 2022'!B:G,6,0)) -> 21
A38: 23 | B38: - | C38: =VLOOKUP(B38,Pilot!A:C,3,0) ->  | D38: =VLOOKUP(B38,Pilot!A:C,2,0) ->  | E38: =VLOOKUP(B38,Pilot!A:E,5,0) ->  | F38: =VLOOKUP(B38,Pilot!A:F,6,0) ->  | G38: 23 | I38: 70 | J38: - | K38: =IF(COUNTIF('N PMČR 2022'!B:B,B38)=0,"-",COUNTIF('N PMČR 2022'!B:B,B38)) -> 5 | L38: =IF(ISERROR(VLOOKUP(B38,'N PMČR 2022'!B:G,6,0)),"-",VLOOKUP(B38,'N PMČR 2022'!B:G,6,0)) -> 81. | M38: =IF(COUNTIF('N PMČRj 2022'!B:B,B38)=0,"-",COUNTIF('N PMČRj 2022'!B:B,B38)) -> 35 | N38: =IF(ISERROR(VLOOKUP(B38,'N PMČRj 2022'!B:G,6,0)),"-",VLOOKUP(B38,'N PMČRj 2022'!B:G,6,0)) -> 21
A39: 24 | B39: - | C39: =VLOOKUP(B39,Pilot!A:C,3,0) ->  | D39: =VLOOKUP(B39,Pilot!A:C,2,0) ->  | E39: =VLOOKUP(B39,Pilot!A:E,5,0) ->  | F39: =VLOOKUP(B39,Pilot!A:F,6,0) ->  | G39: 24 | I39: 70 | J39: - | K39: =IF(COUNTIF('N PMČR 2022'!B:B,B39)=0,"-",COUNTIF('N PMČR 2022'!B:B,B39)) -> 5 | L39: =IF(ISERROR(VLOOKUP(B39,'N PMČR 2022'!B:G,6,0)),"-",VLOOKUP(B39,'N PMČR 2022'!B:G,6,0)) -> 81. | M39: =IF(COUNTIF('N PMČRj 2022'!B:B,B39)=0,"-",COUNTIF('N PMČRj 2022'!B:B,B39)) -> 35 | N39: =IF(ISERROR(VLOOKUP(B39,'N PMČRj 2022'!B:G,6,0)),"-",VLOOKUP(B39,'N PMČRj 2022'!B:G,6,0)) -> 21
A40: 25 | B40: - | C40: =VLOOKUP(B40,Pilot!A:C,3,0) ->  | D40: =VLOOKUP(B40,Pilot!A:C,2,0) ->  | E40: =VLOOKUP(B40,Pilot!A:E,5,0) ->  | F40: =VLOOKUP(B40,Pilot!A:F,6,0) ->  | G40: 25 | I40: 70 | J40: - | K40: =IF(COUNTIF('N PMČR 2022'!B:B,B40)=0,"-",COUNTIF('N PMČR 2022'!B:B,B40)) -> 5 | L40: =IF(ISERROR(VLOOKUP(B40,'N PMČR 2022'!B:G,6,0)),"-",VLOOKUP(B40,'N PMČR 2022'!B:G,6,0)) -> 81. | M40: =IF(COUNTIF('N PMČRj 2022'!B:B,B40)=0,"-",COUNTIF('N PMČRj 2022'!B:B,B40)) -> 35 | N40: =IF(ISERROR(VLOOKUP(B40,'N PMČRj 2022'!B:G,6,0)),"-",VLOOKUP(B40,'N PMČRj 2022'!B:G,6,0)) -> 21
A41: 26 | B41: - | C41: =VLOOKUP(B41,Pilot!A:C,3,0) ->  | D41: =VLOOKUP(B41,Pilot!A:C,2,0) ->  | E41: =VLOOKUP(B41,Pilot!A:E,5,0) ->  | F41: =VLOOKUP(B41,Pilot!A:F,6,0) ->  | G41: 26 | I41: 70 | J41: - | K41: =IF(COUNTIF('N PMČR 2022'!B:B,B41)=0,"-",COUNTIF('N PMČR 2022'!B:B,B41)) -> 5 | L41: =IF(ISERROR(VLOOKUP(B41,'N PMČR 2022'!B:G,6,0)),"-",VLOOKUP(B41,'N PMČR 2022'!B:G,6,0)) -> 81. | M41: =IF(COUNTIF('N PMČRj 2022'!B:B,B41)=0,"-",COUNTIF('N PMČRj 2022'!B:B,B41)) -> 35 | N41: =IF(ISERROR(VLOOKUP(B41,'N PMČRj 2022'!B:G,6,0)),"-",VLOOKUP(B41,'N PMČRj 2022'!B:G,6,0)) -> 21
A42: 27 | B42: - | C42: =VLOOKUP(B42,Pilot!A:C,3,0) ->  | D42: =VLOOKUP(B42,Pilot!A:C,2,0) ->  | E42: =VLOOKUP(B42,Pilot!A:E,5,0) ->  | F42: =VLOOKUP(B42,Pilot!A:F,6,0) ->  | G42: 27 | I42: 70 | J42: - | K42: =IF(COUNTIF('N PMČR 2022'!B:B,B42)=0,"-",COUNTIF('N PMČR 2022'!B:B,B42)) -> 5 | L42: =IF(ISERROR(VLOOKUP(B42,'N PMČR 2022'!B:G,6,0)),"-",VLOOKUP(B42,'N PMČR 2022'!B:G,6,0)) -> 81. | M42: =IF(COUNTIF('N PMČRj 2022'!B:B,B42)=0,"-",COUNTIF('N PMČRj 2022'!B:B,B42)) -> 35 | N42: =IF(ISERROR(VLOOKUP(B42,'N PMČRj 2022'!B:G,6,0)),"-",VLOOKUP(B42,'N PMČRj 2022'!B:G,6,0)) -> 21
A43: 28 | B43: - | C43: =VLOOKUP(B43,Pilot!A:C,3,0) ->  | D43: =VLOOKUP(B43,Pilot!A:C,2,0) ->  | E43: =VLOOKUP(B43,Pilot!A:E,5,0) ->  | F43: =VLOOKUP(B43,Pilot!A:F,6,0) ->  | G43: =A43 -> 28 | I43: 70 | J43: - | K43: =IF(COUNTIF('N PMČR 2022'!B:B,B43)=0,"-",COUNTIF('N PMČR 2022'!B:B,B43)) -> 5 | L43: =IF(ISERROR(VLOOKUP(B43,'N PMČR 2022'!B:G,6,0)),"-",VLOOKUP(B43,'N PMČR 2022'!B:G,6,0)) -> 81. | M43: =IF(COUNTIF('N PMČRj 2022'!B:B,B43)=0,"-",COUNTIF('N PMČRj 2022'!B:B,B43)) -> 35 | N43: =IF(ISERROR(VLOOKUP(B43,'N PMČRj 2022'!B:G,6,0)),"-",VLOOKUP(B43,'N PMČRj 2022'!B:G,6,0)) -> 21
A44: 29 | B44: - | C44: =VLOOKUP(B44,Pilot!A:C,3,0) ->  | D44: =VLOOKUP(B44,Pilot!A:C,2,0) ->  | E44: =VLOOKUP(B44,Pilot!A:E,5,0) ->  | F44: =VLOOKUP(B44,Pilot!A:F,6,0) ->  | G44: 29 | I44: 70 | J44: - | K44: =IF(COUNTIF('N PMČR 2022'!B:B,B44)=0,"-",COUNTIF('N PMČR 2022'!B:B,B44)) -> 5 | L44: =IF(ISERROR(VLOOKUP(B44,'N PMČR 2022'!B:G,6,0)),"-",VLOOKUP(B44,'N PMČR 2022'!B:G,6,0)) -> 81. | M44: =IF(COUNTIF('N PMČRj 2022'!B:B,B44)=0,"-",COUNTIF('N PMČRj 2022'!B:B,B44)) -> 35 | N44: =IF(ISERROR(VLOOKUP(B44,'N PMČRj 2022'!B:G,6,0)),"-",VLOOKUP(B44,'N PMČRj 2022'!B:G,6,0)) -> 21
A45: 30 | B45: - | C45: =VLOOKUP(B45,Pilot!A:C,3,0) ->  | D45: =VLOOKUP(B45,Pilot!A:C,2,0) ->  | E45: =VLOOKUP(B45,Pilot!A:E,5,0) ->  | F45: =VLOOKUP(B45,Pilot!A:F,6,0) ->  | G45: 30 | I45: 70 | J45: - | K45: =IF(COUNTIF('N PMČR 2022'!B:B,B45)=0,"-",COUNTIF('N PMČR 2022'!B:B,B45)) -> 5 | L45: =IF(ISERROR(VLOOKUP(B45,'N PMČR 2022'!B:G,6,0)),"-",VLOOKUP(B45,'N PMČR 2022'!B:G,6,0)) -> 81. | M45: =IF(COUNTIF('N PMČRj 2022'!B:B,B45)=0,"-",COUNTIF('N PMČRj 2022'!B:B,B45)) -> 35 | N45: =IF(ISERROR(VLOOKUP(B45,'N PMČRj 2022'!B:G,6,0)),"-",VLOOKUP(B45,'N PMČRj 2022'!B:G,6,0)) -> 21
A46: 31 | B46: - | C46: =VLOOKUP(B46,Pilot!A:C,3,0) ->  | D46: =VLOOKUP(B46,Pilot!A:C,2,0) ->  | E46: =VLOOKUP(B46,Pilot!A:E,5,0) ->  | F46: =VLOOKUP(B46,Pilot!A:F,6,0) ->  | G46: 31 | I46: 70 | J46: - | K46: =IF(COUNTIF('N PMČR 2022'!B:B,B46)=0,"-",COUNTIF('N PMČR 2022'!B:B,B46)) -> 5 | L46: =IF(ISERROR(VLOOKUP(B46,'N PMČR 2022'!B:G,6,0)),"-",VLOOKUP(B46,'N PMČR 2022'!B:G,6,0)) -> 81. | M46: =IF(COUNTIF('N PMČRj 2022'!B:B,B46)=0,"-",COUNTIF('N PMČRj 2022'!B:B,B46)) -> 35 | N46: =IF(ISERROR(VLOOKUP(B46,'N PMČRj 2022'!B:G,6,0)),"-",VLOOKUP(B46,'N PMČRj 2022'!B:G,6,0)) -> 21
A47: 32 | B47: - | C47: =VLOOKUP(B47,Pilot!A:C,3,0) ->  | D47: =VLOOKUP(B47,Pilot!A:C,2,0) ->  | E47: =VLOOKUP(B47,Pilot!A:E,5,0) ->  | F47: =VLOOKUP(B47,Pilot!A:F,6,0) ->  | G47: 32 | I47: 70 | J47: - | K47: =IF(COUNTIF('N PMČR 2022'!B:B,B47)=0,"-",COUNTIF('N PMČR 2022'!B:B,B47)) -> 5 | L47: =IF(ISERROR(VLOOKUP(B47,'N PMČR 2022'!B:G,6,0)),"-",VLOOKUP(B47,'N PMČR 2022'!B:G,6,0)) -> 81. | M47: =IF(COUNTIF('N PMČRj 2022'!B:B,B47)=0,"-",COUNTIF('N PMČRj 2022'!B:B,B47)) -> 35 | N47: =IF(ISERROR(VLOOKUP(B47,'N PMČRj 2022'!B:G,6,0)),"-",VLOOKUP(B47,'N PMČRj 2022'!B:G,6,0)) -> 21
A48: 33 | B48: - | C48: =VLOOKUP(B48,Pilot!A:C,3,0) ->  | D48: =VLOOKUP(B48,Pilot!A:C,2,0) ->  | E48: =VLOOKUP(B48,Pilot!A:E,5,0) ->  | F48: =VLOOKUP(B48,Pilot!A:F,6,0) ->  | G48: 33 | I48: 70 | J48: - | K48: =IF(COUNTIF('N PMČR 2022'!B:B,B48)=0,"-",COUNTIF('N PMČR 2022'!B:B,B48)) -> 5 | L48: =IF(ISERROR(VLOOKUP(B48,'N PMČR 2022'!B:G,6,0)),"-",VLOOKUP(B48,'N PMČR 2022'!B:G,6,0)) -> 81. | M48: =IF(COUNTIF('N PMČRj 2022'!B:B,B48)=0,"-",COUNTIF('N PMČRj 2022'!B:B,B48)) -> 35 | N48: =IF(ISERROR(VLOOKUP(B48,'N PMČRj 2022'!B:G,6,0)),"-",VLOOKUP(B48,'N PMČRj 2022'!B:G,6,0)) -> 21
A49: 34 | B49: - | C49: =VLOOKUP(B49,Pilot!A:C,3,0) ->  | D49: =VLOOKUP(B49,Pilot!A:C,2,0) ->  | E49: =VLOOKUP(B49,Pilot!A:E,5,0) ->  | F49: =VLOOKUP(B49,Pilot!A:F,6,0) ->  | G49: =A49 -> 34 | I49: 70 | J49: - | K49: =IF(COUNTIF('N PMČR 2022'!B:B,B49)=0,"-",COUNTIF('N PMČR 2022'!B:B,B49)) -> 5 | L49: =IF(ISERROR(VLOOKUP(B49,'N PMČR 2022'!B:G,6,0)),"-",VLOOKUP(B49,'N PMČR 2022'!B:G,6,0)) -> 81. | M49: =IF(COUNTIF('N PMČRj 2022'!B:B,B49)=0,"-",COUNTIF('N PMČRj 2022'!B:B,B49)) -> 35 | N49: =IF(ISERROR(VLOOKUP(B49,'N PMČRj 2022'!B:G,6,0)),"-",VLOOKUP(B49,'N PMČRj 2022'!B:G,6,0)) -> 21
A50: 35 | B50: - | C50: =VLOOKUP(B50,Pilot!A:C,3,0) ->  | D50: =VLOOKUP(B50,Pilot!A:C,2,0) ->  | E50: =VLOOKUP(B50,Pilot!A:E,5,0) ->  | F50: =VLOOKUP(B50,Pilot!A:F,6,0) ->  | G50: 35 | I50: 70 | J50: - | K50: =IF(COUNTIF('N PMČR 2022'!B:B,B50)=0,"-",COUNTIF('N PMČR 2022'!B:B,B50)) -> 5 | L50: =IF(ISERROR(VLOOKUP(B50,'N PMČR 2022'!B:G,6,0)),"-",VLOOKUP(B50,'N PMČR 2022'!B:G,6,0)) -> 81. | M50: =IF(COUNTIF('N PMČRj 2022'!B:B,B50)=0,"-",COUNTIF('N PMČRj 2022'!B:B,B50)) -> 35 | N50: =IF(ISERROR(VLOOKUP(B50,'N PMČRj 2022'!B:G,6,0)),"-",VLOOKUP(B50,'N PMČRj 2022'!B:G,6,0)) -> 21
A51: 36 | B51: - | C51: =VLOOKUP(B51,Pilot!A:C,3,0) ->  | D51: =VLOOKUP(B51,Pilot!A:C,2,0) ->  | E51: =VLOOKUP(B51,Pilot!A:E,5,0) ->  | F51: =VLOOKUP(B51,Pilot!A:F,6,0) ->  | G51: 36 | I51: 70 | J51: - | K51: =IF(COUNTIF('N PMČR 2022'!B:B,B51)=0,"-",COUNTIF('N PMČR 2022'!B:B,B51)) -> 5 | L51: =IF(ISERROR(VLOOKUP(B51,'N PMČR 2022'!B:G,6,0)),"-",VLOOKUP(B51,'N PMČR 2022'!B:G,6,0)) -> 81. | M51: =IF(COUNTIF('N PMČRj 2022'!B:B,B51)=0,"-",COUNTIF('N PMČRj 2022'!B:B,B51)) -> 35 | N51: =IF(ISERROR(VLOOKUP(B51,'N PMČRj 2022'!B:G,6,0)),"-",VLOOKUP(B51,'N PMČRj 2022'!B:G,6,0)) -> 21
A52: 37 | B52: - | C52: =VLOOKUP(B52,Pilot!A:C,3,0) ->  | D52: =VLOOKUP(B52,Pilot!A:C,2,0) ->  | E52: =VLOOKUP(B52,Pilot!A:E,5,0) ->  | F52: =VLOOKUP(B52,Pilot!A:F,6,0) ->  | G52: 37 | I52: 70 | J52: - | K52: =IF(COUNTIF('N PMČR 2022'!B:B,B52)=0,"-",COUNTIF('N PMČR 2022'!B:B,B52)) -> 5 | L52: =IF(ISERROR(VLOOKUP(B52,'N PMČR 2022'!B:G,6,0)),"-",VLOOKUP(B52,'N PMČR 2022'!B:G,6,0)) -> 81. | M52: =IF(COUNTIF('N PMČRj 2022'!B:B,B52)=0,"-",COUNTIF('N PMČRj 2022'!B:B,B52)) -> 35 | N52: =IF(ISERROR(VLOOKUP(B52,'N PMČRj 2022'!B:G,6,0)),"-",VLOOKUP(B52,'N PMČRj 2022'!B:G,6,0)) -> 21
A53: 38 | B53: - | C53: =VLOOKUP(B53,Pilot!A:C,3,0) ->  | D53: =VLOOKUP(B53,Pilot!A:C,2,0) ->  | E53: =VLOOKUP(B53,Pilot!A:E,5,0) ->  | F53: =VLOOKUP(B53,Pilot!A:F,6,0) ->  | G53: 38 | I53: 70 | J53: - | K53: =IF(COUNTIF('N PMČR 2022'!B:B,B53)=0,"-",COUNTIF('N PMČR 2022'!B:B,B53)) -> 5 | L53: =IF(ISERROR(VLOOKUP(B53,'N PMČR 2022'!B:G,6,0)),"-",VLOOKUP(B53,'N PMČR 2022'!B:G,6,0)) -> 81. | M53: =IF(COUNTIF('N PMČRj 2022'!B:B,B53)=0,"-",COUNTIF('N PMČRj 2022'!B:B,B53)) -> 35 | N53: =IF(ISERROR(VLOOKUP(B53,'N PMČRj 2022'!B:G,6,0)),"-",VLOOKUP(B53,'N PMČRj 2022'!B:G,6,0)) -> 21
A54: 39 | B54: - | C54: =VLOOKUP(B54,Pilot!A:C,3,0) ->  | D54: =VLOOKUP(B54,Pilot!A:C,2,0) ->  | E54: =VLOOKUP(B54,Pilot!A:E,5,0) ->  | F54: =VLOOKUP(B54,Pilot!A:F,6,0) ->  | G54: =A54 -> 39 | I54: 70 | J54: - | K54: =IF(COUNTIF('N PMČR 2022'!B:B,B54)=0,"-",COUNTIF('N PMČR 2022'!B:B,B54)) -> 5 | L54: =IF(ISERROR(VLOOKUP(B54,'N PMČR 2022'!B:G,6,0)),"-",VLOOKUP(B54,'N PMČR 2022'!B:G,6,0)) -> 81. | M54: =IF(COUNTIF('N PMČRj 2022'!B:B,B54)=0,"-",COUNTIF('N PMČRj 2022'!B:B,B54)) -> 35 | N54: =IF(ISERROR(VLOOKUP(B54,'N PMČRj 2022'!B:G,6,0)),"-",VLOOKUP(B54,'N PMČRj 2022'!B:G,6,0)) -> 21
A55: 40 | B55: - | C55: =VLOOKUP(B55,Pilot!A:C,3,0) ->  | D55: =VLOOKUP(B55,Pilot!A:C,2,0) ->  | E55: =VLOOKUP(B55,Pilot!A:E,5,0) ->  | F55: =VLOOKUP(B55,Pilot!A:F,6,0) ->  | G55: 40 | I55: 70 | J55: - | K55: =IF(COUNTIF('N PMČR 2022'!B:B,B55)=0,"-",COUNTIF('N PMČR 2022'!B:B,B55)) -> 5 | L55: =IF(ISERROR(VLOOKUP(B55,'N PMČR 2022'!B:G,6,0)),"-",VLOOKUP(B55,'N PMČR 2022'!B:G,6,0)) -> 81. | M55: =IF(COUNTIF('N PMČRj 2022'!B:B,B55)=0,"-",COUNTIF('N PMČRj 2022'!B:B,B55)) -> 35 | N55: =IF(ISERROR(VLOOKUP(B55,'N PMČRj 2022'!B:G,6,0)),"-",VLOOKUP(B55,'N PMČRj 2022'!B:G,6,0)) -> 21
A56: 41 | B56: - | C56: =VLOOKUP(B56,Pilot!A:C,3,0) ->  | D56: =VLOOKUP(B56,Pilot!A:C,2,0) ->  | E56: =VLOOKUP(B56,Pilot!A:E,5,0) ->  | F56: =VLOOKUP(B56,Pilot!A:F,6,0) ->  | G56: 41 | I56: 70 | J56: - | K56: =IF(COUNTIF('N PMČR 2022'!B:B,B56)=0,"-",COUNTIF('N PMČR 2022'!B:B,B56)) -> 5 | L56: =IF(ISERROR(VLOOKUP(B56,'N PMČR 2022'!B:G,6,0)),"-",VLOOKUP(B56,'N PMČR 2022'!B:G,6,0)) -> 81. | M56: =IF(COUNTIF('N PMČRj 2022'!B:B,B56)=0,"-",COUNTIF('N PMČRj 2022'!B:B,B56)) -> 35 | N56: =IF(ISERROR(VLOOKUP(B56,'N PMČRj 2022'!B:G,6,0)),"-",VLOOKUP(B56,'N PMČRj 2022'!B:G,6,0)) -> 21
A57: 42 | B57: - | C57: =VLOOKUP(B57,Pilot!A:C,3,0) ->  | D57: =VLOOKUP(B57,Pilot!A:C,2,0) ->  | E57: =VLOOKUP(B57,Pilot!A:E,5,0) ->  | F57: =VLOOKUP(B57,Pilot!A:F,6,0) ->  | G57: 42 | I57: 70 | J57: - | K57: =IF(COUNTIF('N PMČR 2022'!B:B,B57)=0,"-",COUNTIF('N PMČR 2022'!B:B,B57)) -> 5 | L57: =IF(ISERROR(VLOOKUP(B57,'N PMČR 2022'!B:G,6,0)),"-",VLOOKUP(B57,'N PMČR 2022'!B:G,6,0)) -> 81. | M57: =IF(COUNTIF('N PMČRj 2022'!B:B,B57)=0,"-",COUNTIF('N PMČRj 2022'!B:B,B57)) -> 35 | N57: =IF(ISERROR(VLOOKUP(B57,'N PMČRj 2022'!B:G,6,0)),"-",VLOOKUP(B57,'N PMČRj 2022'!B:G,6,0)) -> 21
A58: 43 | B58: - | C58: =VLOOKUP(B58,Pilot!A:C,3,0) ->  | D58: =VLOOKUP(B58,Pilot!A:C,2,0) ->  | E58: =VLOOKUP(B58,Pilot!A:E,5,0) ->  | F58: =VLOOKUP(B58,Pilot!A:F,6,0) ->  | G58: 43 | I58: 70 | J58: - | K58: =IF(COUNTIF('N PMČR 2022'!B:B,B58)=0,"-",COUNTIF('N PMČR 2022'!B:B,B58)) -> 5 | L58: =IF(ISERROR(VLOOKUP(B58,'N PMČR 2022'!B:G,6,0)),"-",VLOOKUP(B58,'N PMČR 2022'!B:G,6,0)) -> 81. | M58: =IF(COUNTIF('N PMČRj 2022'!B:B,B58)=0,"-",COUNTIF('N PMČRj 2022'!B:B,B58)) -> 35 | N58: =IF(ISERROR(VLOOKUP(B58,'N PMČRj 2022'!B:G,6,0)),"-",VLOOKUP(B58,'N PMČRj 2022'!B:G,6,0)) -> 21
A59: 44 | B59: - | C59: =VLOOKUP(B59,Pilot!A:C,3,0) ->  | D59: =VLOOKUP(B59,Pilot!A:C,2,0) ->  | E59: =VLOOKUP(B59,Pilot!A:E,5,0) ->  | F59: =VLOOKUP(B59,Pilot!A:F,6,0) ->  | G59: 44 | I59: 70 | J59: - | K59: =IF(COUNTIF('N PMČR 2022'!B:B,B59)=0,"-",COUNTIF('N PMČR 2022'!B:B,B59)) -> 5 | L59: =IF(ISERROR(VLOOKUP(B59,'N PMČR 2022'!B:G,6,0)),"-",VLOOKUP(B59,'N PMČR 2022'!B:G,6,0)) -> 81. | M59: =IF(COUNTIF('N PMČRj 2022'!B:B,B59)=0,"-",COUNTIF('N PMČRj 2022'!B:B,B59)) -> 35 | N59: =IF(ISERROR(VLOOKUP(B59,'N PMČRj 2022'!B:G,6,0)),"-",VLOOKUP(B59,'N PMČRj 2022'!B:G,6,0)) -> 21
A60: 45 | B60: - | C60: =VLOOKUP(B60,Pilot!A:C,3,0) ->  | D60: =VLOOKUP(B60,Pilot!A:C,2,0) ->  | E60: =VLOOKUP(B60,Pilot!A:E,5,0) ->  | F60: =VLOOKUP(B60,Pilot!A:F,6,0) ->  | G60: 45 | I60: 70 | J60: - | K60: =IF(COUNTIF('N PMČR 2022'!B:B,B60)=0,"-",COUNTIF('N PMČR 2022'!B:B,B60)) -> 5 | L60: =IF(ISERROR(VLOOKUP(B60,'N PMČR 2022'!B:G,6,0)),"-",VLOOKUP(B60,'N PMČR 2022'!B:G,6,0)) -> 81. | M60: =IF(COUNTIF('N PMČRj 2022'!B:B,B60)=0,"-",COUNTIF('N PMČRj 2022'!B:B,B60)) -> 35 | N60: =IF(ISERROR(VLOOKUP(B60,'N PMČRj 2022'!B:G,6,0)),"-",VLOOKUP(B60,'N PMČRj 2022'!B:G,6,0)) -> 21
A61: 46 | B61: - | C61: =VLOOKUP(B61,Pilot!A:C,3,0) ->  | D61: =VLOOKUP(B61,Pilot!A:C,2,0) ->  | E61: =VLOOKUP(B61,Pilot!A:E,5,0) ->  | F61: =VLOOKUP(B61,Pilot!A:F,6,0) ->  | G61: 46 | I61: 70 | J61: - | K61: =IF(COUNTIF('N PMČR 2022'!B:B,B61)=0,"-",COUNTIF('N PMČR 2022'!B:B,B61)) -> 5 | L61: =IF(ISERROR(VLOOKUP(B61,'N PMČR 2022'!B:G,6,0)),"-",VLOOKUP(B61,'N PMČR 2022'!B:G,6,0)) -> 81. | M61: =IF(COUNTIF('N PMČRj 2022'!B:B,B61)=0,"-",COUNTIF('N PMČRj 2022'!B:B,B61)) -> 35 | N61: =IF(ISERROR(VLOOKUP(B61,'N PMČRj 2022'!B:G,6,0)),"-",VLOOKUP(B61,'N PMČRj 2022'!B:G,6,0)) -> 21
A62: 47 | B62: - | C62: =VLOOKUP(B62,Pilot!A:C,3,0) ->  | D62: =VLOOKUP(B62,Pilot!A:C,2,0) ->  | E62: =VLOOKUP(B62,Pilot!A:E,5,0) ->  | F62: =VLOOKUP(B62,Pilot!A:F,6,0) ->  | G62: 47 | I62: 70 | J62: - | K62: =IF(COUNTIF('N PMČR 2022'!B:B,B62)=0,"-",COUNTIF('N PMČR 2022'!B:B,B62)) -> 5 | L62: =IF(ISERROR(VLOOKUP(B62,'N PMČR 2022'!B:G,6,0)),"-",VLOOKUP(B62,'N PMČR 2022'!B:G,6,0)) -> 81. | M62: =IF(COUNTIF('N PMČRj 2022'!B:B,B62)=0,"-",COUNTIF('N PMČRj 2022'!B:B,B62)) -> 35 | N62: =IF(ISERROR(VLOOKUP(B62,'N PMČRj 2022'!B:G,6,0)),"-",VLOOKUP(B62,'N PMČRj 2022'!B:G,6,0)) -> 21
A63: 48 | B63: - | C63: =VLOOKUP(B63,Pilot!A:C,3,0) ->  | D63: =VLOOKUP(B63,Pilot!A:C,2,0) ->  | E63: =VLOOKUP(B63,Pilot!A:E,5,0) ->  | F63: =VLOOKUP(B63,Pilot!A:F,6,0) ->  | G63: 48 | I63: 70 | J63: - | K63: =IF(COUNTIF('N PMČR 2022'!B:B,B63)=0,"-",COUNTIF('N PMČR 2022'!B:B,B63)) -> 5 | L63: =IF(ISERROR(VLOOKUP(B63,'N PMČR 2022'!B:G,6,0)),"-",VLOOKUP(B63,'N PMČR 2022'!B:G,6,0)) -> 81. | M63: =IF(COUNTIF('N PMČRj 2022'!B:B,B63)=0,"-",COUNTIF('N PMČRj 2022'!B:B,B63)) -> 35 | N63: =IF(ISERROR(VLOOKUP(B63,'N PMČRj 2022'!B:G,6,0)),"-",VLOOKUP(B63,'N PMČRj 2022'!B:G,6,0)) -> 21
A64: 49 | B64: - | C64: =VLOOKUP(B64,Pilot!A:C,3,0) ->  | D64: =VLOOKUP(B64,Pilot!A:C,2,0) ->  | E64: =VLOOKUP(B64,Pilot!A:E,5,0) ->  | F64: =VLOOKUP(B64,Pilot!A:F,6,0) ->  | G64: 49 | I64: 70 | J64: - | K64: =IF(COUNTIF('N PMČR 2022'!B:B,B64)=0,"-",COUNTIF('N PMČR 2022'!B:B,B64)) -> 5 | L64: =IF(ISERROR(VLOOKUP(B64,'N PMČR 2022'!B:G,6,0)),"-",VLOOKUP(B64,'N PMČR 2022'!B:G,6,0)) -> 81. | M64: =IF(COUNTIF('N PMČRj 2022'!B:B,B64)=0,"-",COUNTIF('N PMČRj 2022'!B:B,B64)) -> 35 | N64: =IF(ISERROR(VLOOKUP(B64,'N PMČRj 2022'!B:G,6,0)),"-",VLOOKUP(B64,'N PMČRj 2022'!B:G,6,0)) -> 21
A65: 50 | B65: - | C65: =VLOOKUP(B65,Pilot!A:C,3,0) ->  | D65: =VLOOKUP(B65,Pilot!A:C,2,0) ->  | E65: =VLOOKUP(B65,Pilot!A:E,5,0) ->  | F65: =VLOOKUP(B65,Pilot!A:F,6,0) ->  | G65: 50 | I65: 70 | J65: - | K65: =IF(COUNTIF('N PMČR 2022'!B:B,B65)=0,"-",COUNTIF('N PMČR 2022'!B:B,B65)) -> 5 | L65: =IF(ISERROR(VLOOKUP(B65,'N PMČR 2022'!B:G,6,0)),"-",VLOOKUP(B65,'N PMČR 2022'!B:G,6,0)) -> 81. | M65: =IF(COUNTIF('N PMČRj 2022'!B:B,B65)=0,"-",COUNTIF('N PMČRj 2022'!B:B,B65)) -> 35 | N65: =IF(ISERROR(VLOOKUP(B65,'N PMČRj 2022'!B:G,6,0)),"-",VLOOKUP(B65,'N PMČRj 2022'!B:G,6,0)) -> 21
A66: 51 | B66: - | C66: =VLOOKUP(B66,Pilot!A:C,3,0) ->  | D66: =VLOOKUP(B66,Pilot!A:C,2,0) ->  | E66: =VLOOKUP(B66,Pilot!A:E,5,0) ->  | F66: =VLOOKUP(B66,Pilot!A:F,6,0) ->  | G66: 51 | I66: 70 | J66: - | K66: =IF(COUNTIF('N PMČR 2022'!B:B,B66)=0,"-",COUNTIF('N PMČR 2022'!B:B,B66)) -> 5 | L66: =IF(ISERROR(VLOOKUP(B66,'N PMČR 2022'!B:G,6,0)),"-",VLOOKUP(B66,'N PMČR 2022'!B:G,6,0)) -> 81. | M66: =IF(COUNTIF('N PMČRj 2022'!B:B,B66)=0,"-",COUNTIF('N PMČRj 2022'!B:B,B66)) -> 35 | N66: =IF(ISERROR(VLOOKUP(B66,'N PMČRj 2022'!B:G,6,0)),"-",VLOOKUP(B66,'N PMČRj 2022'!B:G,6,0)) -> 21
A67: 52 | B67: - | C67: =VLOOKUP(B67,Pilot!A:C,3,0) ->  | D67: =VLOOKUP(B67,Pilot!A:C,2,0) ->  | E67: =VLOOKUP(B67,Pilot!A:E,5,0) ->  | F67: =VLOOKUP(B67,Pilot!A:F,6,0) ->  | G67: 52 | I67: 70 | J67: - | K67: =IF(COUNTIF('N PMČR 2022'!B:B,B67)=0,"-",COUNTIF('N PMČR 2022'!B:B,B67)) -> 5 | L67: =IF(ISERROR(VLOOKUP(B67,'N PMČR 2022'!B:G,6,0)),"-",VLOOKUP(B67,'N PMČR 2022'!B:G,6,0)) -> 81. | M67: =IF(COUNTIF('N PMČRj 2022'!B:B,B67)=0,"-",COUNTIF('N PMČRj 2022'!B:B,B67)) -> 35 | N67: =IF(ISERROR(VLOOKUP(B67,'N PMČRj 2022'!B:G,6,0)),"-",VLOOKUP(B67,'N PMČRj 2022'!B:G,6,0)) -> 21
A68: 53 | B68: - | C68: =VLOOKUP(B68,Pilot!A:C,3,0) ->  | D68: =VLOOKUP(B68,Pilot!A:C,2,0) ->  | E68: =VLOOKUP(B68,Pilot!A:E,5,0) ->  | F68: =VLOOKUP(B68,Pilot!A:F,6,0) ->  | G68: =A68 -> 53 | I68: =COUNTIF(B:B,B68) -> 70 | J68: - | K68: =IF(COUNTIF('N PMČR 2022'!B:B,B68)=0,"-",COUNTIF('N PMČR 2022'!B:B,B68)) -> 5 | L68: =IF(ISERROR(VLOOKUP(B68,'N PMČR 2022'!B:G,6,0)),"-",VLOOKUP(B68,'N PMČR 2022'!B:G,6,0)) -> 81. | M68: =IF(COUNTIF('N PMČRj 2022'!B:B,B68)=0,"-",COUNTIF('N PMČRj 2022'!B:B,B68)) -> 35 | N68: =IF(ISERROR(VLOOKUP(B68,'N PMČRj 2022'!B:G,6,0)),"-",VLOOKUP(B68,'N PMČRj 2022'!B:G,6,0)) -> 21
A69: 54 | B69: - | C69: =VLOOKUP(B69,Pilot!A:C,3,0) ->  | D69: =VLOOKUP(B69,Pilot!A:C,2,0) ->  | E69: =VLOOKUP(B69,Pilot!A:E,5,0) ->  | F69: =VLOOKUP(B69,Pilot!A:F,6,0) ->  | G69: 54 | I69: 70 | J69: - | K69: =IF(COUNTIF('N PMČR 2022'!B:B,B69)=0,"-",COUNTIF('N PMČR 2022'!B:B,B69)) -> 5 | L69: =IF(ISERROR(VLOOKUP(B69,'N PMČR 2022'!B:G,6,0)),"-",VLOOKUP(B69,'N PMČR 2022'!B:G,6,0)) -> 81. | M69: =IF(COUNTIF('N PMČRj 2022'!B:B,B69)=0,"-",COUNTIF('N PMČRj 2022'!B:B,B69)) -> 35 | N69: =IF(ISERROR(VLOOKUP(B69,'N PMČRj 2022'!B:G,6,0)),"-",VLOOKUP(B69,'N PMČRj 2022'!B:G,6,0)) -> 21
A70: 55 | B70: - | C70: =VLOOKUP(B70,Pilot!A:C,3,0) ->  | D70: =VLOOKUP(B70,Pilot!A:C,2,0) ->  | E70: =VLOOKUP(B70,Pilot!A:E,5,0) ->  | F70: =VLOOKUP(B70,Pilot!A:F,6,0) ->  | G70: 55 | I70: 70 | J70: - | K70: =IF(COUNTIF('N PMČR 2022'!B:B,B70)=0,"-",COUNTIF('N PMČR 2022'!B:B,B70)) -> 5 | L70: =IF(ISERROR(VLOOKUP(B70,'N PMČR 2022'!B:G,6,0)),"-",VLOOKUP(B70,'N PMČR 2022'!B:G,6,0)) -> 81. | M70: =IF(COUNTIF('N PMČRj 2022'!B:B,B70)=0,"-",COUNTIF('N PMČRj 2022'!B:B,B70)) -> 35 | N70: =IF(ISERROR(VLOOKUP(B70,'N PMČRj 2022'!B:G,6,0)),"-",VLOOKUP(B70,'N PMČRj 2022'!B:G,6,0)) -> 21
A71: 56 | B71: - | C71: =VLOOKUP(B71,Pilot!A:C,3,0) ->  | D71: =VLOOKUP(B71,Pilot!A:C,2,0) ->  | E71: =VLOOKUP(B71,Pilot!A:E,5,0) ->  | F71: =VLOOKUP(B71,Pilot!A:F,6,0) ->  | G71: 56 | I71: 70 | J71: - | K71: =IF(COUNTIF('N PMČR 2022'!B:B,B71)=0,"-",COUNTIF('N PMČR 2022'!B:B,B71)) -> 5 | L71: =IF(ISERROR(VLOOKUP(B71,'N PMČR 2022'!B:G,6,0)),"-",VLOOKUP(B71,'N PMČR 2022'!B:G,6,0)) -> 81. | M71: =IF(COUNTIF('N PMČRj 2022'!B:B,B71)=0,"-",COUNTIF('N PMČRj 2022'!B:B,B71)) -> 35 | N71: =IF(ISERROR(VLOOKUP(B71,'N PMČRj 2022'!B:G,6,0)),"-",VLOOKUP(B71,'N PMČRj 2022'!B:G,6,0)) -> 21
A72: 57 | B72: - | C72: =VLOOKUP(B72,Pilot!A:C,3,0) ->  | D72: =VLOOKUP(B72,Pilot!A:C,2,0) ->  | E72: =VLOOKUP(B72,Pilot!A:E,5,0) ->  | F72: =VLOOKUP(B72,Pilot!A:F,6,0) ->  | G72: 57 | I72: 70 | J72: - | K72: =IF(COUNTIF('N PMČR 2022'!B:B,B72)=0,"-",COUNTIF('N PMČR 2022'!B:B,B72)) -> 5 | L72: =IF(ISERROR(VLOOKUP(B72,'N PMČR 2022'!B:G,6,0)),"-",VLOOKUP(B72,'N PMČR 2022'!B:G,6,0)) -> 81. | M72: =IF(COUNTIF('N PMČRj 2022'!B:B,B72)=0,"-",COUNTIF('N PMČRj 2022'!B:B,B72)) -> 35 | N72: =IF(ISERROR(VLOOKUP(B72,'N PMČRj 2022'!B:G,6,0)),"-",VLOOKUP(B72,'N PMČRj 2022'!B:G,6,0)) -> 21
A73: 58 | B73: - | C73: =VLOOKUP(B73,Pilot!A:C,3,0) ->  | D73: =VLOOKUP(B73,Pilot!A:C,2,0) ->  | E73: =VLOOKUP(B73,Pilot!A:E,5,0) ->  | F73: =VLOOKUP(B73,Pilot!A:F,6,0) ->  | G73: 58 | I73: 70 | J73: =IF(ISERROR(VLOOKUP(B73,B:G,6,0)),"-",VLOOKUP(B73,B:G,6,0)) -> - | K73: =IF(COUNTIF('N PMČR 2022'!B:B,B73)=0,"-",COUNTIF('N PMČR 2022'!B:B,B73)) -> 5 | L73: =IF(ISERROR(VLOOKUP(B73,'N PMČR 2022'!B:G,6,0)),"-",VLOOKUP(B73,'N PMČR 2022'!B:G,6,0)) -> 81. | M73: =IF(COUNTIF('N PMČRj 2022'!B:B,B73)=0,"-",COUNTIF('N PMČRj 2022'!B:B,B73)) -> 35 | N73: =IF(ISERROR(VLOOKUP(B73,'N PMČRj 2022'!B:G,6,0)),"-",VLOOKUP(B73,'N PMČRj 2022'!B:G,6,0)) -> 21
A74: 59 | B74: - | C74: =VLOOKUP(B74,Pilot!A:C,3,0) ->  | D74: =VLOOKUP(B74,Pilot!A:C,2,0) ->  | E74: =VLOOKUP(B74,Pilot!A:E,5,0) ->  | F74: =VLOOKUP(B74,Pilot!A:F,6,0) ->  | G74: 59 | I74: 70 | J74: - | K74: =IF(COUNTIF('N PMČR 2022'!B:B,B74)=0,"-",COUNTIF('N PMČR 2022'!B:B,B74)) -> 5 | L74: =IF(ISERROR(VLOOKUP(B74,'N PMČR 2022'!B:G,6,0)),"-",VLOOKUP(B74,'N PMČR 2022'!B:G,6,0)) -> 81. | M74: =IF(COUNTIF('N PMČRj 2022'!B:B,B74)=0,"-",COUNTIF('N PMČRj 2022'!B:B,B74)) -> 35 | N74: =IF(ISERROR(VLOOKUP(B74,'N PMČRj 2022'!B:G,6,0)),"-",VLOOKUP(B74,'N PMČRj 2022'!B:G,6,0)) -> 21
A75: 60 | B75: - | C75: =VLOOKUP(B75,Pilot!A:C,3,0) ->  | D75: =VLOOKUP(B75,Pilot!A:C,2,0) ->  | E75: =VLOOKUP(B75,Pilot!A:E,5,0) ->  | F75: =VLOOKUP(B75,Pilot!A:F,6,0) ->  | G75: 60 | I75: 70 | J75: - | K75: =IF(COUNTIF('N PMČR 2022'!B:B,B75)=0,"-",COUNTIF('N PMČR 2022'!B:B,B75)) -> 5 | L75: =IF(ISERROR(VLOOKUP(B75,'N PMČR 2022'!B:G,6,0)),"-",VLOOKUP(B75,'N PMČR 2022'!B:G,6,0)) -> 81. | M75: =IF(COUNTIF('N PMČRj 2022'!B:B,B75)=0,"-",COUNTIF('N PMČRj 2022'!B:B,B75)) -> 35 | N75: =IF(ISERROR(VLOOKUP(B75,'N PMČRj 2022'!B:G,6,0)),"-",VLOOKUP(B75,'N PMČRj 2022'!B:G,6,0)) -> 21
A76: 61 | B76: - | C76: =VLOOKUP(B76,Pilot!A:C,3,0) ->  | D76: =VLOOKUP(B76,Pilot!A:C,2,0) ->  | E76: =VLOOKUP(B76,Pilot!A:E,5,0) ->  | F76: =VLOOKUP(B76,Pilot!A:F,6,0) ->  | G76: 61 | I76: 70 | J76: - | K76: =IF(COUNTIF('N PMČR 2022'!B:B,B76)=0,"-",COUNTIF('N PMČR 2022'!B:B,B76)) -> 5 | L76: =IF(ISERROR(VLOOKUP(B76,'N PMČR 2022'!B:G,6,0)),"-",VLOOKUP(B76,'N PMČR 2022'!B:G,6,0)) -> 81. | M76: =IF(COUNTIF('N PMČRj 2022'!B:B,B76)=0,"-",COUNTIF('N PMČRj 2022'!B:B,B76)) -> 35 | N76: =IF(ISERROR(VLOOKUP(B76,'N PMČRj 2022'!B:G,6,0)),"-",VLOOKUP(B76,'N PMČRj 2022'!B:G,6,0)) -> 21
A77: N1 | B77: - | C77: =VLOOKUP(B77,Pilot!A:C,3,0) ->  | D77: =VLOOKUP(B77,Pilot!A:C,2,0) ->  | E77: =VLOOKUP(B77,Pilot!A:E,5,0) ->  | F77: =VLOOKUP(B77,Pilot!A:F,6,0) ->  | G77: N1 | I77: =COUNTIF(B:B,B77) -> 70 | J77: - | K77: =IF(COUNTIF('N PMČR 2022'!B:B,B77)=0,"-",COUNTIF('N PMČR 2022'!B:B,B77)) -> 5 | L77: =IF(ISERROR(VLOOKUP(B77,'N PMČR 2022'!B:G,6,0)),"-",VLOOKUP(B77,'N PMČR 2022'!B:G,6,0)) -> 81. | M77: =IF(COUNTIF('N PMČRj 2022'!B:B,B77)=0,"-",COUNTIF('N PMČRj 2022'!B:B,B77)) -> 35 | N77: =IF(ISERROR(VLOOKUP(B77,'N PMČRj 2022'!B:G,6,0)),"-",VLOOKUP(B77,'N PMČRj 2022'!B:G,6,0)) -> 21
A78: N2 | B78: - | C78: =VLOOKUP(B78,Pilot!A:C,3,0) ->  | D78: =VLOOKUP(B78,Pilot!A:C,2,0) ->  | E78: =VLOOKUP(B78,Pilot!A:E,5,0) ->  | F78: =VLOOKUP(B78,Pilot!A:F,6,0) ->  | G78: N2 | I78: 70 | J78: - | K78: =IF(COUNTIF('N PMČR 2022'!B:B,B78)=0,"-",COUNTIF('N PMČR 2022'!B:B,B78)) -> 5 | L78: =IF(ISERROR(VLOOKUP(B78,'N PMČR 2022'!B:G,6,0)),"-",VLOOKUP(B78,'N PMČR 2022'!B:G,6,0)) -> 81. | M78: =IF(COUNTIF('N PMČRj 2022'!B:B,B78)=0,"-",COUNTIF('N PMČRj 2022'!B:B,B78)) -> 35 | N78: =IF(ISERROR(VLOOKUP(B78,'N PMČRj 2022'!B:G,6,0)),"-",VLOOKUP(B78,'N PMČRj 2022'!B:G,6,0)) -> 21
A79: N3 | B79: - | C79: =VLOOKUP(B79,Pilot!A:C,3,0) ->  | D79: =VLOOKUP(B79,Pilot!A:C,2,0) ->  | E79: =VLOOKUP(B79,Pilot!A:E,5,0) ->  | F79: =VLOOKUP(B79,Pilot!A:F,6,0) ->  | G79: N3 | I79: 70 | J79: - | K79: =IF(COUNTIF('N PMČR 2022'!B:B,B79)=0,"-",COUNTIF('N PMČR 2022'!B:B,B79)) -> 5 | L79: =IF(ISERROR(VLOOKUP(B79,'N PMČR 2022'!B:G,6,0)),"-",VLOOKUP(B79,'N PMČR 2022'!B:G,6,0)) -> 81. | M79: =IF(COUNTIF('N PMČRj 2022'!B:B,B79)=0,"-",COUNTIF('N PMČRj 2022'!B:B,B79)) -> 35 | N79: =IF(ISERROR(VLOOKUP(B79,'N PMČRj 2022'!B:G,6,0)),"-",VLOOKUP(B79,'N PMČRj 2022'!B:G,6,0)) -> 21
A80: N4 | B80: - | C80: =VLOOKUP(B80,Pilot!A:C,3,0) ->  | D80: =VLOOKUP(B80,Pilot!A:C,2,0) ->  | E80: =VLOOKUP(B80,Pilot!A:E,5,0) ->  | F80: =VLOOKUP(B80,Pilot!A:F,6,0) ->  | G80: N4 | I80: 70 | J80: - | K80: =IF(COUNTIF('N PMČR 2022'!B:B,B80)=0,"-",COUNTIF('N PMČR 2022'!B:B,B80)) -> 5 | L80: =IF(ISERROR(VLOOKUP(B80,'N PMČR 2022'!B:G,6,0)),"-",VLOOKUP(B80,'N PMČR 2022'!B:G,6,0)) -> 81. | M80: =IF(COUNTIF('N PMČRj 2022'!B:B,B80)=0,"-",COUNTIF('N PMČRj 2022'!B:B,B80)) -> 35 | N80: =IF(ISERROR(VLOOKUP(B80,'N PMČRj 2022'!B:G,6,0)),"-",VLOOKUP(B80,'N PMČRj 2022'!B:G,6,0)) -> 21
A81: N5 | B81: - | C81: =VLOOKUP(B81,Pilot!A:C,3,0) ->  | D81: =VLOOKUP(B81,Pilot!A:C,2,0) ->  | E81: =VLOOKUP(B81,Pilot!A:E,5,0) ->  | F81: =VLOOKUP(B81,Pilot!A:F,6,0) ->  | G81: N5 | I81: 70 | J81: - | K81: =IF(COUNTIF('N PMČR 2022'!B:B,B81)=0,"-",COUNTIF('N PMČR 2022'!B:B,B81)) -> 5 | L81: =IF(ISERROR(VLOOKUP(B81,'N PMČR 2022'!B:G,6,0)),"-",VLOOKUP(B81,'N PMČR 2022'!B:G,6,0)) -> 81. | M81: =IF(COUNTIF('N PMČRj 2022'!B:B,B81)=0,"-",COUNTIF('N PMČRj 2022'!B:B,B81)) -> 35 | N81: =IF(ISERROR(VLOOKUP(B81,'N PMČRj 2022'!B:G,6,0)),"-",VLOOKUP(B81,'N PMČRj 2022'!B:G,6,0)) -> 21
A82: N6 | B82: - | C82: =VLOOKUP(B82,Pilot!A:C,3,0) ->  | D82: =VLOOKUP(B82,Pilot!A:C,2,0) ->  | E82: =VLOOKUP(B82,Pilot!A:E,5,0) ->  | F82: =VLOOKUP(B82,Pilot!A:F,6,0) ->  | G82: N6 | I82: 70 | J82: - | K82: =IF(COUNTIF('N PMČR 2022'!B:B,B82)=0,"-",COUNTIF('N PMČR 2022'!B:B,B82)) -> 5 | L82: =IF(ISERROR(VLOOKUP(B82,'N PMČR 2022'!B:G,6,0)),"-",VLOOKUP(B82,'N PMČR 2022'!B:G,6,0)) -> 81. | M82: =IF(COUNTIF('N PMČRj 2022'!B:B,B82)=0,"-",COUNTIF('N PMČRj 2022'!B:B,B82)) -> 35 | N82: =IF(ISERROR(VLOOKUP(B82,'N PMČRj 2022'!B:G,6,0)),"-",VLOOKUP(B82,'N PMČRj 2022'!B:G,6,0)) -> 21
